Workbook

Sheet Frontpage
E4: TVET College Costing Model
E6: Final version
E7: 23 May 2016
B8: Model developed for the National Treasury
F10: For more information on this model,
F11: please contact Dawid Pienaar
F12: Tel: 087 357 0618
F13: Email: dawid.pienaar@dnaeconomics.com

Sheet Contents
B2: Category | C2: # | D2: Sheet Name | E2: Sheet Description
B3: Model description | C3: 1a | D3: Costing model descr | E3: Provides a description of the methodology and assumptions underlying the costing model.
C4: 1b | D4: Funding model descr | E4: Provides a graphic representation of the methodology underlying the funding model.
B5: Dashboards | C5: 2a | D5: Fund Dashboard | E5: Allows user to change key funding assumptions and evaluate impact of these changes on the total shortfall within the TVET system. The dashboard is linked dynamically to the Costing / Expenditure dashboard and shortalls are calculated based on the assumptions selected on both of these dashboards.
C6: 2b | D6: Exp Dashboard | E6: This dashboard allows the user to vary the key cost / expenditure drivers within the system and see the impact of these changes on the total projected costs. Also allows the user to input a graduate target and throughput rate and determine what level of enrolments would be required to achieve this graduate target in 2030. See sheet 2 Costing Model Description for more details.
C7: 2c | D7: Enrolment inputs | E7: A secondary dashboard that allows the user to vary the programme mix that will be in place in 2030, as well as the real cost of programmes.
B8: Information and output sheets | C8: 3a | D8: TVET Shortfall | E8: Shows the expenditure, funding and shortfall within all of the costing and expenditure within the TVET system, broken down by source of funding
C9: 3b | D9: Cost Scenarios | E9: Provides a description of the key assumptions made within each of the costing (i.e. expenditure scenarios within the TVET sector.
C10: 3c | D10: Cost Scenario Outputs | E10: Provides a detailed summary and comparison of the costing model results under the different costs / expenditures scenarios
B11: Assumptions and calculations | C11: 4a | D11: Funding Calc | E11: Displays the key funding estimations within the model. Note that the final model will be linked dynamically to the Skills Development Levy / Workplace model to allow NSF and SETA assumptions to be explored.
C12: 4b | D12: Costing Calc | E12: Provides the expenditure assumptions made and provides the key outputs of the expenditure calculations produced by the model
C13: 4c | D13: Enrolment Assumptions | E13: Displays and estimates the key enrolment assumptions made and their impact on enrolment growth by programme over time.
C14: 4d | D14: Infrastructure and Residences | E14: Provides the Infrastructure and Residence estimates calculated within the model; including college infrastructures as well as residence current expenditure and infrastructure costs
C15: 4e | D15: Enrolment model | E15: The NC(V) and NATED enrolment model estimation sheet which uses inputs and assumptions to project the number of enrolments, repeating students, FTEs, certifications and graduations per programme type over time
C16: 4f | D16: Performance Assumptions | E16: Gives a breakdown of the NC(V) and NATED throughput assumptions used in the model (calculated based on the 2013 examination results)
C17: 4g | D17: Funding Assumptions | E17: Gives a breakdown of the key NSFAS and other funding stream assumptions
C18: 4h | D18: NSF & SETA | E18: Gives income over time to TVET colleges from the NSF and SETAs under different cost scenarios based on the SDL model
C19: 4i | D19: GDP | E19: Calculates the Gross Domestic Product between 2014 and 2030
B20: Overall PSET results | C20: 5a | D20: PSET Shortfall | E20: Provides a summary of the total shortfall within the PSET system, broken down by sector.
C21: 5b | D21: PSET Real | E21: Provides the overall PSET level cost estimates in real terms
C22: 5c | D22: PSET Nominal | E22: Provides the overall PSET level cost estimates in nominal terms

Sheet 1a. Costing Model Descr
C2: Costing Model - Overall model description
C3: This model forecasts the total real (in 2014 values) expenditure within the public Technical and Vocational Education and Training (TVET) sector from 2014 to 2030 based on the targets and objectives articulated in the White Paper on Post-School Education. The second key model output is the number of enrolments required to meet a user specified level of graduates.
C4: In the next phase of the project this will be used to determine the funding requirements and options based on the output of the expenditure models for TVET, Universities, NSFAS, Workplace and Community Colleges.
B6: Methodology | C6: Methodology
C9: Key Model calculations
C10: The model uses the selected input values (e.g. enrolment targets, throughput rates, programme mix, cost assumptions etc.), to first (1) determine how many students are enrolled at each level of each programme, how many drop out, how many pass and how many repeat; before this information to determine the financial costs of this level of enrolments. The costs are split into 4 types: (1) Lecturing Costs (2) Support Staff & Management Costs (3) Direct (Programme) Costs (textbooks, consumables etc. directly used in delivering teaching) and (4) Other Goods & Services Costs). (1) and (3) are determined by multiplying the number of FTEs in each programme by the relevant costs for delivering that programme. (2) and (4) however include fixed cost components (i.e. exhibit economies of scale).
C11: Key model Assumptions
C12: (1) While the model implicitly assumes that there are 50 colleges, it assumes that these colleges are of equivalent size and that they exhibit the same cost structure and their throughput rates are also equivalent. While this assumption significantly simplifies the TVET sector, it makes the model substantially more tractable and understandable - while still allowing the user to edit the key paramaters and assumptions that will determine the long term expenditure in the sector. (2) All cost and performance assumptions are made on the basis of the analysis done during the 2015 Performance and Expenditure Analysis of the TVET sector. (3) It is assumed that the government appropriation is only intended to fund NC(V) and NATED, and hence other courses and programmes are excluded from the analysis of the totals included in the dashboard. (4) NSFAS student contribution calculations are based on the best available data, although it should be noted that accurate estimates of the average contribution to NC(V) and NATED students respectively is not availalbe; which could limit the accuracy of the NSFAS estimate
C13: Secondary model outputs
C14: (a) The Total Expenditure across all TVET colleges per programme (e.g. NC(V)) (b) The Average Expenditure by programme (for NC(V) and NATED): - Full-Time Equivalent (FTE) Student - Certification (Student passing single level) - Graduate (Student passing all three levels of a programme)
B16: INPUTS | C16: Primary Model User-selected Inputs
C17: The model (in the top left section of the sheet "3. TVET Dashboard") allows the user to change key inputs into the model, and evaluate the impact of these changes on the model outputs relative to the status quo scenario (defined below). The input parameters can be divided into two types (a) Scenario choices and (b) Parameter values; where the former refers to user choices on how key aspects of the model are determined, whereas the latter allows the user to edit the assumed values of key model parameters.
C18: (a) Scenario Choice Inputs
C19: The user is able to choose what scenario to select within three dimension: (i) The annual enrolment growth scenario - allows the user to select whether the enrolment target is reached using one of the three growth rates: 1. The DHET enrolment plans (14% enrolment growth until 2019, followed by 7% until 2030); 2. Straight line method (enrolments increase by a fixed number each year); 3. Constant growth rate (cumulative growth at a constant %) (ii) The programme mix scenario - Allows the user to select what proportion of enrolments are in NC(V) and NATED. Choosing between either the current split (with 22% in NC(V)), A high NC(V) (NATED), low NC(V) (NATED); or by specifying the exact NC(V) proportion (from which NATED is inferred) (iii) The throughput rate scenario - Allows the user to define the throughput rates to either: 1. Remain constant (as at 2013) 2. Be influenced by the level of expenditure (methodology still to be finalised - but currently based on lecturer to student ratios and Direct Costs) or 3. Directly input the 2030 throughput rate for NC(V) and NATED
C20: (b) Paramater Value Inputs
C21: Other key model input assumptions that can be edited by the user are: (i) The PSET inflation rate -> i.e. the rate at which all cost parameters increase (in nominal terms). This allows the user to evaluate the effect of education inflation potentially being higher than CPI (ii) The CPI rate -> effectively the discount rate, which is used to convert costs into 2014 prices. When the PSET inflation rate is non-zero, and the CPI rate is zero - the model is effectively converted into a real model. (iii) Infrastructure inflation – the rate at which infrastructure costs increase; allowing the user to see the effect if infrastructure inflation differs from other forms of inflatione (iv) Graduate Target -> Allows the user to select the target number of graduates that the model aims to achieve in 2030, and outputs the number of enrolments in 2030 required to meet this target. This output is delivered in cell E10 after the "Calc Enrolments" button has been clicked on.

Sheet 1b. Funding Model Descr
B2: Methodology | C2: Funding Model Methodology

Sheet 2a. Fund Dashboard
E2: OUTPUTS | L2: FUNDING INPUTS & ASSUMPTIONS
C3: Ensure balance between income and expenditure, i.e R0 shortfall | L3: Revenue assumptions | M3: Scenario | T3: Heading
F4: ='2b. Cost Dashboard'!L5 -> 2500000 | L4: Subsidy real growth rate | M4: 0.029 | T4: User-defined Input
F5: =M4 -> 0.029 | L5: Fee real growth rate | M5: 0 | T5: Information
L6: NSF & SETA Scenario | M6: Status Quo | T6: Output / Calculation
C7: TVET revenue | E7: MTEF | T7: Fixed Assumption
D8: 2014/15 | E8: 2017/18 | F8: 2018/19 | G8: 2019/20 | H8: 2030/31
C9: Government Subsidy | D9: ='4a. Funding Calc'!D2/1000 -> 5827.173 | E9: ='4a. Funding Calc'!G2/1000 -> 7355.42952 | F9: ='4a. Funding Calc'!H2/1000 -> 8024.773607 | G9: ='4a. Funding Calc'!I2/1000 -> 8755.028005 | H9: ='4a. Funding Calc'!T2/1000 -> 22820.74384 | L9: NSFAS Assumptions | M9: NC(V) | N9: NATED
C10: NSF and SETAs | D10: =('4a. Funding Calc'!D6+'4a. Funding Calc'!D7)/1000 -> 897.9147354 | E10: =('4a. Funding Calc'!G6+'4a. Funding Calc'!G7)/1000 -> 1262.218748 | F10: =('4a. Funding Calc'!H6+'4a. Funding Calc'!H7)/1000 -> 1413.920244 | G10: =('4a. Funding Calc'!I6+'4a. Funding Calc'!I7)/1000 -> 1584.589922 | H10: =('4a. Funding Calc'!T6+'4a. Funding Calc'!T7)/1000 -> 5551.324735 | L10: Percentage of non-repeating students covered | M10: 1 | N10: 0.5 | BA10: 2030
C11: Third stream | D11: ='4a. Funding Calc'!D8/1000 -> 613.00983 | E11: ='4a. Funding Calc'!G8/1000 -> 796.0524632 | F11: ='4a. Funding Calc'!H8/1000 -> 868.4932374 | G11: ='4a. Funding Calc'!I8/1000 -> 947.526122 | H11: ='4a. Funding Calc'!T8/1000 -> 2469.809451 | L11: % of students with accommodation | M11: 0.1 | N11: 0.1 | BA11: Scenario | BB11: Status Quo | BC11: 2014
C12: Tuition and residence fees | D12: =('4a. Funding Calc'!D4+'4a. Funding Calc'!D5+'4a. Funding Calc'!D10+'4a. Funding Calc'!D11)/1000 -> 2667.228544 | E12: =('4a. Funding Calc'!G4+'4a. Funding Calc'!G5+'4a. Funding Calc'!G10+'4a. Funding Calc'!G11)/1000 -> 4450.89024 | F12: =('4a. Funding Calc'!H4+'4a. Funding Calc'!H5+'4a. Funding Calc'!H10+'4a. Funding Calc'!H11)/1000 -> 5335.948534 | G12: =('4a. Funding Calc'!I4+'4a. Funding Calc'!I5+'4a. Funding Calc'!I10+'4a. Funding Calc'!I11)/1000 -> 6254.735281 | H12: =('4a. Funding Calc'!T4+'4a. Funding Calc'!T5+'4a. Funding Calc'!T10+'4a. Funding Calc'!T11)/1000 -> 25193.11444 | AY12: NC(V) | AZ12: Total spending (R'm) | BA12: ='4b. Costing Calc'!$T$86/1000000 -> 31063.38372 | BB12: 12207.26279 | BC12: ='4b. Costing Calc'!$D$86/1000000 -> 3908.094918
C13: NSFAS contribution | D13: =('4a. Funding Calc'!D5+'4a. Funding Calc'!D10)/1000 -> 1619.392366 | E13: =('4a. Funding Calc'!G5+'4a. Funding Calc'!G10)/1000 -> 2709.954739 | F13: =('4a. Funding Calc'!H5+'4a. Funding Calc'!H10)/1000 -> 3292.616009 | G13: =('4a. Funding Calc'!I5+'4a. Funding Calc'!I10)/1000 -> 3814.601011 | H13: =('4a. Funding Calc'!T5+'4a. Funding Calc'!T10)/1000 -> 15324.34188 | L13: Select Cost scenario | AZ13: Number of FTEs | BA13: ='4b. Costing Calc'!$T$79 -> 518390.5187 | BB13: 516567.9985 | BC13: ='4b. Costing Calc'!$D$79 -> 146164
C14: Total Current Revenue | D14: ='4a. Funding Calc'!D12/1000 -> 10005.32611 | E14: ='4a. Funding Calc'!G12/1000 -> 13864.59097 | F14: ='4a. Funding Calc'!H12/1000 -> 15643.13562 | G14: ='4a. Funding Calc'!I12/1000 -> 17541.87933 | H14: ='4a. Funding Calc'!T12/1000 -> 56034.99246
C15: Total current spending | D15: ='2b. Cost Dashboard'!D4 -> 8605.699595 | E15: ='4a. Funding Calc'!G13/1000 -> 13439.52826 | F15: ='4a. Funding Calc'!H13/1000 -> 15803.60886 | G15: ='4a. Funding Calc'!I13/1000 -> 18362.08201 | H15: ='4b. Costing Calc'!T123+'2b. Cost Dashboard'!E5 -> 70301.10243 | L15: Navigate to other dashboards | AZ15: Spending per FTE | BA15: =BA12*1000000/BA13 -> 59922.74665 | BB15: 23631.47316 | BC15: =BC12*1000000/BC13 -> 26737.73924
C16: Total Shortfall (-) / Surplus (+): | D16: =D14-D15 -> 1399.626514 | E16: =E14-E15 -> 425.0627101 | F16: =F14-F15 -> -160.4732405 | G16: =G14-G15 -> -820.2026774 | H16: =H14-H15 -> -14266.10996
AZ19: Number of certifications | BA19: ='4b. Costing Calc'!$T$91 -> 145204.9329 | BB19: 144327.6374 | BC19: ='4b. Costing Calc'!$D$91 -> 40901.61283
AZ20: Spending per certification | BA20: =BA$12*1000000/BA19 -> 213927.8818 | BB20: 84580.2163 | BC20: =BC$12*1000000/BC19 -> 95548.67516
AZ21: Number of graduates | BA21: ='4b. Costing Calc'!T101 -> 32089.9567 | BB21: 31081.65363 | BC21: ='4b. Costing Calc'!D101 -> 8603.211633
AZ22: Spending per graduate | BA22: =BA$12*1000000/BA21 -> 968009.5243 | BB22: 392748.1766 | BC22: =BC$12*1000000/BC21 -> 454260.0002
BA24: 2030
BA25: Scenario | BB25: Status Quo | BC25: 2014
AY26: NATED | AZ26: Total spending (R'm) | BA26: =SUM('4b. Costing Calc'!$T$87:$T$90)/1000000 -> 27470.74756 | BB26: 10936.34718 | BC26: =SUM('4b. Costing Calc'!$D$87:$D$90)/1000000 -> 3551.558844
AZ27: Number of FTEs | BA27: =SUM('4b. Costing Calc'!$T$80:$T$83) -> 627721.5434 | BB27: 626398.0898 | BC27: =SUM('4b. Costing Calc'!$D$80:$D$83) -> 172696.112
AZ28: Spending per FTE | BA28: =BA26*1000000/BA27 -> 43762.63304 | BB28: 17459.10046 | BC28: =BC26*1000000/BC27 -> 20565.36654
D29: 2016-2030 | AZ29: Number of certifications | BA29: =SUM('4b. Costing Calc'!$T$92:$T$95) -> 686030.6155 | BB29: 683486.4206 | BC29: =SUM('4b. Costing Calc'!$D$92:$D$95) -> 193747.0063
C30: Cumulative current spending (R'm) 2016 to 2030 | D30: =SUM('4b. Costing Calc'!F123:T123) -> 522612.7687 | AZ30: Spending per certification | BA30: =BA$26*1000000/BA29 -> 40043.03443 | BB30: 16000.82584 | BC30: =BC$26*1000000/BC29 -> 18330.90953
C31: Cumulative current revenue (R'm) 2016 to 2030 | D31: =SUM('4a. Funding Calc'!F12:T12)/1000 -> 448648.3565 | AZ31: Number of graduates | BA31: =SUM('4b. Costing Calc'!$T$102:$T$105) -> 167728.5192 | BB31: 165534.8236 | BC31: =SUM('4b. Costing Calc'!$D$102:$D$105) -> 48086.52788
C32: Shortfall (-) / Surplus (+): Cumulative Spending | D32: =D31-D30 -> -73964.41224 | AZ32: Spending per graduate | BA32: =BA$26*1000000/BA31 -> 163781.0177 | BB32: 66066.74618 | BC32: =BC$26*1000000/BC31 -> 73857.66868
BA36: 2030
BA37: Scenario | BB37: Status Quo | BC37: 2014
AZ38: Total spending on repeats | BA38: ='4b. Costing Calc'!D121/1000000 -> 2475.051675 | BB38: 2475.051675 | BC38: ='4b. Costing Calc'!T121/1000000 -> 19233.05003
AZ39: % Spending on repeats | BA39: =BA38/D15 -> 0.2876060973 | BB39: 0.3317917632 | BC39: =BC38/H15 -> 0.2735810587

Sheet 2b. Cost Dashboard
D2: OUTPUTS | K2: INPUTS & ASSUMPTIONS | P2: LEGEND
C3: Current Spending (R'm) | D3: 2014 | E3: Scenario (2030) | F3: Status Quo (2030) | J3: Select pre-set scenario | Q3: Heading | AA3: Cumulative Shortfall | AB3: ='2a. Fund Dashboard'!D32 -> -73964.41224
C4: TVET Colleges | D4: ='4b. Costing Calc'!D123 -> 8605.699595 | E4: ='4b. Costing Calc'!T123 -> 69169.68425 | F4: 69169.68425 | J4: Inflation | K4: CPI | L4: 0.062 | Q4: Item description | AA4: Avg Expenditure Growth rate | AB4: =(E4/D4)^(1/16)-1 -> 0.1391229474
C5: Residences | D5: ='4d. Infrastructure & Residences'!B16/1000000 -> 120.3163332 | E5: ='4d. Infrastructure & Residences'!R16/1000000 -> 1131.418175 | F5: 1131.418175 | J5: Enrolment options | K5: Target Enrolments (2030) | L5: 2500000 | Q5: User-defined Input
C6: Total Spending | D6: =D5+D4 -> 8726.015929 | E6: =E5+E4 -> 70301.10243 | F6: 70301.10243 | K6: Graduate Target (specify target here) | L6: 100000 | N6: 0.062 | Q6: Output | AA6: Cumulative | AB6: Scenario
AA7: Cumulative current spending (R'm) 2016 to 2030 | AB7: =SUM('4b. Costing Calc'!F123:T123) -> 522612.7687
C8: Enrolments and unit costs | D8: 2014 | E8: Scenario (2030) | F8: Status Quo (2030) | J8: Growth, programme and performance options | K8: Enrolment Growth Scenario | L8: 1. Current Growth Plan | P8: OTHER DASHBOARDS
C9: Number of enrolments | D9: ='4c. Enrolment Assumptions'!E31 -> 706403 | E9: ='4c. Enrolment Assumptions'!U31 -> 2500000 | F9: 2500000 | K9: Programme Mix Scenario | L9: 1. Current Mix | AB9: 2030
C10: Number of FTE students | D10: ='4b. Costing Calc'!D85 -> 334909.7654 | E10: ='4b. Costing Calc'!T85 -> 1202912.689 | F10: 1202912.689 | K10: Throughput rate scenario | L10: 1. Existing | AB10: Scenario | AC10: Status Quo | AD10: 2014
C11: Current spending per FTE | D11: =D4*1000000/D10 -> 25695.5768 | E11: =E4*1000000/E10 -> 57501.83274 | F11: 57501.83274 | Z11: NC(V) | AA11: Total spending (R'm) | AB11: ='4b. Costing Calc'!$T$86/1000000 -> 31063.38372 | AC11: 11984.98138 | AD11: ='4b. Costing Calc'!$D$86/1000000 -> 3908.094918
C12: Number of graduates (NCV and NATED) | D12: =AD16+AD28 -> 56689.73951 | E12: =AB16+AB28 -> 199818.4758 | F12: 199818.4758 | J12: Cost & Performance Assumptions | L12: Scenario (2030) | M12: Current (2014) | AA12: Number of FTEs | AB12: ='4b. Costing Calc'!$T$79 -> 518390.5187 | AC12: 516567.9985 | AD12: ='4b. Costing Calc'!$D$79 -> 146164
J13: Performance (Throughput rates) | K13: NC(V) Throughput Rate | L13: =M13 -> 0.1055044659 | M13: 0.1055044659 | AA13: Spending per FTE | AB13: =AB11*1000000/AB12 -> 59922.74665 | AC13: 23201.16889 | AD13: =AD11*1000000/AD12 -> 26737.73924
C14: Current spending MTEF (R'm) | D14: 2017/18 | E14: 2018/19 | F14: 2019/20 | K14: NATED Throughput Rate | L14: 0.2584128891 | M14: ='4f. Performance assumptions'!D39 -> 0.2584128891 | AA14: Number of certifications | AB14: ='4b. Costing Calc'!$T$91 -> 145204.9329 | AC14: 144327.6374 | AD14: ='4b. Costing Calc'!$D$91 -> 40901.61283
C15: Current spending: TVET colleges and residences | D15: ='4a. Funding Calc'!G13/1000 -> 13439.52826 | E15: ='4a. Funding Calc'!H13/1000 -> 15803.60886 | F15: ='4a. Funding Calc'!I13/1000 -> 18362.08201 | J15: Student:Lecturer FTE ratio | K15: Student:Lecturer FTE ratio: NC(V) | L15: 19.56114878 | M15: ='4b. Costing Calc'!E8 -> 19.56114878 | AA15: Spending per certification | AB15: =AB$11*1000000/AB14 -> 213927.8818 | AC15: 83040.09954 | AD15: =AD$11*1000000/AD14 -> 95548.67516
K16: Student:Lecturer FTE ratio: NATED | L16: 33.6435615 | M16: ='4b. Costing Calc'!F8 -> 33.6435615 | AA16: Number of graduates | AB16: ='4b. Costing Calc'!T101 -> 32089.9567 | AC16: 31081.65363 | AD16: ='4b. Costing Calc'!D101 -> 8603.211633
C17: Infrastructure requirement (R'm) | E17: Scenario (2016 - 2030) | F17: Status quo (2016 - 2030) | J17: Direct Costs | K17: Direct Costs: NC(V) - 2014 prices | L17: 1699.263158 | M17: ='4b. Costing Calc'!E15 -> 1699.263158 | AA17: Spending per graduate | AB17: =AB$11*1000000/AB16 -> 968009.5243 | AC17: 385596.6455 | AD17: =AD$11*1000000/AD16 -> 454260.0002
C18: TVET Colleges | E18: ='4d. Infrastructure & Residences'!$A$10/1000000 -> 188097.3249 | F18: 188097.3249 | K18: Direct Costs: NATED - 2014 prices | L18: 1215.9 | M18: ='4b. Costing Calc'!F15 -> 1215.9
C19: Residences | E19: ='4d. Infrastructure & Residences'!$B$10/1000000 -> 6799.207786 | F19: 6799.207786 | J19: Mode of delivery | K19: % of enrolments in Distance Learning | L19: 0 | M19: 0
C20: Total infrastructure requirement | E20: =E19+E18 -> 194896.5327 | F20: 194896.5327 | J20: Residences | K20: Bed capacity as % of enrolments | L20: 0.015 | M20: 0.015
AB21: 2030
AB22: Scenario | AC22: Status Quo | AD22: 2014
Z23: NATED | AA23: Total spending (R'm) | AB23: =SUM('4b. Costing Calc'!$T$87:$T$90)/1000000 -> 27470.74756 | AC23: 10666.80541 | AD23: =SUM('4b. Costing Calc'!$D$87:$D$90)/1000000 -> 3551.558844
AA24: Number of FTEs | AB24: =SUM('4b. Costing Calc'!$T$80:$T$83) -> 627721.5434 | AC24: 626398.0898 | AD24: =SUM('4b. Costing Calc'!$D$80:$D$83) -> 172696.112
AA25: Spending per FTE | AB25: =AB23*1000000/AB24 -> 43762.63304 | AC25: 17028.79619 | AD25: =AD23*1000000/AD24 -> 20565.36654
AA26: Number of certifications | AB26: =SUM('4b. Costing Calc'!$T$92:$T$95) -> 686030.6155 | AC26: 683486.4206 | AD26: =SUM('4b. Costing Calc'!$D$92:$D$95) -> 193747.0063
AA27: Spending per certification | AB27: =AB$23*1000000/AB26 -> 40043.03443 | AC27: 15606.46281 | AD27: =AD$23*1000000/AD26 -> 18330.90953
AA28: Number of graduates | AB28: =SUM('4b. Costing Calc'!$T$102:$T$105) -> 167728.5192 | AC28: 165534.8236 | AD28: =SUM('4b. Costing Calc'!$D$102:$D$105) -> 48086.52788
AA29: Spending per graduate | AB29: =AB$23*1000000/AB28 -> 163781.0177 | AC29: 64438.43762 | AD29: =AD$23*1000000/AD28 -> 73857.66868
AB33: 2030
AB34: Scenario | AC34: Status Quo | AD34: 2014
AA35: Total spending on repeats | AB35: ='4b. Costing Calc'!D121/1000000 -> 2475.051675 | AC35: 2475.051675 | AD35: ='4b. Costing Calc'!T121/1000000 -> 19233.05003
AA36: % Spending on repeats | AB36: =AB35/D4 -> 0.2876060973 | AC36: 0.3317917632 | AD36: =AD35/E4 -> 0.2780560622

Sheet 2c. Secondary Cost Dashb
D2: Programme mix assumptions
C3: 2030 | E3: 2014
B4: Programme Name | C4: Programme mix (% of total) | D4: Enrolments | E4: Programme mix (% of total) | F4: 2014 (Enrolments) | G4: Academic Support? | I4: LEGEND
B5: TOTAL | C5: =IF(SUM(C6:C14)=100%,100%,"Doesn't equal 100%!") -> 1 | D5: =IF('2b. Cost Dashboard'!L8="1. Current Growth Plan",2500000,'2b. Cost Dashboard'!L5) -> 2500000 | E5: =SUM(E6:E14) -> 1 | F5: =SUM(F6:F14) -> 706403 | J5: Heading
B6: NC(V) | C6: 0.2 | D6: =C6*$D$5 -> 500000 | E6: =F6/$F$5 -> 0.2225939018 | F6: ='4c. Enrolment Assumptions'!E19 -> 157241 | G6: Yes | J6: Item description
B7: NATED | C7: =MAX(100%-C6-SUM(C8:C14),0) -> 0.05 | D7: =C7*$D$5 -> 125000 | E7: 0.6907714152 | F7: =SUM('4c. Enrolment Assumptions'!E20:E23) -> 487963 | G7: Yes | J7: User-defined Input
B8: Occupational | C8: 0.3 | D8: 750000 | E8: 0.00561294332 | F8: =19825*0.2 -> 3965 | G8: Yes | J8: Fixed Assumption
B9: Foundational / Bridging courses | C9: 0.15 | D9: 375000 | E9: 0.002928498322 | F9: =0.1/2*41374 -> 2068.7 | G9: No | J9: Output
B10: Skills programmes / Modules of employable skills | C10: 0.05 | D10: 125000 | E10: 0.04587975985 | F10: =0.8*19825+0.4*41374 -> 32409.6 | G10: No
B11: Higher Certificate | C11: 0.25 | D11: 625000 | E11: 0.002928498322 | F11: =0.1/2*41374 -> 2068.7 | G11: No
B12: Other | C12: 0 | D12: 0 | E12: 0.02928498322 | F12: =0.5*41374 -> 20687 | G12: No | I12: Note: 41,374 enrolments in 2014 were not be assigned to a specific programme in the DHET enrolment data. These enrolments have been assigned across Foundational, Skills, HC and "Other" programmes
B13: ="" ->  | C13: =E13 -> 0 | D13: 0 | E13: 0 | F13: 0
B14: ="" ->  | C14: =E14 -> 0 | D14: 0 | E14: =F14/$F$5 -> 0 | F14: 0
D16: Growth assumptions
B17: Cost and programme mix growth assumptions | C17: Cost growth | D17: Straight line growth | E17: 2018
C18: Year when programme mix % target is first met | D18: 2030 | E18: It is assumed that between 2016 and the year selected, the programme mix moves towards the selected programme mix linearly
D20: Other programme (Non-NC(V) and non-NATED) assumptions
B21: Programme Name | C21: Theory Cost per enrolment (2014 prices) | D21: Practical Cost per enrolment (2014 prices) | E21: Proportion with practical component | F21: Average Total Cost per Enrolment | G21: FTE to Enrol ratio | H21: Avg Cost per FTE | I21: Workplace grant | J21: Average academic support cost per enrolment
B22: =B8 -> Occupational | C22: 25000 | D22: 50000 | E22: 0.5 | F22: =C22+E22*D22+J22 -> 50000 | G22: 0.5 | H22: =F22/G22 -> 100000 | I22: 45000 | J22: =IF(G8="YES",$D$34*$D$35,0) -> 0
B23: Foundational / Bridging courses | C23: 25000 | D23: 0 | E23: 0 | F23: =C23+E23*D23+J23 -> 25000 | G23: 1 | H23: =F23/G23 -> 25000 | J23: =IF(G9="YES",$D$34*$D$35,0) -> 0
B24: Skills programmes / Modules of employable skills | C24: =C22*$G$24 -> 5000 | D24: =D22*$G$24 -> 10000 | E24: 1 | F24: =C24+E24*D24+J24 -> 15000 | G24: 0.2 | H24: =F24/G24 -> 75000 | J24: =IF(G10="YES",$D$34*$D$35,0) -> 0
B25: Higher Certificate | C25: 40000 | D25: 0 | E25: 0 | F25: =C25+E25*D25+J25 -> 40000 | G25: 1 | H25: =F25/G25 -> 40000 | J25: =IF(G11="YES",$D$34*$D$35,0) -> 0
B26: Other | C26: 10000 | D26: 0 | F26: =C26+E26*D26+J26 -> 10000 | G26: =2/12 -> 0.1666666667 | H26: =F26/G26 -> 60000 | J26: =IF(G12="YES",$D$34*$D$35,0) -> 0
D32: Distance education and academic support costs
B33: Distance education | C33: Distance costs relative to contact costs | D33: 0.5 | E33: All costs elements are affected in this proportion (number of lecturers, direct programme costs, support costs etc.)
B34: Academic support | C34: % of students requiring academic support | D34: 0 | E34: It is assumed that many TVET students require academic support specifically to address specific individual learning backlogs
C35: Average cost of academic support | D35: 5000 | E35: It assumed that these costs only apply to those enrolled in the first level of NC(V) (L2) and first level of NATED (N1 and N4)

Sheet 3a. TVET Shortfall outputs
D1: Historical (R'm) | E1: 2014 | F1: 2030 (Nominal) | I1: Cumulative | L1: 2030 (Real)
D2: Item | E2: Current Value | F2: Status Quo Scenario | G2: Full Policy Scenario | H2: Mixed Scenario | I2: Status Quo Scenario | J2: Full Policy Scenario | K2: Mixed Scenario | L2: Status Quo Scenario | M2: Full Policy Scenario | N2: Mixed Scenario
D3: Current Costs | E3: ='3c. Cost Scenario outputs'!C3 -> 8605.699595 | F3: ='3c. Cost Scenario outputs'!E3 -> 73255.32357 | G3: ='3c. Cost Scenario outputs'!G3 -> 244402.3611 | H3: ='3c. Cost Scenario outputs'!I3 -> 98151.37773 | I3: ='3c. Cost Scenario outputs'!E17 -> 547343.6463 | J3: ='3c. Cost Scenario outputs'!G17 -> 1835803.442 | K3: ='3c. Cost Scenario outputs'!I17 -> 904045.0048 | L3: =F28 -> 27979.94929 | M3: =G28 -> 93349.74356 | N3: =H28 -> 37489.02384
A4: =SUM(A5:A10) -> 58516.86453 | B4: =SUM(B5:B10) -> 466988.8867 | D4: Funding and financing: Total | E4: =SUM(E5:E10) -> 10267.07641 | F4: =SUM(F5:F10) -> 52664.67522 | G4: 33459.24929 | H4: 26094.17784 | I4: 425639.5253 | J4: 289084.7178 | K4: 246016.6962 | L4: 20115.3291 | M4: 12779.7961 | N4: 9966.699173
A5: ='4a. Funding Calc'!T2/1000 -> 22820.74384 | B5: ='4a. Funding Calc'!V2/1000 -> 199511.1681 | D5: State subsidies | E5: ='4a. Funding Calc'!D2/1000 -> 5827.173 | F5: 19065.13786 | G5: 19065.13786 | H5: 19065.13786 | I5: 178085.1005 | J5: 178085.1005 | K5: 178085.1005 | L5: 7281.949823 | M5: 7281.949823 | N5: 7281.949823
A6: ='4a. Funding Calc'!T7/1000 -> 3103.581621 | B6: ='4a. Funding Calc'!V7/1000 -> 23601.79218 | D6: NSF | E6: ='4a. Funding Calc'!D7/1000 -> 502.8616979 | F6: 3103.581621 | G6: 0 | H6: 0 | I6: 23601.79218 | J6: 1146.974553 | K6: 1146.974553 | L6: 1185.416324 | M6: 0 | N6: 0
A7: ='4a. Funding Calc'!T6/1000 -> 2447.743114 | B7: ='4a. Funding Calc'!V6/1000 -> 18614.84055 | D7: SETA | E7: ='4a. Funding Calc'!D6/1000 -> 395.0530375 | F7: 2447.743114 | G7: 0 | H7: 120.9103221 | I7: 18614.84055 | J7: 1055.477222 | K7: 1922.852842 | L7: 934.9181038 | M7: 0 | N7: 46.18182702
A8: =('4a. Funding Calc'!T5+'4a. Funding Calc'!T9)/1000 -> 18070.44247 | B8: =('4a. Funding Calc'!V5+'4a. Funding Calc'!V9)/1000 -> 133278.8912 | D8: NSFAS | E8: =('4a. Funding Calc'!D5+'4a. Funding Calc'!D9)/1000 -> 1909.763004 | F8: 18060.54826 | G8: 10063.31024 | H8: 3962.483959 | I8: 129548.936 | J8: 72214.53446 | K8: 36411.21613 | L8: 6898.245749 | M8: 3843.692124 | N8: 1513.474992
A9: ='4a. Funding Calc'!T4/1000 -> 9604.544037 | B9: ='4a. Funding Calc'!V4/1000 -> 70389.79734 | D9: Private fees | E9: ='4a. Funding Calc'!D4/1000 -> 1019.215836 | F9: 7997.876783 | G9: 2341.013599 | H9: 955.8581153 | I9: 57202.4957 | J9: 17996.27067 | K9: 9864.19183 | L9: 3054.797603 | M9: 894.1526512 | N9: 365.0910308
A10: ='4a. Funding Calc'!T8/1000 -> 2469.809451 | B10: ='4a. Funding Calc'!V8/1000 -> 21592.39734 | D10: Other (Third Stream) | E10: ='4a. Funding Calc'!D8/1000 -> 613.00983 | F10: 1989.787587 | G10: 1989.787587 | H10: 1989.787587 | I10: 18586.36036 | J10: 18586.36036 | K10: 18586.36036 | L10: 760.0014999 | M10: 760.0014999 | N10: 760.0014999
D11: Shortfall (-) / Surplus (+) | E11: =E4-E3 -> 1661.37681 | F11: =F4-F3 -> -20590.64834 | G11: -210943.1118 | H11: -72057.19988 | I11: -121704.121 | J11: -1546718.724 | K11: -658028.3086 | L11: -7864.620186 | M11: -80569.94747 | N11: -27522.32466
D13: Projected (R'm) | E13: 2014 | F13: 2030 (Nominal) | I13: Cumulative | L13: 2030 (Real)
D14: Item | E14: Current Value | F14: Status Quo Scenario | G14: Full Policy Scenario | H14: Mixed Scenario | I14: Status Quo Scenario | J14: Full Policy Scenario | K14: Mixed Scenario | L14: Status Quo Scenario | M14: Full Policy Scenario | N14: Mixed Scenario
D15: Current Costs | E15: =E3 -> 8605.699595 | F15: 73255.32357 | G15: 244402.3611 | H15: 98151.37773 | I15: 547343.6463 | J15: 1835803.442 | K15: 904045.0048 | L15: =F41 -> 27979.94929 | M15: =G41 -> 93349.74356 | N15: =H41 -> 37489.02384
D16: Funding and financing: Total | E16: =E4 -> 10267.07641 | F16: =SUM(F17:F22) -> 56870.03698 | G16: 37664.61105 | H16: 30299.5396 | I16: 449807.0275 | J16: 313252.22 | K16: 270184.1984 | L16: =F42 -> 21721.57153 | M16: 14386.03853 | N16: 11572.9416
D17: State subsidies | E17: 5827.173 | F17: 22820.74384 | G17: 22820.74384 | H17: 22820.74384 | I17: 199511.1681 | J17: 199511.1681 | K17: 199511.1681 | L17: 8716.407549 | M17: 8716.407549 | N17: 8716.407549
D18: NSF | E18: 502.8616979 | F18: 3103.581621 | G18: 0 | H18: 0 | I18: 23601.79218 | J18: 1146.974553 | K18: 1146.974553 | L18: 1185.416324 | M18: 0 | N18: 0
D19: SETA | E19: 395.0530375 | F19: 2447.743114 | G19: 0 | H19: 120.9103221 | I19: 18614.84055 | J19: 1055.477222 | K19: 1922.852842 | L19: 934.9181038 | M19: 0 | N19: 46.18182702
D20: NSFAS | E20: 1909.763004 | F20: 18060.54826 | G20: 10063.31024 | H20: 3962.483959 | I20: 129548.936 | J20: 72214.53446 | K20: 36411.21613 | L20: 6898.245749 | M20: 3843.692124 | N20: 1513.474992
D21: Private fees | E21: 1019.215836 | F21: 7997.876783 | G21: 2341.013599 | H21: 955.8581153 | I21: 57202.4957 | J21: 17996.27067 | K21: 9864.19183 | L21: 3054.797603 | M21: 894.1526512 | N21: 365.0910308
D22: Other (Third Stream) | E22: 613.00983 | F22: 2439.543367 | G22: 2439.543367 | H22: 2439.543367 | I22: 21327.79502 | J22: 21327.79502 | K22: 21327.79502 | L22: 931.7862016 | M22: 931.7862016 | N22: 931.7862016
D23: Shortfall (-) / Surplus (+) | E23: =E16-E15 -> 1661.37681 | F23: -16385.28658 | G23: -206737.7501 | H23: -67851.83812 | I23: -97536.61879 | J23: -1522551.222 | K23: -633860.8064 | L23: -6258.377758 | M23: -78963.70504 | N23: -25916.08224
D25: REAL
D26: Historical (R'm) | E26: 2014 | F26: 2030 | I26: Cumulative | M26: Inflation Rate | N26: 0.062
D27: Item | E27: Current Value | F27: Status Quo Scenario | G27: Full Policy Scenario | H27: Mixed Scenario | I27: Status Quo Scenario | J27: Full Policy Scenario | K27: Mixed Scenario | M27: CPI Conversion to real prices | N27: =1/(1+N26)^16 -> 0.3819510709
D28: Current Costs | E28: =E3 -> 8605.699595 | F28: =F3*$N$27 -> 27979.94929 | G28: 93349.74356 | H28: 37489.02384 | I28: 209058.4919 | J28: 701187.0907 | K28: 345300.9578
D29: Funding and financing: Total | E29: =SUM(E30:E35) -> 10267.07641 | F29: =SUM(F30:F35) -> 20115.3291 | G29: 12779.7961 | H29: 9966.699173 | I29: 162573.4725 | J29: 110416.2176 | K29: 93966.3406
D30: State subsidies | E30: =E5 -> 5827.173 | F30: =F5*$N$27 -> 7281.949823 | G30: 7281.949823 | H30: 7281.949823 | I30: 68019.79487 | J30: 68019.79487 | K30: 68019.79487
D31: NSF | E31: 502.8616979 | F31: 1185.416324 | G31: 0 | H31: 0 | I31: 9014.7298 | J31: 438.0881588 | K31: 438.0881588
D32: SETA | E32: 395.0530375 | F32: 934.9181038 | G32: 0 | H32: 46.18182702 | I32: 7109.958284 | J32: 403.1406554 | K32: 734.4357022
D33: NSFAS | E33: 1909.763004 | F33: 6898.245749 | G33: 3843.692124 | H33: 1513.474992 | I33: 49481.35484 | J33: 27582.41877 | K33: 13907.303
D34: Private fees | E34: 1019.215836 | F34: 3054.797603 | G34: 894.1526512 | H34: 365.0910308 | I34: 21848.55449 | J34: 6873.694857 | K34: 3767.638633
D35: Other (Third Stream) | E35: 613.00983 | F35: 760.0014999 | G35: 760.0014999 | H35: 760.0014999 | I35: 7099.080243 | J35: 7099.080243 | K35: 7099.080243
D36: Shortfall (-) / Surplus (+) | E36: =E29-E28 -> 1661.37681 | F36: =F29-F28 -> -7864.620186 | G36: -80569.94747 | H36: -27522.32466 | I36: -46485.01935 | J36: -590770.8731 | K36: -251334.6172
D38: REAL
D39: Projected (R'm) | E39: 2014 | F39: 2030 | I39: Cumulative
D40: Item | E40: Current Value | F40: Status Quo Scenario | G40: Full Policy Scenario | H40: Mixed Scenario | I40: Status Quo Scenario | J40: Full Policy Scenario | K40: Mixed Scenario
D41: Current Costs | E41: =E15 -> 8605.699595 | F41: =F15*$N$27 -> 27979.94929 | G41: 93349.74356 | H41: 37489.02384 | I41: 209058.4919 | J41: 701187.0907 | K41: 345300.9578
D42: Funding and financing: Total | E42: =SUM(E43:E48) -> 10267.07641 | F42: =SUM(F43:F48) -> 21721.57153 | G42: 14386.03853 | H42: 11572.9416 | I42: 171804.2759 | J42: 119647.0209 | K42: 103197.1439
D43: State subsidies | E43: =E17 -> 5827.173 | F43: =F17*$N$27 -> 8716.407549 | G43: 8716.407549 | H43: 8716.407549 | I43: 76203.50431 | J43: 76203.50431 | K43: 76203.50431
D44: NSF | E44: 502.8616979 | F44: =F18*$N$27 -> 1185.416324 | G44: 0 | H44: 0 | I44: 9014.7298 | J44: 438.0881588 | K44: 438.0881588
D45: SETA | E45: 395.0530375 | F45: =F19*$N$27 -> 934.9181038 | G45: 0 | H45: 46.18182702 | I45: 7109.958284 | J45: 403.1406554 | K45: 734.4357022
D46: NSFAS | E46: 1909.763004 | F46: =F20*$N$27 -> 6898.245749 | G46: 3843.692124 | H46: 1513.474992 | I46: 49481.35484 | J46: 27582.41877 | K46: 13907.303
D47: Private fees | E47: 1019.215836 | F47: =F21*$N$27 -> 3054.797603 | G47: 894.1526512 | H47: 365.0910308 | I47: 21848.55449 | J47: 6873.694857 | K47: 3767.638633
D48: Other (Third Stream) | E48: 613.00983 | F48: =F22*$N$27 -> 931.7862016 | G48: 931.7862016 | H48: 931.7862016 | I48: 8146.174147 | J48: 8146.174147 | K48: 8146.174147
D49: Shortfall (-) / Surplus (+) | E49: =E42-E41 -> 1661.37681 | F49: =F42-F41 -> -6258.377758 | G49: -78963.70504 | H49: -25916.08224 | I49: -37254.216 | J49: -581540.0698 | K49: -242103.8138
D51: INFRASTRUCTURE
D52: Cumulative Infrastructure spending (R'm) 2016 to 2030 | E52: Infrastructure Type | F52: Status Quo Scenario | G52: Full Policy Scenario | H52: Mixed Scenario
D53: Nominal | E53: College infrastructure | F53: ='3c. Cost Scenario outputs'!E14 -> 192913.04 | G53: ='3c. Cost Scenario outputs'!G14 -> 331606.7331 | H53: ='3c. Cost Scenario outputs'!I14 -> 75263.72061
E54: Accommodation | F54: ='3c. Cost Scenario outputs'!E15 -> 7072.350932 | G54: ='3c. Cost Scenario outputs'!G15 -> 242502.8729 | H54: ='3c. Cost Scenario outputs'!I15 -> 42062.42006
E55: Total | F55: ='3c. Cost Scenario outputs'!E18 -> 199985.3909 | G55: ='3c. Cost Scenario outputs'!G18 -> 574109.6061 | H55: ='3c. Cost Scenario outputs'!I18 -> 117326.1407
D56: Real (2014 prices) | E56: College infrastructure | F56: ='3c. Cost Scenario outputs'!D14 -> 106216.906 | G56: ='3c. Cost Scenario outputs'!F14 -> 190923.7501 | H56: ='3c. Cost Scenario outputs'!H14 -> 50546.08494
E57: Accommodation | F57: ='3c. Cost Scenario outputs'!D15 -> 3893.999257 | G57: ='3c. Cost Scenario outputs'!F15 -> 112469.8164 | H57: ='3c. Cost Scenario outputs'!H15 -> 21078.63411
E58: Total | F58: ='3c. Cost Scenario outputs'!D18 -> 110110.9053 | G58: ='3c. Cost Scenario outputs'!F18 -> 303393.5665 | H58: ='3c. Cost Scenario outputs'!H18 -> 71624.71905
D62: Enrolments required for 0 shortfall | E62: Status Quo | F62: Full Policy | G62: Mixed
D63: Historical | E63: 1627500.667 | F63: 410310.6087 | G63: 738737.7293
D64: Projected | E64: 1848281.85 | F64: 471975.2657 | G64: 840837.9822

Sheet 3b. Cost Scenarios
E2: SCENARIOS
B3: Parameter | C3: Description | D3: Programme | E3: Status Quo Scenario | F3: Full Policy Scenario | G3: Mixed Scenario | J3: Status Quo Scenario | K3: Full Policy Scenario | L3: Mixed Scenario
B4: Target enrolments | C4: Number of enrolments in 2030. | D4: All programmes | E4: 2500000 | F4: 2500000 | G4: 1000000
B5: Throughput rates | C5: The proportion of learners that complete all three levels of NC(V) / NATED within 6 attempts (i.e. can repeat each level at most once) | D5: NC(V) | E5: 0.1055044659 | F5: 0.2 | G5: 0.2
D6: NATED | E6: 0.2584128891 | F6: 0.5 | G6: 0.5
B7: Student:Lecturer FTE Ratio | C7: The average number of full-time equivalent (FTE) students relative to each FTE lecturer (for NC(V) and NATED) | D7: NC(V) | E7: 19.56114878 | F7: 13 | G7: 13 | J7: Number of students
D8: NATED | E8: 33.6435615 | F8: 25 | G8: 33.6 | J8: Status Quo Scenario | K8: Full Policy Scenario | L8: Mixed Scenario
B9: Programme mix | C9: The proportion of total enrolments in 2030 within each of the programmes. The user is able to add additional programmes if required. | D9: NC(V) | E9: 0.2225939018 | F9: 0.2 | G9: 0.2 | I9: NC(V) | J9: =E9*E$4 -> 556484.7545 | K9: =F9*F$4 -> 500000 | L9: =G9*G$4 -> 200000
D10: NATED | E10: 0.6907714152 | F10: 0.05 | G10: 0.05 | I10: NATED | J10: =E10*E$4 -> 1726928.538 | K10: =F10*F$4 -> 125000 | L10: =G10*G$4 -> 50000
D11: Occupational | E11: 0.0280647166 | F11: 0.3 | G11: 0.3 | I11: Occupational | J11: 70161.7915 | K11: 750000 | L11: 300000
D12: Foundational / Bridging courses | E12: 0.005856996644 | F12: 0.15 | G12: 0.15 | I12: Foundational / Bridging courses | J12: 14642.49161 | K12: 375000 | L12: 150000
D13: Skills Programmes / Modules of Employable Skills | E13: 0.02342798657 | F13: 0.05 | G13: 0.05 | I13: Skills / Unit Standards | J13: 58569.96644 | K13: 125000 | L13: 50000
D14: Higher Certificate | E14: 0.01464249161 | F14: 0.25 | G14: 0.25 | I14: Higher Certificate | J14: 36606.22902 | K14: 625000 | L14: 250000
D15: Other | E15: 0.01464249161 | F15: 0 | G15: 0 | I15: Other | J15: 36606.22902 | K15: 0 | L15: 0
B16: Direct costs | C16: Direct costs attributable specifically to the consumables and support materials directly required for delivering tuition (e.g. textbooks, programme consumables) per FTE learner | D16: NC(V) | E16: 1699.263158 | F16: 12000 | G16: 12000
D17: NATED | E17: 1215.9 | F17: 5000 | G17: =E17 -> 1215.9
B18: % in Distance learning | C18: The proportion of learners that are enrolled through distance learning (average across all programmes) | D18: All programmes | E18: 0 | F18: 0.1 | G18: 0.1
B19: Residences % | C19: The proportion of FTE students living in residences (i.e. number of beds required). Reliable estimates for 2014 not available. | D19: N/A | E19: 0.015 | F19: 0.2 | G19: 0.1
B20: Inflation rate | C20: The rate at which all costs element within the model grow per annum | D20: All programmes | E20: 0.062 | F20: 0.062 | G20: 0.062
D21: Full time equivalents | E21: 1256452.065 | F21: 2289928.074 | G21: 915545.4224
E24: Status Quo Scenario | F24: Full White Paper Scenario | G24: Mixed Scenario | H24: 2014
B25: Enrolment scenarios | C25: Target Enrolments (2030) | E25: =E4 -> 2500000 | F25: =F4 -> 2500000 | G25: =G4 -> 1000000 | H25: 706403
C26: Change mix between programmes | H26: 0.2225939018
B27: Performance | C27: NC(V) Throughput Rate | E27: 0.1055044659 | F27: =F5 -> 0.2 | G27: 0.2 | H27: 0.1055044659
C28: NATED Throughput Rate | E28: 0.2584128891 | F28: 0.5 | G28: 0.5 | H28: 0.2584128891
B29: Student:Lecturer FTE ratio | C29: NC(V) | E29: 19.56114878 | F29: 13 | G29: 13 | H29: 19.56114878
C30: NATED | E30: 33.6435615 | F30: 25 | G30: 33.6 | H30: 33.6435615
B31: Direct Costs | C31: NC(V) in 2014 prices | E31: =E16 -> 1699.263158 | F31: =F16 -> 12000 | G31: 12000 | H31: 1699.263158
C32: NATED in 2014 prices | E32: 1215.9 | F32: 5000 | G32: 1215.9 | H32: 1215.9
B33: Mode of delivery | C33: % of enrolments through Distance Learning | E33: 0 | F33: 0.1 | G33: 0.1 | H33: 0
B34: Residences | C34: Bed capacity as % of enrolments | E34: 0.015 | F34: 0.2 | G34: 0.1 | H34: 0.015
B35: Year costs jump to new level | E35: 2030 | F35: 2030 | G35: 2030
B36: Cost growth option | E36: Straight line growth | F36: Straight line growth | G36: Straight line growth
B37: Proportion of students receiving academic | E37: 0 | F37: 0.8 | G37: 0.8
E38: Status Quo Scenario | F38: Full White Paper Scenario | G38: Mixed Scenario
D39: Enrolment Growth Scenario | E39: 1. Current Growth Plan | F39: 1. Current Growth Plan | G39: 2. Straight Line Growth
D40: Programme Mix Scenario | E40: 1. Current Mix | F40: 1. Current Mix | G40: 4. User defined
D41: Throughput rate scenario | E41: 1. Existing | F41: 2. User defined | G41: 2. User defined
D43: Programme Name | E43: Status Quo Scenario | F43: Full White Paper Scenario | G43: Balanced Scenario
D44: TOTAL | E44: =SUM(E45:E51) -> 1 | F44: =SUM(F45:F51) -> 1 | G44: =SUM(G45:G51) -> 1
D45: NC(V) | E45: 0.2225939018 | F45: =F9 -> 0.2 | G45: =G9 -> 0.2
D46: NATED | E46: 0.6907714152 | F46: =F10 -> 0.05 | G46: 0.05
D47: Occupational | E47: 0.0280647166 | F47: 0.3 | G47: 0.3
D48: Foundational / Bridging courses | E48: 0.005856996644 | F48: 0.15 | G48: 0.15
D49: Skills / Unit Standards | E49: 0.02342798657 | F49: 0.05 | G49: 0.05
D50: Higher Certificate | E50: 0.01464249161 | F50: 0.25 | G50: 0.25
D51: Other | E51: 0.01464249161 | F51: 0 | G51: 0
B56: Cost category | D56: Programme | E56: Status Quo Scenario | F56: Full White Paper Scenario | G56: Balanced Scenario
B57: Student:Lecturer FTE Ratio | C57: The average number of full-time equivalent (FTE) students relative to each FTE lecturer (for NC(V) and NATED) | D57: NC(V) | E57: 19.56114878 | F57: 13 | G57: 17.5
D58: NATED | E58: 33.6435615 | F58: 25 | G58: 30
B59: Direct costs | C59: Direct costs attributable specifically to the consumables and support materials directly required for delivering tuition (e.g. textbooks, programme consumables) per FTE learner | D59: NC(V) | E59: 1699.263158 | F59: 12000 | G59: 5000
D60: NATED | E60: 1215.9 | F60: 5000 | G60: =E60 -> 1215.9
B61: Total Cost | D61: NC(V) | E61: ='2b. Cost Dashboard'!AD13 -> 26737.73924 | F61: =$E$61+(F59-$E$59)+('4b. Costing Calc'!E9/'3b. Cost Scenarios'!F57-'4b. Costing Calc'!E9/'3b. Cost Scenarios'!$E$57) -> 44021.52491 | G61: =$E$61+(G59-$E$59)+('4b. Costing Calc'!F9/'3b. Cost Scenarios'!G57-'4b. Costing Calc'!F9/'3b. Cost Scenarios'!$E$57) -> 31688.81332 | H61: =F61/E61-1 -> 0.6464191125 | I61: =G61/E61-1 -> 0.1851717541
D62: NATED | E62: ='2b. Cost Dashboard'!AD25 -> 20565.36654 | F62: =$E$62+(F60-$E$60)+('4b. Costing Calc'!E10/'3b. Cost Scenarios'!F58-'4b. Costing Calc'!E10/'3b. Cost Scenarios'!$E$58) -> 24491.65335 | G62: =$E$62+(G60-$E$60)+('4b. Costing Calc'!F10/'3b. Cost Scenarios'!G58-'4b. Costing Calc'!F10/'3b. Cost Scenarios'!$E$58) -> 20594.77665 | H62: =F62/E62-1 -> 0.1909174241 | I62: =G62/E62-1 -> 0.001430079655
D66: Current lect per FTE | F66: ='4b. Costing Calc'!$E$9/H29 -> 13835.93602 | J66: Current average NC(V)) | K66: 29219.97554
D67: Revised lect cost per FTE | F67: ='4b. Costing Calc'!$E$9/F29 -> 20818.98484 | J67: Funding norms | K67: 46348.96002
J68: Required increase | K68: 17128.98448
J69: Increase revised | K69: =K70+K71 -> 17283.78567
J70: Increase in direct costs | K70: =F31-H31 -> 10300.73684
J71: Increase in lecturing costs | K71: =F67-F66 -> 6983.048827

Sheet 3c. Cost Scenario outputs
B1: 3b. Exp Dashboard'!A1
B2: TVET Current expenditure | C2: 2014 | D2: Status Quo (2030) -Real | E2: Status Quo (2030) - Nominal | F2: Full Policy Scenario (2030) - Real | G2: Full Policy Scenario (2030) - Nominal | H2: Mixed scenario (2030) - Real | I2: Mixed scenario (2030) - Nominal
A3: ='2b. Cost Dashboard'!E4 -> 69169.68425 | B3: ='2b. Cost Dashboard'!C4 -> TVET Colleges | C3: ='2b. Cost Dashboard'!D4 -> 8605.699595 | D3: 28828.81285 | E3: 73255.32357 | F3: 94156.16395 | G3: 244402.3611 | H3: 38295.44422 | I3: 98151.37773
A4: ='2b. Cost Dashboard'!L5 -> 2500000 | B4: Number of enrolments (all programmes) | C4: ='2b. Cost Dashboard'!D9 -> 706403 | D4: 2500000 | E4: 2500000 | F4: 2500000 | G4: 2500000 | H4: 1000000 | I4: 1000000
A5: ='4b. Costing Calc'!T85 -> 1202912.689 | B5: Number of FTEs (all programmes) | C5: ='4b. Costing Calc'!D85 -> 334909.7654 | D5: 1221366.339 | E5: 1221366.339 | F5: 1914928.074 | G5: 1914928.074 | H5: 765545.4224 | I5: 765545.4224 | M5: =F4/F5 -> 1.305532064
A6: ='2b. Cost Dashboard'!AB13 -> 59922.74665 | B6: Spending per FTE - NC(V) | C6: ='2b. Cost Dashboard'!AD13 -> 26737.73924 | D6: 23626.48726 | E6: 59920.98166 | F6: 42536.24504 | G6: 107265.4709 | H6: 46254.84902 | I6: 110829.7179
A7: ='2b. Cost Dashboard'!AB16 -> 32089.9567 | B7: Number of graduates - NC(V) | C7: ='2b. Cost Dashboard'!AD16 -> 8603.211633 | D7: 31166.99606 | E7: 31166.99606 | F7: 41834.72659 | G7: 41834.72659 | H7: 18128.04038 | I7: 18128.04038
A8: ='2b. Cost Dashboard'!AB17 -> 968009.5243 | B8: Spending per graduate - NC(V) | C8: ='2b. Cost Dashboard'!AD17 -> 454260.0002 | D8: 393206.5397 | E8: 997241.8494 | F8: 476125.0481 | G8: 1200664.926 | H8: 477082.0348 | I8: 1143120.525
B9: Spending per FTE - NATED | C9: ='2b. Cost Dashboard'!AD25 -> 20565.36654
B10: Number of graduates - NATED | C10: ='2b. Cost Dashboard'!AD28 -> 48086.52788
B11: Spending per graduate - NATED | C11: ='2b. Cost Dashboard'!AD29 -> 73857.66868 | K11: =H3/D3 -> 1.328373958
A12: ='2b. Cost Dashboard'!E5 -> 1131.418175 | B12: Residences: Total current spending (R'm) | C12: ='2b. Cost Dashboard'!D5 -> 120.3163332 | D12: 438.7758572 | E12: 1148.775041 | F12: 9172.505473 | G12: 24014.87041 | H12: 1833.481287 | I12: 4800.304087
B13: TVET Infrastructure expenditure | C13: 2014
A14: ='2b. Cost Dashboard'!E18 -> 188097.3249 | B14: TVET infrastructure spending required by 2030 (R'm) | C14: N/A | D14: 106216.906 | E14: 192913.04 | F14: 190923.7501 | G14: 331606.7331 | H14: 50546.08494 | I14: 75263.72061
A15: ='2b. Cost Dashboard'!E19 -> 6799.207786 | B15: Residences infrastructure expenditure required by 2030 (R'm) | C15: N/A | D15: 3893.999257 | E15: 7072.350932 | F15: 112469.8164 | G15: 242502.8729 | H15: 21078.63411 | I15: 42062.42006
A17: =SUM('4d. Infrastructure & Residences'!D16:R16)/1000000+SUM('4b. Costing Calc'!F123:T123) -> 530927.4457 | B17: Cumulative current spending (R'm) 2016 to 2030 | C17: N/A | D17: 293808.971 | E17: 547343.6463 | F17: 938697.3878 | G17: 1835803.442 | H17: 488951.8973 | I17: 904045.0048
A18: ='2b. Cost Dashboard'!E18+'2b. Cost Dashboard'!E19 -> 194896.5327 | B18: Cumulative Infrastructure spending (R'm) 2016 to 2030 | C18: N/A | D18: 110110.9053 | E18: 199985.3909 | F18: 303393.5665 | G18: 574109.6061 | H18: 71624.71905 | I18: 117326.1407
B20: Increases | C20: =C3*1000 -> 8605699.595
B21: TVET Current expenditure | C21: 2014 | D21: Status Quo (2030) -Real | E21: Status Quo (2030) -Nominal | F21: Full Policy Scenario (2030) - Real | G21: Full Policy Scenario (2030) - Nominal | H21: Mixed scenario (2030) Real | I21: Mixed scenario (2030) Nominal
B22: =B3 -> TVET Colleges | D22: =D3/$C3-1 -> 2.349967371 | E22: 7.512419328 | F22: 9.941139986 | G22: 27.40005724 | H22: 3.450009415 | I22: 10.40539205
B23: Number of enrolments (all programmes) | D23: =D4/$C4-1 -> 2.539056318 | E23: 2.539056318 | F23: 2.539056318 | G23: 2.539056318 | H23: 0.4156225271 | I23: 0.4156225271
B24: Number of FTEs (all programmes) | D24: =D5/$C5-1 -> 2.646851973 | E24: 2.646851973 | F24: 4.71774332 | G24: 4.71774332 | H24: 1.28582592 | I24: 1.28582592
B25: Spending per FTE - NC(V) | D25: =D6/$C6-1 -> -0.1163618191 | E25: 1.241063881 | F25: 0.5908691703 | G25: 3.011762923 | H25: 0.7299461487 | I25: 3.145066899
B26: Number of graduates - NC(V) | D26: =D7/$C7-1 -> 2.622716421 | E26: 2.622716421 | F26: 3.862687143 | G26: 3.862687143 | H26: 1.107124775 | I26: 1.107124775
B27: Spending per graduate - NC(V) | D27: =D8/$C8-1 -> -0.1344020175 | E27: 1.195310723 | F27: 0.04813333302 | G27: 1.643122717 | H27: 0.05024002687 | I27: 1.516445483
B28: Residences: Total current spending (R'm) | D28: =D12/$C12-1 -> 2.646851973 | E28: 8.54795588 | F28: 75.2365776 | G28: 198.5977585 | H28: 14.23883947 | I28: 38.89736022
B29: TVET Infrastructure expenditure
B30: TVET infrastructure spending required by 2030 (R'm) | F30: =F14/D14-1 -> 0.7974892811 | G30: 0.7189441065 | H30: -0.7352551219 | I30: -0.7730331954
B31: Residences infrastructure expenditure required by 2030 (R'm) | F31: 27.88285513 | G31: 33.2888631 | H31: -0.81258408 | I31: -0.8265487763
B33: Cumulative current spending (R'm) 2016 to 2030 | F33: =F17/D17-1 -> 2.194924187 | G33: 2.354023481 | H33: -0.479116589 | I33: -0.5075480391
B34: Cumulative Infrastructure spending (R'm) 2016 to 2030 | F34: 1.75534531 | G34: 1.870757726 | H34: -0.7639214309 | I34: -0.7956380813
B36: Growth rates
B37: TVET Current expenditure | D37: Status Quo (2030) -Real | E37: Status Quo (2030) -Nominal | F37: Full Policy Scenario (2030) - Real | G37: Full Policy Scenario (2030) - Nominal | H37: Mixed scenario (2030) Real | I37: Mixed scenario (2030) Nominal
B38: Total current spending (R'm) | D38: =(1+D22)^(1/16)-1 -> 0.07848730183 | E38: =(1+E22)^(1/16)-1 -> 0.1432160501 | F38: =(1+F22)^(1/16)-1 -> 0.1612919376 | G38: =(1+G22)^(1/16)-1 -> 0.2326291982 | H38: =(1+H22)^(1/16)-1 -> 0.0977983106 | I38: =(1+I22)^(1/16)-1 -> 0.1643120405
B39: Number of enrolments (all programmes) | D39: 0.08219486058 | E39: =(1+E23)^(1/16)-1 -> 0.08219486058 | F39: 0.08219486058 | G39: 0.08219486058 | H39: 0.02196075048 | I39: 0.02196075048
B40: Number of FTEs (all programmes) | D40: 0.08422616456 | E40: 0.08422616456 | F40: 0.1151326737 | G40: 0.1151326737 | H40: 0.05302867368 | I40: 0.05302867368
B41: Spending per FTE - NC(V) | D41: -0.007701911961 | E41: 0.05172788745 | F41: 0.02944264269 | G41: 0.0907078875 | H41: 0.03484912434 | I41: 0.09293849186
B42: Number of graduates - NC(V) | D42: 0.0837762915 | E42: 0.0837762915 | F42: 0.1039000946 | G42: 0.1039000946 | H42: 0.04768479448 | I42: 0.04768479448
B43: Spending per graduate - NC(V) | D43: -0.00898035244 | E43: 0.0503728798 | F43: 0.002942495916 | G43: 0.06263063686 | H43: 0.003068368777 | I43: 0.05937378156
B44: Spending per FTE - NATED
B45: Number of graduates - NATED
B46: Spending per graduate - NATED
B47: Residences: Total current spending (R'm) | D47: =(1+D28)^(1/16)-1 -> 0.08422616456 | E47: 0.1514481868 | F47: 0.3110981723 | G47: 0.392386259 | H47: 0.1855899067 | I47: 0.2590964809
B55: Enrolment measure | C55: 2014 | D55: Status Quo Scenario | F55: Full Policy Scenario | H55: Mixed Scenario
D56: Target | E56: Increase % | F56: Target | G56: Increase % | H56: Target | I56: Increase %
B57: Headcount Enrolments | C57: 706403 | D57: 2500000 | E57: 2.54 | F57: 2500000 | G57: 2.54 | H57: 1000000 | I57: 0.42
B58: Full time equivalents | C58: 349580 | D58: =D5 -> 1221366.339 | E58: 2.59 | F58: =F5 -> 1914928.074 | G58: 5.55 | H58: =H5 -> 765545.4224 | I58: 1.62

Sheet NCV & NATED Prog Cost (hidden)
A1: ANNEXURE A
A2: INDICATIVE PROGRAMME COST: NCV FOR 2014 | E2: PROJECTED 2015 | H2: PROJECTED 2016
A3: Programme Categories | B3: Programme Cost | C3: 0.8 | D3: 0.2 | E3: Programme Cost | F3: 0.8 | G3: 0.2 | H3: Programme Cost | I3: 0.8 | J3: 0.2
A4: Civil engineering construction | B4: ='[14]PROG COST 2014'!C234 -> 49615.49306 | C4: =B4*0.8 -> 39692.39445 | D4: =B4*0.2 -> 9923.098613 | E4: =B4*$G$24 -> 52294.72969 | F4: =E4*$F$3 -> 41835.78375 | G4: =E4*$G$3 -> 10458.94594 | H4: =E4*$J$24 -> 55066.35036 | I4: =H4*$I$3 -> 44053.08029 | J4: =H4*$J$3 -> 11013.27007
A5: =+'[15]NBFR 2011'!$A$18:$IV$18 -> Drawing office practice | B5: ='[14]PROG COST 2014'!C235 -> 36796.97404 | C5: =B5*0.8 -> 29437.57923 | D5: =B5*0.2 -> 7359.394808 | E5: =B5*$G$24 -> 38784.01064 | F5: =E5*$F$3 -> 31027.20851 | G5: =E5*$G$3 -> 7756.802128 | H5: =E5*$J$24 -> 40839.5632 | I5: =H5*$I$3 -> 32671.65056 | J5: =H5*$J$3 -> 8167.91264
A6: Electrical infrastructure construction | B6: ='[14]PROG COST 2014'!C236 -> 48938.14913 | C6: 39150.51931 | D6: 9787.629827 | E6: 51580.80919 | F6: 41264.64735 | G6: 10316.16184 | H6: 54314.59207 | I6: 43451.67366 | J6: 10862.91841
A7: Engineering & related design | B7: ='[14]PROG COST 2014'!C237 -> 64358.69758 | C7: 51486.95806 | D7: 12871.73952 | E7: 67834.06725 | F7: 54267.2538 | G7: 13566.81345 | H7: 71429.27281 | I7: 57143.41825 | J7: 14285.85456
A8: Mechatronics | B8: ='[14]PROG COST 2014'!C238 -> 65233.78574 | C8: 52187.02859 | D8: 13046.75715 | E8: 68756.41017 | F8: 55005.12814 | G8: 13751.28203 | H8: 72400.49991 | I8: 57920.39993 | J8: 14480.09998
A9: Process instrumentation | B9: ='[14]PROG COST 2014'!C239 -> 49170.04897 | C9: 39336.03918 | D9: 9834.009795 | E9: 51825.23162 | F9: 41460.18529 | G9: 10365.04632 | H9: 54571.96889 | I9: 43657.57511 | J9: 10914.39378
A10: Process plant operations | B10: ='[14]PROG COST 2014'!C240 -> 49703.20768 | C10: 39762.56614 | D10: 9940.641535 | E10: 52387.18089 | F10: 41909.74471 | G10: 10477.43618 | H10: 55163.70148 | I10: 44130.96118 | J10: 11032.7403
A11: Finance, economics & accounting | B11: ='[14]PROG COST 2014'!C241 -> 35175.74727 | C11: 28140.59781 | D11: 7035.149454 | E11: 37075.23762 | F11: 29660.1901 | G11: 7415.047524 | H11: 39040.22522 | I11: 31232.18017 | J11: 7808.045043
A12: Generic management | B12: ='[14]PROG COST 2014'!C242 -> 36808.62254 | C12: 29446.89803 | D12: 7361.724507 | E12: 38796.28815 | F12: 31037.03052 | G12: 7759.257631 | H12: 40852.49143 | I12: 32681.99314 | J12: 8170.498285
A13: Hospitality | B13: ='[14]PROG COST 2014'!C243 -> 59985.98464 | C13: 47988.78771 | D13: 11997.19693 | E13: 63225.22781 | F13: 50580.18225 | G13: 12645.04556 | H13: 66576.16488 | I13: 53260.93191 | J13: 13315.23298
A14: IT & computer science | B14: ='[14]PROG COST 2014'!C244 -> 48199.77718 | C14: 38559.82174 | D14: 9639.955435 | E14: 50802.56514 | F14: 40642.05211 | G14: 10160.51303 | H14: 53495.1011 | I14: 42796.08088 | J14: 10699.02022
A15: Education and Development | B15: ='[14]PROG COST 2014'!C245 -> 34279.91844 | C15: 27423.93475 | D15: 6855.983688 | E15: 36131.03403 | F15: 28904.82723 | G15: 7226.206807 | H15: 38045.97884 | I15: 30436.78307 | J15: 7609.195768
A16: Marketing | B16: ='[14]PROG COST 2014'!C246 -> 31548.61693 | C16: 25238.89354 | D16: 6309.723385 | E16: 33252.24224 | F16: =E16*$F$3 -> 26601.79379 | G16: =E16*$G$3 -> 6650.448448 | H16: 35014.61108 | I16: =H16*$I$3 -> 28011.68886 | J16: =H16*$J$3 -> 7002.922216
A17: Office administration | B17: ='[14]PROG COST 2014'!C247 -> 31443.43716 | C17: 25154.74973 | D17: 6288.687433 | E17: 33141.38277 | F17: 26513.10622 | G17: =E17*$G$3 -> 6628.276554 | H17: 34897.87606 | I17: 27918.30085 | J17: =H17*$J$3 -> 6979.575212
A18: Primary agriculture | B18: ='[14]PROG COST 2014'!C248 -> 84481.51304 | C18: 67585.21043 | D18: 16896.30261 | E18: 89043.51475 | F18: 71234.8118 | G18: 17808.70295 | H18: 93762.82103 | I18: 75010.25682 | J18: 18752.56421
A19: Tourism | B19: ='[14]PROG COST 2014'!C249 -> 45689.56376 | C19: 36551.65101 | D19: 9137.912752 | E19: 48156.8002 | F19: 38525.44016 | G19: 9631.36004 | H19: 50709.11061 | I19: 40567.28849 | J19: 10141.82212
A20: Safety and Society | B20: ='[14]PROG COST 2014'!C250 -> 32259.07472 | C20: 25807.25978 | D20: 6451.814945 | E20: 34001.06476 | F20: 27200.85181 | G20: 6800.212952 | H20: 35803.12119 | I20: 28642.49695 | J20: 7160.624238
A21: Transport and Logistics | B21: ='[14]PROG COST 2014'!C251 -> 33506.12332 | C21: 26804.89865 | D21: 6701.224664 | E21: 35315.45398 | F21: 28252.36318 | G21: 7063.090795 | H21: 37187.17304 | I21: 29749.73843 | J21: 7437.434608
A22: Primary Health | B22: ='[14]PROG COST 2014'!C252 -> 40058.85582 | C22: 32047.08465 | D22: 8011.771164 | E22: 42222.03403 | F22: 33777.62723 | G22: 8444.406806 | H22: 44459.80184 | I22: 35567.84147 | J22: 8891.960367
A23: National Average Total NCV Programme Cost | B23: =SUM(B4:B22)/19 -> 46171.24163 | C23: =B23*0.8 -> 36936.99331 | D23: =B23*0.2 -> 9234.248326 | E23: =SUM(E4:E22)/19 -> 48664.48868 | F23: 38931.59094 | G23: =E23*$G$3 -> 9732.897736 | H23: =SUM(H4:H22)/19 -> 51243.70658 | I23: 40994.96526 | J23: =H23*$J$3 -> 10248.74132
G24: 1.054 | J24: 1.053
A25: Programme Cost: Report 191 | B25: Full Cost | C25: 0.8 | D25: 0.2 | E25: Full Cost | F25: 0.8 | G25: 0.2 | H25: Full Cost | I25: 0.8 | J25: 0.2
A26: Engineering Studies | B26: =(B11*0.6)+(200*3) -> 21705.44836 | C26: =B26*0.8 -> 17364.35869 | D26: =B26*0.2 -> 4341.089672 | E26: =B26*$G$24 -> 22877.54257 | F26: =E26*$F$3 -> 18302.03406 | G26: =E26*$G$3 -> 4575.508515 | H26: =E26*$J$24 -> 24090.05233 | I26: =H26*$I$3 -> 19272.04186 | J26: =H26*$J$3 -> 4818.010466
A27: Non-Engineering Studies | B27: =(B12*0.6)+(200*2) -> 22485.17352 | C27: =B27*0.8 -> 17988.13882 | D27: =B27*0.2 -> 4497.034704 | E27: =B27*$G$24 -> 23699.37289 | F27: =E27*$F$3 -> 18959.49831 | G27: =E27*$G$3 -> 4739.874579 | H27: =E27*$J$24 -> 24955.43966 | I27: =H27*$I$3 -> 19964.35172 | J27: =H27*$J$3 -> 4991.087931
A28: Services | B28: =(B13*0.6)+(200*2) -> 36391.59078 | C28: =B28*0.8 -> 29113.27263 | D28: =B28*0.2 -> 7278.318157 | E28: =B28*$G$24 -> 38356.73668 | F28: =E28*$F$3 -> 30685.38935 | G28: =E28*$G$3 -> 7671.347337 | H28: =E28*$J$24 -> 40389.64373 | I28: =H28*$I$3 -> 32311.71498 | J28: =H28*$J$3 -> 8077.928746
A29: National Average Total REPORT 191 Programme Cost | B29: =(B26+B27+B28)/3 -> 26860.73756 | E29: =(E26+E27+E28)/3 -> 28311.21738 | H29: =(H26+H27+H28)/3 -> 29811.7119
A30: semester/trimester costs
A31: Report 191 cost per trimester/semester: | B31: Full Cost | C31: 0.8 | D31: 0.2 | E31: Full Cost | F31: 0.8 | G31: 0.2 | H31: Full Cost | I31: 0.8 | J31: 0.2
A32: Engineering Studies | B32: =B26/3 -> 7235.149454 | C32: =B32*0.8 -> 5788.119563 | D32: =B32*0.2 -> 1447.029891 | E32: =E26/3 -> 7625.847524 | F32: =E32*0.8 -> 6100.678019 | G32: =E32*0.2 -> 1525.169505 | H32: =H26/3 -> 8030.017443 | I32: =H32*0.8 -> 6424.013954 | J32: =H32*0.2 -> 1606.003489
A33: Non-Engineering Studies | B33: =B27/2 -> 11242.58676 | C33: =B33*0.8 -> 8994.069409 | D33: =B33*0.2 -> 2248.517352 | E33: =E27/2 -> 11849.68645 | F33: =E33*0.8 -> 9479.749157 | G33: =E33*0.2 -> 2369.937289 | H33: =H27/2 -> 12477.71983 | I33: =H33*0.8 -> 9982.175862 | J33: =H33*0.2 -> 2495.543966
A34: Services | B34: =B28/2 -> 18195.79539 | C34: =B34*0.8 -> 14556.63631 | D34: =B34*0.2 -> 3639.159078 | E34: =E28/2 -> 19178.36834 | F34: =E34*0.8 -> 15342.69467 | G34: =E34*0.2 -> 3835.673668 | H34: =H28/2 -> 20194.82186 | I34: =H34*0.8 -> 16155.85749 | J34: =H34*0.2 -> 4038.964373
A35: Note: Services includes those programmes where emphasis is primarily on practical or manual skills which consumes more than 50% of the curriculum.
E36: 1.054 | H36: 1.054 | K36: 1.053
D37: CPIX ADJUSTMENT | G37: CPIX ADJUSTMENT | J37: CPIX ADJUSTMENT
C38: 1.06 | D38: CPIX ADJUSTMENT | G38: CPIX ADJUSTMENT | J38: CPIX ADJUSTMENT
A39: Programmes | B39: Full Cost 2012 | C39: Full Cost 2013 | D39: Full Cost 2014 | E39: 0.8 | F39: 0.2 | G39: Full Cost 2015 | H39: 0.8 | I39: 0.2 | J39: Full Cost 2016 | K39: 0.8 | L39: 0.2
A40: Engineering Studies N1 | B40: 17958 | C40: =B40*$C$38 -> 19035.48 | D40: =C40*$E$36 -> 20063.39592 | E40: =D40*$E$39 -> 16050.71674 | F40: =D40*$F$39 -> 4012.679184 | G40: =D40*$H$36 -> 21146.8193 | H40: =G40*$E$39 -> 16917.45544 | I40: =G40*$F$39 -> 4229.36386 | J40: =G40*$K$36 -> 22267.60072 | K40: =J40*$E$39 -> 17814.08058 | L40: =J40*$F$39 -> 4453.520145
A41: Engineering Studies N2 | B41: 17958 | C41: =B41*$C$38 -> 19035.48 | D41: =C41*$E$36 -> 20063.39592 | E41: =D41*$E$39 -> 16050.71674 | F41: =D41*$F$39 -> 4012.679184 | G41: =D41*$H$36 -> 21146.8193 | H41: =G41*$E$39 -> 16917.45544 | I41: =G41*$F$39 -> 4229.36386 | J41: =G41*$K$36 -> 22267.60072 | K41: =J41*$E$39 -> 17814.08058 | L41: =J41*$F$39 -> 4453.520145
A42: Engineering Studies N3 | B42: 17958 | C42: 19035.48 | D42: 20063.39592 | E42: 16050.71674 | F42: 4012.679184 | G42: 21146.8193 | H42: 16917.45544 | I42: 4229.36386 | J42: 22267.60072 | K42: 17814.08058 | L42: 4453.520145
A43: Engineering Studies N4 | B43: 20950 | C43: 22207 | D43: 23406.178 | E43: 18724.9424 | F43: 4681.2356 | G43: 24670.11161 | H43: 19736.08929 | I43: 4934.022322 | J43: 25977.62753 | K43: 20782.10202 | L43: 5195.525505
A44: Engineering Studies N5 | B44: 20950 | C44: 22207 | D44: 23406.178 | E44: 18724.9424 | F44: 4681.2356 | G44: 24670.11161 | H44: 19736.08929 | I44: 4934.022322 | J44: 25977.62753 | K44: 20782.10202 | L44: 5195.525505
A45: Engineering Studies N6 | B45: 20950 | C45: 22207 | D45: 23406.178 | E45: 18724.9424 | F45: 4681.2356 | G45: 24670.11161 | H45: 19736.08929 | I45: 4934.022322 | J45: 25977.62753 | K45: 20782.10202 | L45: 5195.525505
A46: Multi Disciplinary Office Practice N4 | B46: 16162 | C46: 17131.72 | D46: 18056.83288 | E46: 14445.4663 | F46: 3611.366576 | G46: 19031.90186 | H46: 15225.52148 | I46: 3806.380371 | J46: 20040.59265 | K46: 16032.47412 | L46: 4008.118531
A47: Multi Disciplinary Office Practice N5 | B47: 16162 | C47: 17131.72 | D47: 18056.83288 | E47: 14445.4663 | F47: 3611.366576 | G47: 19031.90186 | H47: 15225.52148 | I47: 3806.380371 | J47: 20040.59265 | K47: 16032.47412 | L47: 4008.118531
A48: Fertiliser Manufacturing N4 | B48: 13060 | C48: 13843.6 | D48: 14591.1544 | E48: 11672.92352 | F48: 2918.23088 | G48: 15379.07674 | H48: 12303.26139 | I48: 3075.815348 | J48: 16194.1678 | K48: 12955.33424 | L48: 3238.833561
A49: Fertiliser Manufacturing N5 | B49: 16325 | C49: 17304.5 | D49: 18238.943 | E49: 14591.1544 | F49: 3647.7886 | G49: 19223.84592 | H49: 15379.07674 | I49: 3844.769184 | J49: 20242.70976 | K49: 16194.1678 | L49: 4048.541951
A50: Fertiliser Manufacturing N6 | B50: 17957.5 | C50: 19034.95 | D50: 20062.8373 | E50: 16050.26984 | F50: 4012.56746 | G50: 21146.23051 | H50: 16916.98441 | I50: 4229.246103 | J50: 22266.98073 | K50: 17813.58459 | L50: 4453.396146
A51: Textile N4 | B51: 13060 | C51: 13843.6 | D51: 14591.1544 | E51: 11672.92352 | F51: 2918.23088 | G51: 15379.07674 | H51: 12303.26139 | I51: 3075.815348 | J51: 16194.1678 | K51: 12955.33424 | L51: 3238.833561
A52: Textile N5 | B52: 16325 | C52: 17304.5 | D52: 18238.943 | E52: 14591.1544 | F52: 3647.7886 | G52: 19223.84592 | H52: 15379.07674 | I52: 3844.769184 | J52: 20242.70976 | K52: 16194.1678 | L52: 4048.541951
A53: Textile N6 | B53: 17957.5 | C53: 19034.95 | D53: 20062.8373 | E53: 16050.26984 | F53: 4012.56746 | G53: 21146.23051 | H53: 16916.98441 | I53: 4229.246103 | J53: 22266.98073 | K53: 17813.58459 | L53: 4453.396146
A54: Business Management N4 | B54: 17738 | C54: 18802.28 | D54: 19817.60312 | E54: 15854.0825 | F54: 3963.520624 | G54: 20887.75369 | H54: 16710.20295 | I54: 4177.550738 | J54: 21994.80463 | K54: 17595.84371 | L54: 4398.960927
A55: Business Management N5 | B55: 17738 | C55: 18802.28 | D55: 19817.60312 | E55: 15854.0825 | F55: 3963.520624 | G55: 20887.75369 | H55: 16710.20295 | I55: 4177.550738 | J55: 21994.80463 | K55: 17595.84371 | L55: 4398.960927
A56: Business Management N6 | B56: 17738 | C56: 18802.28 | D56: 19817.60312 | E56: 15854.0825 | F56: 3963.520624 | G56: 20887.75369 | H56: 16710.20295 | I56: 4177.550738 | J56: 21994.80463 | K56: 17595.84371 | L56: 4398.960927
A57: Financial Management N4 | B57: 17738 | C57: 18802.28 | D57: 19817.60312 | E57: 15854.0825 | F57: 3963.520624 | G57: 20887.75369 | H57: 16710.20295 | I57: 4177.550738 | J57: 21994.80463 | K57: 17595.84371 | L57: 4398.960927
A58: Financial Management N5 | B58: 17738 | C58: 18802.28 | D58: 19817.60312 | E58: 15854.0825 | F58: 3963.520624 | G58: 20887.75369 | H58: 16710.20295 | I58: 4177.550738 | J58: 21994.80463 | K58: 17595.84371 | L58: 4398.960927
A59: Financial Management N6 | B59: 17738 | C59: 18802.28 | D59: 19817.60312 | E59: 15854.0825 | F59: 3963.520624 | G59: 20887.75369 | H59: 16710.20295 | I59: 4177.550738 | J59: 21994.80463 | K59: 17595.84371 | L59: 4398.960927
A60: Human Resource Management N4 | B60: 17738 | C60: 18802.28 | D60: 19817.60312 | E60: 15854.0825 | F60: 3963.520624 | G60: 20887.75369 | H60: 16710.20295 | I60: 4177.550738 | J60: 21994.80463 | K60: 17595.84371 | L60: 4398.960927
A61: Human Resource Management N5 | B61: 17738 | C61: 18802.28 | D61: 19817.60312 | E61: 15854.0825 | F61: 3963.520624 | G61: 20887.75369 | H61: 16710.20295 | I61: 4177.550738 | J61: 21994.80463 | K61: 17595.84371 | L61: 4398.960927
A62: Human Resource Management N6 | B62: 17738 | C62: 18802.28 | D62: 19817.60312 | E62: 15854.0825 | F62: 3963.520624 | G62: 20887.75369 | H62: 16710.20295 | I62: 4177.550738 | J62: 21994.80463 | K62: 17595.84371 | L62: 4398.960927
A63: Introductory Business Studies N4 | B63: 17738 | C63: =B63*$C$38 -> 18802.28 | D63: 19817.60312 | E63: 15854.0825 | F63: 3963.520624 | G63: 20887.75369 | H63: 16710.20295 | I63: 4177.550738 | J63: 21994.80463 | K63: 17595.84371 | L63: 4398.960927
A64: Introductory Clothing Construction N4 | B64: 24626 | C64: 26103.56 | D64: 27513.15224 | E64: 22010.52179 | F64: 5502.630448 | G64: 28998.86246 | H64: 23199.08997 | I64: 5799.772492 | J64: 30535.80217 | K64: 24428.64174 | L64: 6107.160434
A65: Introductory Educare N4 | B65: 21548 | C65: 22840.88 | D65: 24074.28752 | E65: 19259.43002 | F65: 4814.857504 | G65: 25374.29905 | H65: 20299.43924 | I65: 5074.859809 | J65: 26719.1369 | K65: 21375.30952 | L65: 5343.827379
A66: Management Assistant N4 | B66: 17738 | C66: 18802.28 | D66: 19817.60312 | E66: 15854.0825 | F66: 3963.520624 | G66: 20887.75369 | H66: 16710.20295 | I66: 4177.550738 | J66: 21994.80463 | K66: 17595.84371 | L66: 4398.960927
A67: Management Assistant N5 | B67: 17738 | C67: 18802.28 | D67: 19817.60312 | E67: 15854.0825 | F67: 3963.520624 | G67: 20887.75369 | H67: 16710.20295 | I67: 4177.550738 | J67: 21994.80463 | K67: 17595.84371 | L67: 4398.960927
A68: Management Assistant N6 | B68: 17738 | C68: 18802.28 | D68: 19817.60312 | E68: 15854.0825 | F68: 3963.520624 | G68: 20887.75369 | H68: 16710.20295 | I68: 4177.550738 | J68: 21994.80463 | K68: 17595.84371 | L68: 4398.960927
A69: Marketing Management N4 | B69: 17738 | C69: 18802.28 | D69: 19817.60312 | E69: 15854.0825 | F69: 3963.520624 | G69: 20887.75369 | H69: 16710.20295 | I69: 4177.550738 | J69: 21994.80463 | K69: 17595.84371 | L69: 4398.960927
A70: Marketing Management N5 | B70: 17738 | C70: 18802.28 | D70: 19817.60312 | E70: 15854.0825 | F70: 3963.520624 | G70: 20887.75369 | H70: 16710.20295 | I70: 4177.550738 | J70: 21994.80463 | K70: 17595.84371 | L70: 4398.960927
A71: Marketing Management N6 | B71: 17738 | C71: 18802.28 | D71: 19817.60312 | E71: 15854.0825 | F71: 3963.520624 | G71: 20887.75369 | H71: 16710.20295 | I71: 4177.550738 | J71: 21994.80463 | K71: 17595.84371 | L71: 4398.960927
A72: Public Management N4 | B72: 17738 | C72: 18802.28 | D72: 19817.60312 | E72: 15854.0825 | F72: 3963.520624 | G72: 20887.75369 | H72: 16710.20295 | I72: 4177.550738 | J72: 21994.80463 | K72: 17595.84371 | L72: 4398.960927
A73: Public Management N5 | B73: 17738 | C73: 18802.28 | D73: 19817.60312 | E73: 15854.0825 | F73: 3963.520624 | G73: 20887.75369 | H73: 16710.20295 | I73: 4177.550738 | J73: 21994.80463 | K73: 17595.84371 | L73: 4398.960927
A74: Public Management N6 | B74: 17738 | C74: 18802.28 | D74: 19817.60312 | E74: 15854.0825 | F74: 3963.520624 | G74: 20887.75369 | H74: 16710.20295 | I74: 4177.550738 | J74: 21994.80463 | K74: 17595.84371 | L74: 4398.960927
A75: Public Relations N4 | B75: 17738 | C75: 18802.28 | D75: 19817.60312 | E75: 15854.0825 | F75: 3963.520624 | G75: 20887.75369 | H75: 16710.20295 | I75: 4177.550738 | J75: 21994.80463 | K75: 17595.84371 | L75: 4398.960927
A76: Public Relations N5 | B76: 17738 | C76: 18802.28 | D76: 19817.60312 | E76: 15854.0825 | F76: 3963.520624 | G76: 20887.75369 | H76: 16710.20295 | I76: 4177.550738 | J76: 21994.80463 | K76: 17595.84371 | L76: 4398.960927
A77: Public Relations N6 | B77: 17738 | C77: 18802.28 | D77: 19817.60312 | E77: 15854.0825 | F77: 3963.520624 | G77: 20887.75369 | H77: 16710.20295 | I77: 4177.550738 | J77: 21994.80463 | K77: 17595.84371 | L77: 4398.960927
A78: Legal Secretary N4 | B78: 17738 | C78: 18802.28 | D78: 19817.60312 | E78: 15854.0825 | F78: 3963.520624 | G78: 20887.75369 | H78: 16710.20295 | I78: 4177.550738 | J78: 21994.80463 | K78: 17595.84371 | L78: 4398.960927
A79: Legal Secretary N5 | B79: 17738 | C79: 18802.28 | D79: 19817.60312 | E79: 15854.0825 | F79: 3963.520624 | G79: 20887.75369 | H79: 16710.20295 | I79: 4177.550738 | J79: 21994.80463 | K79: 17595.84371 | L79: 4398.960927
A80: Legal Secretary N6 | B80: 17738 | C80: 18802.28 | D80: 19817.60312 | E80: 15854.0825 | F80: 3963.520624 | G80: 20887.75369 | H80: 16710.20295 | I80: 4177.550738 | J80: 21994.80463 | K80: 17595.84371 | L80: 4398.960927
C81: 1.06 | D81: CPIX ADJUSTMENT | G81: CPIX ADJUSTMENT | J81: CPIX ADJUSTMENT
A82: Art and Design N4 | B82: 28731 | C82: 30454.86 | D82: 32099.42244 | E82: 25679.53795 | F82: 6419.884488 | G82: =D82*$H$36 -> 33832.79125 | H82: =G82*$E$39 -> 27066.233 | I82: =G82*$F$39 -> 6766.55825 | J82: =G82*$K$36 -> 35625.92919 | K82: =J82*$E$39 -> 28500.74335 | L82: =J82*$F$39 -> 7125.185838
A83: Art and Design N5 | B83: 28731 | C83: 30454.86 | D83: 32099.42244 | E83: 25679.53795 | F83: 6419.884488 | G83: 33832.79125 | H83: 27066.233 | I83: 6766.55825 | J83: 35625.92919 | K83: 28500.74335 | L83: 7125.185838
A84: Art and Design N6 | B84: 28731 | C84: 30454.86 | D84: 32099.42244 | E84: 25679.53795 | F84: 6419.884488 | G84: 33832.79125 | H84: 27066.233 | I84: 6766.55825 | J84: 35625.92919 | K84: 28500.74335 | L84: 7125.185838
A85: Clothing Production N4 | B85: 24626 | C85: =B85*$C$38 -> 26103.56 | D85: 27513.15224 | E85: 22010.52179 | F85: 5502.630448 | G85: 28998.86246 | H85: 23199.08997 | I85: 5799.772492 | J85: 30535.80217 | K85: 24428.64174 | L85: 6107.160434
A86: Clothing Production N5 | B86: 24626 | C86: 26103.56 | D86: 27513.15224 | E86: 22010.52179 | F86: 5502.630448 | G86: 28998.86246 | H86: 23199.08997 | I86: 5799.772492 | J86: 30535.80217 | K86: 24428.64174 | L86: 6107.160434
A87: Clothing Production N6 | B87: 24626 | C87: 26103.56 | D87: 27513.15224 | E87: 22010.52179 | F87: 5502.630448 | G87: 28998.86246 | H87: 23199.08997 | I87: 5799.772492 | J87: 30535.80217 | K87: 24428.64174 | L87: 6107.160434
A88: Educare N4 | B88: 21548 | C88: 22840.88 | D88: 24074.28752 | E88: 19259.43002 | F88: 4814.857504 | G88: 25374.29905 | H88: 20299.43924 | I88: 5074.859809 | J88: 26719.1369 | K88: 21375.30952 | L88: 5343.827379
A89: Educare N5 | B89: 21548 | C89: 22840.88 | D89: 24074.28752 | E89: 19259.43002 | F89: 4814.857504 | G89: 25374.29905 | H89: 20299.43924 | I89: 5074.859809 | J89: 26719.1369 | K89: 21375.30952 | L89: 5343.827379
A90: Educare N6 | B90: 21548 | C90: 22840.88 | D90: 24074.28752 | E90: 19259.43002 | F90: 4814.857504 | G90: 25374.29905 | H90: 20299.43924 | I90: 5074.859809 | J90: 26719.1369 | K90: 21375.30952 | L90: 5343.827379
A91: Farming Management N4 | B91: 28731 | C91: 30454.86 | D91: 32099.42244 | E91: 25679.53795 | F91: 6419.884488 | G91: 33832.79125 | H91: 27066.233 | I91: 6766.55825 | J91: 35625.92919 | K91: 28500.74335 | L91: 7125.185838
A92: Farming Management N5 | B92: 28731 | C92: 30454.86 | D92: 32099.42244 | E92: 25679.53795 | F92: 6419.884488 | G92: 33832.79125 | H92: 27066.233 | I92: 6766.55825 | J92: 35625.92919 | K92: 28500.74335 | L92: 7125.185838
A93: Farming Management N6 | B93: 28731 | C93: 30454.86 | D93: 32099.42244 | E93: 25679.53795 | F93: 6419.884488 | G93: 33832.79125 | H93: 27066.233 | I93: 6766.55825 | J93: 35625.92919 | K93: 28500.74335 | L93: 7125.185838
A94: Hair Care N4 | B94: 34887 | C94: 36980.22 | D94: 38977.15188 | E94: 31181.7215 | F94: 7795.430376 | G94: 41081.91808 | H94: 32865.53447 | I94: 8216.383616 | J94: 43259.25974 | K94: 34607.40779 | L94: 8651.851948
A95: Hair Care N5 | B95: 34887 | C95: 36980.22 | D95: 38977.15188 | E95: 31181.7215 | F95: 7795.430376 | G95: 41081.91808 | H95: 32865.53447 | I95: 8216.383616 | J95: 43259.25974 | K95: 34607.40779 | L95: 8651.851948
A96: Hair Care N6 | B96: 34887 | C96: =B96*$C$38 -> 36980.22 | D96: 38977.15188 | E96: 31181.7215 | F96: 7795.430376 | G96: 41081.91808 | H96: 32865.53447 | I96: 8216.383616 | J96: 43259.25974 | K96: 34607.40779 | L96: 8651.851948
A97: Hospitality and Catering Services N4 | B97: 40018 | C97: 42419.08 | D97: 44709.71032 | E97: 35767.76826 | F97: 8941.942064 | G97: 47124.03468 | H97: 37699.22774 | I97: 9424.806935 | J97: 49621.60852 | K97: 39697.28681 | L97: 9924.321703
A98: Hospitality and Catering Services N5 | B98: 40018 | C98: 42419.08 | D98: 44709.71032 | E98: 35767.76826 | F98: 8941.942064 | G98: 47124.03468 | H98: 37699.22774 | I98: 9424.806935 | J98: 49621.60852 | K98: 39697.28681 | L98: 9924.321703
A99: Hospitality and Catering Services N6 | B99: 40018 | C99: 42419.08 | D99: 44709.71032 | E99: 35767.76826 | F99: 8941.942064 | G99: 47124.03468 | H99: 37699.22774 | I99: 9424.806935 | J99: 49621.60852 | K99: 39697.28681 | L99: 9924.321703
A100: Interior Decorating N4 | B100: 28731 | C100: 30454.86 | D100: 32099.42244 | E100: 25679.53795 | F100: 6419.884488 | G100: 33832.79125 | H100: 27066.233 | I100: 6766.55825 | J100: 35625.92919 | K100: 28500.74335 | L100: 7125.185838
A101: Interior Decorating N5 | B101: 28731 | C101: 30454.86 | D101: 32099.42244 | E101: 25679.53795 | F101: 6419.884488 | G101: 33832.79125 | H101: 27066.233 | I101: 6766.55825 | J101: 35625.92919 | K101: 28500.74335 | L101: 7125.185838
A102: Interior Decorating N6 | B102: 28731 | C102: 30454.86 | D102: 32099.42244 | E102: 25679.53795 | F102: 6419.884488 | G102: 33832.79125 | H102: 27066.233 | I102: 6766.55825 | J102: 35625.92919 | K102: 28500.74335 | L102: 7125.185838
A103: Introductory Art and Design N4 | B103: 28731 | C103: 30454.86 | D103: 32099.42244 | E103: 25679.53795 | F103: 6419.884488 | G103: 33832.79125 | H103: 27066.233 | I103: 6766.55825 | J103: 35625.92919 | K103: 28500.74335 | L103: 7125.185838
A104: Introductory Food Services N4 | B104: 40018 | C104: 42419.08 | D104: 44709.71032 | E104: 35767.76826 | F104: 8941.942064 | G104: 47124.03468 | H104: 37699.22774 | I104: 9424.806935 | J104: 49621.60852 | K104: 39697.28681 | L104: 9924.321703
A105: Medical Secretary N4 | B105: 28731 | C105: =B105*$C$38 -> 30454.86 | D105: =C105*$E$36 -> 32099.42244 | E105: =D105*$E$39 -> 25679.53795 | F105: =D105*$F$39 -> 6419.884488 | G105: 33832.79125 | H105: 27066.233 | I105: 6766.55825 | J105: 35625.92919 | K105: 28500.74335 | L105: 7125.185838
A106: Medical Secretary N5 | B106: 28731 | C106: 30454.86 | D106: 32099.42244 | E106: 25679.53795 | F106: 6419.884488 | G106: 33832.79125 | H106: 27066.233 | I106: 6766.55825 | J106: 35625.92919 | K106: 28500.74335 | L106: 7125.185838
A107: Medical Secretary N6 | B107: 28731 | C107: 30454.86 | D107: 32099.42244 | E107: 25679.53795 | F107: 6419.884488 | G107: 33832.79125 | H107: 27066.233 | I107: 6766.55825 | J107: 35625.92919 | K107: 28500.74335 | L107: 7125.185838
A108: Popular Music: Composition N4 | B108: 28731 | C108: 30454.86 | D108: 32099.42244 | E108: 25679.53795 | F108: 6419.884488 | G108: 33832.79125 | H108: 27066.233 | I108: 6766.55825 | J108: 35625.92919 | K108: 28500.74335 | L108: 7125.185838
A109: Popular Music: Composition N5 | B109: 28731 | C109: 30454.86 | D109: 32099.42244 | E109: 25679.53795 | F109: 6419.884488 | G109: 33832.79125 | H109: 27066.233 | I109: 6766.55825 | J109: 35625.92919 | K109: 28500.74335 | L109: 7125.185838
A110: Popular Music: Composition N6 | B110: 28731 | C110: 30454.86 | D110: 32099.42244 | E110: 25679.53795 | F110: 6419.884488 | G110: 33832.79125 | H110: 27066.233 | I110: 6766.55825 | J110: 35625.92919 | K110: 28500.74335 | L110: 7125.185838
A111: Popular Music Performance N4 | B111: 28731 | C111: 30454.86 | D111: 32099.42244 | E111: 25679.53795 | F111: 6419.884488 | G111: 33832.79125 | H111: 27066.233 | I111: 6766.55825 | J111: 35625.92919 | K111: 28500.74335 | L111: 7125.185838
A112: Popular Music Performance N5 | B112: 28731 | C112: 30454.86 | D112: 32099.42244 | E112: 25679.53795 | F112: 6419.884488 | G112: 33832.79125 | H112: 27066.233 | I112: 6766.55825 | J112: 35625.92919 | K112: 28500.74335 | L112: 7125.185838
A113: Popular Music Performance N6 | B113: 28731 | C113: 30454.86 | D113: 32099.42244 | E113: 25679.53795 | F113: 6419.884488 | G113: 33832.79125 | H113: 27066.233 | I113: 6766.55825 | J113: 35625.92919 | K113: 28500.74335 | L113: 7125.185838
A114: Popular Music: Studio N4 | B114: 28731 | C114: 30454.86 | D114: 32099.42244 | E114: 25679.53795 | F114: 6419.884488 | G114: 33832.79125 | H114: 27066.233 | I114: 6766.55825 | J114: 35625.92919 | K114: 28500.74335 | L114: 7125.185838
A115: Popular Music: Studio N5 | B115: 28731 | C115: 30454.86 | D115: 32099.42244 | E115: 25679.53795 | F115: 6419.884488 | G115: 33832.79125 | H115: 27066.233 | I115: 6766.55825 | J115: 35625.92919 | K115: 28500.74335 | L115: 7125.185838
A116: Popular Music: Studio N6 | B116: 28731 | C116: 30454.86 | D116: 32099.42244 | E116: 25679.53795 | F116: 6419.884488 | G116: 33832.79125 | H116: 27066.233 | I116: 6766.55825 | J116: 35625.92919 | K116: 28500.74335 | L116: 7125.185838
A117: Tourism N4 | B117: 38992 | C117: 41331.52 | D117: 43563.42208 | E117: 34850.73766 | F117: 8712.684416 | G117: 45915.84687 | H117: 36732.6775 | I117: 9183.169374 | J117: 48349.38676 | K117: 38679.50941 | L117: 9669.877351
A118: Tourism N5 | B118: 38992 | C118: 41331.52 | D118: 43563.42208 | E118: 34850.73766 | F118: 8712.684416 | G118: 45915.84687 | H118: 36732.6775 | I118: 9183.169374 | J118: 48349.38676 | K118: 38679.50941 | L118: 9669.877351
A119: Tourism N6 | B119: 38992 | C119: 41331.52 | D119: 43563.42208 | E119: 34850.73766 | F119: 8712.684416 | G119: 45915.84687 | H119: 36732.6775 | I119: 9183.169374 | J119: 48349.38676 | K119: 38679.50941 | L119: 9669.877351

Sheet Consolidated Data (hidden)
B2: 2014 | C2: 2015 | D2: 2016 | E2: 2017 | F2: 2018 | G2: 2019 | H2: 2020 | I2: 2021 | J2: 2022 | K2: 2023 | L2: 2024 | M2: 2025 | N2: 2026 | O2: 2027 | P2: 2028 | Q2: 2029 | R2: 2030
A3: Universities - Expenditure (R'000s) | B3: 47540121.05 | C3: 48575611.99 | D3: 50530899.24 | E3: 52628517.94 | F3: 54822751.35 | G3: 56898092.74 | H3: 55508960.08 | I3: 57490739.66 | J3: 59544515 | K3: 61672901.65 | L3: 63878610.14 | M3: 66164449.48 | N3: 68533330.74 | O3: 70988270.74 | P3: 73532395.89 | Q3: 76168946.18 | R3: 78901279.31
A4: TVET - Expenditure (R'000s) | B4: ='[16]4. Expenditure'!D116*1000 -> 7459653.762 | C4: ='[16]4. Expenditure'!E116*1000 -> 7668654.194 | D4: ='[16]4. Expenditure'!F116*1000 -> 8638266.932 | E4: ='[16]4. Expenditure'!G116*1000 -> 9662236.256 | F4: ='[16]4. Expenditure'!H116*1000 -> 10869493.89 | G4: ='[16]4. Expenditure'!I116*1000 -> 12206414.18 | H4: ='[16]4. Expenditure'!J116*1000 -> 12859165.35 | I4: ='[16]4. Expenditure'!K116*1000 -> 13632187.03 | J4: ='[16]4. Expenditure'!L116*1000 -> 14428358.34 | K4: ='[16]4. Expenditure'!M116*1000 -> 15298219.46 | L4: ='[16]4. Expenditure'!N116*1000 -> 16214106.72 | M4: ='[16]4. Expenditure'!O116*1000 -> 17203094.35 | N4: ='[16]4. Expenditure'!P116*1000 -> 18243422.3 | O4: ='[16]4. Expenditure'!Q116*1000 -> 19360947.15 | P4: ='[16]4. Expenditure'!R116*1000 -> 20542082.06 | Q4: ='[16]4. Expenditure'!S116*1000 -> 21806391.72 | R4: ='[16]4. Expenditure'!T116*1000 -> 23143609.97
A5: Universities - Headcount enrolments | B5: 991849.4554 | C5: 988094.4722 | D5: 1009144.729 | E5: 1031945.263 | F5: 1055811.8 | G5: 1080554.069 | H5: 1119809.358 | I5: 1160490.745 | J5: 1202650.041 | K5: 1246340.935 | L5: 1291619.07 | M5: 1338542.107 | N5: 1387169.804 | O5: 1437564.09 | P5: 1489789.142 | Q5: 1543911.47 | R5: 1600000
A6: TVET - Headcount enrolments | B6: ='[16]4. Expenditure'!D120*1000 -> 709293 | C6: ='[16]4. Expenditure'!E120*1000 -> 724754.7683 | D6: ='[16]4. Expenditure'!F120*1000 -> 828719.5902 | E6: ='[16]4. Expenditure'!G120*1000 -> 947679.3384 | F6: ='[16]4. Expenditure'!H120*1000 -> 1083633.336 | G6: ='[16]4. Expenditure'!I120*1000 -> 1237581.246 | H6: ='[16]4. Expenditure'!J120*1000 -> 1319553.509 | I6: ='[16]4. Expenditure'!K120*1000 -> 1406524.081 | J6: ='[16]4. Expenditure'!L120*1000 -> 1499492.624 | K6: ='[16]4. Expenditure'!M120*1000 -> 1598459.137 | L6: ='[16]4. Expenditure'!N120*1000 -> 1704423.283 | M6: ='[16]4. Expenditure'!O120*1000 -> 1817385.06 | N6: ='[16]4. Expenditure'!P120*1000 -> 1937344.47 | O6: ='[16]4. Expenditure'!Q120*1000 -> 2065301.174 | P6: ='[16]4. Expenditure'!R120*1000 -> 2201255.172 | Q6: ='[16]4. Expenditure'!S120*1000 -> 2346206.126 | R6: ='[16]4. Expenditure'!T120*1000 -> 2500000.154
A7: Universities - FTE enrolments | B7: 683013.5474 | C7: 691053.6819 | D7: 705604.8977 | E7: 721557.0724 | F7: 736825.55 | G7: 749735.7448 | H7: 777834.9331 | I7: 806092.7827 | J7: 835377.2076 | K7: 865725.5019 | L7: 897176.3149 | M7: 929769.6998 | N7: 963547.165 | O7: 998551.7266 | P7: 1034827.964 | Q7: 1072422.075 | R7: 1111381.937
A8: TVET - FTE enrolments | B8: ='[16]4. Expenditure'!D118*1000 -> 318860.112 | C8: ='[16]4. Expenditure'!E118*1000 -> 330423.5265 | D8: ='[16]4. Expenditure'!F118*1000 -> 381465.1219 | E8: ='[16]4. Expenditure'!G118*1000 -> 435428.4318 | F8: ='[16]4. Expenditure'!H118*1000 -> 498742.7922 | G8: ='[16]4. Expenditure'!I118*1000 -> 569063.1468 | H8: ='[16]4. Expenditure'!J118*1000 -> 603121.2881 | I8: ='[16]4. Expenditure'!K118*1000 -> 643570.252 | J8: ='[16]4. Expenditure'!L118*1000 -> 685451.1085 | K8: ='[16]4. Expenditure'!M118*1000 -> 731041.3011 | L8: ='[16]4. Expenditure'!N118*1000 -> 779182.3392 | M8: ='[16]4. Expenditure'!O118*1000 -> 831062.1963 | N8: ='[16]4. Expenditure'!P118*1000 -> 885711.2843 | O8: ='[16]4. Expenditure'!Q118*1000 -> 944357.6653 | P8: ='[16]4. Expenditure'!R118*1000 -> 1006387.551 | Q8: ='[16]4. Expenditure'!S118*1000 -> 1072749.757 | R8: ='[16]4. Expenditure'!T118*1000 -> 1142966.088
B12: Enrolments | D12: Total Expenditure (2014 prices in R'm) | F12: % of total expenditure
A13: Sector | B13: 2014 Enrolments | C13: 2030 White Paper Enrolment Target | D13: 2014 | E13: 2030 Estimate (Baseline Scenario) | F13: 2014 | G13: 2030 Estimate (Baseline Scenario)
A14: Universities | B14: 991849.4554 | C14: 1600000 | D14: =47540121.0464614/1000 -> 47540.12105 | E14: =78901279000/1000000 -> 78901.279 | F14: =D14/$D$17 -> 0.8376883451 | G14: =E14/$E$17 -> 0.7424995116
A15: TVET Colleges | B15: 709293 | C15: 2500000 | D15: ='[16]3. TVET Dashboard'!M5 -> 7459.653762 | E15: ='[16]3. TVET Dashboard'!L5 -> 23143.60997 | F15: =D15/$D$17 -> 0.1314440283 | G15: =E15/$E$17 -> 0.2177926558
A16: Community Colleges | B16: 293248 | C16: 1000000 | D16: =1751785990.8/1000000 -> 1751.785991 | E16: =4219529750/1000000 -> 4219.52975 | F16: =D16/$D$17 -> 0.03086762665 | G16: =E16/$E$17 -> 0.0397078326
A17: Total | B17: =SUM(B14:B16) -> 1994390.455 | C17: =SUM(C14:C16) -> 5100000 | D17: =SUM(D14:D16) -> 56751.5608 | E17: =SUM(E14:E16) -> 106264.4187 | F17: =D17/$D$17 -> 1 | G17: =E17/$E$17 -> 1

Sheet 1f. Enrolments and FTEs (hidden)
C2: 2014 | D2: Status Quo Scenario | F2: Full Policy Scenario | H2: Mixed Scenario
D3: Target | E3: Increase % | F3: Target | G3: Increase % | H3: Target | I3: Increase %
B4: Enrolments | C4: ='2b. Cost Dashboard'!D9 -> 706403 | D4: 2500000 | E4: =D4/$C4-1 -> 2.539056318 | F4: 2500000 | G4: =F4/$C4-1 -> 2.539056318 | H4: 1000000 | I4: =H4/$C4-1 -> 0.4156225271
B5: Full time equivalents | C5: ='2b. Cost Dashboard'!D10 -> 334909.7654 | D5: 1256452.065 | E5: =D5/$C5-1 -> 2.751613703 | F5: 2289928.074 | G5: =F5/$C5-1 -> 5.837447906 | H5: 915545.4224 | I5: =H5/$C5-1 -> 1.733707754
B9: Programme | C9: Item | D9: Full Policy Scenario
B10: All programmes | C10: Total Enrolments | D10: =D4 -> 2500000 | E10: =H4 -> 1000000
B11: Occupational Programmes | C11: Percentage of total enrolments | D11: 0.3 | E11: 0.3
C12: Occupational enrolments | D12: =D11*D10 -> 750000 | E12: =E11*E10 -> 300000
C13: Workplace grant unit cost | D13: 45000 | E13: 45000
C14: Total workplace grant costs (real) | D14: =D12*D13 -> 33750000000 | E14: =E12*E13 -> 13500000000
C17: =41%*50%*15000000000 -> 3075000000
C18: =C17/45000 -> 68333.33333
C20: =250*162% -> 405
C21: =C20/13 -> 31.15384615

Sheet 1e. NSFAS by scenario (hidden)
C2: 2014 | D2: 2015 | E2: 2016 | F2: 2017 | G2: 2018 | H2: 2019 | I2: 2020 | J2: 2021 | K2: 2022 | L2: 2023 | M2: 2024 | N2: 2025 | O2: 2026 | P2: 2027 | Q2: 2028 | R2: 2029 | S2: 2030
B3: Scenario | C3: ='4a. Funding Calc'!D5+'4a. Funding Calc'!D9 -> 1909763.004 | D3: ='4a. Funding Calc'!E5+'4a. Funding Calc'!E9 -> 2106948.664 | E3: ='4a. Funding Calc'!F5+'4a. Funding Calc'!F9 -> 2735928.035 | F3: ='4a. Funding Calc'!G5+'4a. Funding Calc'!G9 -> 3195522.422 | G3: ='4a. Funding Calc'!H5+'4a. Funding Calc'!H9 -> 3883481.17 | H3: ='4a. Funding Calc'!I5+'4a. Funding Calc'!I9 -> 4498283.682 | I3: ='4a. Funding Calc'!J5+'4a. Funding Calc'!J9 -> 5293249.09 | J3: ='4a. Funding Calc'!K5+'4a. Funding Calc'!K9 -> 6070577.056 | K3: ='4a. Funding Calc'!L5+'4a. Funding Calc'!L9 -> 7003037.204 | L3: ='4a. Funding Calc'!M5+'4a. Funding Calc'!M9 -> 7964242.739 | M3: ='4a. Funding Calc'!N5+'4a. Funding Calc'!N9 -> 9069594.163 | N3: ='4a. Funding Calc'!O5+'4a. Funding Calc'!O9 -> 10239304.35 | O3: ='4a. Funding Calc'!P5+'4a. Funding Calc'!P9 -> 11553039.29 | P3: ='4a. Funding Calc'!Q5+'4a. Funding Calc'!Q9 -> 12962876.09 | Q3: ='4a. Funding Calc'!R5+'4a. Funding Calc'!R9 -> 14525428.1 | R3: ='4a. Funding Calc'!S5+'4a. Funding Calc'!S9 -> 16213885.36 | S3: ='4a. Funding Calc'!T5+'4a. Funding Calc'!T9 -> 18070442.47
B4: Status Quo | C4: 1900853.211 | D4: 2097126.471 | E4: 2725795.903 | F4: 3184750.444 | G4: 3872274.548 | H4: 4669785.884 | I4: 5159053.571 | J4: 5935442.759 | K4: 6646211.71 | L4: 7586397.524 | M4: 8541142.897 | N4: 9713880.554 | O4: 10968672.43 | P4: 12448659.65 | Q4: 14076744.92 | R4: 15959574.93 | S4: 18060548.26
B5: Full White Paper | C5: 1900853.211 | D5: 2100607.938 | E5: 2126858.322 | F5: 2061802.637 | G5: 2130675.51 | H5: 2548536.458 | I5: 2749414.199 | J5: 3239869.832 | K5: 3592328.397 | L5: 4149485.565 | M5: 4658524.525 | N5: 5334497.379 | O5: 6029069.07 | P5: 6873579.087 | Q5: 7791095.883 | R5: 8865487.352 | S5: 10063310.24
B6: Mixed | C6: 1900853.211 | D6: 2100607.938 | E6: 1853959.745 | F6: 1692329.669 | G6: 1498165.916 | H6: 1594459.368 | I6: 1695420.184 | J6: 1882814.219 | K6: 2023614.909 | L6: 2224102.123 | M6: 2402630.068 | N6: 2625479.294 | O6: 2844403.51 | P6: 3098332.35 | Q6: 3360115.421 | R6: 3652905.397 | S6: 3962483.959
C9: 3b. Exp Dashboard'!A1

Sheet 3d. Macro Outputs
C2: Current Costs | F2: Revenue - Historic | I2: Revenue - Projected | L2: Infrastructure | P2: Output | Z2: NSFAS
A3: Row # | B3: Enrolments | C3: Status Quo | D3: Full Policy | E3: Mixed | F3: Status Quo | G3: Full Policy | H3: Mixed | I3: Status Quo | J3: Full Policy | K3: Mixed | L3: Status Quo | M3: Full Policy | N3: Mixed | O3: Total Current Cost | P3: Total current revenue | Q3: Infrastructure | R3: NSFAS | S3: Enrolments | T3: Total Current Cost | U3: Total current revenue | V3: Infrastructure | W3: NSFAS | Y3: Status Quo | Z3: Full Policy | AA3: Mixed
A4: 1 | B4: 0 | C4: 1990.02529 | D4: 1871.30934 | E4: 1829.916642 | F4: 21411.58856 | G4: 21283.35479 | H4: 21283.35479 | I4: 25616.95031 | J4: 25488.71655 | K4: 25488.71655 | L4: 0 | M4: 0 | N4: 0 | O4: 1829.916642 | P4: 25488.71655 | Q4: 0 | R4: 71.70286169 | S4: 2500000 | T4: ='2b. Cost Dashboard'!E4+'2b. Cost Dashboard'!E5 -> 70301.10243 | U4: ='2a. Fund Dashboard'!H14 -> 56034.99246 | V4: =MAX('2b. Cost Dashboard'!E18+'2b. Cost Dashboard'!E19,0) -> 194896.5327 | W4: ='4a. Funding Calc'!T5/1000+'4a. Funding Calc'!T9/1000 -> 18070.44247 | Y4: 120.716701 | Z4: 71.70286169 | AA4: 71.70286169
A5: =A4+1 -> 2 | B5: =B4+10000 -> 10000 | C5: 2150.26915 | D5: 2796.387724 | E5: 2712.146913 | F5: 21461.49054 | G5: 21302.37923 | H5: 21302.37923 | I5: 25666.85229 | J5: 25507.74099 | K5: 25507.74099 | L5: 0 | M5: 0 | N5: 0 | O5: 2712.146913 | P5: 25507.74099 | Q5: 0 | R5: 85.52126017 | Y5: 146.6544803 | Z5: 85.52126017 | AA5: 85.52126017
A6: =A5+1 -> 3 | B6: =B5+10000 -> 20000 | C6: 2321.716716 | D6: 3721.995649 | E6: 3594.900425 | F6: 21515.53531 | G6: 21321.41763 | H6: 21321.41763 | I6: 25720.89707 | J6: 25526.77939 | K6: 25526.77939 | L6: 0 | M6: 0 | N6: 0 | O6: 3594.900425 | P6: 25526.77939 | Q6: 0 | R6: 99.28606123 | Y6: 175.7477315 | Z6: 99.28606123 | AA6: 99.28606123
A7: 4 | B7: 30000 | C7: 2522.431143 | D7: 4713.350761 | E7: 4539.913297 | F7: 21582.15012 | G7: 21351.53327 | H7: 21351.53327 | I7: 25787.51187 | J7: 25556.89503 | K7: 25556.89503 | L7: 0 | M7: 0 | N7: 0 | O7: 4539.913297 | P7: 25556.89503 | Q7: 0 | R7: 120.35109 | Y7: 215.7853956 | Z7: 120.35109 | AA7: 120.35109
A8: 5 | B8: 40000 | C8: 2723.871866 | D8: 5704.897516 | E8: 5485.063281 | F8: 21652.39037 | G8: 21381.90407 | H8: 21381.90407 | I8: 25857.75213 | J8: 25587.26582 | K8: 25587.26582 | L8: 0 | M8: 0 | N8: 0 | O8: 5485.063281 | P8: 25587.26582 | Q8: 0 | R8: 141.7902622 | Y8: 261.3771909 | Z8: 141.7902622 | AA8: 141.7902622
A9: 6 | B9: 50000 | C9: 2925.576167 | D9: 6696.493978 | E9: 6430.248827 | F9: 21723.79439 | G9: 21412.3186 | H9: 21412.3186 | I9: 25929.15615 | J9: 25617.68036 | K9: 25617.68036 | L9: 0 | M9: 0 | N9: 0 | O9: 6430.248827 | P9: 25617.68036 | Q9: 0 | R9: 163.2845011 | Y9: 308.8003294 | Z9: 163.2845011 | AA9: 163.2845011
A10: 7 | B10: 60000 | C10: 3127.280469 | D10: 7688.211026 | E10: 7375.520649 | F10: 21795.41924 | G10: 21442.83364 | H10: 21442.83364 | I10: 26000.78099 | J10: 25648.1954 | K10: 25648.1954 | L10: 0 | M10: 0 | N10: 0 | O10: 7375.520649 | P10: 25648.1954 | Q10: 0 | R10: 184.9079503 | Y10: 356.6049032 | Z10: 184.9079503 | AA10: 184.9079503
A11: 8 | B11: 70000 | C11: 3360.376694 | D11: 8712.008982 | E11: 8351.242388 | F11: 21883.34825 | G11: 21481.41701 | H11: 21481.41701 | I11: 26088.71001 | J11: 25686.77877 | K11: 25686.77877 | L11: 0 | M11: 0 | N11: 0 | O11: 8351.242388 | P11: 25686.77877 | Q11: 0 | R11: 214.6398666 | Y11: 421.0484129 | Z11: 214.6398666 | AA11: 214.6398666
A12: 9 | B12: 80000 | C12: 3601.240614 | D12: 9777.141949 | E12: 9366.229265 | F12: 21975.40908 | G12: 21530.35177 | H12: 21530.35177 | I12: 26180.77084 | J12: 25735.71353 | K12: 25735.71353 | L12: 0 | M12: 0 | N12: 0 | O12: 9366.229265 | P12: 25735.71353 | Q12: 0 | R12: 254.7543004 | Y12: 490.2396551 | Z12: 254.7543004 | AA12: 254.7543004
A13: 10 | B13: 90000 | C13: 3841.121459 | D13: 10842.09873 | E13: 10381.09009 | F13: 22067.00859 | G13: 21579.24257 | H13: 21579.24257 | I13: 26272.37035 | J13: 25784.60433 | K13: 25784.60433 | L13: 0 | M13: 0 | N13: 0 | O13: 10381.09009 | P13: 25784.60433 | Q13: 0 | R13: 294.8576655 | Y13: 559.3009852 | Z13: 294.8576655 | AA13: 294.8576655
A14: 11 | B14: 100000 | C14: 4081.002305 | D14: 11906.41224 | E14: 11395.49068 | F14: 22158.6081 | G14: 21627.97257 | H14: 21627.97257 | I14: 26363.96986 | J14: 25833.33433 | K14: 25833.33433 | L14: 0 | M14: 0 | N14: 0 | O14: 11395.49068 | P14: 25833.33433 | Q14: 0 | R14: 334.9200833 | Y14: 628.3623154 | Z14: 334.9200833 | AA14: 334.9200833
A15: 12 | B15: 110000 | C15: 4314.632315 | D15: 12970.31715 | E15: 12409.59893 | F15: 22248.46176 | G15: 21676.63563 | H15: 21676.63563 | I15: 26453.82352 | J15: 25881.99738 | K15: 25881.99738 | L15: 0 | M15: 0 | N15: 0 | O15: 12409.59893 | P15: 25881.99738 | Q15: 0 | R15: 374.9786714 | Y15: 697.4223421 | Z15: 374.9786714 | AA15: 374.9786714
A16: 13 | B16: 120000 | C16: 4562.443725 | D16: 14033.84898 | E16: 13423.44026 | F16: 22344.89566 | G16: 21725.2395 | H16: 21725.2395 | I16: 26550.25742 | J16: 25930.60126 | K16: 25930.60126 | L16: 0 | M16: 0 | N16: 0 | O16: 13423.44026 | P16: 25930.60126 | Q16: 0 | R16: 415.0350411 | Y16: 768.1386842 | Z16: 415.0350411 | AA16: 415.0350411
A17: 14 | B17: 130000 | C17: 4811.423856 | D17: 15098.72758 | E17: 14438.24515 | F17: 22441.86642 | G17: 21774.18077 | H17: 21774.18077 | I17: 26647.22817 | J17: 25979.54253 | K17: 25979.54253 | L17: 0 | M17: 0 | N17: 0 | O17: 14438.24515 | P17: 25979.54253 | Q17: 0 | R17: 455.1784299 | Y17: 838.989467 | Z17: 455.1784299 | AA17: 455.1784299
A18: 15 | B18: 140000 | C18: 5073.121737 | D18: 16164.84847 | E18: 15453.93884 | F18: 22542.97787 | G18: 21823.40875 | H18: 21823.40875 | I18: 26748.33963 | J18: 26028.7705 | K18: 26028.7705 | L18: 0 | M18: 0 | N18: 0 | O18: 15453.93884 | P18: 26028.7705 | Q18: 0 | R18: 495.3950344 | Y18: 910.6854637 | Z18: 495.3950344 | AA18: 495.3950344
A19: 16 | B19: 150000 | C19: 5344.71734 | D19: 17233.3761 | E19: 16471.35446 | F19: 22647.31188 | G19: 21873.06885 | H19: 21873.06885 | I19: 26852.67364 | J19: 26078.43061 | K19: 26078.43061 | L19: 0 | M19: 0 | N19: 0 | O19: 16471.35446 | P19: 26078.43061 | Q19: 0 | R19: 535.7100217 | Y19: 983.0392564 | Z19: 535.7100217 | AA19: 535.7100217
A20: 17 | B20: 160000 | C20: 5616.312944 | D20: 18301.90373 | E20: 17488.77008 | F20: 22751.64588 | G20: 21922.72896 | H20: 21922.72896 | I20: 26957.00764 | J20: 26128.09072 | K20: 26128.09072 | L20: 0 | M20: 0 | N20: 0 | O20: 17488.77008 | P20: 26128.09072 | Q20: 0 | R20: 576.025009 | Y20: 1055.393049 | Z20: 576.025009 | AA20: 576.025009
A21: 18 | B21: 170000 | C21: 5887.908548 | D21: 19370.43135 | E21: 18506.18569 | F21: 22855.97989 | G21: 21972.38906 | H21: 21972.38906 | I21: 27061.34165 | J21: 26177.75082 | K21: 26177.75082 | L21: 0 | M21: 0 | N21: 0 | O21: 18506.18569 | P21: 26177.75082 | Q21: 0 | R21: 616.3399962 | Y21: 1127.746842 | Z21: 616.3399962 | AA21: 616.3399962
A22: 19 | B22: 180000 | C22: 6159.504152 | D22: 20438.95898 | E22: 19523.60131 | F22: 22960.31389 | G22: 22022.04917 | H22: 22022.04917 | I22: 27165.67565 | J22: 26227.41093 | K22: 26227.41093 | L22: 0 | M22: 0 | N22: 0 | O22: 19523.60131 | P22: 26227.41093 | Q22: 0 | R22: 656.6549835 | Y22: 1200.100634 | Z22: 656.6549835 | AA22: 656.6549835
A23: 20 | B23: 190000 | C23: 6431.099756 | D23: 21507.48661 | E23: 20541.01692 | F23: 23064.6479 | G23: 22071.70927 | H23: 22071.70927 | I23: 27270.00966 | J23: 26277.07103 | K23: 26277.07103 | L23: 0 | M23: 0 | N23: 0 | O23: 20541.01692 | P23: 26277.07103 | Q23: 0 | R23: 696.9699708 | Y23: 1272.454427 | Z23: 696.9699708 | AA23: 696.9699708
A24: 21 | B24: 200000 | C24: 6702.69536 | D24: 22576.01424 | E24: 21558.43254 | F24: 23168.9819 | G24: 22121.36938 | H24: 22121.36938 | I24: 27374.34366 | J24: 26326.73114 | K24: 26326.73114 | L24: 0 | M24: 0 | N24: 0 | O24: 21558.43254 | P24: 26326.73114 | Q24: 0 | R24: 737.2849581 | Y24: 1344.80822 | Z24: 737.2849581 | AA24: 737.2849581
A25: 22 | B25: 210000 | C25: 6974.290964 | D25: 23644.54186 | E25: 22575.84815 | F25: 23273.31591 | G25: 22171.02949 | H25: 22171.02949 | I25: 27478.67767 | J25: 26376.39124 | K25: 26376.39124 | L25: 0 | M25: 0 | N25: 0 | O25: 22575.84815 | P25: 26376.39124 | Q25: 0 | R25: 777.5999454 | Y25: 1417.162013 | Z25: 777.5999454 | AA25: 777.5999454
A26: 23 | B26: 220000 | C26: 7245.886568 | D26: 24713.06949 | E26: 23593.26377 | F26: 23377.64991 | G26: 22220.68959 | H26: 22220.68959 | I26: 27583.01167 | J26: 26426.05135 | K26: 26426.05135 | L26: 0 | M26: 0 | N26: 0 | O26: 23593.26377 | P26: 26426.05135 | Q26: 0 | R26: 817.9149327 | Y26: 1489.515805 | Z26: 817.9149327 | AA26: 817.9149327
A27: 24 | B27: 230000 | C27: 7517.482172 | D27: 25781.59712 | E27: 24610.67939 | F27: 23481.98392 | G27: 22270.3497 | H27: 22270.3497 | I27: 27687.34568 | J27: 26475.71145 | K27: 26475.71145 | L27: 0 | M27: 0 | N27: 0 | O27: 24610.67939 | P27: 26475.71145 | Q27: 0 | R27: 858.22992 | Y27: 1561.869598 | Z27: 858.22992 | AA27: 858.22992
A28: 25 | B28: 240000 | C28: 7789.077775 | D28: 26850.12475 | E28: 25628.095 | F28: 23586.31792 | G28: 22320.0098 | H28: 22320.0098 | I28: 27791.67968 | J28: 26525.37156 | K28: 26525.37156 | L28: 0 | M28: 0 | N28: 0 | O28: 25628.095 | P28: 26525.37156 | Q28: 0 | R28: 898.5449072 | Y28: 1634.223391 | Z28: 898.5449072 | AA28: 898.5449072
A29: 26 | B29: 250000 | C29: 8060.673379 | D29: 27918.65237 | E29: 26645.51062 | F29: 23690.65193 | G29: 22369.66991 | H29: 22369.66991 | I29: 27896.01369 | J29: 26575.03167 | K29: 26575.03167 | L29: 0 | M29: 0 | N29: 0 | O29: 26645.51062 | P29: 26575.03167 | Q29: 0 | R29: 938.8598945 | Y29: 1706.577183 | Z29: 938.8598945 | AA29: 938.8598945
A30: 27 | B30: 260000 | C30: 8332.268983 | D30: 28987.18 | E30: 27662.92623 | F30: 23794.98593 | G30: 22419.33001 | H30: 22419.33001 | I30: 28000.34769 | J30: 26624.69177 | K30: 26624.69177 | L30: 0 | M30: 0 | N30: 0 | O30: 27662.92623 | P30: 26624.69177 | Q30: 0 | R30: 979.1748818 | Y30: 1778.930976 | Z30: 979.1748818 | AA30: 979.1748818
A31: 28 | B31: 270000 | C31: 8603.864587 | D31: 30055.70763 | E31: 28680.34185 | F31: 23899.31994 | G31: 22468.99012 | H31: 22468.99012 | I31: 28104.6817 | J31: 26674.35188 | K31: 26674.35188 | L31: 0 | M31: 0 | N31: 0 | O31: 28680.34185 | P31: 26674.35188 | Q31: 0 | R31: 1019.489869 | Y31: 1851.284769 | Z31: 1019.489869 | AA31: 1019.489869
A32: 29 | B32: 280000 | C32: 8875.460191 | D32: 31124.23525 | E32: 29697.75747 | F32: 24003.65394 | G32: 22518.65022 | H32: 22518.65022 | I32: 28209.0157 | J32: 26724.01198 | K32: 26724.01198 | L32: 0 | M32: 0 | N32: 0 | O32: 29697.75747 | P32: 26724.01198 | Q32: 0 | R32: 1059.804856 | Y32: 1923.638561 | Z32: 1059.804856 | AA32: 1059.804856
A33: 30 | B33: 290000 | C33: 9147.055795 | D33: 32192.76288 | E33: 30715.17308 | F33: 24107.98795 | G33: 22568.31033 | H33: 22568.31033 | I33: 28313.3497 | J33: 26773.67209 | K33: 26773.67209 | L33: 0 | M33: 0 | N33: 0 | O33: 30715.17308 | P33: 26773.67209 | Q33: 0 | R33: 1100.119844 | Y33: 1995.992354 | Z33: 1100.119844 | AA33: 1100.119844
A34: 31 | B34: 300000 | C34: 9418.651399 | D34: 33261.29051 | E34: 31732.5887 | F34: 24212.32195 | G34: 22617.97044 | H34: 22617.97044 | I34: 28417.68371 | J34: 26823.33219 | K34: 26823.33219 | L34: 0 | M34: 0 | N34: 0 | O34: 31732.5887 | P34: 26823.33219 | Q34: 0 | R34: 1140.434831 | Y34: 2068.346147 | Z34: 1140.434831 | AA34: 1140.434831
A35: 32 | B35: 310000 | C35: 9690.247003 | D35: 34329.81814 | E35: 32750.00431 | F35: 24316.65596 | G35: 22667.63054 | H35: 22667.63054 | I35: 28522.01771 | J35: 26872.9923 | K35: 26872.9923 | L35: 0 | M35: 0 | N35: 0 | O35: 32750.00431 | P35: 26872.9923 | Q35: 0 | R35: 1180.749818 | Y35: 2140.699939 | Z35: 1180.749818 | AA35: 1180.749818
A36: 33 | B36: 320000 | C36: 9961.842607 | D36: 35398.34576 | E36: 33767.41993 | F36: 24420.98996 | G36: 22717.29065 | H36: 22717.29065 | I36: 28626.35172 | J36: 26922.65241 | K36: 26922.65241 | L36: 0 | M36: 0 | N36: 0 | O36: 33767.41993 | P36: 26922.65241 | Q36: 0 | R36: 1221.064806 | Y36: 2213.053732 | Z36: 1221.064806 | AA36: 1221.064806
A37: 34 | B37: 330000 | C37: 10233.43821 | D37: 36466.87339 | E37: 34784.83554 | F37: 24525.32397 | G37: 22766.95075 | H37: 22766.95075 | I37: 28730.68572 | J37: 26972.31251 | K37: 26972.31251 | L37: 0 | M37: 0 | N37: 0 | O37: 34784.83554 | P37: 26972.31251 | Q37: 0 | R37: 1261.379793 | Y37: 2285.407525 | Z37: 1261.379793 | AA37: 1261.379793
A38: 35 | B38: 340000 | C38: 10505.03381 | D38: 37535.40102 | E38: 35802.25116 | F38: 24629.65797 | G38: 22816.61086 | H38: 22816.61086 | I38: 28835.01973 | J38: 27021.97262 | K38: 27021.97262 | L38: 0 | M38: 0 | N38: 0 | O38: 35802.25116 | P38: 27021.97262 | Q38: 0 | R38: 1301.69478 | Y38: 2357.761317 | Z38: 1301.69478 | AA38: 1301.69478
A39: 36 | B39: 350000 | C39: 10776.62942 | D39: 38603.92865 | E39: 36819.66678 | F39: 24733.99198 | G39: 22866.27096 | H39: 22866.27096 | I39: 28939.35373 | J39: 27071.63272 | K39: 27071.63272 | L39: 0 | M39: 0 | N39: 0 | O39: 36819.66678 | P39: 27071.63272 | Q39: 0 | R39: 1342.009767 | Y39: 2430.11511 | Z39: 1342.009767 | AA39: 1342.009767
A40: 37 | B40: 360000 | C40: 11048.22502 | D40: 39672.45627 | E40: 37837.08239 | F40: 24838.32598 | G40: 22915.93107 | H40: 22915.93107 | I40: 29043.68774 | J40: 27121.29283 | K40: 27121.29283 | L40: 0 | M40: 0 | N40: 0 | O40: 37837.08239 | P40: 27121.29283 | Q40: 0 | R40: 1382.324755 | Y40: 2502.468903 | Z40: 1382.324755 | AA40: 1382.324755
A41: 38 | B41: 370000 | C41: 11319.82063 | D41: 40740.9839 | E41: 38854.49801 | F41: 24942.65999 | G41: 22965.59118 | H41: 22965.59118 | I41: 29148.02174 | J41: 27170.95293 | K41: 27170.95293 | L41: 0 | M41: 0 | N41: 0 | O41: 38854.49801 | P41: 27170.95293 | Q41: 0 | R41: 1422.639742 | Y41: 2574.822695 | Z41: 1422.639742 | AA41: 1422.639742
A42: 39 | B42: 380000 | C42: 11591.41623 | D42: 41809.51153 | E42: 39871.91362 | F42: 25046.99399 | G42: 23015.25128 | H42: 23015.25128 | I42: 29252.35575 | J42: 27220.61304 | K42: 27220.61304 | L42: 0 | M42: 2260.984258 | N42: 0 | O42: 39871.91362 | P42: 27220.61304 | Q42: 0 | R42: 1462.954729 | Y42: 2647.176488 | Z42: 1462.954729 | AA42: 1462.954729
A43: 40 | B43: 390000 | C43: 11863.01183 | D43: 42878.03916 | E43: 40889.32924 | F43: 25151.32799 | G43: 23064.91139 | H43: 23064.91139 | I43: 29356.68975 | J43: 27270.27314 | K43: 27270.27314 | L43: 0 | M43: 4942.826814 | N43: 0 | O43: 40889.32924 | P43: 27270.27314 | Q43: 0 | R43: 1503.269717 | Y43: 2719.530281 | Z43: 1503.269717 | AA43: 1503.269717
A44: 41 | B44: 400000 | C44: 12134.60744 | D44: 43946.56678 | E44: 41906.74485 | F44: 25255.662 | G44: 23114.57149 | H44: 23114.57149 | I44: 29461.02376 | J44: 27319.93325 | K44: 27319.93325 | L44: 0 | M44: 7624.669369 | N44: 0 | O44: 41906.74485 | P44: 27319.93325 | Q44: 0 | R44: 1543.584704 | Y44: 2791.884074 | Z44: 1543.584704 | AA44: 1543.584704
A45: 42 | B45: 410000 | C45: 12406.20304 | D45: 45015.09441 | E45: 42924.16047 | F45: 25359.996 | G45: 23164.2316 | H45: 23164.2316 | I45: 29565.35776 | J45: 27369.59336 | K45: 27369.59336 | L45: 0 | M45: 10306.51193 | N45: 0 | O45: 42924.16047 | P45: 27369.59336 | Q45: 0 | R45: 1583.899691 | Y45: 2864.237866 | Z45: 1583.899691 | AA45: 1583.899691
A46: 43 | B46: 420000 | C46: 12677.79865 | D46: 46083.62204 | E46: 43941.57609 | F46: 25464.33001 | G46: 23213.8917 | H46: 23213.8917 | I46: 29669.69177 | J46: 27419.25346 | K46: 27419.25346 | L46: 0 | M46: 12988.35448 | N46: 0 | O46: 43941.57609 | P46: 27419.25346 | Q46: 0 | R46: 1624.214678 | Y46: 2936.591659 | Z46: 1624.214678 | AA46: 1624.214678
A47: 44 | B47: 430000 | C47: 12949.39425 | D47: 47152.14967 | E47: 44958.9917 | F47: 25568.66401 | G47: 23263.55181 | H47: 23263.55181 | I47: 29774.02577 | J47: 27468.91357 | K47: 27468.91357 | L47: 0 | M47: 15670.19704 | N47: 0 | O47: 44958.9917 | P47: 27468.91357 | Q47: 0 | R47: 1664.529666 | Y47: 3008.945452 | Z47: 1664.529666 | AA47: 1664.529666
A48: 45 | B48: 440000 | C48: 13220.98985 | D48: 48220.67729 | E48: 45976.40732 | F48: 25672.99802 | G48: 23313.21191 | H48: 23313.21191 | I48: 29878.35978 | J48: 27518.57367 | K48: 27518.57367 | L48: 0 | M48: 18352.03959 | N48: 0 | O48: 45976.40732 | P48: 27518.57367 | Q48: 0 | R48: 1704.844653 | Y48: 3081.299244 | Z48: 1704.844653 | AA48: 1704.844653
A49: 46 | B49: 450000 | C49: 13492.58546 | D49: 49289.20492 | E49: 46993.82293 | F49: 25777.33202 | G49: 23362.87202 | H49: 23362.87202 | I49: 29982.69378 | J49: 27568.23378 | K49: 27568.23378 | L49: 0 | M49: 21033.88215 | N49: 0 | O49: 46993.82293 | P49: 27568.23378 | Q49: 0 | R49: 1745.15964 | Y49: 3153.653037 | Z49: 1745.15964 | AA49: 1745.15964
A50: 47 | B50: 460000 | C50: 13764.18106 | D50: 50357.73255 | E50: 48011.23855 | F50: 25881.66603 | G50: 23412.53213 | H50: 23412.53213 | I50: 30087.02779 | J50: 27617.89388 | K50: 27617.89388 | L50: 0 | M50: 23715.7247 | N50: 2094.606039 | O50: 48011.23855 | P50: 27617.89388 | Q50: 2094.606039 | R50: 1785.474628 | Y50: 3226.00683 | Z50: 1785.474628 | AA50: 1785.474628
A51: 48 | B51: 470000 | C51: 14035.77666 | D51: 51426.26018 | E51: 49028.65416 | F51: 25986.00003 | G51: 23462.19223 | H51: 23462.19223 | I51: 30191.36179 | J51: 27667.55399 | K51: 27667.55399 | L51: 0 | M51: 26397.56726 | N51: 4262.262452 | O51: 49028.65416 | P51: 27667.55399 | Q51: 4262.262452 | R51: 1825.789615 | Y51: 3298.360622 | Z51: 1825.789615 | AA51: 1825.789615
A52: 49 | B52: 480000 | C52: 14307.37227 | D52: 52494.7878 | E52: 50046.06978 | F52: 26090.33404 | G52: 23511.85234 | H52: 23511.85234 | I52: 30295.6958 | J52: 27717.2141 | K52: 27717.2141 | L52: 0 | M52: 29079.40981 | N52: 6429.918865 | O52: 50046.06978 | P52: 27717.2141 | Q52: 6429.918865 | R52: 1866.104602 | Y52: 3370.714415 | Z52: 1866.104602 | AA52: 1866.104602
A53: 50 | B53: 490000 | C53: 14578.96787 | D53: 53563.31543 | E53: 51063.4854 | F53: 26194.66804 | G53: 23561.51244 | H53: 23561.51244 | I53: 30400.0298 | J53: 27766.8742 | K53: 27766.8742 | L53: 0 | M53: 31761.25237 | N53: 8597.575279 | O53: 51063.4854 | P53: 27766.8742 | Q53: 8597.575279 | R53: 1906.419589 | Y53: 3443.068208 | Z53: 1906.419589 | AA53: 1906.419589
A54: 51 | B54: 500000 | C54: 14850.56348 | D54: 54631.84306 | E54: 52080.90101 | F54: 26299.00205 | G54: 23611.17255 | H54: 23611.17255 | I54: 30504.36381 | J54: 27816.53431 | K54: 27816.53431 | L54: 0 | M54: 34443.09493 | N54: 10765.23169 | O54: 52080.90101 | P54: 27816.53431 | Q54: 10765.23169 | R54: 1946.734577 | Y54: 3515.422 | Z54: 1946.734577 | AA54: 1946.734577
A55: 52 | B55: 510000 | C55: 15122.15908 | D55: 55700.37069 | E55: 53098.31663 | F55: 26403.33605 | G55: 23660.83265 | H55: 23660.83265 | I55: 30608.69781 | J55: 27866.19441 | K55: 27866.19441 | L55: 0 | M55: 37124.93748 | N55: 12932.8881 | O55: 53098.31663 | P55: 27866.19441 | Q55: 12932.8881 | R55: 1987.049564 | Y55: 3587.775793 | Z55: 1987.049564 | AA55: 1987.049564
A56: 53 | B56: 520000 | C56: 15393.75468 | D56: 56768.89831 | E56: 54115.73224 | F56: 26507.67006 | G56: 23710.49276 | H56: 23710.49276 | I56: 30713.03182 | J56: 27915.85452 | K56: 27915.85452 | L56: 0 | M56: 39806.78004 | N56: 15100.54452 | O56: 54115.73224 | P56: 27915.85452 | Q56: 15100.54452 | R56: 2027.364551 | Y56: 3660.129586 | Z56: 2027.364551 | AA56: 2027.364551
A57: 54 | B57: 530000 | C57: 15665.35029 | D57: 57837.42594 | E57: 55133.14786 | F57: 26612.00406 | G57: 23760.15287 | H57: 23760.15287 | I57: 30817.36582 | J57: 27965.51462 | K57: 27965.51462 | L57: 0 | M57: 42488.62259 | N57: 17268.20093 | O57: 55133.14786 | P57: 27965.51462 | Q57: 17268.20093 | R57: 2067.679539 | Y57: 3732.483378 | Z57: 2067.679539 | AA57: 2067.679539
A58: 55 | B58: 540000 | C58: 15936.94589 | D58: 58905.95357 | E58: 56150.56347 | F58: 26716.33807 | G58: 23809.81297 | H58: 23809.81297 | I58: 30921.69982 | J58: 28015.17473 | K58: 28015.17473 | L58: 0 | M58: 45170.46515 | N58: 19435.85734 | O58: 56150.56347 | P58: 28015.17473 | Q58: 19435.85734 | R58: 2107.994526 | Y58: 3804.837171 | Z58: 2107.994526 | AA58: 2107.994526
A59: 56 | B59: 550000 | C59: 16208.5415 | D59: 59974.4812 | E59: 57167.97909 | F59: 26820.67207 | G59: 23859.47308 | H59: 23859.47308 | I59: 31026.03383 | J59: 28064.83483 | K59: 28064.83483 | L59: 0 | M59: 47852.3077 | N59: 21603.51376 | O59: 57167.97909 | P59: 28064.83483 | Q59: 21603.51376 | R59: 2148.309513 | Y59: 3877.190964 | Z59: 2148.309513 | AA59: 2148.309513
A60: 57 | B60: 560000 | C60: 16480.1371 | D60: 61043.00882 | E60: 58185.39471 | F60: 26925.00608 | G60: 23909.13318 | H60: 23909.13318 | I60: 31130.36783 | J60: 28114.49494 | K60: 28114.49494 | L60: 0 | M60: 50534.15026 | N60: 23771.17017 | O60: 58185.39471 | P60: 28114.49494 | Q60: 23771.17017 | R60: 2188.6245 | Y60: 3949.544756 | Z60: 2188.6245 | AA60: 2188.6245
A61: 58 | B61: 570000 | C61: 16751.7327 | D61: 62111.53645 | E61: 59202.81032 | F61: 27029.34008 | G61: 23958.79329 | H61: 23958.79329 | I61: 31234.70184 | J61: 28164.15505 | K61: 28164.15505 | L61: 0 | M61: 53215.99281 | N61: 25938.82658 | O61: 59202.81032 | P61: 28164.15505 | Q61: 25938.82658 | R61: 2228.939488 | Y61: 4021.898549 | Z61: 2228.939488 | AA61: 2228.939488
A62: 59 | B62: 580000 | C62: 17023.32831 | D62: 63180.06408 | E62: 60220.22594 | F62: 27133.67409 | G62: 24008.45339 | H62: 24008.45339 | I62: 31339.03584 | J62: 28213.81515 | K62: 28213.81515 | L62: 0 | M62: 55897.83537 | N62: 28106.483 | O62: 60220.22594 | P62: 28213.81515 | Q62: 28106.483 | R62: 2269.254475 | Y62: 4094.252342 | Z62: 2269.254475 | AA62: 2269.254475
A63: 60 | B63: 590000 | C63: 17294.92391 | D63: 64248.59171 | E63: 61237.64155 | F63: 27238.00809 | G63: 24058.1135 | H63: 24058.1135 | I63: 31443.36985 | J63: 28263.47526 | K63: 28263.47526 | L63: 0 | M63: 58579.67793 | N63: 30274.13941 | O63: 61237.64155 | P63: 28263.47526 | Q63: 30274.13941 | R63: 2309.569462 | Y63: 4166.606135 | Z63: 2309.569462 | AA63: 2309.569462
A64: 61 | B64: 600000 | C64: 17566.51952 | D64: 65317.11933 | E64: 62255.05717 | F64: 27342.3421 | G64: 24107.7736 | H64: 24107.7736 | I64: 31547.70385 | J64: 28313.13536 | K64: 28313.13536 | L64: 0 | M64: 61261.52048 | N64: 32441.79582 | O64: 62255.05717 | P64: 28313.13536 | Q64: 32441.79582 | R64: 2349.884449 | Y64: 4238.959927 | Z64: 2349.884449 | AA64: 2349.884449
A65: 62 | B65: 610000 | C65: 17838.11512 | D65: 66385.64696 | E65: 63272.47278 | F65: 27446.6761 | G65: 24157.43371 | H65: 24157.43371 | I65: 31652.03786 | J65: 28362.79547 | K65: 28362.79547 | L65: 0 | M65: 63943.36304 | N65: 34609.45224 | O65: 63272.47278 | P65: 28362.79547 | Q65: 34609.45224 | R65: 2390.199437 | Y65: 4311.31372 | Z65: 2390.199437 | AA65: 2390.199437
A66: 63 | B66: 620000 | C66: 18109.71072 | D66: 67454.17459 | E66: 64289.8884 | F66: 27551.0101 | G66: 24207.09382 | H66: 24207.09382 | I66: 31756.37186 | J66: 28412.45557 | K66: 28412.45557 | L66: 0 | M66: 66625.20559 | N66: 36777.10865 | O66: 64289.8884 | P66: 28412.45557 | Q66: 36777.10865 | R66: 2430.514424 | Y66: 4383.667513 | Z66: 2430.514424 | AA66: 2430.514424
A67: 64 | B67: 630000 | C67: 18381.30633 | D67: 68522.70222 | E67: 65307.30402 | F67: 27655.34411 | G67: 24256.75392 | H67: 24256.75392 | I67: 31860.70587 | J67: 28462.11568 | K67: 28462.11568 | L67: 0 | M67: 69307.04815 | N67: 38944.76506 | O67: 65307.30402 | P67: 28462.11568 | Q67: 38944.76506 | R67: 2470.829411 | Y67: 4456.021305 | Z67: 2470.829411 | AA67: 2470.829411
A68: 65 | B68: 640000 | C68: 18652.90193 | D68: 69591.22984 | E68: 66324.71963 | F68: 27759.67811 | G68: 24306.41403 | H68: 24306.41403 | I68: 31965.03987 | J68: 28511.77579 | K68: 28511.77579 | L68: 0 | M68: 71988.8907 | N68: 41112.42147 | O68: 66324.71963 | P68: 28511.77579 | Q68: 41112.42147 | R68: 2511.144399 | Y68: 4528.375098 | Z68: 2511.144399 | AA68: 2511.144399
A69: 66 | B69: 650000 | C69: 18924.49753 | D69: 70659.75747 | E69: 67342.13525 | F69: 27864.01212 | G69: 24356.07413 | H69: 24356.07413 | I69: 32069.37388 | J69: 28561.43589 | K69: 28561.43589 | L69: 0 | M69: 74670.73326 | N69: 43280.07789 | O69: 67342.13525 | P69: 28561.43589 | Q69: 43280.07789 | R69: 2551.459386 | Y69: 4600.728891 | Z69: 2551.459386 | AA69: 2551.459386
A70: =A69+1 -> 67 | B70: =B69+10000 -> 660000 | C70: 19196.09314 | D70: 71728.2851 | E70: 68359.55086 | F70: 27968.34612 | G70: 24405.73424 | H70: 24405.73424 | I70: 32173.70788 | J70: 28611.096 | K70: 28611.096 | L70: 0 | M70: 77352.57582 | N70: 45447.7343 | O70: 68359.55086 | P70: 28611.096 | Q70: 45447.7343 | R70: 2591.774373 | Y70: 4673.082683 | Z70: 2591.774373 | AA70: 2591.774373
A71: 68 | B71: 670000 | C71: 19467.68874 | D71: 72796.81273 | E71: 69376.96648 | F71: 28072.68013 | G71: 24455.39434 | H71: 24455.39434 | I71: 32278.04189 | J71: 28660.7561 | K71: 28660.7561 | L71: 0 | M71: 80034.41837 | N71: 47615.39071 | O71: 69376.96648 | P71: 28660.7561 | Q71: 47615.39071 | R71: 2632.08936 | Y71: 4745.436476 | Z71: 2632.08936 | AA71: 2632.08936
A72: 69 | B72: 680000 | C72: 19739.28435 | D72: 73865.34035 | E72: 70394.38209 | F72: 28177.01413 | G72: 24505.05445 | H72: 24505.05445 | I72: 32382.37589 | J72: 28710.41621 | K72: 28710.41621 | L72: 0 | M72: 82716.26093 | N72: 49783.04713 | O72: 70394.38209 | P72: 28710.41621 | Q72: 49783.04713 | R72: 2672.404348 | Y72: 4817.790269 | Z72: 2672.404348 | AA72: 2672.404348
A73: 70 | B73: 690000 | C73: 20010.87995 | D73: 74933.86798 | E73: 71411.79771 | F73: 28281.34814 | G73: 24554.71455 | H73: 24554.71455 | I73: 32486.7099 | J73: 28760.07631 | K73: 28760.07631 | L73: 0 | M73: 85398.10348 | N73: 51950.70354 | O73: 71411.79771 | P73: 28760.07631 | Q73: 51950.70354 | R73: 2712.719335 | Y73: 4890.144061 | Z73: 2712.719335 | AA73: 2712.719335
A74: 71 | B74: 700000 | C74: 20282.47555 | D74: 76002.39561 | E74: 72429.21333 | F74: 28385.68214 | G74: 24604.37466 | H74: 24604.37466 | I74: 32591.0439 | J74: 28809.73642 | K74: 28809.73642 | L74: 0 | M74: 88079.94604 | N74: 54118.35995 | O74: 72429.21333 | P74: 28809.73642 | Q74: 54118.35995 | R74: 2753.034322 | Y74: 4962.497854 | Z74: 2753.034322 | AA74: 2753.034322
A75: 72 | B75: 710000 | C75: 20554.07116 | D75: 77070.92324 | E75: 73446.62894 | F75: 28490.01615 | G75: 24654.03477 | H75: 24654.03477 | I75: 32695.37791 | J75: 28859.39652 | K75: 28859.39652 | L75: 0 | M75: 90761.78859 | N75: 56286.01637 | O75: 73446.62894 | P75: 28859.39652 | Q75: 56286.01637 | R75: 2793.34931 | Y75: 5034.851647 | Z75: 2793.34931 | AA75: 2793.34931
A76: 73 | B76: 720000 | C76: 20825.66676 | D76: 78139.45086 | E76: 74464.04456 | F76: 28594.35015 | G76: 24703.69487 | H76: 24703.69487 | I76: 32799.71191 | J76: 28909.05663 | K76: 28909.05663 | L76: 0 | M76: 93443.63115 | N76: 58453.67278 | O76: 74464.04456 | P76: 28909.05663 | Q76: 58453.67278 | R76: 2833.664297 | Y76: 5107.205439 | Z76: 2833.664297 | AA76: 2833.664297
A77: 74 | B77: 730000 | C77: 21097.26237 | D77: 79207.97849 | E77: 75481.46017 | F77: 28698.68416 | G77: 24753.35498 | H77: 24753.35498 | I77: 32904.04592 | J77: 28958.71674 | K77: 28958.71674 | L77: 742.1484202 | M77: 96125.4737 | N77: 60621.32919 | O77: 75481.46017 | P77: 28958.71674 | Q77: 60621.32919 | R77: 2873.979284 | Y77: 5179.559232 | Z77: 2873.979284 | AA77: 2873.979284
A78: 75 | B78: 740000 | C78: 21368.85797 | D78: 80276.50612 | E78: 76498.87579 | F78: 28803.01816 | G78: 24803.01508 | H78: 24803.01508 | I78: 33008.37992 | J78: 29008.37684 | K78: 29008.37684 | L78: 1839.065845 | M78: 98807.31626 | N78: 62788.98561 | O78: 76498.87579 | P78: 29008.37684 | Q78: 62788.98561 | R78: 2914.294271 | Y78: 5251.913025 | Z78: 2914.294271 | AA78: 2914.294271
A79: 76 | B79: 750000 | C79: 21640.45357 | D79: 81345.03375 | E79: 77516.2914 | F79: 28907.35217 | G79: 24852.67519 | H79: 24852.67519 | I79: 33112.71393 | J79: 29058.03695 | K79: 29058.03695 | L79: 2935.983271 | M79: 101489.1588 | N79: 64956.64202 | O79: 77516.2914 | P79: 29058.03695 | Q79: 64956.64202 | R79: 2954.609259 | Y79: 5324.266817 | Z79: 2954.609259 | AA79: 2954.609259
A80: 77 | B80: 760000 | C80: 21912.04918 | D80: 82413.56137 | E80: 78533.70702 | F80: 29011.68617 | G80: 24902.33529 | H80: 24902.33529 | I80: 33217.04793 | J80: 29107.69705 | K80: 29107.69705 | L80: 4032.900696 | M80: 104171.0014 | N80: 67124.29843 | O80: 78533.70702 | P80: 29107.69705 | Q80: 67124.29843 | R80: 2994.924246 | Y80: 5396.62061 | Z80: 2994.924246 | AA80: 2994.924246
A81: 78 | B81: 770000 | C81: 22183.64478 | D81: 83482.089 | E81: 79551.12264 | F81: 29116.02018 | G81: 24951.9954 | H81: 24951.9954 | I81: 33321.38193 | J81: 29157.35716 | K81: 29157.35716 | L81: 5129.818121 | M81: 106852.8439 | N81: 69291.95484 | O81: 79551.12264 | P81: 29157.35716 | Q81: 69291.95484 | R81: 3035.239233 | Y81: 5468.974403 | Z81: 3035.239233 | AA81: 3035.239233
A82: 79 | B82: 780000 | C82: 22455.24039 | D82: 84550.61663 | E82: 80568.53825 | F82: 29220.35418 | G82: 25001.65551 | H82: 25001.65551 | I82: 33425.71594 | J82: 29207.01726 | K82: 29207.01726 | L82: 6226.735547 | M82: 109534.6865 | N82: 71459.61126 | O82: 80568.53825 | P82: 29207.01726 | Q82: 71459.61126 | R82: 3075.554221 | Y82: 5541.328195 | Z82: 3075.554221 | AA82: 3075.554221
A83: 80 | B83: 790000 | C83: 22726.83599 | D83: 85619.14426 | E83: 81585.95387 | F83: 29324.68819 | G83: 25051.31561 | H83: 25051.31561 | I83: 33530.04994 | J83: 29256.67737 | K83: 29256.67737 | L83: 7323.652972 | M83: 112216.529 | N83: 73627.26767 | O83: 81585.95387 | P83: 29256.67737 | Q83: 73627.26767 | R83: 3115.869208 | Y83: 5613.681988 | Z83: 3115.869208 | AA83: 3115.869208
A84: 81 | B84: 800000 | C84: 22998.43159 | D84: 86687.67188 | E84: 82603.36948 | F84: 29429.02219 | G84: 25100.97572 | H84: 25100.97572 | I84: 33634.38395 | J84: 29306.33747 | K84: 29306.33747 | L84: 8420.570397 | M84: 114898.3716 | N84: 75794.92408 | O84: 82603.36948 | P84: 29306.33747 | Q84: 75794.92408 | R84: 3156.184195 | Y84: 5686.035781 | Z84: 3156.184195 | AA84: 3156.184195
A85: 82 | B85: 810000 | C85: 23270.0272 | D85: 87756.19951 | E85: 83620.7851 | F85: 29533.3562 | G85: 25150.63582 | H85: 25150.63582 | I85: 33738.71795 | J85: 29355.99758 | K85: 29355.99758 | L85: 9517.487822 | M85: 117580.2141 | N85: 77962.5805 | O85: 83620.7851 | P85: 29355.99758 | Q85: 77962.5805 | R85: 3196.499182 | Y85: 5758.389574 | Z85: 3196.499182 | AA85: 3196.499182
A86: 83 | B86: 820000 | C86: 23541.6228 | D86: 88824.72714 | E86: 84638.20071 | F86: 29637.6902 | G86: 25200.29593 | H86: 25200.29593 | I86: 33843.05196 | J86: 29405.65769 | K86: 29405.65769 | L86: 10614.40525 | M86: 120262.0542 | N86: 80130.23448 | O86: 84638.20071 | P86: 29405.65769 | Q86: 80130.23448 | R86: 3236.81417 | Y86: 5830.743366 | Z86: 3236.81417 | AA86: 3236.81417
A87: 84 | B87: 830000 | C87: 23813.2184 | D87: 89893.25477 | E87: 85655.61633 | F87: 29742.02421 | G87: 25249.95603 | H87: 25249.95603 | I87: 33947.38596 | J87: 29455.31779 | K87: 29455.31779 | L87: 11711.32267 | M87: 122943.871 | N87: 82297.86548 | O87: 85655.61633 | P87: 29455.31779 | Q87: 82297.86548 | R87: 3277.129158 | Y87: 5903.097159 | Z87: 3277.129158 | AA87: 3277.129158
A88: 85 | B88: 840000 | C88: 24084.81401 | D88: 90961.78239 | E88: 86673.03195 | F88: 29846.35821 | G88: 25299.61614 | H88: 25299.61614 | I88: 34051.71997 | J88: 29504.9779 | K88: 29504.9779 | L88: 12808.2401 | M88: 125625.6877 | N88: 84465.49647 | O88: 86673.03195 | P88: 29504.9779 | Q88: 84465.49647 | R88: 3317.444146 | Y88: 5975.450952 | Z88: 3317.444146 | AA88: 3317.444146
A89: 86 | B89: 850000 | C89: 24356.40961 | D89: 92030.31002 | E89: 87690.44756 | F89: 29950.69221 | G89: 25349.27625 | H89: 25349.27625 | I89: 34156.05397 | J89: 29554.638 | K89: 29554.638 | L89: 13905.15752 | M89: 128307.5044 | N89: 86633.12747 | O89: 87690.44756 | P89: 29554.638 | Q89: 86633.12747 | R89: 3357.759134 | Y89: 6047.804744 | Z89: 3357.759134 | AA89: 3357.759134
A90: 87 | B90: 860000 | C90: 24628.00522 | D90: 93098.83765 | E90: 88707.86318 | F90: 30055.02622 | G90: 25398.93635 | H90: 25398.93635 | I90: 34260.38798 | J90: 29604.29811 | K90: 29604.29811 | L90: 15002.07495 | M90: 130989.3212 | N90: 88800.75846 | O90: 88707.86318 | P90: 29604.29811 | Q90: 88800.75846 | R90: 3398.074122 | Y90: 6120.158537 | Z90: 3398.074122 | AA90: 3398.074122
A91: 88 | B91: 870000 | C91: 24899.60082 | D91: 94167.36528 | E91: 89725.2788 | F91: 30159.36022 | G91: 25448.59646 | H91: 25448.59646 | I91: 34364.72198 | J91: 29653.95822 | K91: 29653.95822 | L91: 16098.99237 | M91: 133671.1379 | N91: 90968.38945 | O91: 89725.2788 | P91: 29653.95822 | Q91: 90968.38945 | R91: 3438.38911 | Y91: 6192.51233 | Z91: 3438.38911 | AA91: 3438.38911
A92: 89 | B92: 880000 | C92: 25171.19642 | D92: 95235.89291 | E92: 90742.69441 | F92: 30263.69423 | G92: 25498.25656 | H92: 25498.25656 | I92: 34469.05599 | J92: 29703.61832 | K92: 29703.61832 | L92: 17195.9098 | M92: 136352.9547 | N92: 93136.02045 | O92: 90742.69441 | P92: 29703.61832 | Q92: 93136.02045 | R92: 3478.704098 | Y92: 6264.866122 | Z92: 3478.704098 | AA92: 3478.704098
A93: 90 | B93: 890000 | C93: 25442.79203 | D93: 96304.42054 | E93: 91760.11003 | F93: 30368.02823 | G93: 25547.91667 | H93: 25547.91667 | I93: 34573.38999 | J93: 29753.27843 | K93: 29753.27843 | L93: 18292.82722 | M93: 139034.7714 | N93: 95303.65144 | O93: 91760.11003 | P93: 29753.27843 | Q93: 95303.65144 | R93: 3519.019086 | Y93: 6337.219915 | Z93: 3519.019086 | AA93: 3519.019086
A94: 91 | B94: 900000 | C94: 25714.38763 | D94: 97372.94816 | E94: 92777.52564 | F94: 30472.36224 | G94: 25597.57678 | H94: 25597.57678 | I94: 34677.724 | J94: 29802.93854 | K94: 29802.93854 | L94: 19389.74465 | M94: 141716.5881 | N94: 97471.28244 | O94: 92777.52564 | P94: 29802.93854 | Q94: 97471.28244 | R94: 3559.334073 | Y94: 6409.573708 | Z94: 3559.334073 | AA94: 3559.334073
A95: 92 | B95: 910000 | C95: 25985.98324 | D95: 98441.47579 | E95: 93794.94126 | F95: 30576.69624 | G95: 25647.23688 | H95: 25647.23688 | I95: 34782.058 | J95: 29852.59864 | K95: 29852.59864 | L95: 20486.66208 | M95: 144398.4049 | N95: 99638.91343 | O95: 93794.94126 | P95: 29852.59864 | Q95: 99638.91343 | R95: 3599.649061 | Y95: 6481.9275 | Z95: 3599.649061 | AA95: 3599.649061
A96: 93 | B96: 920000 | C96: 26257.57884 | D96: 99510.00342 | E96: 94812.35688 | F96: 30681.03025 | G96: 25696.89699 | H96: 25696.89699 | I96: 34886.39201 | J96: 29902.25875 | K96: 29902.25875 | L96: 21583.5795 | M96: 147080.2216 | N96: 101806.5444 | O96: 94812.35688 | P96: 29902.25875 | Q96: 101806.5444 | R96: 3639.964049 | Y96: 6554.281293 | Z96: 3639.964049 | AA96: 3639.964049
A97: 94 | B97: 930000 | C97: 26529.17444 | D97: 100578.531 | E97: 95829.77249 | F97: 30785.36425 | G97: 25746.5571 | H97: 25746.5571 | I97: 34990.72601 | J97: 29951.91885 | K97: 29951.91885 | L97: 22680.49693 | M97: 149762.0383 | N97: 103974.1754 | O97: 95829.77249 | P97: 29951.91885 | Q97: 103974.1754 | R97: 3680.279037 | Y97: 6626.635086 | Z97: 3680.279037 | AA97: 3680.279037
A98: 95 | B98: 940000 | C98: 26800.77005 | D98: 101647.0587 | E98: 96847.18811 | F98: 30889.69826 | G98: 25796.2172 | H98: 25796.2172 | I98: 35095.06002 | J98: 30001.57896 | K98: 30001.57896 | L98: 23777.41435 | M98: 152443.8551 | N98: 106141.8064 | O98: 96847.18811 | P98: 30001.57896 | Q98: 106141.8064 | R98: 3720.594025 | Y98: 6698.988878 | Z98: 3720.594025 | AA98: 3720.594025
A99: 96 | B99: 950000 | C99: 27072.36565 | D99: 102715.5863 | E99: 97864.60373 | F99: 30994.03226 | G99: 25845.87731 | H99: 25845.87731 | I99: 35199.39402 | J99: 30051.23907 | K99: 30051.23907 | L99: 24874.33178 | M99: 155125.6718 | N99: 108309.4374 | O99: 97864.60373 | P99: 30051.23907 | Q99: 108309.4374 | R99: 3760.909013 | Y99: 6771.342671 | Z99: 3760.909013 | AA99: 3760.909013
A100: 97 | B100: 960000 | C100: 27343.96126 | D100: 103784.1139 | E100: 98882.01934 | F100: 31098.36627 | G100: 25895.53741 | H100: 25895.53741 | I100: 35303.72803 | J100: 30100.89917 | K100: 30100.89917 | L100: 25971.2492 | M100: 157807.4885 | N100: 110477.0684 | O100: 98882.01934 | P100: 30100.89917 | Q100: 110477.0684 | R100: 3801.224001 | Y100: 6843.696464 | Z100: 3801.224001 | AA100: 3801.224001
A101: 98 | B101: 970000 | C101: 27615.55686 | D101: 104852.6416 | E101: 99899.43496 | F101: 31202.70027 | G101: 25945.19752 | H101: 25945.19752 | I101: 35408.06203 | J101: 30150.55928 | K101: 30150.55928 | L101: 27068.16663 | M101: 160489.3053 | N101: 112644.6994 | O101: 99899.43496 | P101: 30150.55928 | Q101: 112644.6994 | R101: 3841.538989 | Y101: 6916.050256 | Z101: 3841.538989 | AA101: 3841.538989
A102: 99 | B102: 980000 | C102: 27887.15246 | D102: 105921.1692 | E102: 100916.8506 | F102: 31307.03428 | G102: 25994.85763 | H102: 25994.85763 | I102: 35512.39604 | J102: 30200.21938 | K102: 30200.21938 | L102: 28165.08405 | M102: 163171.122 | N102: 114812.3304 | O102: 100916.8506 | P102: 30200.21938 | Q102: 114812.3304 | R102: 3881.853977 | Y102: 6988.404049 | Z102: 3881.853977 | AA102: 3881.853977
A103: 100 | B103: 990000 | C103: 28158.74807 | D103: 106989.6968 | E103: 101934.2662 | F103: 31411.36828 | G103: 26044.51773 | H103: 26044.51773 | I103: 35616.73004 | J103: 30249.87949 | K103: 30249.87949 | L103: 29262.00148 | M103: 165852.897 | N103: 116979.9203 | O103: 101934.2662 | P103: 30249.87949 | Q103: 116979.9203 | R103: 3922.168966 | Y103: 7060.757842 | Z103: 3922.168966 | AA103: 3922.168966
A104: 101 | B104: 1000000 | C104: 28430.34367 | D104: 108058.2245 | E104: 102951.6818 | F104: 31515.70229 | G104: 26094.17784 | H104: 26094.17784 | I104: 35721.06404 | J104: 30299.5396 | K104: 30299.5396 | L104: 30358.9189 | M104: 168534.4362 | N104: 119147.2781 | O104: 102951.6818 | P104: 30299.5396 | Q104: 119147.2781 | R104: 3962.483959 | Y104: 7133.111635 | Z104: 3962.483959 | AA104: 3962.483959
A105: 102 | B105: 1010000 | C105: 28701.93927 | D105: 109126.7521 | E105: 103969.0974 | F105: 31620.03629 | G105: 26143.83795 | H105: 26143.83795 | I105: 35825.39805 | J105: 30349.19971 | K105: 30349.19971 | L105: 31455.83633 | M105: 171215.9754 | N105: 121314.6358 | O105: 103969.0974 | P105: 30349.19971 | Q105: 121314.6358 | R105: 4002.798952 | Y105: 7205.465427 | Z105: 4002.798952 | AA105: 4002.798952
A106: 103 | B106: 1020000 | C106: 28973.53488 | D106: 110195.2797 | E106: 104986.5131 | F106: 31724.3703 | G106: 26193.49806 | H106: 26193.49806 | I106: 35929.73205 | J106: 30398.85982 | K106: 30398.85982 | L106: 32552.75375 | M106: 173897.5146 | N106: 123481.9936 | O106: 104986.5131 | P106: 30398.85982 | Q106: 123481.9936 | R106: 4043.113944 | Y106: 7277.81922 | Z106: 4043.113944 | AA106: 4043.113944
A107: 104 | B107: 1030000 | C107: 29245.13048 | D107: 111263.8074 | E107: 106003.9287 | F107: 31828.7043 | G107: 26243.15817 | H107: 26243.15817 | I107: 36034.06606 | J107: 30448.51993 | K107: 30448.51993 | L107: 33649.67118 | M107: 176579.0538 | N107: 125649.3514 | O107: 106003.9287 | P107: 30448.51993 | Q107: 125649.3514 | R107: 4083.428937 | Y107: 7350.173013 | Z107: 4083.428937 | AA107: 4083.428937
A108: 105 | B108: 1040000 | C108: 29516.72609 | D108: 112332.335 | E108: 107021.3443 | F108: 31933.03831 | G108: 26292.81828 | H108: 26292.81828 | I108: 36138.40006 | J108: 30498.18004 | K108: 30498.18004 | L108: 34746.5886 | M108: 179260.593 | N108: 127816.7092 | O108: 107021.3443 | P108: 30498.18004 | Q108: 127816.7092 | R108: 4123.74393 | Y108: 7422.526805 | Z108: 4123.74393 | AA108: 4123.74393
A109: 106 | B109: 1050000 | C109: 29788.32169 | D109: 113400.8626 | E109: 108038.7599 | F109: 32037.37231 | G109: 26342.4784 | H109: 26342.4784 | I109: 36242.73407 | J109: 30547.84015 | K109: 30547.84015 | L109: 35843.50603 | M109: 181942.1322 | N109: 129984.067 | O109: 108038.7599 | P109: 30547.84015 | Q109: 129984.067 | R109: 4164.058923 | Y109: 7494.880598 | Z109: 4164.058923 | AA109: 4164.058923
A110: 107 | B110: 1060000 | C110: 30059.91729 | D110: 114469.3903 | E110: 109056.1755 | F110: 32141.70632 | G110: 26392.13851 | H110: 26392.13851 | I110: 36347.06807 | J110: 30597.50026 | K110: 30597.50026 | L110: 36940.42345 | M110: 184623.6714 | N110: 132151.4248 | O110: 109056.1755 | P110: 30597.50026 | Q110: 132151.4248 | R110: 4204.373916 | Y110: 7567.234391 | Z110: 4204.373916 | AA110: 4204.373916
A111: 108 | B111: 1070000 | C111: 30331.5129 | D111: 115537.9179 | E111: 110073.5912 | F111: 32246.04032 | G111: 26441.79862 | H111: 26441.79862 | I111: 36451.40208 | J111: 30647.16037 | K111: 30647.16037 | L111: 38037.34088 | M111: 187305.2107 | N111: 134318.7826 | O111: 110073.5912 | P111: 30647.16037 | Q111: 134318.7826 | R111: 4244.688908 | Y111: 7639.588183 | Z111: 4244.688908 | AA111: 4244.688908
A112: 109 | B112: 1080000 | C112: 30603.1085 | D112: 116606.4455 | E112: 111091.0068 | F112: 32350.37432 | G112: 26491.45873 | H112: 26491.45873 | I112: 36555.73608 | J112: 30696.82048 | K112: 30696.82048 | L112: 39134.2583 | M112: 189986.7499 | N112: 136486.1404 | O112: 111091.0068 | P112: 30696.82048 | Q112: 136486.1404 | R112: 4285.003901 | Y112: 7711.941976 | Z112: 4285.003901 | AA112: 4285.003901
A113: 110 | B113: 1090000 | C113: 30874.70411 | D113: 117674.9732 | E113: 112108.4224 | F113: 32454.70833 | G113: 26541.11884 | H113: 26541.11884 | I113: 36660.07009 | J113: 30746.48059 | K113: 30746.48059 | L113: 40231.17573 | M113: 192668.2891 | N113: 138653.4982 | O113: 112108.4224 | P113: 30746.48059 | Q113: 138653.4982 | R113: 4325.318894 | Y113: 7784.295769 | Z113: 4325.318894 | AA113: 4325.318894
A114: 111 | B114: 1100000 | C114: 31146.29971 | D114: 118743.5008 | E114: 113125.838 | F114: 32559.04233 | G114: 26590.77895 | H114: 26590.77895 | I114: 36764.40409 | J114: 30796.14071 | K114: 30796.14071 | L114: 41328.09316 | M114: 195349.8283 | N114: 140820.856 | O114: 113125.838 | P114: 30796.14071 | Q114: 140820.856 | R114: 4365.633887 | Y114: 7856.649561 | Z114: 4365.633887 | AA114: 4365.633887
A115: 112 | B115: 1110000 | C115: 31417.89531 | D115: 119812.0285 | E115: 114143.2537 | F115: 32663.37634 | G115: 26640.43906 | H115: 26640.43906 | I115: 36868.7381 | J115: 30845.80082 | K115: 30845.80082 | L115: 42425.01058 | M115: 198031.3675 | N115: 142988.2138 | O115: 114143.2537 | P115: 30845.80082 | Q115: 142988.2138 | R115: 4405.94888 | Y115: 7929.003354 | Z115: 4405.94888 | AA115: 4405.94888
A116: 113 | B116: 1120000 | C116: 31689.49092 | D116: 120880.5561 | E116: 115160.6693 | F116: 32767.71034 | G116: 26690.09917 | H116: 26690.09917 | I116: 36973.0721 | J116: 30895.46093 | K116: 30895.46093 | L116: 43521.92801 | M116: 200712.9067 | N116: 145155.5716 | O116: 115160.6693 | P116: 30895.46093 | Q116: 145155.5716 | R116: 4446.263873 | Y116: 8001.357147 | Z116: 4446.263873 | AA116: 4446.263873
A117: 114 | B117: 1130000 | C117: 31961.08652 | D117: 121949.0837 | E117: 116178.0849 | F117: 32872.04435 | G117: 26739.75928 | H117: 26739.75928 | I117: 37077.40611 | J117: 30945.12104 | K117: 30945.12104 | L117: 44618.84543 | M117: 203394.4459 | N117: 147322.9293 | O117: 116178.0849 | P117: 30945.12104 | Q117: 147322.9293 | R117: 4486.578865 | Y117: 8073.710939 | Z117: 4486.578865 | AA117: 4486.578865
A118: 115 | B118: 1140000 | C118: 32232.68213 | D118: 123017.6114 | E118: 117195.5005 | F118: 32976.37835 | G118: 26789.41939 | H118: 26789.41939 | I118: 37181.74011 | J118: 30994.78115 | K118: 30994.78115 | L118: 45715.76286 | M118: 206075.9851 | N118: 149490.2871 | O118: 117195.5005 | P118: 30994.78115 | Q118: 149490.2871 | R118: 4526.893858 | Y118: 8146.064732 | Z118: 4526.893858 | AA118: 4526.893858
A119: 116 | B119: 1150000 | C119: 32504.27773 | D119: 124086.139 | E119: 118212.9161 | F119: 33080.71236 | G119: 26839.0795 | H119: 26839.0795 | I119: 37286.07412 | J119: 31044.44126 | K119: 31044.44126 | L119: 46812.68028 | M119: 208757.5243 | N119: 151657.6449 | O119: 118212.9161 | P119: 31044.44126 | Q119: 151657.6449 | R119: 4567.208851 | Y119: 8218.418525 | Z119: 4567.208851 | AA119: 4567.208851
A120: 117 | B120: 1160000 | C120: 32775.87333 | D120: 125154.6666 | E120: 119230.3318 | F120: 33185.04636 | G120: 26888.73961 | H120: 26888.73961 | I120: 37390.40812 | J120: 31094.10137 | K120: 31094.10137 | L120: 47909.59771 | M120: 211439.0636 | N120: 153825.0027 | O120: 119230.3318 | P120: 31094.10137 | Q120: 153825.0027 | R120: 4607.523844 | Y120: 8290.772317 | Z120: 4607.523844 | AA120: 4607.523844
A121: 118 | B121: 1170000 | C121: 33047.46894 | D121: 126223.1943 | E121: 120247.7474 | F121: 33289.38037 | G121: 26938.39972 | H121: 26938.39972 | I121: 37494.74213 | J121: 31143.76148 | K121: 31143.76148 | L121: 49006.51513 | M121: 214120.6028 | N121: 155992.3605 | O121: 120247.7474 | P121: 31143.76148 | Q121: 155992.3605 | R121: 4647.838837 | Y121: 8363.12611 | Z121: 4647.838837 | AA121: 4647.838837
A122: 119 | B122: 1180000 | C122: 33319.06454 | D122: 127291.7219 | E122: 121265.163 | F122: 33393.71437 | G122: 26988.05983 | H122: 26988.05983 | I122: 37599.07613 | J122: 31193.42159 | K122: 31193.42159 | L122: 50103.43256 | M122: 216802.142 | N122: 158159.7183 | O122: 121265.163 | P122: 31193.42159 | Q122: 158159.7183 | R122: 4688.15383 | Y122: 8435.479903 | Z122: 4688.15383 | AA122: 4688.15383
A123: 120 | B123: 1190000 | C123: 33590.66014 | D123: 128360.2495 | E123: 122282.5786 | F123: 33498.04838 | G123: 27037.71994 | H123: 27037.71994 | I123: 37703.41014 | J123: 31243.0817 | K123: 31243.0817 | L123: 51200.34998 | M123: 219483.6812 | N123: 160327.0761 | O123: 122282.5786 | P123: 31243.0817 | Q123: 160327.0761 | R123: 4728.468822 | Y123: 8507.833696 | Z123: 4728.468822 | AA123: 4728.468822
A124: 121 | B124: 1200000 | C124: 33862.25575 | D124: 129428.7772 | E124: 123299.9943 | F124: 33602.38238 | G124: 27087.38005 | H124: 27087.38005 | I124: 37807.74414 | J124: 31292.74181 | K124: 31292.74181 | L124: 52297.26741 | M124: 222165.2204 | N124: 162494.4339 | O124: 123299.9943 | P124: 31292.74181 | Q124: 162494.4339 | R124: 4768.783815 | Y124: 8580.187488 | Z124: 4768.783815 | AA124: 4768.783815
A125: 122 | B125: 1210000 | C125: 34133.85135 | D125: 130497.3048 | E125: 124317.4099 | F125: 33706.71639 | G125: 27137.04016 | H125: 27137.04016 | I125: 37912.07815 | J125: 31342.40192 | K125: 31342.40192 | L125: 53394.18483 | M125: 224846.7596 | N125: 164661.7917 | O125: 124317.4099 | P125: 31342.40192 | Q125: 164661.7917 | R125: 4809.098808 | Y125: 8652.541281 | Z125: 4809.098808 | AA125: 4809.098808
A126: 123 | B126: 1220000 | C126: 34405.44696 | D126: 131565.8325 | E126: 125334.8255 | F126: 33811.05039 | G126: 27186.70027 | H126: 27186.70027 | I126: 38016.41215 | J126: 31392.06203 | K126: 31392.06203 | L126: 54491.10226 | M126: 227528.2988 | N126: 166829.1495 | O126: 125334.8255 | P126: 31392.06203 | Q126: 166829.1495 | R126: 4849.413801 | Y126: 8724.895074 | Z126: 4849.413801 | AA126: 4849.413801
A127: 124 | B127: 1230000 | C127: 34677.04256 | D127: 132634.3601 | E127: 126352.2411 | F127: 33915.3844 | G127: 27236.36038 | H127: 27236.36038 | I127: 38120.74615 | J127: 31441.72214 | K127: 31441.72214 | L127: 55588.01968 | M127: 230209.838 | N127: 168996.5073 | O127: 126352.2411 | P127: 31441.72214 | Q127: 168996.5073 | R127: 4889.728794 | Y127: 8797.248866 | Z127: 4889.728794 | AA127: 4889.728794
A128: 125 | B128: 1240000 | C128: 34948.63816 | D128: 133702.8877 | E128: 127369.6567 | F128: 34019.7184 | G128: 27286.02049 | H128: 27286.02049 | I128: 38225.08016 | J128: 31491.38225 | K128: 31491.38225 | L128: 56684.93711 | M128: 232891.3772 | N128: 171163.865 | O128: 127369.6567 | P128: 31491.38225 | Q128: 171163.865 | R128: 4930.043786 | Y128: 8869.602659 | Z128: 4930.043786 | AA128: 4930.043786
A129: 126 | B129: 1250000 | C129: 35220.23377 | D129: 134771.4154 | E129: 128387.0724 | F129: 34124.05241 | G129: 27335.6806 | H129: 27335.6806 | I129: 38329.41416 | J129: 31541.04236 | K129: 31541.04236 | L129: 57781.85453 | M129: 235572.9165 | N129: 173331.2228 | O129: 128387.0724 | P129: 31541.04236 | Q129: 173331.2228 | R129: 4970.358779 | Y129: 8941.956452 | Z129: 4970.358779 | AA129: 4970.358779
A130: 127 | B130: 1260000 | C130: 35491.82937 | D130: 135839.943 | E130: 129404.488 | F130: 34228.38641 | G130: 27385.34071 | H130: 27385.34071 | I130: 38433.74817 | J130: 31590.70247 | K130: 31590.70247 | L130: 58878.77196 | M130: 238254.4557 | N130: 175498.5806 | O130: 129404.488 | P130: 31590.70247 | Q130: 175498.5806 | R130: 5010.673772 | Y130: 9014.310244 | Z130: 5010.673772 | AA130: 5010.673772
A131: 128 | B131: 1270000 | C131: 35763.42498 | D131: 136908.4706 | E131: 130421.9036 | F131: 34332.72042 | G131: 27435.00082 | H131: 27435.00082 | I131: 38538.08217 | J131: 31640.36258 | K131: 31640.36258 | L131: 59975.68939 | M131: 240935.9949 | N131: 177665.9384 | O131: 130421.9036 | P131: 31640.36258 | Q131: 177665.9384 | R131: 5050.988765 | Y131: 9086.664037 | Z131: 5050.988765 | AA131: 5050.988765
A132: 129 | B132: 1280000 | C132: 36035.02058 | D132: 137976.9983 | E132: 131439.3192 | F132: 34437.05442 | G132: 27484.66093 | H132: 27484.66093 | I132: 38642.41618 | J132: 31690.02269 | K132: 31690.02269 | L132: 61072.60681 | M132: 243617.5341 | N132: 179833.2962 | O132: 131439.3192 | P132: 31690.02269 | Q132: 179833.2962 | R132: 5091.303758 | Y132: 9159.01783 | Z132: 5091.303758 | AA132: 5091.303758
A133: 130 | B133: 1290000 | C133: 36306.61618 | D133: 139045.5259 | E133: 132456.7349 | F133: 34541.38843 | G133: 27534.32104 | H133: 27534.32104 | I133: 38746.75018 | J133: 31739.6828 | K133: 31739.6828 | L133: 62169.52424 | M133: 246299.0733 | N133: 182000.654 | O133: 132456.7349 | P133: 31739.6828 | Q133: 182000.654 | R133: 5131.618751 | Y133: 9231.371622 | Z133: 5131.618751 | AA133: 5131.618751
A134: =A133+1 -> 131 | B134: =B133+10000 -> 1300000 | C134: 36578.21179 | D134: 140114.0535 | E134: 133474.1505 | F134: 34645.72243 | G134: 27583.98115 | H134: 27583.98115 | I134: 38851.08419 | J134: 31789.34291 | K134: 31789.34291 | L134: 63266.44166 | M134: 248980.6125 | N134: 184168.0118 | O134: 133474.1505 | P134: 31789.34291 | Q134: 184168.0118 | R134: 5171.933743 | Y134: 9303.725415 | Z134: 5171.933743 | AA134: 5171.933743
A135: 132 | B135: 1310000 | C135: 36849.80739 | D135: 141182.5812 | E135: 134491.5661 | F135: 34750.05643 | G135: 27633.64126 | H135: 27633.64126 | I135: 38955.41819 | J135: 31839.00302 | K135: 31839.00302 | L135: 64363.35909 | M135: 251662.1517 | N135: 186335.3696 | O135: 134491.5661 | P135: 31839.00302 | Q135: 186335.3696 | R135: 5212.248736 | Y135: 9376.079208 | Z135: 5212.248736 | AA135: 5212.248736
A136: 133 | B136: 1320000 | C136: 37121.403 | D136: 142251.1088 | E136: 135508.9817 | F136: 34854.39044 | G136: 27683.30137 | H136: 27683.30137 | I136: 39059.7522 | J136: 31888.66313 | K136: 31888.66313 | L136: 65460.27651 | M136: 254343.6909 | N136: 188502.7274 | O136: 135508.9817 | P136: 31888.66313 | Q136: 188502.7274 | R136: 5252.563729 | Y136: 9448.433 | Z136: 5252.563729 | AA136: 5252.563729
A137: 134 | B137: 1330000 | C137: 37392.9986 | D137: 143319.6365 | E137: 136526.3973 | F137: 34958.72444 | G137: 27732.96148 | H137: 27732.96148 | I137: 39164.0862 | J137: 31938.32324 | K137: 31938.32324 | L137: 66557.19394 | M137: 257025.2301 | N137: 190670.0852 | O137: 136526.3973 | P137: 31938.32324 | Q137: 190670.0852 | R137: 5292.878722 | Y137: 9520.786793 | Z137: 5292.878722 | AA137: 5292.878722
A138: 135 | B138: 1340000 | C138: 37664.5942 | D138: 144388.1641 | E138: 137543.813 | F138: 35063.05845 | G138: 27782.62159 | H138: 27782.62159 | I138: 39268.42021 | J138: 31987.98335 | K138: 31987.98335 | L138: 67654.11136 | M138: 259706.7694 | N138: 192837.443 | O138: 137543.813 | P138: 31987.98335 | Q138: 192837.443 | R138: 5333.193715 | Y138: 9593.140586 | Z138: 5333.193715 | AA138: 5333.193715
A139: 136 | B139: 1350000 | C139: 37936.18981 | D139: 145456.6917 | E139: 138561.2286 | F139: 35167.39245 | G139: 27832.2817 | H139: 27832.2817 | I139: 39372.75421 | J139: 32037.64346 | K139: 32037.64346 | L139: 68751.02879 | M139: 262388.3086 | N139: 195004.8007 | O139: 138561.2286 | P139: 32037.64346 | Q139: 195004.8007 | R139: 5373.508708 | Y139: 9665.494378 | Z139: 5373.508708 | AA139: 5373.508708
A140: 137 | B140: 1360000 | C140: 38207.78541 | D140: 146525.2194 | E140: 139578.6442 | F140: 35271.72646 | G140: 27881.94182 | H140: 27881.94182 | I140: 39477.08822 | J140: 32087.30357 | K140: 32087.30357 | L140: 69847.94621 | M140: 265069.8478 | N140: 197172.1585 | O140: 139578.6442 | P140: 32087.30357 | Q140: 197172.1585 | R140: 5413.8237 | Y140: 9737.848171 | Z140: 5413.8237 | AA140: 5413.8237
A141: 138 | B141: 1370000 | C141: 38479.38101 | D141: 147593.747 | E141: 140596.0598 | F141: 35376.06046 | G141: 27931.60193 | H141: 27931.60193 | I141: 39581.42222 | J141: 32136.96368 | K141: 32136.96368 | L141: 70944.86364 | M141: 267751.387 | N141: 199339.5163 | O141: 140596.0598 | P141: 32136.96368 | Q141: 199339.5163 | R141: 5454.138693 | Y141: 9810.201964 | Z141: 5454.138693 | AA141: 5454.138693
A142: 139 | B142: 1380000 | C142: 38750.97662 | D142: 148662.2746 | E142: 141613.4755 | F142: 35480.39447 | G142: 27981.26204 | H142: 27981.26204 | I142: 39685.75623 | J142: 32186.62379 | K142: 32186.62379 | L142: 72041.78106 | M142: 270432.9262 | N142: 201506.8741 | O142: 141613.4755 | P142: 32186.62379 | Q142: 201506.8741 | R142: 5494.453686 | Y142: 9882.555757 | Z142: 5494.453686 | AA142: 5494.453686
A143: 140 | B143: 1390000 | C143: 39022.57222 | D143: 149730.8023 | E143: 142630.8911 | F143: 35584.72847 | G143: 28030.92215 | H143: 28030.92215 | I143: 39790.09023 | J143: 32236.2839 | K143: 32236.2839 | L143: 73138.69849 | M143: 273114.4654 | N143: 203674.2319 | O143: 142630.8911 | P143: 32236.2839 | Q143: 203674.2319 | R143: 5534.768679 | Y143: 9954.909549 | Z143: 5534.768679 | AA143: 5534.768679
A144: 141 | B144: 1400000 | C144: 39294.16783 | D144: 150799.3299 | E144: 143648.3067 | F144: 35689.06248 | G144: 28080.58226 | H144: 28080.58226 | I144: 39894.42424 | J144: 32285.94401 | K144: 32285.94401 | L144: 74235.61591 | M144: 275796.0046 | N144: 205841.5897 | O144: 143648.3067 | P144: 32285.94401 | Q144: 205841.5897 | R144: 5575.083672 | Y144: 10027.26334 | Z144: 5575.083672 | AA144: 5575.083672
A145: 142 | B145: 1410000 | C145: 39565.76343 | D145: 151867.8575 | E145: 144665.7223 | F145: 35793.39648 | G145: 28130.24237 | H145: 28130.24237 | I145: 39998.75824 | J145: 32335.60412 | K145: 32335.60412 | L145: 75332.53334 | M145: 278477.5438 | N145: 208008.9475 | O145: 144665.7223 | P145: 32335.60412 | Q145: 208008.9475 | R145: 5615.398665 | Y145: 10099.61713 | Z145: 5615.398665 | AA145: 5615.398665
A146: 143 | B146: 1420000 | C146: 39837.35903 | D146: 152936.3852 | E146: 145683.1379 | F146: 35897.73049 | G146: 28179.90248 | H146: 28179.90248 | I146: 40103.09225 | J146: 32385.26424 | K146: 32385.26424 | L146: 76429.45076 | M146: 281159.083 | N146: 210176.3053 | O146: 145683.1379 | P146: 32385.26424 | Q146: 210176.3053 | R146: 5655.713657 | Y146: 10171.97093 | Z146: 5655.713657 | AA146: 5655.713657
A147: 144 | B147: 1430000 | C147: 40108.95464 | D147: 154004.9128 | E147: 146700.5536 | F147: 36002.06449 | G147: 28229.56259 | H147: 28229.56259 | I147: 40207.42625 | J147: 32434.92435 | K147: 32434.92435 | L147: 77526.36819 | M147: 283840.6223 | N147: 212343.6631 | O147: 146700.5536 | P147: 32434.92435 | Q147: 212343.6631 | R147: 5696.02865 | Y147: 10244.32472 | Z147: 5696.02865 | AA147: 5696.02865
A148: 145 | B148: 1440000 | C148: 40380.55024 | D148: 155073.4405 | E148: 147717.9692 | F148: 36106.3985 | G148: 28279.2227 | H148: 28279.2227 | I148: 40311.76026 | J148: 32484.58446 | K148: 32484.58446 | L148: 78623.28561 | M148: 286522.1615 | N148: 214511.0209 | O148: 147717.9692 | P148: 32484.58446 | Q148: 214511.0209 | R148: 5736.343643 | Y148: 10316.67851 | Z148: 5736.343643 | AA148: 5736.343643
A149: 146 | B149: 1450000 | C149: 40652.14585 | D149: 156141.9681 | E149: 148735.3848 | F149: 36210.7325 | G149: 28328.88281 | H149: 28328.88281 | I149: 40416.09426 | J149: 32534.24457 | K149: 32534.24457 | L149: 79720.20304 | M149: 289203.7007 | N149: 216678.3787 | O149: 148735.3848 | P149: 32534.24457 | Q149: 216678.3787 | R149: 5776.658636 | Y149: 10389.03231 | Z149: 5776.658636 | AA149: 5776.658636
A150: 147 | B150: 1460000 | C150: 40923.74145 | D150: 157210.4957 | E150: 149752.8004 | F150: 36315.06651 | G150: 28378.54292 | H150: 28378.54292 | I150: 40520.42827 | J150: 32583.90468 | K150: 32583.90468 | L150: 80817.12047 | M150: 291885.2399 | N150: 218845.7364 | O150: 149752.8004 | P150: 32583.90468 | Q150: 218845.7364 | R150: 5816.973629 | Y150: 10461.3861 | Z150: 5816.973629 | AA150: 5816.973629
A151: 148 | B151: 1470000 | C151: 41195.33705 | D151: 158279.0234 | E151: 150770.216 | F151: 36419.40051 | G151: 28428.20303 | H151: 28428.20303 | I151: 40624.76227 | J151: 32633.56479 | K151: 32633.56479 | L151: 81914.03789 | M151: 294566.7791 | N151: 221013.0942 | O151: 150770.216 | P151: 32633.56479 | Q151: 221013.0942 | R151: 5857.288621 | Y151: 10533.73989 | Z151: 5857.288621 | AA151: 5857.288621
A152: 149 | B152: 1480000 | C152: 41466.93266 | D152: 159347.551 | E152: 151787.6317 | F152: 36523.73452 | G152: 28477.86314 | H152: 28477.86314 | I152: 40729.09627 | J152: 32683.2249 | K152: 32683.2249 | L152: 83010.95532 | M152: 297248.3183 | N152: 223180.452 | O152: 151787.6317 | P152: 32683.2249 | Q152: 223180.452 | R152: 5897.603614 | Y152: 10606.09368 | Z152: 5897.603614 | AA152: 5897.603614
A153: 150 | B153: 1490000 | C153: 41738.52826 | D153: 160416.0786 | E153: 152805.0473 | F153: 36628.06852 | G153: 28527.52325 | H153: 28527.52325 | I153: 40833.43028 | J153: 32732.88501 | K153: 32732.88501 | L153: 84107.87274 | M153: 299929.8575 | N153: 225347.8098 | O153: 152805.0473 | P153: 32732.88501 | Q153: 225347.8098 | R153: 5937.918607 | Y153: 10678.44748 | Z153: 5937.918607 | AA153: 5937.918607
A154: 151 | B154: 1500000 | C154: 42010.12387 | D154: 161484.6063 | E154: 153822.4629 | F154: 36732.40253 | G154: 28577.18336 | H154: 28577.18336 | I154: 40937.76428 | J154: 32782.54512 | K154: 32782.54512 | L154: 85204.79017 | M154: 302611.3967 | N154: 227515.1676 | O154: 153822.4629 | P154: 32782.54512 | Q154: 227515.1676 | R154: 5978.2336 | Y154: 10750.80127 | Z154: 5978.2336 | AA154: 5978.2336
A155: 152 | B155: 1510000 | C155: 42281.71947 | D155: 162553.1339 | E155: 154839.8785 | F155: 36836.73653 | G155: 28626.84347 | H155: 28626.84347 | I155: 41042.09829 | J155: 32832.20523 | K155: 32832.20523 | L155: 86301.70759 | M155: 305292.9359 | N155: 229682.5254 | O155: 154839.8785 | P155: 32832.20523 | Q155: 229682.5254 | R155: 6018.548593 | Y155: 10823.15506 | Z155: 6018.548593 | AA155: 6018.548593
A156: 153 | B156: 1520000 | C156: 42553.31507 | D156: 163621.6615 | E156: 155857.2942 | F156: 36941.07054 | G156: 28676.50358 | H156: 28676.50358 | I156: 41146.43229 | J156: 32881.86534 | K156: 32881.86534 | L156: 87398.62502 | M156: 307974.4751 | N156: 231849.8832 | O156: 155857.2942 | P156: 32881.86534 | Q156: 231849.8832 | R156: 6058.863586 | Y156: 10895.50885 | Z156: 6058.863586 | AA156: 6058.863586
A157: 154 | B157: 1530000 | C157: 42824.91068 | D157: 164690.1892 | E157: 156874.7098 | F157: 37045.40454 | G157: 28726.16369 | H157: 28726.16369 | I157: 41250.7663 | J157: 32931.52545 | K157: 32931.52545 | L157: 88495.54244 | M157: 310656.0144 | N157: 234017.241 | O157: 156874.7098 | P157: 32931.52545 | Q157: 234017.241 | R157: 6099.178578 | Y157: 10967.86265 | Z157: 6099.178578 | AA157: 6099.178578
A158: 155 | B158: 1540000 | C158: 43096.50628 | D158: 165758.7168 | E158: 157892.1254 | F158: 37149.73855 | G158: 28775.8238 | H158: 28775.8238 | I158: 41355.1003 | J158: 32981.18556 | K158: 32981.18556 | L158: 89592.45987 | M158: 313337.5536 | N158: 236184.5988 | O158: 157892.1254 | P158: 32981.18556 | Q158: 236184.5988 | R158: 6139.493571 | Y158: 11040.21644 | Z158: 6139.493571 | AA158: 6139.493571
A159: 156 | B159: 1550000 | C159: 43368.10188 | D159: 166827.2444 | E159: 158909.541 | F159: 37254.07255 | G159: 28825.48391 | H159: 28825.48391 | I159: 41459.43431 | J159: 33030.84567 | K159: 33030.84567 | L159: 90689.37729 | M159: 316019.0928 | N159: 238351.9566 | O159: 158909.541 | P159: 33030.84567 | Q159: 238351.9566 | R159: 6179.808564 | Y159: 11112.57023 | Z159: 6179.808564 | AA159: 6179.808564
A160: 157 | B160: 1560000 | C160: 43639.69749 | D160: 167895.7721 | E160: 159926.9566 | F160: 37358.40655 | G160: 28875.14402 | H160: 28875.14402 | I160: 41563.76831 | J160: 33080.50578 | K160: 33080.50578 | L160: 91786.29472 | M160: 318700.632 | N160: 240519.3144 | O160: 159926.9566 | P160: 33080.50578 | Q160: 240519.3144 | R160: 6220.123557 | Y160: 11184.92402 | Z160: 6220.123557 | AA160: 6220.123557
A161: 158 | B161: 1570000 | C161: 43911.29309 | D161: 168964.2997 | E161: 160944.3723 | F161: 37462.74056 | G161: 28924.80413 | H161: 28924.80413 | I161: 41668.10232 | J161: 33130.16589 | K161: 33130.16589 | L161: 92883.21214 | M161: 321382.1712 | N161: 242686.6721 | O161: 160944.3723 | P161: 33130.16589 | Q161: 242686.6721 | R161: 6260.43855 | Y161: 11257.27782 | Z161: 6260.43855 | AA161: 6260.43855
A162: 159 | B162: 1580000 | C162: 44182.8887 | D162: 170032.8274 | E162: 161961.7879 | F162: 37567.07456 | G162: 28974.46424 | H162: 28974.46424 | I162: 41772.43632 | J162: 33179.826 | K162: 33179.826 | L162: 93980.12957 | M162: 324063.7104 | N162: 244854.0299 | O162: 161961.7879 | P162: 33179.826 | Q162: 244854.0299 | R162: 6300.753543 | Y162: 11329.63161 | Z162: 6300.753543 | AA162: 6300.753543
A163: 160 | B163: 1590000 | C163: 44454.4843 | D163: 171101.355 | E163: 162979.2035 | F163: 37671.40857 | G163: 29024.12435 | H163: 29024.12435 | I163: 41876.77033 | J163: 33229.48611 | K163: 33229.48611 | L163: 95077.04699 | M163: 326745.2496 | N163: 247021.3877 | O163: 162979.2035 | P163: 33229.48611 | Q163: 247021.3877 | R163: 6341.068535 | Y163: 11401.9854 | Z163: 6341.068535 | AA163: 6341.068535
A164: 161 | B164: 1600000 | C164: 44726.0799 | D164: 172169.8826 | E164: 163996.6191 | F164: 37775.74257 | G164: 29073.78446 | H164: 29073.78446 | I164: 41981.10433 | J164: 33279.14622 | K164: 33279.14622 | L164: 96173.96442 | M164: 329426.7888 | N164: 249188.7455 | O164: 163996.6191 | P164: 33279.14622 | Q164: 249188.7455 | R164: 6381.383528 | Y164: 11474.3392 | Z164: 6381.383528 | AA164: 6381.383528
A165: 162 | B165: 1610000 | C165: 44997.67551 | D165: 173238.4103 | E165: 165014.0348 | F165: 37880.07658 | G165: 29123.44457 | H165: 29123.44457 | I165: 42085.43834 | J165: 33328.80633 | K165: 33328.80633 | L165: 97270.88184 | M165: 332108.328 | N165: 251356.1033 | O165: 165014.0348 | P165: 33328.80633 | Q165: 251356.1033 | R165: 6421.698521 | Y165: 11546.69299 | Z165: 6421.698521 | AA165: 6421.698521
A166: 163 | B166: 1620000 | C166: 45269.27111 | D166: 174306.9379 | E166: 166031.4504 | F166: 37984.41058 | G166: 29173.10468 | H166: 29173.10468 | I166: 42189.77234 | J166: 33378.46644 | K166: 33378.46644 | L166: 98367.79927 | M166: 334789.8673 | N166: 253523.4611 | O166: 166031.4504 | P166: 33378.46644 | Q166: 253523.4611 | R166: 6462.013514 | Y166: 11619.04678 | Z166: 6462.013514 | AA166: 6462.013514
A167: 164 | B167: 1630000 | C167: 45540.86672 | D167: 175375.4655 | E167: 167048.866 | F167: 38088.74459 | G167: 29222.76479 | H167: 29222.76479 | I167: 42294.10635 | J167: 33428.12655 | K167: 33428.12655 | L167: 99464.7167 | M167: 337471.4065 | N167: 255690.8189 | O167: 167048.866 | P167: 33428.12655 | Q167: 255690.8189 | R167: 6502.328507 | Y167: 11691.40057 | Z167: 6502.328507 | AA167: 6502.328507
A168: 165 | B168: 1640000 | C168: 45812.46232 | D168: 176443.9932 | E168: 168066.2816 | F168: 38193.07859 | G168: 29272.4249 | H168: 29272.4249 | I168: 42398.44035 | J168: 33477.78666 | K168: 33477.78666 | L168: 100561.6341 | M168: 340152.9457 | N168: 257858.1767 | O168: 168066.2816 | P168: 33477.78666 | Q168: 257858.1767 | R168: 6542.643499 | Y168: 11763.75437 | Z168: 6542.643499 | AA168: 6542.643499
A169: 166 | B169: 1650000 | C169: 46084.05792 | D169: 177512.5208 | E169: 169083.6972 | F169: 38297.4126 | G169: 29322.08501 | H169: 29322.08501 | I169: 42502.77436 | J169: 33527.44677 | K169: 33527.44677 | L169: 101658.5515 | M169: 342834.4849 | N169: 260025.5345 | O169: 169083.6972 | P169: 33527.44677 | Q169: 260025.5345 | R169: 6582.958492 | Y169: 11836.10816 | Z169: 6582.958492 | AA169: 6582.958492
A170: 167 | B170: 1660000 | C170: 46355.65353 | D170: 178581.0484 | E170: 170101.1129 | F170: 38401.7466 | G170: 29371.74512 | H170: 29371.74512 | I170: 42607.10836 | J170: 33577.10688 | K170: 33577.10688 | L170: 102755.469 | M170: 345516.0241 | N170: 262192.8923 | O170: 170101.1129 | P170: 33577.10688 | Q170: 262192.8923 | R170: 6623.273485 | Y170: 11908.46195 | Z170: 6623.273485 | AA170: 6623.273485
A171: 168 | B171: 1670000 | C171: 46627.24913 | D171: 179649.5761 | E171: 171118.5285 | F171: 38506.08061 | G171: 29421.40523 | H171: 29421.40523 | I171: 42711.44237 | J171: 33626.76699 | K171: 33626.76699 | L171: 103852.3864 | M171: 348197.5633 | N171: 264360.2501 | O171: 171118.5285 | P171: 33626.76699 | Q171: 264360.2501 | R171: 6663.588478 | Y171: 11980.81574 | Z171: 6663.588478 | AA171: 6663.588478
A172: 169 | B172: 1680000 | C172: 46898.84474 | D172: 180718.1037 | E172: 172135.9441 | F172: 38610.41461 | G172: 29471.06535 | H172: 29471.06535 | I172: 42815.77637 | J172: 33676.4271 | K172: 33676.4271 | L172: 104949.3038 | M172: 350879.1025 | N172: 266527.6079 | O172: 172135.9441 | P172: 33676.4271 | Q172: 266527.6079 | R172: 6703.903471 | Y172: 12053.16954 | Z172: 6703.903471 | AA172: 6703.903471
A173: 170 | B173: 1690000 | C173: 47170.44034 | D173: 181786.6314 | E173: 173153.3597 | F173: 38714.74862 | G173: 29520.72546 | H173: 29520.72546 | I173: 42920.11038 | J173: 33726.08721 | K173: 33726.08721 | L173: 106046.2212 | M173: 353560.6417 | N173: 268694.9656 | O173: 173153.3597 | P173: 33726.08721 | Q173: 268694.9656 | R173: 6744.218464 | Y173: 12125.52333 | Z173: 6744.218464 | AA173: 6744.218464
A174: 171 | B174: 1700000 | C174: 47442.03594 | D174: 182855.159 | E174: 174170.7754 | F174: 38819.08262 | G174: 29570.38557 | H174: 29570.38557 | I174: 43024.44438 | J174: 33775.74732 | K174: 33775.74732 | L174: 107143.1387 | M174: 356242.1809 | N174: 270862.3234 | O174: 174170.7754 | P174: 33775.74732 | Q174: 270862.3234 | R174: 6784.533456 | Y174: 12197.87712 | Z174: 6784.533456 | AA174: 6784.533456
A175: 172 | B175: 1710000 | C175: 47713.63155 | D175: 183923.6866 | E175: 175188.191 | F175: 38923.41663 | G175: 29620.04568 | H175: 29620.04568 | I175: 43128.77838 | J175: 33825.40743 | K175: 33825.40743 | L175: 108240.0561 | M175: 358923.7202 | N175: 273029.6812 | O175: 175188.191 | P175: 33825.40743 | Q175: 273029.6812 | R175: 6824.848449 | Y175: 12270.23092 | Z175: 6824.848449 | AA175: 6824.848449
A176: 173 | B176: 1720000 | C176: 47985.22715 | D176: 184992.2143 | E176: 176205.6066 | F176: 39027.75063 | G176: 29669.70579 | H176: 29669.70579 | I176: 43233.11239 | J176: 33875.06754 | K176: 33875.06754 | L176: 109336.9735 | M176: 361605.2594 | N176: 275197.039 | O176: 176205.6066 | P176: 33875.06754 | Q176: 275197.039 | R176: 6865.163442 | Y176: 12342.58471 | Z176: 6865.163442 | AA176: 6865.163442
A177: 174 | B177: 1730000 | C177: 48256.82275 | D177: 186060.7419 | E177: 177223.0222 | F177: 39132.08464 | G177: 29719.3659 | H177: 29719.3659 | I177: 43337.44639 | J177: 33924.72765 | K177: 33924.72765 | L177: 110433.8909 | M177: 364286.7986 | N177: 277364.3968 | O177: 177223.0222 | P177: 33924.72765 | Q177: 277364.3968 | R177: 6905.478435 | Y177: 12414.9385 | Z177: 6905.478435 | AA177: 6905.478435
A178: 175 | B178: 1740000 | C178: 48528.41836 | D178: 187129.2695 | E178: 178240.4378 | F178: 39236.41864 | G178: 29769.02601 | H178: 29769.02601 | I178: 43441.7804 | J178: 33974.38777 | K178: 33974.38777 | L178: 111530.8084 | M178: 366968.3378 | N178: 279531.7546 | O178: 178240.4378 | P178: 33974.38777 | Q178: 279531.7546 | R178: 6945.793428 | Y178: 12487.29229 | Z178: 6945.793428 | AA178: 6945.793428
A179: 176 | B179: 1750000 | C179: 48800.01396 | D179: 188197.7972 | E179: 179257.8535 | F179: 39340.75265 | G179: 29818.68612 | H179: 29818.68612 | I179: 43546.1144 | J179: 34024.04788 | K179: 34024.04788 | L179: 112627.7258 | M179: 369649.877 | N179: 281699.1124 | O179: 179257.8535 | P179: 34024.04788 | Q179: 281699.1124 | R179: 6986.108421 | Y179: 12559.64609 | Z179: 6986.108421 | AA179: 6986.108421
A180: 177 | B180: 1760000 | C180: 49071.60957 | D180: 189266.3248 | E180: 180275.2691 | F180: 39445.08665 | G180: 29868.34623 | H180: 29868.34623 | I180: 43650.44841 | J180: 34073.70799 | K180: 34073.70799 | L180: 113724.6432 | M180: 372331.4162 | N180: 283866.4702 | O180: 180275.2691 | P180: 34073.70799 | Q180: 283866.4702 | R180: 7026.423413 | Y180: 12631.99988 | Z180: 7026.423413 | AA180: 7026.423413
A181: 178 | B181: 1770000 | C181: 49343.20517 | D181: 190334.8524 | E181: 181292.6847 | F181: 39549.42066 | G181: 29918.00634 | H181: 29918.00634 | I181: 43754.78241 | J181: 34123.3681 | K181: 34123.3681 | L181: 114821.5606 | M181: 375012.9554 | N181: 286033.828 | O181: 181292.6847 | P181: 34123.3681 | Q181: 286033.828 | R181: 7066.738406 | Y181: 12704.35367 | Z181: 7066.738406 | AA181: 7066.738406
A182: 179 | B182: 1780000 | C182: 49614.80077 | D182: 191403.3801 | E182: 182310.1003 | F182: 39653.75466 | G182: 29967.66645 | H182: 29967.66645 | I182: 43859.11642 | J182: 34173.02821 | K182: 34173.02821 | L182: 115918.4781 | M182: 377694.4946 | N182: 288201.1858 | O182: 182310.1003 | P182: 34173.02821 | Q182: 288201.1858 | R182: 7107.053399 | Y182: 12776.70746 | Z182: 7107.053399 | AA182: 7107.053399
A183: 180 | B183: 1790000 | C183: 49886.39638 | D183: 192471.9077 | E183: 183327.516 | F183: 39758.08866 | G183: 30017.32656 | H183: 30017.32656 | I183: 43963.45042 | J183: 34222.68832 | K183: 34222.68832 | L183: 117015.3955 | M183: 380376.0338 | N183: 290368.5436 | O183: 183327.516 | P183: 34222.68832 | Q183: 290368.5436 | R183: 7147.368392 | Y183: 12849.06126 | Z183: 7147.368392 | AA183: 7147.368392
A184: 181 | B184: 1800000 | C184: 50157.99198 | D184: 193540.4354 | E184: 184344.9316 | F184: 39862.42267 | G184: 30066.98667 | H184: 30066.98667 | I184: 44067.78443 | J184: 34272.34843 | K184: 34272.34843 | L184: 118112.3129 | M184: 383057.5731 | N184: 292535.9013 | O184: 184344.9316 | P184: 34272.34843 | Q184: 292535.9013 | R184: 7187.683385 | Y184: 12921.41505 | Z184: 7187.683385 | AA184: 7187.683385
A185: 182 | B185: 1810000 | C185: 50429.58759 | D185: 194608.963 | E185: 185362.3472 | F185: 39966.75667 | G185: 30116.64678 | H185: 30116.64678 | I185: 44172.11843 | J185: 34322.00854 | K185: 34322.00854 | L185: 119209.2304 | M185: 385739.1123 | N185: 294703.2591 | O185: 185362.3472 | P185: 34322.00854 | Q185: 294703.2591 | R185: 7227.998378 | Y185: 12993.76884 | Z185: 7227.998378 | AA185: 7227.998378
A186: 183 | B186: 1820000 | C186: 50701.18319 | D186: 195677.4906 | E186: 186379.7628 | F186: 40071.09068 | G186: 30166.30689 | H186: 30166.30689 | I186: 44276.45244 | J186: 34371.66865 | K186: 34371.66865 | L186: 120306.1478 | M186: 388420.6515 | N186: 296870.6169 | O186: 186379.7628 | P186: 34371.66865 | Q186: 296870.6169 | R186: 7268.31337 | Y186: 13066.12263 | Z186: 7268.31337 | AA186: 7268.31337
A187: 184 | B187: 1830000 | C187: 50972.77879 | D187: 196746.0183 | E187: 187397.1784 | F187: 40175.42468 | G187: 30215.967 | H187: 30215.967 | I187: 44380.78644 | J187: 34421.32876 | K187: 34421.32876 | L187: 121403.0652 | M187: 391102.1907 | N187: 299037.9747 | O187: 187397.1784 | P187: 34421.32876 | Q187: 299037.9747 | R187: 7308.628363 | Y187: 13138.47643 | Z187: 7308.628363 | AA187: 7308.628363
A188: 185 | B188: 1840000 | C188: 51244.3744 | D188: 197814.5459 | E188: 188414.5941 | F188: 40279.75869 | G188: 30265.62711 | H188: 30265.62711 | I188: 44485.12045 | J188: 34470.98887 | K188: 34470.98887 | L188: 122499.9826 | M188: 393783.7299 | N188: 301205.3325 | O188: 188414.5941 | P188: 34470.98887 | Q188: 301205.3325 | R188: 7348.943356 | Y188: 13210.83022 | Z188: 7348.943356 | AA188: 7348.943356
A189: 186 | B189: 1850000 | C189: 51515.97 | D189: 198883.0735 | E189: 189432.0097 | F189: 40384.09269 | G189: 30315.28722 | H189: 30315.28722 | I189: 44589.45445 | J189: 34520.64898 | K189: 34520.64898 | L189: 123596.9001 | M189: 396465.2691 | N189: 303372.6903 | O189: 189432.0097 | P189: 34520.64898 | Q189: 303372.6903 | R189: 7389.258349 | Y189: 13283.18401 | Z189: 7389.258349 | AA189: 7389.258349
A190: 187 | B190: 1860000 | C190: 51787.56561 | D190: 199951.6012 | E190: 190449.4253 | F190: 40488.4267 | G190: 30364.94733 | H190: 30364.94733 | I190: 44693.78846 | J190: 34570.30909 | K190: 34570.30909 | L190: 124693.8175 | M190: 399146.8083 | N190: 305540.0481 | O190: 190449.4253 | P190: 34570.30909 | Q190: 305540.0481 | R190: 7429.573342 | Y190: 13355.53781 | Z190: 7429.573342 | AA190: 7429.573342
A191: 188 | B191: 1870000 | C191: 52059.16121 | D191: 201020.1288 | E191: 191466.8409 | F191: 40592.7607 | G191: 30414.60744 | H191: 30414.60744 | I191: 44798.12246 | J191: 34619.9692 | K191: 34619.9692 | L191: 125790.7349 | M191: 401828.3475 | N191: 307707.4059 | O191: 191466.8409 | P191: 34619.9692 | Q191: 307707.4059 | R191: 7469.888334 | Y191: 13427.8916 | Z191: 7469.888334 | AA191: 7469.888334
A192: 189 | B192: 1880000 | C192: 52330.75681 | D192: 202088.6564 | E192: 192484.2566 | F192: 40697.09471 | G192: 30464.26755 | H192: 30464.26755 | I192: 44902.45647 | J192: 34669.62931 | K192: 34669.62931 | L192: 126887.6523 | M192: 404509.8867 | N192: 309874.7637 | O192: 192484.2566 | P192: 34669.62931 | Q192: 309874.7637 | R192: 7510.203327 | Y192: 13500.24539 | Z192: 7510.203327 | AA192: 7510.203327
A193: 190 | B193: 1890000 | C193: 52602.35242 | D193: 203157.1841 | E193: 193501.6722 | F193: 40801.42871 | G193: 30513.92766 | H193: 30513.92766 | I193: 45006.79047 | J193: 34719.28942 | K193: 34719.28942 | L193: 127984.5698 | M193: 407191.426 | N193: 312042.1215 | O193: 193501.6722 | P193: 34719.28942 | Q193: 312042.1215 | R193: 7550.51832 | Y193: 13572.59918 | Z193: 7550.51832 | AA193: 7550.51832
A194: 191 | B194: 1900000 | C194: 52873.94802 | D194: 204225.7117 | E194: 194519.0878 | F194: 40905.76272 | G194: 30563.58777 | H194: 30563.58777 | I194: 45111.12448 | J194: 34768.94953 | K194: 34768.94953 | L194: 129081.4872 | M194: 409872.9652 | N194: 314209.4793 | O194: 194519.0878 | P194: 34768.94953 | Q194: 314209.4793 | R194: 7590.833313 | Y194: 13644.95298 | Z194: 7590.833313 | AA194: 7590.833313
A195: 192 | B195: 1910000 | C195: 53145.54362 | D195: 205294.2394 | E195: 195536.5034 | F195: 41010.09672 | G195: 30613.24788 | H195: 30613.24788 | I195: 45215.45848 | J195: 34818.60964 | K195: 34818.60964 | L195: 130178.4046 | M195: 412554.5044 | N195: 316376.837 | O195: 195536.5034 | P195: 34818.60964 | Q195: 316376.837 | R195: 7631.148306 | Y195: 13717.30677 | Z195: 7631.148306 | AA195: 7631.148306
A196: 193 | B196: 1920000 | C196: 53417.13923 | D196: 206362.767 | E196: 196553.919 | F196: 41114.43073 | G196: 30662.90799 | H196: 30662.90799 | I196: 45319.79249 | J196: 34868.26975 | K196: 34868.26975 | L196: 131275.322 | M196: 415236.0436 | N196: 318544.1948 | O196: 196553.919 | P196: 34868.26975 | Q196: 318544.1948 | R196: 7671.463299 | Y196: 13789.66056 | Z196: 7671.463299 | AA196: 7671.463299
A197: 194 | B197: 1930000 | C197: 53688.73483 | D197: 207431.2946 | E197: 197571.3347 | F197: 41218.76473 | G197: 30712.5681 | H197: 30712.5681 | I197: 45424.12649 | J197: 34917.92986 | K197: 34917.92986 | L197: 132372.2395 | M197: 417917.5828 | N197: 320711.5526 | O197: 197571.3347 | P197: 34917.92986 | Q197: 320711.5526 | R197: 7711.778291 | Y197: 13862.01435 | Z197: 7711.778291 | AA197: 7711.778291
A198: =A197+1 -> 195 | B198: =B197+10000 -> 1940000 | C198: 53960.33044 | D198: 208499.8223 | E198: 198588.7503 | F198: 41323.09874 | G198: 30762.22821 | H198: 30762.22821 | I198: 45528.46049 | J198: 34967.58997 | K198: 34967.58997 | L198: 133469.1569 | M198: 420599.122 | N198: 322878.9104 | O198: 198588.7503 | P198: 34967.58997 | Q198: 322878.9104 | R198: 7752.093284 | Y198: 13934.36815 | Z198: 7752.093284 | AA198: 7752.093284
A199: 196 | B199: 1950000 | C199: 54231.92604 | D199: 209568.3499 | E199: 199606.1659 | F199: 41427.43274 | G199: 30811.88832 | H199: 30811.88832 | I199: 45632.7945 | J199: 35017.25008 | K199: 35017.25008 | L199: 134566.0743 | M199: 423280.6612 | N199: 325046.2682 | O199: 199606.1659 | P199: 35017.25008 | Q199: 325046.2682 | R199: 7792.408277 | Y199: 14006.72194 | Z199: 7792.408277 | AA199: 7792.408277
A200: 197 | B200: 1960000 | C200: 54503.52164 | D200: 210636.8775 | E200: 200623.5815 | F200: 41531.76675 | G200: 30861.54843 | H200: 30861.54843 | I200: 45737.1285 | J200: 35066.91019 | K200: 35066.91019 | L200: 135662.9917 | M200: 425962.2004 | N200: 327213.626 | O200: 200623.5815 | P200: 35066.91019 | Q200: 327213.626 | R200: 7832.72327 | Y200: 14079.07573 | Z200: 7832.72327 | AA200: 7832.72327
A201: 198 | B201: 1970000 | C201: 54775.11725 | D201: 211705.4052 | E201: 201640.9971 | F201: 41636.10075 | G201: 30911.20854 | H201: 30911.20854 | I201: 45841.46251 | J201: 35116.5703 | K201: 35116.5703 | L201: 136759.9092 | M201: 428643.7396 | N201: 329380.9838 | O201: 201640.9971 | P201: 35116.5703 | Q201: 329380.9838 | R201: 7873.038263 | Y201: 14151.42952 | Z201: 7873.038263 | AA201: 7873.038263
... 53 more rows

Sheet 4a. Funding Calc
A1: Funding Item | B1: 2013 % | C1: 2013 (Example) | D1: 2014 | E1: =D1+1 -> 2015 | F1: 2016 | G1: 2017 | H1: 2018 | I1: 2019 | J1: 2020 | K1: 2021 | L1: 2022 | M1: 2023 | N1: 2024 | O1: 2025 | P1: 2026 | Q1: 2027 | R1: 2028 | S1: 2029 | T1: 2030 | V1: Cumulative
A2: Programme funding (DHET Subsidy) | B2: =C2/$C$12 -> 0.6004823628 | C2: 5467377 | D2: 5827173 | E2: =6179574/(1+'4b. Costing Calc'!$D$6) -> 6179574 | F2: =E2*(1+'4g. Funding assumptions'!$D$36)/(1+'4b. Costing Calc'!$D$6) -> 6741915.234 | G2: =F2*(1+'4g. Funding assumptions'!$D$36)/(1+'4b. Costing Calc'!$D$6) -> 7355429.52 | H2: =G2*(1+'4g. Funding assumptions'!$D$36)/(1+'4b. Costing Calc'!$D$6) -> 8024773.607 | I2: =H2*(1+'4g. Funding assumptions'!$D$36)/(1+'4b. Costing Calc'!$D$6) -> 8755028.005 | J2: =I2*(1+'4g. Funding assumptions'!$D$36)/(1+'4b. Costing Calc'!$D$6) -> 9551735.553 | K2: =J2*(1+'4g. Funding assumptions'!$D$36)/(1+'4b. Costing Calc'!$D$6) -> 10420943.49 | L2: =K2*(1+'4g. Funding assumptions'!$D$36)/(1+'4b. Costing Calc'!$D$6) -> 11369249.35 | M2: =L2*(1+'4g. Funding assumptions'!$D$36)/(1+'4b. Costing Calc'!$D$6) -> 12403851.04 | N2: =M2*(1+'4g. Funding assumptions'!$D$36)/(1+'4b. Costing Calc'!$D$6) -> 13532601.48 | O2: =N2*(1+'4g. Funding assumptions'!$D$36)/(1+'4b. Costing Calc'!$D$6) -> 14764068.22 | P2: =O2*(1+'4g. Funding assumptions'!$D$36)/(1+'4b. Costing Calc'!$D$6) -> 16107598.42 | Q2: =P2*(1+'4g. Funding assumptions'!$D$36)/(1+'4b. Costing Calc'!$D$6) -> 17573389.88 | R2: =Q2*(1+'4g. Funding assumptions'!$D$36)/(1+'4b. Costing Calc'!$D$6) -> 19172568.36 | S2: =R2*(1+'4g. Funding assumptions'!$D$36)/(1+'4b. Costing Calc'!$D$6) -> 20917272.08 | T2: =S2*(1+'4g. Funding assumptions'!$D$36)/(1+'4b. Costing Calc'!$D$6) -> 22820743.84 | V2: =SUM(F2:T2) -> 199511168.1
A3: Fees (ignoring bad debts) | C3: =D3/D12*C12 -> 2936055.792 | D3: =SUM('4b. Costing Calc'!D44:D48)/1000 -> 3226389.435 | E3: =SUM('4b. Costing Calc'!E44:E48)/1000 -> 3563134.783 | F3: =SUM('4b. Costing Calc'!F44:F48)/1000 -> 4459245.467 | G3: =SUM('4b. Costing Calc'!G44:G48)/1000 -> 5381029.417 | H3: =SUM('4b. Costing Calc'!H44:H48)/1000 -> 6425187.678 | I3: =SUM('4b. Costing Calc'!I44:I48)/1000 -> 7557949.958 | J3: =SUM('4b. Costing Calc'!J44:J48)/1000 -> 8821238.886 | K3: =SUM('4b. Costing Calc'!K44:K48)/1000 -> 10199042.23 | L3: =SUM('4b. Costing Calc'!L44:L48)/1000 -> 11724043.86 | M3: =SUM('4b. Costing Calc'!M44:M48)/1000 -> 13390616.72 | N3: =SUM('4b. Costing Calc'!N44:N48)/1000 -> 15225519.67 | O3: =SUM('4b. Costing Calc'!O44:O48)/1000 -> 17230983.28 | P3: =SUM('4b. Costing Calc'!P44:P48)/1000 -> 19431010.23 | Q3: =SUM('4b. Costing Calc'!Q44:Q48)/1000 -> 21834023.47 | R3: =SUM('4b. Costing Calc'!R44:R48)/1000 -> 24463226.53 | S3: =SUM('4b. Costing Calc'!S44:S48)/1000 -> 27332169.92 | T3: =SUM('4b. Costing Calc'!T44:T48)/1000 -> 30464725.62 | V3: =SUM(F3:T3) -> 223940012.9
A4: Non-NSFAS Fees | B4: =C4/$C$12 -> 0.08653412179 | C4: 787891.0297 | D4: =(D3-D5)*(1-'4g. Funding assumptions'!$D$39) -> 1019215.836 | E4: =(E3-E5)*(1-'4g. Funding assumptions'!$D$39) -> 1126426.764 | F4: =(F3-F5)*(1-'4g. Funding assumptions'!$D$39) -> 1362916.645 | G4: =(G3-G5)*(1-'4g. Funding assumptions'!$D$39) -> 1694647.105 | H4: =(H3-H5)*(1-'4g. Funding assumptions'!$D$39) -> 1991496.4 | I4: =(I3-I5)*(1-'4g. Funding assumptions'!$D$39) -> 2375549.243 | J4: =(J3-J5)*(1-'4g. Funding assumptions'!$D$39) -> 2752308.837 | K4: =(K3-K5)*(1-'4g. Funding assumptions'!$D$39) -> 3205515.464 | L4: =(L3-L5)*(1-'4g. Funding assumptions'!$D$39) -> 3673151.486 | M4: =(M3-M5)*(1-'4g. Funding assumptions'!$D$39) -> 4211461.555 | N4: =(N3-N5)*(1-'4g. Funding assumptions'!$D$39) -> 4781953.745 | O4: =(O3-O5)*(1-'4g. Funding assumptions'!$D$39) -> 5423575.553 | P4: =(P3-P5)*(1-'4g. Funding assumptions'!$D$39) -> 6113044.1 | Q4: =(Q3-Q5)*(1-'4g. Funding assumptions'!$D$39) -> 6877966.809 | R4: =(R3-R5)*(1-'4g. Funding assumptions'!$D$39) -> 7705454.894 | S4: =(S3-S5)*(1-'4g. Funding assumptions'!$D$39) -> 8616211.467 | T4: =(T3-T5)*(1-'4g. Funding assumptions'!$D$39) -> 9604544.037 | V4: =SUM(F4:T4) -> 70389797.34
A5: NSFAS fees | B5: =C5/$C$12 -> 0.1613383591 | C5: =1836364248/1000*D5/(D5+D9) -> 1468981.752 | D5: =SUM('4b. Costing Calc'!D49:D53)/1000 -> 1527696.375 | E5: =SUM('4b. Costing Calc'!E49:E53)/1000 -> 1685756.843 | F5: =SUM('4b. Costing Calc'!F49:F53)/1000 -> 2187717.726 | G5: =SUM('4b. Costing Calc'!G49:G53)/1000 -> 2556617.576 | H5: =SUM('4b. Costing Calc'!H49:H53)/1000 -> 3106027.011 | I5: =SUM('4b. Costing Calc'!I49:I53)/1000 -> 3598701.22 | J5: =SUM('4b. Costing Calc'!J49:J53)/1000 -> 4234057.491 | K5: =SUM('4b. Costing Calc'!K49:K53)/1000 -> 4856516.458 | L5: =SUM('4b. Costing Calc'!L49:L53)/1000 -> 5602124.717 | M5: =SUM('4b. Costing Calc'!M49:M53)/1000 -> 6371514.126 | N5: =SUM('4b. Costing Calc'!N49:N53)/1000 -> 7255596.767 | O5: =SUM('4b. Costing Calc'!O49:O53)/1000 -> 8191690.694 | P5: =SUM('4b. Costing Calc'!P49:P53)/1000 -> 9242603.393 | Q5: =SUM('4b. Costing Calc'!Q49:Q53)/1000 -> 10370745.45 | R5: =SUM('4b. Costing Calc'!R49:R53)/1000 -> 11620801.7 | S5: =SUM('4b. Costing Calc'!S49:S53)/1000 -> 12971817.47 | T5: =SUM('4b. Costing Calc'!T49:T53)/1000 -> 14457152.23 | V5: =SUM(F5:T5) -> 106623684
A6: SETA | B6: =C6/$C$12 -> 0.03892462025 | C6: =354407700.60848/1000 -> 354407.7006 | D6: ='4h. NSF & SETA'!D9/1000 -> 395053.0375 | E6: ='4h. NSF & SETA'!E9/1000/(1+'4b. Costing Calc'!$D$6)^(E$1-$D$1) -> 446331.9303 | F6: ='4h. NSF & SETA'!F9/1000/(1+'4b. Costing Calc'!$D$6)^(F$1-$D$1) -> 498780.7466 | G6: ='4h. NSF & SETA'!G9/1000/(1+'4b. Costing Calc'!$D$6)^(G$1-$D$1) -> 556696.4756 | H6: ='4h. NSF & SETA'!H9/1000/(1+'4b. Costing Calc'!$D$6)^(H$1-$D$1) -> 623450.4678 | I6: ='4h. NSF & SETA'!I9/1000/(1+'4b. Costing Calc'!$D$6)^(I$1-$D$1) -> 698692.5201 | J6: ='4h. NSF & SETA'!J9/1000/(1+'4b. Costing Calc'!$D$6)^(J$1-$D$1) -> 783040.5495 | K6: ='4h. NSF & SETA'!K9/1000/(1+'4b. Costing Calc'!$D$6)^(K$1-$D$1) -> 877571.2985 | L6: ='4h. NSF & SETA'!L9/1000/(1+'4b. Costing Calc'!$D$6)^(L$1-$D$1) -> 983514.0523 | M6: ='4h. NSF & SETA'!M9/1000/(1+'4b. Costing Calc'!$D$6)^(M$1-$D$1) -> 1102246.499 | N6: ='4h. NSF & SETA'!N9/1000/(1+'4b. Costing Calc'!$D$6)^(N$1-$D$1) -> 1235312.643 | O6: ='4h. NSF & SETA'!O9/1000/(1+'4b. Costing Calc'!$D$6)^(O$1-$D$1) -> 1384442.889 | P6: ='4h. NSF & SETA'!P9/1000/(1+'4b. Costing Calc'!$D$6)^(P$1-$D$1) -> 1551576.537 | Q6: ='4h. NSF & SETA'!Q9/1000/(1+'4b. Costing Calc'!$D$6)^(Q$1-$D$1) -> 1738887.005 | R6: ='4h. NSF & SETA'!R9/1000/(1+'4b. Costing Calc'!$D$6)^(R$1-$D$1) -> 1948810.094 | S6: ='4h. NSF & SETA'!S9/1000/(1+'4b. Costing Calc'!$D$6)^(S$1-$D$1) -> 2184075.66 | T6: ='4h. NSF & SETA'!T9/1000/(1+'4b. Costing Calc'!$D$6)^(T$1-$D$1) -> 2447743.114 | V6: 18614840.55
A7: NSF | B7: =C7/$C$12 -> 0.05100934585 | C7: =464438827.08/1000 -> 464438.8271 | D7: ='4h. NSF & SETA'!D5/1000 -> 502861.6979 | E7: ='4h. NSF & SETA'!E5/1000/(1+'4b. Costing Calc'!$D$6)^(E$1-$D$1) -> 566221.1251 | F7: ='4h. NSF & SETA'!F5/1000/(1+'4b. Costing Calc'!$D$6)^(F$1-$D$1) -> 632146.4657 | G7: ='4h. NSF & SETA'!G5/1000/(1+'4b. Costing Calc'!$D$6)^(G$1-$D$1) -> 705522.2729 | H7: ='4h. NSF & SETA'!H5/1000/(1+'4b. Costing Calc'!$D$6)^(H$1-$D$1) -> 790469.7763 | I7: ='4h. NSF & SETA'!I5/1000/(1+'4b. Costing Calc'!$D$6)^(I$1-$D$1) -> 885897.4015 | J7: ='4h. NSF & SETA'!J5/1000/(1+'4b. Costing Calc'!$D$6)^(J$1-$D$1) -> 992845.3047 | K7: ='4h. NSF & SETA'!K5/1000/(1+'4b. Costing Calc'!$D$6)^(K$1-$D$1) -> 1112704.245 | L7: ='4h. NSF & SETA'!L5/1000/(1+'4b. Costing Calc'!$D$6)^(L$1-$D$1) -> 1247032.877 | M7: ='4h. NSF & SETA'!M5/1000/(1+'4b. Costing Calc'!$D$6)^(M$1-$D$1) -> 1397578.02 | N7: ='4h. NSF & SETA'!N5/1000/(1+'4b. Costing Calc'!$D$6)^(N$1-$D$1) -> 1566297.376 | O7: ='4h. NSF & SETA'!O5/1000/(1+'4b. Costing Calc'!$D$6)^(O$1-$D$1) -> 1755384.983 | P7: ='4h. NSF & SETA'!P5/1000/(1+'4b. Costing Calc'!$D$6)^(P$1-$D$1) -> 1967299.753 | Q7: ='4h. NSF & SETA'!Q5/1000/(1+'4b. Costing Calc'!$D$6)^(Q$1-$D$1) -> 2204797.439 | R7: ='4h. NSF & SETA'!R5/1000/(1+'4b. Costing Calc'!$D$6)^(R$1-$D$1) -> 2470966.482 | S7: ='4h. NSF & SETA'!S5/1000/(1+'4b. Costing Calc'!$D$6)^(S$1-$D$1) -> 2769268.163 | T7: ='4h. NSF & SETA'!T5/1000/(1+'4b. Costing Calc'!$D$6)^(T$1-$D$1) -> 3103581.621 | V7: 23601792.18
A8: Other & Third Stream (investment income and donations) | B8: =C8/$C$12 -> 0.06171119022 | C8: =C12-C2-C4-C5-C7-C6 -> 561878.8543 | D8: =C8*(1+'4g. Funding assumptions'!$D$36) -> 613009.83 | E8: =D8*(1+'4g. Funding assumptions'!$D$36)/(1+'4b. Costing Calc'!$D$6) -> 668793.7245 | F8: =E8*(1+'4g. Funding assumptions'!$D$36)/(1+'4b. Costing Calc'!$D$6) -> 729653.9535 | G8: =F8*(1+'4g. Funding assumptions'!$D$36)/(1+'4b. Costing Calc'!$D$6) -> 796052.4632 | H8: =G8*(1+'4g. Funding assumptions'!$D$36)/(1+'4b. Costing Calc'!$D$6) -> 868493.2374 | I8: =H8*(1+'4g. Funding assumptions'!$D$36)/(1+'4b. Costing Calc'!$D$6) -> 947526.122 | J8: =I8*(1+'4g. Funding assumptions'!$D$36)/(1+'4b. Costing Calc'!$D$6) -> 1033750.999 | K8: =J8*(1+'4g. Funding assumptions'!$D$36)/(1+'4b. Costing Calc'!$D$6) -> 1127822.34 | L8: =K8*(1+'4g. Funding assumptions'!$D$36)/(1+'4b. Costing Calc'!$D$6) -> 1230454.173 | M8: =L8*(1+'4g. Funding assumptions'!$D$36)/(1+'4b. Costing Calc'!$D$6) -> 1342425.503 | N8: =M8*(1+'4g. Funding assumptions'!$D$36)/(1+'4b. Costing Calc'!$D$6) -> 1464586.223 | O8: =N8*(1+'4g. Funding assumptions'!$D$36)/(1+'4b. Costing Calc'!$D$6) -> 1597863.57 | P8: =O8*(1+'4g. Funding assumptions'!$D$36)/(1+'4b. Costing Calc'!$D$6) -> 1743269.155 | Q8: =P8*(1+'4g. Funding assumptions'!$D$36)/(1+'4b. Costing Calc'!$D$6) -> 1901906.648 | R8: =Q8*(1+'4g. Funding assumptions'!$D$36)/(1+'4b. Costing Calc'!$D$6) -> 2074980.153 | S8: =R8*(1+'4g. Funding assumptions'!$D$36)/(1+'4b. Costing Calc'!$D$6) -> 2263803.347 | T8: =S8*(1+'4g. Funding assumptions'!$D$36)/(1+'4b. Costing Calc'!$D$6) -> 2469809.451 | V8: 21592397.34
A9: NSFAS Accommodation Fees | C9: =1836364248/1000*D9/(D5+D9) -> 367382.4957 | D9: =SUM('4b. Costing Calc'!D54:D58)/1000 -> 382066.6294 | E9: =SUM('4b. Costing Calc'!E54:E58)/1000 -> 421191.8214 | F9: =SUM('4b. Costing Calc'!F54:F58)/1000 -> 548210.3092 | G9: =SUM('4b. Costing Calc'!G54:G58)/1000 -> 638904.8465 | H9: =SUM('4b. Costing Calc'!H54:H58)/1000 -> 777454.1589 | I9: =SUM('4b. Costing Calc'!I54:I58)/1000 -> 899582.4625 | J9: =SUM('4b. Costing Calc'!J54:J58)/1000 -> 1059191.6 | K9: =SUM('4b. Costing Calc'!K54:K58)/1000 -> 1214060.598 | L9: =SUM('4b. Costing Calc'!L54:L58)/1000 -> 1400912.487 | M9: =SUM('4b. Costing Calc'!M54:M58)/1000 -> 1592728.612 | N9: =SUM('4b. Costing Calc'!N54:N58)/1000 -> 1813997.397 | O9: =SUM('4b. Costing Calc'!O54:O58)/1000 -> 2047613.661 | P9: =SUM('4b. Costing Calc'!P54:P58)/1000 -> 2310435.897 | Q9: =SUM('4b. Costing Calc'!Q54:Q58)/1000 -> 2592130.634 | R9: =SUM('4b. Costing Calc'!R54:R58)/1000 -> 2904626.395 | S9: =SUM('4b. Costing Calc'!S54:S58)/1000 -> 3242067.888 | T9: =SUM('4b. Costing Calc'!T54:T58)/1000 -> 3613290.238 | V9: =SUM(F9:T9) -> 26655207.18
A10: NSFAS Accommodation to college | C10: =(1-'4g. Funding assumptions'!$D$41)*C9*'4g. Funding assumptions'!$D$40 -> 88171.79896 | D10: =(1-'4g. Funding assumptions'!$D$41)*D9*'4g. Funding assumptions'!$D$40 -> 91695.99106 | E10: =(1-'4g. Funding assumptions'!$D$41)*E9*'4g. Funding assumptions'!$D$40 -> 101086.0371 | F10: =(1-'4g. Funding assumptions'!$D$41)*F9*'4g. Funding assumptions'!$D$40 -> 131570.4742 | G10: =(1-'4g. Funding assumptions'!$D$41)*G9*'4g. Funding assumptions'!$D$40 -> 153337.1632 | H10: =(1-'4g. Funding assumptions'!$D$41)*H9*'4g. Funding assumptions'!$D$40 -> 186588.9981 | I10: =(1-'4g. Funding assumptions'!$D$41)*I9*'4g. Funding assumptions'!$D$40 -> 215899.791 | J10: =(1-'4g. Funding assumptions'!$D$41)*J9*'4g. Funding assumptions'!$D$40 -> 254205.984 | K10: =(1-'4g. Funding assumptions'!$D$41)*K9*'4g. Funding assumptions'!$D$40 -> 291374.5436 | L10: =(1-'4g. Funding assumptions'!$D$41)*L9*'4g. Funding assumptions'!$D$40 -> 336218.9969 | M10: =(1-'4g. Funding assumptions'!$D$41)*M9*'4g. Funding assumptions'!$D$40 -> 382254.867 | N10: =(1-'4g. Funding assumptions'!$D$41)*N9*'4g. Funding assumptions'!$D$40 -> 435359.3752 | O10: =(1-'4g. Funding assumptions'!$D$41)*O9*'4g. Funding assumptions'!$D$40 -> 491427.2785 | P10: =(1-'4g. Funding assumptions'!$D$41)*P9*'4g. Funding assumptions'!$D$40 -> 554504.6152 | Q10: =(1-'4g. Funding assumptions'!$D$41)*Q9*'4g. Funding assumptions'!$D$40 -> 622111.3523 | R10: =(1-'4g. Funding assumptions'!$D$41)*R9*'4g. Funding assumptions'!$D$40 -> 697110.3349 | S10: =(1-'4g. Funding assumptions'!$D$41)*S9*'4g. Funding assumptions'!$D$40 -> 778096.293 | T10: =(1-'4g. Funding assumptions'!$D$41)*T9*'4g. Funding assumptions'!$D$40 -> 867189.6572
A11: Residence Fee income (non-NSFAS) | B11: ='4g. Funding assumptions'!E2*'4g. Funding assumptions'!G2/('4g. Funding assumptions'!E2*'4g. Funding assumptions'!G2+'4g. Funding assumptions'!F2*'4g. Funding assumptions'!H2) -> 0.8 | C11: ='4d. Infrastructure & Residences'!B16/1000-C10 -> 32144.53425 | D11: ='4d. Infrastructure & Residences'!B16/1000-D10 -> 28620.34214 | E11: ='4d. Infrastructure & Residences'!C16/1000-E10 -> 31235.1044 | F11: ='4d. Infrastructure & Residences'!D16/1000-F10 -> 33800.27585 | G11: ='4d. Infrastructure & Residences'!E16/1000-G10 -> 46288.39644 | H11: ='4d. Infrastructure & Residences'!F16/1000-H10 -> 51836.12502 | I11: ='4d. Infrastructure & Residences'!G16/1000-I10 -> 64585.0269 | J11: ='4d. Infrastructure & Residences'!H16/1000-J10 -> 73214.69797 | K11: ='4d. Infrastructure & Residences'!I16/1000-K10 -> 87215.27488 | L11: ='4d. Infrastructure & Residences'!J16/1000-L10 -> 99025.0763 | M11: ='4d. Infrastructure & Residences'!K16/1000-M10 -> 114889.5399 | N11: ='4d. Infrastructure & Residences'!L16/1000-N10 -> 129950.335 | O11: ='4d. Infrastructure & Residences'!M16/1000-O10 -> 148375.4597 | P11: ='4d. Infrastructure & Residences'!N16/1000-P10 -> 167026.9023 | Q11: ='4d. Infrastructure & Residences'!O16/1000-Q10 -> 188684.5976 | R11: ='4d. Infrastructure & Residences'!P16/1000-R10 -> 211358.4422 | S11: ='4d. Infrastructure & Residences'!Q16/1000-S10 -> 236948.5833 | T11: ='4d. Infrastructure & Residences'!R16/1000-T10 -> 264228.5177
A12: Total revenue | C12: =9104975164/1000 -> 9104975.164 | D12: =D2+D4+D5+D6+D7+D8+D10+D11 -> 10005326.11 | E12: =E2+E4+E5+E6+E7+E8+E10+E11 -> 10805425.53 | F12: 12318501.52 | G12: 13864590.97 | H12: 15643135.62 | I12: 17541879.33 | J12: 19675159.42 | K12: 21979663.11 | L12: 24540770.72 | M12: 27326221.15 | N12: 30401657.95 | O12: 33756828.64 | P12: 37446922.88 | Q12: 41478489.18 | R12: 45902050.46 | S12: 50737493.06 | T12: 56034992.46
A13: Total expenditure | D13: ='4b. Costing Calc'!D123*1000+'4d. Infrastructure & Residences'!B16/1000000 -> 8605819.912 | E13: ='4b. Costing Calc'!E123*1000+'4d. Infrastructure & Residences'!C16/1000000 -> 9355397.461 | F13: ='4b. Costing Calc'!F123*1000+'4d. Infrastructure & Residences'!D16/1000000 -> 11354227.28 | G13: ='4b. Costing Calc'!G123*1000+'4d. Infrastructure & Residences'!E16/1000000 -> 13439528.26 | H13: ='4b. Costing Calc'!H123*1000+'4d. Infrastructure & Residences'!F16/1000000 -> 15803608.86 | I13: ='4b. Costing Calc'!I123*1000+'4d. Infrastructure & Residences'!G16/1000000 -> 18362082.01 | J13: ='4b. Costing Calc'!J123*1000+'4d. Infrastructure & Residences'!H16/1000000 -> 21215905.33 | K13: ='4b. Costing Calc'!K123*1000+'4d. Infrastructure & Residences'!I16/1000000 -> 24320230.43 | L13: ='4b. Costing Calc'!L123*1000+'4d. Infrastructure & Residences'!J16/1000000 -> 27752326.43 | M13: ='4b. Costing Calc'!M123*1000+'4d. Infrastructure & Residences'!K16/1000000 -> 31493135.03 | N13: ='4b. Costing Calc'!N123*1000+'4d. Infrastructure & Residences'!L16/1000000 -> 35604402.15 | O13: ='4b. Costing Calc'!O123*1000+'4d. Infrastructure & Residences'!M16/1000000 -> 40085967.69 | P13: ='4b. Costing Calc'!P123*1000+'4d. Infrastructure & Residences'!N16/1000000 -> 44991767.74 | Q13: ='4b. Costing Calc'!Q123*1000+'4d. Infrastructure & Residences'!O16/1000000 -> 50336277.93 | R13: ='4b. Costing Calc'!R123*1000+'4d. Infrastructure & Residences'!P16/1000000 -> 56170402.84 | S13: ='4b. Costing Calc'!S123*1000+'4d. Infrastructure & Residences'!Q16/1000000 -> 62520405.73 | T13: ='4b. Costing Calc'!T123*1000+'4d. Infrastructure & Residences'!R16/1000000 -> 69170815.67
A14: Shortfall (-) or Surplus (+) | D14: =D12-D13 -> 1399506.198 | E14: =E12-E13 -> 1450028.067 | F14: =F12-F13 -> 964274.2391 | G14: 425062.7101 | H14: -160473.2405 | I14: -820202.6774 | J14: -1540745.915 | K14: -2340567.322 | L14: -3211555.707 | M14: -4166913.886 | N14: -5202744.202 | O14: -6329139.048 | P14: -7544844.863 | Q14: -8857788.746 | R14: -10268352.38 | S14: -11782912.67 | T14: -13135823.21
A16: NSF Infrastructure funding | D16: ='4h. NSF & SETA'!D13/1000 -> 456676.4105 | E16: ='4h. NSF & SETA'!E13/1000 -> 514216.5967 | F16: ='4h. NSF & SETA'!F13/1000 -> 574087.0304 | G16: ='4h. NSF & SETA'!G13/1000 -> 640723.6431 | H16: ='4h. NSF & SETA'!H13/1000 -> 717869.1508 | I16: ='4h. NSF & SETA'!I13/1000 -> 804532.2343 | J16: ='4h. NSF & SETA'!J13/1000 -> 901657.517 | K16: ='4h. NSF & SETA'!K13/1000 -> 1010508.023 | L16: ='4h. NSF & SETA'!L13/1000 -> 1132499.254 | M16: ='4h. NSF & SETA'!M13/1000 -> 1269217.593 | N16: ='4h. NSF & SETA'!N13/1000 -> 1422440.934 | O16: ='4h. NSF & SETA'!O13/1000 -> 1594161.807 | P16: ='4h. NSF & SETA'!P13/1000 -> 1786613.284 | Q16: ='4h. NSF & SETA'!Q13/1000 -> 2002298.017 | R16: ='4h. NSF & SETA'!R13/1000 -> 2244020.788 | S16: ='4h. NSF & SETA'!S13/1000 -> 2514924.978 | T16: ='4h. NSF & SETA'!T13/1000 -> 2818533.446
A17: Total revenue (incl. infrastructure) | D17: =D16+D12 -> 10462002.52 | E17: =E16+E12 -> 11319642.13 | F17: 12892588.55 | G17: 14505314.62 | H17: 16361004.77 | I17: 18346411.56 | J17: 20576816.93 | K17: 22990171.14 | L17: 25673269.98 | M17: 28595438.74 | N17: 31824098.88 | O17: 35350990.45 | P17: 39233536.16 | Q17: 43480787.2 | R17: 48146071.25 | S17: 53252418.04 | T17: 58853525.91
A18: Infrastructure expenditure | D18: =('4d. Infrastructure & Residences'!B7+'4d. Infrastructure & Residences'!B19)/1000 -> 0 | E18: =('4d. Infrastructure & Residences'!C7+'4d. Infrastructure & Residences'!C19)/1000 -> 1623817.438 | F18: =('4d. Infrastructure & Residences'!D7+'4d. Infrastructure & Residences'!D19)/1000 -> 8876378.536 | G18: =('4d. Infrastructure & Residences'!E7+'4d. Infrastructure & Residences'!E19)/1000 -> 8574895.71 | H18: =('4d. Infrastructure & Residences'!F7+'4d. Infrastructure & Residences'!F19)/1000 -> 9439806.826 | I18: =('4d. Infrastructure & Residences'!G7+'4d. Infrastructure & Residences'!G19)/1000 -> 9745106.465 | J18: =('4d. Infrastructure & Residences'!H7+'4d. Infrastructure & Residences'!H19)/1000 -> 10555539.83 | K18: =('4d. Infrastructure & Residences'!I7+'4d. Infrastructure & Residences'!I19)/1000 -> 11028283.99 | L18: =('4d. Infrastructure & Residences'!J7+'4d. Infrastructure & Residences'!J19)/1000 -> 11854495.21 | M18: =('4d. Infrastructure & Residences'!K7+'4d. Infrastructure & Residences'!K19)/1000 -> 12473811.18 | N18: =('4d. Infrastructure & Residences'!L7+'4d. Infrastructure & Residences'!L19)/1000 -> 13340934.86 | O18: =('4d. Infrastructure & Residences'!M7+'4d. Infrastructure & Residences'!M19)/1000 -> 14091708.53 | P18: =('4d. Infrastructure & Residences'!N7+'4d. Infrastructure & Residences'!N19)/1000 -> 15026723.96 | Q18: =('4d. Infrastructure & Residences'!O7+'4d. Infrastructure & Residences'!O19)/1000 -> 15908609.61 | R18: =('4d. Infrastructure & Residences'!P7+'4d. Infrastructure & Residences'!P19)/1000 -> 16935375.35 | S18: =('4d. Infrastructure & Residences'!Q7+'4d. Infrastructure & Residences'!Q19)/1000 -> 17952694.02 | T18: =('4d. Infrastructure & Residences'!R7+'4d. Infrastructure & Residences'!R19)/1000 -> 19092168.62
A19: Infrastructure expenditure T+2 | F19: =SUM(E18:H18) -> 28514898.51 | G19: =I18 -> 9745106.465 | H19: 10555539.83 | I19: 11028283.99 | J19: 11854495.21 | K19: 12473811.18 | L19: 13340934.86 | M19: 14091708.53 | N19: 15026723.96 | O19: 15908609.61 | P19: 16935375.35 | Q19: 17952694.02 | R19: 19092168.62 | S19: =U18 -> 0 | T19: =V18 -> 0
A20: Total expenditure (incl. infrastructure) | D20: =D19+D13 -> 8605819.912 | E20: =E19+E13 -> 9355397.461 | F20: =F19+F13 -> 39869125.79 | G20: 23184634.73 | H20: 26359148.7 | I20: 29390366 | J20: 33070400.54 | K20: 36794041.61 | L20: 41093261.29 | M20: 45584843.56 | N20: 50631126.1 | O20: 55994577.3 | P20: 61927143.09 | Q20: 68288971.95 | R20: 75262571.47 | S20: 62520405.73 | T20: 69170815.67
A21: Total Shortfall (-) or Surplus (+) | D21: =D14-D19 -> 1399506.198 | E21: =E14-E19 -> 1450028.067 | F21: =F14-F19 -> -27550624.27 | G21: -9320043.754 | H21: -10716013.08 | I21: -11848486.67 | J21: -13395241.12 | K21: -14814378.5 | L21: -16552490.57 | M21: -18258622.41 | N21: -20229468.16 | O21: -22237748.65 | P21: -24480220.21 | Q21: -26810482.77 | R21: -29360521.01 | S21: -11782912.67 | T21: -13135823.21
A23: GDP (Scenario) (R'm) | D23: ='4i. GDP'!B3/1000 -> 3843778.062 | E23: ='4i. GDP'!C3/1000 -> 4073200 | F23: ='4i. GDP'!D3/1000 -> 4443861.2 | G23: ='4i. GDP'!E3/1000 -> 4848252.569 | H23: ='4i. GDP'!F3/1000 -> 5289443.553 | I23: ='4i. GDP'!G3/1000 -> 5770782.916 | J23: ='4i. GDP'!H3/1000 -> 6295924.162 | K23: ='4i. GDP'!I3/1000 -> 6868853.26 | L23: ='4i. GDP'!J3/1000 -> 7493918.907 | M23: ='4i. GDP'!K3/1000 -> 8175865.528 | N23: ='4i. GDP'!L3/1000 -> 8919869.291 | O23: ='4i. GDP'!M3/1000 -> 9731577.396 | P23: ='4i. GDP'!N3/1000 -> 10617150.94 | Q23: ='4i. GDP'!O3/1000 -> 11583311.67 | R23: ='4i. GDP'!P3/1000 -> 12637393.04 | S23: ='4i. GDP'!Q3/1000 -> 13787395.8 | T23: ='4i. GDP'!R3/1000 -> 15042048.82
A24: Total expenditure as a % of GDP | D24: =D13/(D23*1000) -> 0.002238896152 | E24: =E13/(E23*1000) -> 0.002296817603 | F24: 0.002555036436 | G24: 0.002772035506 | H24: 0.002987763969 | I24: 0.003181904825 | J24: 0.003369784131 | K24: 0.00354065366 | L24: 0.003703312883 | M24: 0.003851963431 | N24: 0.003991583395 | O24: 0.004119164454 | P24: 0.004237649818 | Q24: 0.004345586076 | R24: 0.004444777707 | S24: 0.004534605855 | T24: 0.004598496953
D27: 2016-2020 | E27: 2021-2025 | F27: 2026-2030
A28: Cumulative infrastructure | D28: =SUM(E18:J18) -> 48815544.81 | E28: =SUM(K18:O18) -> 62789233.76 | F28: =SUM(P18:T18) -> 84915571.56

Sheet 4b. Costing Calc
B1: KEY COSTING ASSUMPTIONS
C3: Assumption | D3: All Prog | E3: NC(V) | F3: NATED | G3: Assumption
B4: Overall Assumptions | C4: Number of Colleges | D4: 50 | E4: N/A | F4: N/A
B5: Inflation | C5: PSET Inflation | D5: ='2b. Cost Dashboard'!L4 -> 0.062 | E5: N/A | F5: N/A | G5: Assuming that inflation rate is consistent across all cost items
C6: CPI Inflation | D6: 0 | E6: N/A | F6: N/A
C7: Infrastructure inflation | D7: =D5 -> 0.062 | E7: N/A | F7: N/A
B8: Lecturing Cost Assumptions | C8: Student:Lecturer FTE ratio (2014) | D8: N/A | E8: =SUMIF('2014 Expenditure Data'!$B$3:$B$26,$E3,'2014 Expenditure Data'!$C$3:$C$26)/SUMIF('2014 Expenditure Data'!$B$3:$B$26,$E3,'2014 Expenditure Data'!$D$3:$D$26) -> 19.56114878 | F8: =SUMIF('2014 Expenditure Data'!$B$3:$B$26,$F3,'2014 Expenditure Data'!$C$3:$C$26)/SUMIF('2014 Expenditure Data'!$B$3:$B$26,$F3,'2014 Expenditure Data'!$D$3:$D$26) -> 33.6435615
C9: Average Lecturer salary (2014) | D9: N/A | E9: =SUMIF('2014 Expenditure Data'!$B$3:$B$26,$E3,'2014 Expenditure Data'!$F$3:$F$26)/SUMIF('2014 Expenditure Data'!$B$3:$B$26,$E3,'2014 Expenditure Data'!$D$3:$D$26) -> 270646.803 | F9: =SUMIF('2014 Expenditure Data'!$B$3:$B$26,$F3,'2014 Expenditure Data'!$F$3:$F$26)/SUMIF('2014 Expenditure Data'!$B$3:$B$26,$F3,'2014 Expenditure Data'!$D$3:$D$26) -> 274091.6219
C10: Lecturing Cost per FTE (2014) | D10: N/A | E10: =E9/E8 -> 13835.93602 | F10: =F9/F8 -> 8146.926474 | G10: Assuming average lecturing cost across all colleges
C11: Student:Lecturer FTE ratio (2030) | D11: N/A | E11: ='2b. Cost Dashboard'!L15 -> 19.56114878 | F11: ='2b. Cost Dashboard'!L16 -> 33.6435615
C12: Average Lecturer salary (2030) | D12: N/A | E12: =T34 -> 708590.2451 | F12: =T35 -> 717609.2508
C13: Lecturing Cost per FTE (2030) | D13: N/A | E13: =E12/E11 -> 36224.36764 | F13: =F12/F11 -> 21329.76471
C14: Wage Inflation Rate | D14: =D5 -> 0.062 | E14: N/A | F14: N/A
B15: Direct Programme Cost (DPC) Assumptions | C15: Average DPCs per FTE (2014) | D15: N/A | E15: =SUMIF('DirectProg Assumpt'!$B$2:$B$50,'4b. Costing Calc'!$E3,'DirectProg Assumpt'!$C$2:$C$50)/COUNTIF('DirectProg Assumpt'!$B$2:$B$50,'4b. Costing Calc'!$E3) -> 1699.263158 | F15: =SUMIF('DirectProg Assumpt'!$B$2:$B$50,'4b. Costing Calc'!$F3,'DirectProg Assumpt'!$C$2:$C$50)/COUNTIF('DirectProg Assumpt'!$B$2:$B$50,'4b. Costing Calc'!$F3) -> 1215.9 | G15: Using an average rate across all NC(V) programmes and all NATED programmes -> can make this more granular
C16: Average DPCs per FTE (2030) | D16: N/A | E16: ='2b. Cost Dashboard'!L17 -> 1699.263158 | F16: ='2b. Cost Dashboard'!L18 -> 1215.9
C17: DPC Inflation | D17: =D5 -> 0.062 | E17: N/A | F17: N/A
B18: Direct Costs | C18: Change in Total Direct Costs (Lecturing +DPC) from 2014 to 2030 | D18: N/A | E18: =(E13+E16)-(E10+E15) -> 22388.43163 | F18: =(F13+F16)-(F10+F15) -> 13182.83824
B19: Support Staff & Mngt Costs (SSMC) Assumptions | C19: Fixed SSMC (per college 2014) | D19: =8963414+2920421 -> 11883835 | E19: N/A | F19: N/A | G19: Assuming that there is a fixed cost component to the Support staff costs per college
C20: Variable SSMC per FTE (per college 2014) | D20: 2770.807856 | E20: N/A | F20: N/A | G20: Assuming that there are 50 colleges of equal size with equivalent cost structures (on average) Also assuming that management costs are fixed
C21: SSC Inflation Rate | D21: =D5 -> 0.062 | E21: N/A | F21: N/A | G21: Assuming support costs are split equally across all FTEs (regardless of programme)
B22: Membership Costs | C22: Membership Cost per lecturer | D22: 774.3104839
B23: Staff Development (SD) | C23: SD as % of personnel costs | D23: 0.0115486316
B24: Indirect Programme Costs (IPC) Assumptions | C24: Fixed IPC (per college 2014) | D24: 15448060.79 | E24: N/A | F24: N/A | G24: Assuming that there is a fixed cost component to the indirect G&S costs per college
C25: Variable IPC per FTE (per college 2014) | D25: 3937.523978 | E25: N/A | F25: N/A | G25: Assuming that there are 50 colleges of equal size with equivalent cost structures (on average)
C26: IPC Inflation Rate | D26: =D5 -> 0.062 | E26: N/A | F26: N/A | G26: Assuming indirect G&S costs are split equally across all FTEs (regardless of programme)
B28: Programme | C28: Cost Item | D28: 2014 | E28: 2015 | F28: 2016 | G28: 2017 | H28: 2018 | I28: 2019 | J28: 2020 | K28: 2021 | L28: 2022 | M28: 2023 | N28: 2024 | O28: 2025 | P28: 2026 | Q28: 2027 | R28: 2028 | S28: 2029 | T28: 2030
B29: NC(V) | C29: FTE to Lecturer Ratio | D29: ='4b. Costing Calc'!E8 -> 19.56114878 | E29: =IF('2c. Secondary Cost Dashb'!$D$17='4j. List options'!$B$2,D29+($T29-$D29)/($T$28-$D$28),IF(E$28>='2c. Secondary Cost Dashb'!$E$17,$T29,$D29)) -> 19.56114878 | F29: =IF('2c. Secondary Cost Dashb'!$D$17='4j. List options'!$B$2,E29+($T29-$D29)/($T$28-$D$28),IF(F$28>='2c. Secondary Cost Dashb'!$E$17,$T29,$D29)) -> 19.56114878 | G29: =IF('2c. Secondary Cost Dashb'!$D$17='4j. List options'!$B$2,F29+($T29-$D29)/($T$28-$D$28),IF(G$28>='2c. Secondary Cost Dashb'!$E$17,$T29,$D29)) -> 19.56114878 | H29: =IF('2c. Secondary Cost Dashb'!$D$17='4j. List options'!$B$2,G29+($T29-$D29)/($T$28-$D$28),IF(H$28>='2c. Secondary Cost Dashb'!$E$17,$T29,$D29)) -> 19.56114878 | I29: =IF('2c. Secondary Cost Dashb'!$D$17='4j. List options'!$B$2,H29+($T29-$D29)/($T$28-$D$28),IF(I$28>='2c. Secondary Cost Dashb'!$E$17,$T29,$D29)) -> 19.56114878 | J29: =IF('2c. Secondary Cost Dashb'!$D$17='4j. List options'!$B$2,I29+($T29-$D29)/($T$28-$D$28),IF(J$28>='2c. Secondary Cost Dashb'!$E$17,$T29,$D29)) -> 19.56114878 | K29: =IF('2c. Secondary Cost Dashb'!$D$17='4j. List options'!$B$2,J29+($T29-$D29)/($T$28-$D$28),IF(K$28>='2c. Secondary Cost Dashb'!$E$17,$T29,$D29)) -> 19.56114878 | L29: =IF('2c. Secondary Cost Dashb'!$D$17='4j. List options'!$B$2,K29+($T29-$D29)/($T$28-$D$28),IF(L$28>='2c. Secondary Cost Dashb'!$E$17,$T29,$D29)) -> 19.56114878 | M29: =IF('2c. Secondary Cost Dashb'!$D$17='4j. List options'!$B$2,L29+($T29-$D29)/($T$28-$D$28),IF(M$28>='2c. Secondary Cost Dashb'!$E$17,$T29,$D29)) -> 19.56114878 | N29: =IF('2c. Secondary Cost Dashb'!$D$17='4j. List options'!$B$2,M29+($T29-$D29)/($T$28-$D$28),IF(N$28>='2c. Secondary Cost Dashb'!$E$17,$T29,$D29)) -> 19.56114878 | O29: =IF('2c. Secondary Cost Dashb'!$D$17='4j. List options'!$B$2,N29+($T29-$D29)/($T$28-$D$28),IF(O$28>='2c. Secondary Cost Dashb'!$E$17,$T29,$D29)) -> 19.56114878 | P29: =IF('2c. Secondary Cost Dashb'!$D$17='4j. List options'!$B$2,O29+($T29-$D29)/($T$28-$D$28),IF(P$28>='2c. Secondary Cost Dashb'!$E$17,$T29,$D29)) -> 19.56114878 | Q29: =IF('2c. Secondary Cost Dashb'!$D$17='4j. List options'!$B$2,P29+($T29-$D29)/($T$28-$D$28),IF(Q$28>='2c. Secondary Cost Dashb'!$E$17,$T29,$D29)) -> 19.56114878 | R29: =IF('2c. Secondary Cost Dashb'!$D$17='4j. List options'!$B$2,Q29+($T29-$D29)/($T$28-$D$28),IF(R$28>='2c. Secondary Cost Dashb'!$E$17,$T29,$D29)) -> 19.56114878 | S29: =IF('2c. Secondary Cost Dashb'!$D$17='4j. List options'!$B$2,R29+($T29-$D29)/($T$28-$D$28),IF(S$28>='2c. Secondary Cost Dashb'!$E$17,$T29,$D29)) -> 19.56114878 | T29: =E11 -> 19.56114878
B30: N1-3 Eng | C30: FTE to Lecturer Ratio | D30: ='4b. Costing Calc'!F8 -> 33.6435615 | E30: =IF('2c. Secondary Cost Dashb'!$D$17='4j. List options'!$B$2,D30+($T30-$D30)/($T$28-$D$28),IF(E$28>='2c. Secondary Cost Dashb'!$E$17,$T30,$D30)) -> 33.6435615 | F30: =IF('2c. Secondary Cost Dashb'!$D$17='4j. List options'!$B$2,E30+($T30-$D30)/($T$28-$D$28),IF(F$28>='2c. Secondary Cost Dashb'!$E$17,$T30,$D30)) -> 33.6435615 | G30: =IF('2c. Secondary Cost Dashb'!$D$17='4j. List options'!$B$2,F30+($T30-$D30)/($T$28-$D$28),IF(G$28>='2c. Secondary Cost Dashb'!$E$17,$T30,$D30)) -> 33.6435615 | H30: =IF('2c. Secondary Cost Dashb'!$D$17='4j. List options'!$B$2,G30+($T30-$D30)/($T$28-$D$28),IF(H$28>='2c. Secondary Cost Dashb'!$E$17,$T30,$D30)) -> 33.6435615 | I30: =IF('2c. Secondary Cost Dashb'!$D$17='4j. List options'!$B$2,H30+($T30-$D30)/($T$28-$D$28),IF(I$28>='2c. Secondary Cost Dashb'!$E$17,$T30,$D30)) -> 33.6435615 | J30: =IF('2c. Secondary Cost Dashb'!$D$17='4j. List options'!$B$2,I30+($T30-$D30)/($T$28-$D$28),IF(J$28>='2c. Secondary Cost Dashb'!$E$17,$T30,$D30)) -> 33.6435615 | K30: =IF('2c. Secondary Cost Dashb'!$D$17='4j. List options'!$B$2,J30+($T30-$D30)/($T$28-$D$28),IF(K$28>='2c. Secondary Cost Dashb'!$E$17,$T30,$D30)) -> 33.6435615 | L30: =IF('2c. Secondary Cost Dashb'!$D$17='4j. List options'!$B$2,K30+($T30-$D30)/($T$28-$D$28),IF(L$28>='2c. Secondary Cost Dashb'!$E$17,$T30,$D30)) -> 33.6435615 | M30: =IF('2c. Secondary Cost Dashb'!$D$17='4j. List options'!$B$2,L30+($T30-$D30)/($T$28-$D$28),IF(M$28>='2c. Secondary Cost Dashb'!$E$17,$T30,$D30)) -> 33.6435615 | N30: =IF('2c. Secondary Cost Dashb'!$D$17='4j. List options'!$B$2,M30+($T30-$D30)/($T$28-$D$28),IF(N$28>='2c. Secondary Cost Dashb'!$E$17,$T30,$D30)) -> 33.6435615 | O30: =IF('2c. Secondary Cost Dashb'!$D$17='4j. List options'!$B$2,N30+($T30-$D30)/($T$28-$D$28),IF(O$28>='2c. Secondary Cost Dashb'!$E$17,$T30,$D30)) -> 33.6435615 | P30: =IF('2c. Secondary Cost Dashb'!$D$17='4j. List options'!$B$2,O30+($T30-$D30)/($T$28-$D$28),IF(P$28>='2c. Secondary Cost Dashb'!$E$17,$T30,$D30)) -> 33.6435615 | Q30: =IF('2c. Secondary Cost Dashb'!$D$17='4j. List options'!$B$2,P30+($T30-$D30)/($T$28-$D$28),IF(Q$28>='2c. Secondary Cost Dashb'!$E$17,$T30,$D30)) -> 33.6435615 | R30: =IF('2c. Secondary Cost Dashb'!$D$17='4j. List options'!$B$2,Q30+($T30-$D30)/($T$28-$D$28),IF(R$28>='2c. Secondary Cost Dashb'!$E$17,$T30,$D30)) -> 33.6435615 | S30: =IF('2c. Secondary Cost Dashb'!$D$17='4j. List options'!$B$2,R30+($T30-$D30)/($T$28-$D$28),IF(S$28>='2c. Secondary Cost Dashb'!$E$17,$T30,$D30)) -> 33.6435615 | T30: =$F$11 -> 33.6435615
B31: N4-6 Eng | C31: FTE to Lecturer Ratio | D31: =D30 -> 33.6435615 | E31: =IF('2c. Secondary Cost Dashb'!$D$17='4j. List options'!$B$2,D31+($T31-$D31)/($T$28-$D$28),IF(E$28>='2c. Secondary Cost Dashb'!$E$17,$T31,$D31)) -> 33.6435615 | F31: =IF('2c. Secondary Cost Dashb'!$D$17='4j. List options'!$B$2,E31+($T31-$D31)/($T$28-$D$28),IF(F$28>='2c. Secondary Cost Dashb'!$E$17,$T31,$D31)) -> 33.6435615 | G31: =IF('2c. Secondary Cost Dashb'!$D$17='4j. List options'!$B$2,F31+($T31-$D31)/($T$28-$D$28),IF(G$28>='2c. Secondary Cost Dashb'!$E$17,$T31,$D31)) -> 33.6435615 | H31: =IF('2c. Secondary Cost Dashb'!$D$17='4j. List options'!$B$2,G31+($T31-$D31)/($T$28-$D$28),IF(H$28>='2c. Secondary Cost Dashb'!$E$17,$T31,$D31)) -> 33.6435615 | I31: =IF('2c. Secondary Cost Dashb'!$D$17='4j. List options'!$B$2,H31+($T31-$D31)/($T$28-$D$28),IF(I$28>='2c. Secondary Cost Dashb'!$E$17,$T31,$D31)) -> 33.6435615 | J31: =IF('2c. Secondary Cost Dashb'!$D$17='4j. List options'!$B$2,I31+($T31-$D31)/($T$28-$D$28),IF(J$28>='2c. Secondary Cost Dashb'!$E$17,$T31,$D31)) -> 33.6435615 | K31: =IF('2c. Secondary Cost Dashb'!$D$17='4j. List options'!$B$2,J31+($T31-$D31)/($T$28-$D$28),IF(K$28>='2c. Secondary Cost Dashb'!$E$17,$T31,$D31)) -> 33.6435615 | L31: =IF('2c. Secondary Cost Dashb'!$D$17='4j. List options'!$B$2,K31+($T31-$D31)/($T$28-$D$28),IF(L$28>='2c. Secondary Cost Dashb'!$E$17,$T31,$D31)) -> 33.6435615 | M31: =IF('2c. Secondary Cost Dashb'!$D$17='4j. List options'!$B$2,L31+($T31-$D31)/($T$28-$D$28),IF(M$28>='2c. Secondary Cost Dashb'!$E$17,$T31,$D31)) -> 33.6435615 | N31: =IF('2c. Secondary Cost Dashb'!$D$17='4j. List options'!$B$2,M31+($T31-$D31)/($T$28-$D$28),IF(N$28>='2c. Secondary Cost Dashb'!$E$17,$T31,$D31)) -> 33.6435615 | O31: =IF('2c. Secondary Cost Dashb'!$D$17='4j. List options'!$B$2,N31+($T31-$D31)/($T$28-$D$28),IF(O$28>='2c. Secondary Cost Dashb'!$E$17,$T31,$D31)) -> 33.6435615 | P31: =IF('2c. Secondary Cost Dashb'!$D$17='4j. List options'!$B$2,O31+($T31-$D31)/($T$28-$D$28),IF(P$28>='2c. Secondary Cost Dashb'!$E$17,$T31,$D31)) -> 33.6435615 | Q31: =IF('2c. Secondary Cost Dashb'!$D$17='4j. List options'!$B$2,P31+($T31-$D31)/($T$28-$D$28),IF(Q$28>='2c. Secondary Cost Dashb'!$E$17,$T31,$D31)) -> 33.6435615 | R31: =IF('2c. Secondary Cost Dashb'!$D$17='4j. List options'!$B$2,Q31+($T31-$D31)/($T$28-$D$28),IF(R$28>='2c. Secondary Cost Dashb'!$E$17,$T31,$D31)) -> 33.6435615 | S31: =IF('2c. Secondary Cost Dashb'!$D$17='4j. List options'!$B$2,R31+($T31-$D31)/($T$28-$D$28),IF(S$28>='2c. Secondary Cost Dashb'!$E$17,$T31,$D31)) -> 33.6435615 | T31: =$F$11 -> 33.6435615
B32: N4-6 Bus | C32: FTE to Lecturer Ratio | D32: =D31 -> 33.6435615 | E32: =IF('2c. Secondary Cost Dashb'!$D$17='4j. List options'!$B$2,D32+($T32-$D32)/($T$28-$D$28),IF(E$28>='2c. Secondary Cost Dashb'!$E$17,$T32,$D32)) -> 33.6435615 | F32: =IF('2c. Secondary Cost Dashb'!$D$17='4j. List options'!$B$2,E32+($T32-$D32)/($T$28-$D$28),IF(F$28>='2c. Secondary Cost Dashb'!$E$17,$T32,$D32)) -> 33.6435615 | G32: =IF('2c. Secondary Cost Dashb'!$D$17='4j. List options'!$B$2,F32+($T32-$D32)/($T$28-$D$28),IF(G$28>='2c. Secondary Cost Dashb'!$E$17,$T32,$D32)) -> 33.6435615 | H32: =IF('2c. Secondary Cost Dashb'!$D$17='4j. List options'!$B$2,G32+($T32-$D32)/($T$28-$D$28),IF(H$28>='2c. Secondary Cost Dashb'!$E$17,$T32,$D32)) -> 33.6435615 | I32: =IF('2c. Secondary Cost Dashb'!$D$17='4j. List options'!$B$2,H32+($T32-$D32)/($T$28-$D$28),IF(I$28>='2c. Secondary Cost Dashb'!$E$17,$T32,$D32)) -> 33.6435615 | J32: =IF('2c. Secondary Cost Dashb'!$D$17='4j. List options'!$B$2,I32+($T32-$D32)/($T$28-$D$28),IF(J$28>='2c. Secondary Cost Dashb'!$E$17,$T32,$D32)) -> 33.6435615 | K32: =IF('2c. Secondary Cost Dashb'!$D$17='4j. List options'!$B$2,J32+($T32-$D32)/($T$28-$D$28),IF(K$28>='2c. Secondary Cost Dashb'!$E$17,$T32,$D32)) -> 33.6435615 | L32: =IF('2c. Secondary Cost Dashb'!$D$17='4j. List options'!$B$2,K32+($T32-$D32)/($T$28-$D$28),IF(L$28>='2c. Secondary Cost Dashb'!$E$17,$T32,$D32)) -> 33.6435615 | M32: =IF('2c. Secondary Cost Dashb'!$D$17='4j. List options'!$B$2,L32+($T32-$D32)/($T$28-$D$28),IF(M$28>='2c. Secondary Cost Dashb'!$E$17,$T32,$D32)) -> 33.6435615 | N32: =IF('2c. Secondary Cost Dashb'!$D$17='4j. List options'!$B$2,M32+($T32-$D32)/($T$28-$D$28),IF(N$28>='2c. Secondary Cost Dashb'!$E$17,$T32,$D32)) -> 33.6435615 | O32: =IF('2c. Secondary Cost Dashb'!$D$17='4j. List options'!$B$2,N32+($T32-$D32)/($T$28-$D$28),IF(O$28>='2c. Secondary Cost Dashb'!$E$17,$T32,$D32)) -> 33.6435615 | P32: =IF('2c. Secondary Cost Dashb'!$D$17='4j. List options'!$B$2,O32+($T32-$D32)/($T$28-$D$28),IF(P$28>='2c. Secondary Cost Dashb'!$E$17,$T32,$D32)) -> 33.6435615 | Q32: =IF('2c. Secondary Cost Dashb'!$D$17='4j. List options'!$B$2,P32+($T32-$D32)/($T$28-$D$28),IF(Q$28>='2c. Secondary Cost Dashb'!$E$17,$T32,$D32)) -> 33.6435615 | R32: =IF('2c. Secondary Cost Dashb'!$D$17='4j. List options'!$B$2,Q32+($T32-$D32)/($T$28-$D$28),IF(R$28>='2c. Secondary Cost Dashb'!$E$17,$T32,$D32)) -> 33.6435615 | S32: =IF('2c. Secondary Cost Dashb'!$D$17='4j. List options'!$B$2,R32+($T32-$D32)/($T$28-$D$28),IF(S$28>='2c. Secondary Cost Dashb'!$E$17,$T32,$D32)) -> 33.6435615 | T32: =$F$11 -> 33.6435615
B33: N4-6 Ser | C33: FTE to Lecturer Ratio | D33: =D32 -> 33.6435615 | E33: =IF('2c. Secondary Cost Dashb'!$D$17='4j. List options'!$B$2,D33+($T33-$D33)/($T$28-$D$28),IF(E$28>='2c. Secondary Cost Dashb'!$E$17,$T33,$D33)) -> 33.6435615 | F33: =IF('2c. Secondary Cost Dashb'!$D$17='4j. List options'!$B$2,E33+($T33-$D33)/($T$28-$D$28),IF(F$28>='2c. Secondary Cost Dashb'!$E$17,$T33,$D33)) -> 33.6435615 | G33: =IF('2c. Secondary Cost Dashb'!$D$17='4j. List options'!$B$2,F33+($T33-$D33)/($T$28-$D$28),IF(G$28>='2c. Secondary Cost Dashb'!$E$17,$T33,$D33)) -> 33.6435615 | H33: =IF('2c. Secondary Cost Dashb'!$D$17='4j. List options'!$B$2,G33+($T33-$D33)/($T$28-$D$28),IF(H$28>='2c. Secondary Cost Dashb'!$E$17,$T33,$D33)) -> 33.6435615 | I33: =IF('2c. Secondary Cost Dashb'!$D$17='4j. List options'!$B$2,H33+($T33-$D33)/($T$28-$D$28),IF(I$28>='2c. Secondary Cost Dashb'!$E$17,$T33,$D33)) -> 33.6435615 | J33: =IF('2c. Secondary Cost Dashb'!$D$17='4j. List options'!$B$2,I33+($T33-$D33)/($T$28-$D$28),IF(J$28>='2c. Secondary Cost Dashb'!$E$17,$T33,$D33)) -> 33.6435615 | K33: =IF('2c. Secondary Cost Dashb'!$D$17='4j. List options'!$B$2,J33+($T33-$D33)/($T$28-$D$28),IF(K$28>='2c. Secondary Cost Dashb'!$E$17,$T33,$D33)) -> 33.6435615 | L33: =IF('2c. Secondary Cost Dashb'!$D$17='4j. List options'!$B$2,K33+($T33-$D33)/($T$28-$D$28),IF(L$28>='2c. Secondary Cost Dashb'!$E$17,$T33,$D33)) -> 33.6435615 | M33: =IF('2c. Secondary Cost Dashb'!$D$17='4j. List options'!$B$2,L33+($T33-$D33)/($T$28-$D$28),IF(M$28>='2c. Secondary Cost Dashb'!$E$17,$T33,$D33)) -> 33.6435615 | N33: =IF('2c. Secondary Cost Dashb'!$D$17='4j. List options'!$B$2,M33+($T33-$D33)/($T$28-$D$28),IF(N$28>='2c. Secondary Cost Dashb'!$E$17,$T33,$D33)) -> 33.6435615 | O33: =IF('2c. Secondary Cost Dashb'!$D$17='4j. List options'!$B$2,N33+($T33-$D33)/($T$28-$D$28),IF(O$28>='2c. Secondary Cost Dashb'!$E$17,$T33,$D33)) -> 33.6435615 | P33: =IF('2c. Secondary Cost Dashb'!$D$17='4j. List options'!$B$2,O33+($T33-$D33)/($T$28-$D$28),IF(P$28>='2c. Secondary Cost Dashb'!$E$17,$T33,$D33)) -> 33.6435615 | Q33: =IF('2c. Secondary Cost Dashb'!$D$17='4j. List options'!$B$2,P33+($T33-$D33)/($T$28-$D$28),IF(Q$28>='2c. Secondary Cost Dashb'!$E$17,$T33,$D33)) -> 33.6435615 | R33: =IF('2c. Secondary Cost Dashb'!$D$17='4j. List options'!$B$2,Q33+($T33-$D33)/($T$28-$D$28),IF(R$28>='2c. Secondary Cost Dashb'!$E$17,$T33,$D33)) -> 33.6435615 | S33: =IF('2c. Secondary Cost Dashb'!$D$17='4j. List options'!$B$2,R33+($T33-$D33)/($T$28-$D$28),IF(S$28>='2c. Secondary Cost Dashb'!$E$17,$T33,$D33)) -> 33.6435615 | T33: =$F$11 -> 33.6435615
B34: NC(V) | C34: Average Lecturer Salary | D34: ='4b. Costing Calc'!E9 -> 270646.803 | E34: =D34*(1+$D$14)/(1+$D$6) -> 287426.9047 | F34: 305247.3728 | G34: 324172.71 | H34: 344271.418 | I34: 365616.2459 | J34: 388284.4531 | K34: 412358.0892 | L34: 437924.2908 | M34: 465075.5968 | N34: 493910.2838 | O34: 524532.7214 | P34: 557053.7501 | Q34: 591591.0826 | R34: 628269.7297 | S34: 667222.453 | T34: 708590.2451
B35: N1-3 Eng | C35: Average Lecturer Salary | D35: ='4b. Costing Calc'!F9 -> 274091.6219 | E35: =D35*(1+$D$14)/(1+$D$6) -> 291085.3024 | F35: 309132.5912 | G35: 328298.8118 | H35: 348653.3381 | I35: 370269.8451 | J35: 393226.5755 | K35: 417606.6232 | L35: 443498.2338 | M35: 470995.1243 | N35: 500196.822 | O35: 531209.025 | P35: 564143.9845 | Q35: 599120.9116 | R35: 636266.4081 | S35: 675714.9254 | T35: 717609.2508
B36: N4-6 Eng | C36: Average Lecturer Salary | D36: =D35 -> 274091.6219 | E36: =D36*(1+$D$14)/(1+$D$6) -> 291085.3024 | F36: 309132.5912 | G36: 328298.8118 | H36: 348653.3381 | I36: 370269.8451 | J36: 393226.5755 | K36: 417606.6232 | L36: 443498.2338 | M36: 470995.1243 | N36: 500196.822 | O36: 531209.025 | P36: 564143.9845 | Q36: 599120.9116 | R36: 636266.4081 | S36: 675714.9254 | T36: 717609.2508
B37: N4-6 Bus | C37: Average Lecturer Salary | D37: =D36 -> 274091.6219 | E37: =D37*(1+$D$14)/(1+$D$6) -> 291085.3024 | F37: 309132.5912 | G37: 328298.8118 | H37: 348653.3381 | I37: 370269.8451 | J37: 393226.5755 | K37: 417606.6232 | L37: 443498.2338 | M37: 470995.1243 | N37: 500196.822 | O37: 531209.025 | P37: 564143.9845 | Q37: 599120.9116 | R37: 636266.4081 | S37: 675714.9254 | T37: 717609.2508
B38: N4-6 Ser | C38: Average Lecturer Salary | D38: =D37 -> 274091.6219 | E38: =D38*(1+$D$14)/(1+$D$6) -> 291085.3024 | F38: 309132.5912 | G38: 328298.8118 | H38: 348653.3381 | I38: 370269.8451 | J38: 393226.5755 | K38: 417606.6232 | L38: 443498.2338 | M38: 470995.1243 | N38: 500196.822 | O38: 531209.025 | P38: 564143.9845 | Q38: 599120.9116 | R38: 636266.4081 | S38: 675714.9254 | T38: 717609.2508
B39: NC(V) | C39: Direct Programme Costs | D39: ='4b. Costing Calc'!E15 -> 1699.263158 | E39: =IF('2c. Secondary Cost Dashb'!$D$17='4j. List options'!$B$2,($D39+($T39-$D39)/($T$28-$D$28)*(E$28-$D$28))*(1+$D$17)/(1+$D$6),IF(E$28>='2c. Secondary Cost Dashb'!$E$17,$T39/((1+$D$17)/(1+$D$6))^($T$28-E$28),$D39*((1+$D$17)/(1+$D$6))^(E$28-$D$28))) -> 1987.1248 | F39: =IF('2c. Secondary Cost Dashb'!$D$17='4j. List options'!$B$2,($D39+($T39-$D39)/($T$28-$D$28)*(F$28-$D$28))*(1+$D$17)/(1+$D$6),IF(F$28>='2c. Secondary Cost Dashb'!$E$17,$T39/((1+$D$17)/(1+$D$6))^($T$28-F$28),$D39*((1+$D$17)/(1+$D$6))^(F$28-$D$28))) -> 2169.632125 | G39: =IF('2c. Secondary Cost Dashb'!$D$17='4j. List options'!$B$2,($D39+($T39-$D39)/($T$28-$D$28)*(G$28-$D$28))*(1+$D$17)/(1+$D$6),IF(G$28>='2c. Secondary Cost Dashb'!$E$17,$T39/((1+$D$17)/(1+$D$6))^($T$28-G$28),$D39*((1+$D$17)/(1+$D$6))^(G$28-$D$28))) -> 2352.139451 | H39: =IF('2c. Secondary Cost Dashb'!$D$17='4j. List options'!$B$2,($D39+($T39-$D39)/($T$28-$D$28)*(H$28-$D$28))*(1+$D$17)/(1+$D$6),IF(H$28>='2c. Secondary Cost Dashb'!$E$17,$T39/((1+$D$17)/(1+$D$6))^($T$28-H$28),$D39*((1+$D$17)/(1+$D$6))^(H$28-$D$28))) -> 2534.646777 | I39: =IF('2c. Secondary Cost Dashb'!$D$17='4j. List options'!$B$2,($D39+($T39-$D39)/($T$28-$D$28)*(I$28-$D$28))*(1+$D$17)/(1+$D$6),IF(I$28>='2c. Secondary Cost Dashb'!$E$17,$T39/((1+$D$17)/(1+$D$6))^($T$28-I$28),$D39*((1+$D$17)/(1+$D$6))^(I$28-$D$28))) -> 2717.154103 | J39: =IF('2c. Secondary Cost Dashb'!$D$17='4j. List options'!$B$2,($D39+($T39-$D39)/($T$28-$D$28)*(J$28-$D$28))*(1+$D$17)/(1+$D$6),IF(J$28>='2c. Secondary Cost Dashb'!$E$17,$T39/((1+$D$17)/(1+$D$6))^($T$28-J$28),$D39*((1+$D$17)/(1+$D$6))^(J$28-$D$28))) -> 2899.661429 | K39: =IF('2c. Secondary Cost Dashb'!$D$17='4j. List options'!$B$2,($D39+($T39-$D39)/($T$28-$D$28)*(K$28-$D$28))*(1+$D$17)/(1+$D$6),IF(K$28>='2c. Secondary Cost Dashb'!$E$17,$T39/((1+$D$17)/(1+$D$6))^($T$28-K$28),$D39*((1+$D$17)/(1+$D$6))^(K$28-$D$28))) -> 3082.168755 | L39: =IF('2c. Secondary Cost Dashb'!$D$17='4j. List options'!$B$2,($D39+($T39-$D39)/($T$28-$D$28)*(L$28-$D$28))*(1+$D$17)/(1+$D$6),IF(L$28>='2c. Secondary Cost Dashb'!$E$17,$T39/((1+$D$17)/(1+$D$6))^($T$28-L$28),$D39*((1+$D$17)/(1+$D$6))^(L$28-$D$28))) -> 3264.67608 | M39: =IF('2c. Secondary Cost Dashb'!$D$17='4j. List options'!$B$2,($D39+($T39-$D39)/($T$28-$D$28)*(M$28-$D$28))*(1+$D$17)/(1+$D$6),IF(M$28>='2c. Secondary Cost Dashb'!$E$17,$T39/((1+$D$17)/(1+$D$6))^($T$28-M$28),$D39*((1+$D$17)/(1+$D$6))^(M$28-$D$28))) -> 3447.183406 | N39: =IF('2c. Secondary Cost Dashb'!$D$17='4j. List options'!$B$2,($D39+($T39-$D39)/($T$28-$D$28)*(N$28-$D$28))*(1+$D$17)/(1+$D$6),IF(N$28>='2c. Secondary Cost Dashb'!$E$17,$T39/((1+$D$17)/(1+$D$6))^($T$28-N$28),$D39*((1+$D$17)/(1+$D$6))^(N$28-$D$28))) -> 3629.690732 | O39: =IF('2c. Secondary Cost Dashb'!$D$17='4j. List options'!$B$2,($D39+($T39-$D39)/($T$28-$D$28)*(O$28-$D$28))*(1+$D$17)/(1+$D$6),IF(O$28>='2c. Secondary Cost Dashb'!$E$17,$T39/((1+$D$17)/(1+$D$6))^($T$28-O$28),$D39*((1+$D$17)/(1+$D$6))^(O$28-$D$28))) -> 3812.198058 | P39: =IF('2c. Secondary Cost Dashb'!$D$17='4j. List options'!$B$2,($D39+($T39-$D39)/($T$28-$D$28)*(P$28-$D$28))*(1+$D$17)/(1+$D$6),IF(P$28>='2c. Secondary Cost Dashb'!$E$17,$T39/((1+$D$17)/(1+$D$6))^($T$28-P$28),$D39*((1+$D$17)/(1+$D$6))^(P$28-$D$28))) -> 3994.705384 | Q39: =IF('2c. Secondary Cost Dashb'!$D$17='4j. List options'!$B$2,($D39+($T39-$D39)/($T$28-$D$28)*(Q$28-$D$28))*(1+$D$17)/(1+$D$6),IF(Q$28>='2c. Secondary Cost Dashb'!$E$17,$T39/((1+$D$17)/(1+$D$6))^($T$28-Q$28),$D39*((1+$D$17)/(1+$D$6))^(Q$28-$D$28))) -> 4177.21271 | R39: =IF('2c. Secondary Cost Dashb'!$D$17='4j. List options'!$B$2,($D39+($T39-$D39)/($T$28-$D$28)*(R$28-$D$28))*(1+$D$17)/(1+$D$6),IF(R$28>='2c. Secondary Cost Dashb'!$E$17,$T39/((1+$D$17)/(1+$D$6))^($T$28-R$28),$D39*((1+$D$17)/(1+$D$6))^(R$28-$D$28))) -> 4359.720035 | S39: =IF('2c. Secondary Cost Dashb'!$D$17='4j. List options'!$B$2,($D39+($T39-$D39)/($T$28-$D$28)*(S$28-$D$28))*(1+$D$17)/(1+$D$6),IF(S$28>='2c. Secondary Cost Dashb'!$E$17,$T39/((1+$D$17)/(1+$D$6))^($T$28-S$28),$D39*((1+$D$17)/(1+$D$6))^(S$28-$D$28))) -> 4542.227361 | T39: =$E$16*(1+$D$5)^(T$28-$D$28)/(1+$D$6)^(T$28-$D$28) -> 4448.902719
B40: N1-3 Eng | C40: Direct Programme Costs | D40: ='4b. Costing Calc'!F15 -> 1215.9 | E40: =IF('2c. Secondary Cost Dashb'!$D$17='4j. List options'!$B$2,($D40+($T40-$D40)/($T$28-$D$28)*(E$28-$D$28))*(1+$D$17)/(1+$D$6),IF(E$28>='2c. Secondary Cost Dashb'!$E$17,$T40/((1+$D$17)/(1+$D$6))^($T$28-E$28),$D40*((1+$D$17)/(1+$D$6))^(E$28-$D$28))) -> 1421.878084 | F40: =IF('2c. Secondary Cost Dashb'!$D$17='4j. List options'!$B$2,($D40+($T40-$D40)/($T$28-$D$28)*(F$28-$D$28))*(1+$D$17)/(1+$D$6),IF(F$28>='2c. Secondary Cost Dashb'!$E$17,$T40/((1+$D$17)/(1+$D$6))^($T$28-F$28),$D40*((1+$D$17)/(1+$D$6))^(F$28-$D$28))) -> 1552.470369 | G40: =IF('2c. Secondary Cost Dashb'!$D$17='4j. List options'!$B$2,($D40+($T40-$D40)/($T$28-$D$28)*(G$28-$D$28))*(1+$D$17)/(1+$D$6),IF(G$28>='2c. Secondary Cost Dashb'!$E$17,$T40/((1+$D$17)/(1+$D$6))^($T$28-G$28),$D40*((1+$D$17)/(1+$D$6))^(G$28-$D$28))) -> 1683.062653 | H40: =IF('2c. Secondary Cost Dashb'!$D$17='4j. List options'!$B$2,($D40+($T40-$D40)/($T$28-$D$28)*(H$28-$D$28))*(1+$D$17)/(1+$D$6),IF(H$28>='2c. Secondary Cost Dashb'!$E$17,$T40/((1+$D$17)/(1+$D$6))^($T$28-H$28),$D40*((1+$D$17)/(1+$D$6))^(H$28-$D$28))) -> 1813.654937 | I40: =IF('2c. Secondary Cost Dashb'!$D$17='4j. List options'!$B$2,($D40+($T40-$D40)/($T$28-$D$28)*(I$28-$D$28))*(1+$D$17)/(1+$D$6),IF(I$28>='2c. Secondary Cost Dashb'!$E$17,$T40/((1+$D$17)/(1+$D$6))^($T$28-I$28),$D40*((1+$D$17)/(1+$D$6))^(I$28-$D$28))) -> 1944.247222 | J40: =IF('2c. Secondary Cost Dashb'!$D$17='4j. List options'!$B$2,($D40+($T40-$D40)/($T$28-$D$28)*(J$28-$D$28))*(1+$D$17)/(1+$D$6),IF(J$28>='2c. Secondary Cost Dashb'!$E$17,$T40/((1+$D$17)/(1+$D$6))^($T$28-J$28),$D40*((1+$D$17)/(1+$D$6))^(J$28-$D$28))) -> 2074.839506 | K40: =IF('2c. Secondary Cost Dashb'!$D$17='4j. List options'!$B$2,($D40+($T40-$D40)/($T$28-$D$28)*(K$28-$D$28))*(1+$D$17)/(1+$D$6),IF(K$28>='2c. Secondary Cost Dashb'!$E$17,$T40/((1+$D$17)/(1+$D$6))^($T$28-K$28),$D40*((1+$D$17)/(1+$D$6))^(K$28-$D$28))) -> 2205.43179 | L40: =IF('2c. Secondary Cost Dashb'!$D$17='4j. List options'!$B$2,($D40+($T40-$D40)/($T$28-$D$28)*(L$28-$D$28))*(1+$D$17)/(1+$D$6),IF(L$28>='2c. Secondary Cost Dashb'!$E$17,$T40/((1+$D$17)/(1+$D$6))^($T$28-L$28),$D40*((1+$D$17)/(1+$D$6))^(L$28-$D$28))) -> 2336.024075 | M40: =IF('2c. Secondary Cost Dashb'!$D$17='4j. List options'!$B$2,($D40+($T40-$D40)/($T$28-$D$28)*(M$28-$D$28))*(1+$D$17)/(1+$D$6),IF(M$28>='2c. Secondary Cost Dashb'!$E$17,$T40/((1+$D$17)/(1+$D$6))^($T$28-M$28),$D40*((1+$D$17)/(1+$D$6))^(M$28-$D$28))) -> 2466.616359 | N40: =IF('2c. Secondary Cost Dashb'!$D$17='4j. List options'!$B$2,($D40+($T40-$D40)/($T$28-$D$28)*(N$28-$D$28))*(1+$D$17)/(1+$D$6),IF(N$28>='2c. Secondary Cost Dashb'!$E$17,$T40/((1+$D$17)/(1+$D$6))^($T$28-N$28),$D40*((1+$D$17)/(1+$D$6))^(N$28-$D$28))) -> 2597.208643 | O40: =IF('2c. Secondary Cost Dashb'!$D$17='4j. List options'!$B$2,($D40+($T40-$D40)/($T$28-$D$28)*(O$28-$D$28))*(1+$D$17)/(1+$D$6),IF(O$28>='2c. Secondary Cost Dashb'!$E$17,$T40/((1+$D$17)/(1+$D$6))^($T$28-O$28),$D40*((1+$D$17)/(1+$D$6))^(O$28-$D$28))) -> 2727.800928 | P40: =IF('2c. Secondary Cost Dashb'!$D$17='4j. List options'!$B$2,($D40+($T40-$D40)/($T$28-$D$28)*(P$28-$D$28))*(1+$D$17)/(1+$D$6),IF(P$28>='2c. Secondary Cost Dashb'!$E$17,$T40/((1+$D$17)/(1+$D$6))^($T$28-P$28),$D40*((1+$D$17)/(1+$D$6))^(P$28-$D$28))) -> 2858.393212 | Q40: =IF('2c. Secondary Cost Dashb'!$D$17='4j. List options'!$B$2,($D40+($T40-$D40)/($T$28-$D$28)*(Q$28-$D$28))*(1+$D$17)/(1+$D$6),IF(Q$28>='2c. Secondary Cost Dashb'!$E$17,$T40/((1+$D$17)/(1+$D$6))^($T$28-Q$28),$D40*((1+$D$17)/(1+$D$6))^(Q$28-$D$28))) -> 2988.985496 | R40: =IF('2c. Secondary Cost Dashb'!$D$17='4j. List options'!$B$2,($D40+($T40-$D40)/($T$28-$D$28)*(R$28-$D$28))*(1+$D$17)/(1+$D$6),IF(R$28>='2c. Secondary Cost Dashb'!$E$17,$T40/((1+$D$17)/(1+$D$6))^($T$28-R$28),$D40*((1+$D$17)/(1+$D$6))^(R$28-$D$28))) -> 3119.577781 | S40: =IF('2c. Secondary Cost Dashb'!$D$17='4j. List options'!$B$2,($D40+($T40-$D40)/($T$28-$D$28)*(S$28-$D$28))*(1+$D$17)/(1+$D$6),IF(S$28>='2c. Secondary Cost Dashb'!$E$17,$T40/((1+$D$17)/(1+$D$6))^($T$28-S$28),$D40*((1+$D$17)/(1+$D$6))^(S$28-$D$28))) -> 3250.170065 | T40: =$F$16*(1+$D$5)^(T$28-$D$28)/(1+$D$6)^(T$28-$D$28) -> 3183.392043
B41: N4-6 Eng | C41: Direct Programme Costs | D41: =D40 -> 1215.9 | E41: =IF('2c. Secondary Cost Dashb'!$D$17='4j. List options'!$B$2,($D41+($T41-$D41)/($T$28-$D$28)*(E$28-$D$28))*(1+$D$17)/(1+$D$6),IF(E$28>='2c. Secondary Cost Dashb'!$E$17,$T41/((1+$D$17)/(1+$D$6))^($T$28-E$28),$D41*((1+$D$17)/(1+$D$6))^(E$28-$D$28))) -> 1421.878084 | F41: =IF('2c. Secondary Cost Dashb'!$D$17='4j. List options'!$B$2,($D41+($T41-$D41)/($T$28-$D$28)*(F$28-$D$28))*(1+$D$17)/(1+$D$6),IF(F$28>='2c. Secondary Cost Dashb'!$E$17,$T41/((1+$D$17)/(1+$D$6))^($T$28-F$28),$D41*((1+$D$17)/(1+$D$6))^(F$28-$D$28))) -> 1552.470369 | G41: =IF('2c. Secondary Cost Dashb'!$D$17='4j. List options'!$B$2,($D41+($T41-$D41)/($T$28-$D$28)*(G$28-$D$28))*(1+$D$17)/(1+$D$6),IF(G$28>='2c. Secondary Cost Dashb'!$E$17,$T41/((1+$D$17)/(1+$D$6))^($T$28-G$28),$D41*((1+$D$17)/(1+$D$6))^(G$28-$D$28))) -> 1683.062653 | H41: =IF('2c. Secondary Cost Dashb'!$D$17='4j. List options'!$B$2,($D41+($T41-$D41)/($T$28-$D$28)*(H$28-$D$28))*(1+$D$17)/(1+$D$6),IF(H$28>='2c. Secondary Cost Dashb'!$E$17,$T41/((1+$D$17)/(1+$D$6))^($T$28-H$28),$D41*((1+$D$17)/(1+$D$6))^(H$28-$D$28))) -> 1813.654937 | I41: =IF('2c. Secondary Cost Dashb'!$D$17='4j. List options'!$B$2,($D41+($T41-$D41)/($T$28-$D$28)*(I$28-$D$28))*(1+$D$17)/(1+$D$6),IF(I$28>='2c. Secondary Cost Dashb'!$E$17,$T41/((1+$D$17)/(1+$D$6))^($T$28-I$28),$D41*((1+$D$17)/(1+$D$6))^(I$28-$D$28))) -> 1944.247222 | J41: =IF('2c. Secondary Cost Dashb'!$D$17='4j. List options'!$B$2,($D41+($T41-$D41)/($T$28-$D$28)*(J$28-$D$28))*(1+$D$17)/(1+$D$6),IF(J$28>='2c. Secondary Cost Dashb'!$E$17,$T41/((1+$D$17)/(1+$D$6))^($T$28-J$28),$D41*((1+$D$17)/(1+$D$6))^(J$28-$D$28))) -> 2074.839506 | K41: =IF('2c. Secondary Cost Dashb'!$D$17='4j. List options'!$B$2,($D41+($T41-$D41)/($T$28-$D$28)*(K$28-$D$28))*(1+$D$17)/(1+$D$6),IF(K$28>='2c. Secondary Cost Dashb'!$E$17,$T41/((1+$D$17)/(1+$D$6))^($T$28-K$28),$D41*((1+$D$17)/(1+$D$6))^(K$28-$D$28))) -> 2205.43179 | L41: =IF('2c. Secondary Cost Dashb'!$D$17='4j. List options'!$B$2,($D41+($T41-$D41)/($T$28-$D$28)*(L$28-$D$28))*(1+$D$17)/(1+$D$6),IF(L$28>='2c. Secondary Cost Dashb'!$E$17,$T41/((1+$D$17)/(1+$D$6))^($T$28-L$28),$D41*((1+$D$17)/(1+$D$6))^(L$28-$D$28))) -> 2336.024075 | M41: =IF('2c. Secondary Cost Dashb'!$D$17='4j. List options'!$B$2,($D41+($T41-$D41)/($T$28-$D$28)*(M$28-$D$28))*(1+$D$17)/(1+$D$6),IF(M$28>='2c. Secondary Cost Dashb'!$E$17,$T41/((1+$D$17)/(1+$D$6))^($T$28-M$28),$D41*((1+$D$17)/(1+$D$6))^(M$28-$D$28))) -> 2466.616359 | N41: =IF('2c. Secondary Cost Dashb'!$D$17='4j. List options'!$B$2,($D41+($T41-$D41)/($T$28-$D$28)*(N$28-$D$28))*(1+$D$17)/(1+$D$6),IF(N$28>='2c. Secondary Cost Dashb'!$E$17,$T41/((1+$D$17)/(1+$D$6))^($T$28-N$28),$D41*((1+$D$17)/(1+$D$6))^(N$28-$D$28))) -> 2597.208643 | O41: =IF('2c. Secondary Cost Dashb'!$D$17='4j. List options'!$B$2,($D41+($T41-$D41)/($T$28-$D$28)*(O$28-$D$28))*(1+$D$17)/(1+$D$6),IF(O$28>='2c. Secondary Cost Dashb'!$E$17,$T41/((1+$D$17)/(1+$D$6))^($T$28-O$28),$D41*((1+$D$17)/(1+$D$6))^(O$28-$D$28))) -> 2727.800928 | P41: =IF('2c. Secondary Cost Dashb'!$D$17='4j. List options'!$B$2,($D41+($T41-$D41)/($T$28-$D$28)*(P$28-$D$28))*(1+$D$17)/(1+$D$6),IF(P$28>='2c. Secondary Cost Dashb'!$E$17,$T41/((1+$D$17)/(1+$D$6))^($T$28-P$28),$D41*((1+$D$17)/(1+$D$6))^(P$28-$D$28))) -> 2858.393212 | Q41: =IF('2c. Secondary Cost Dashb'!$D$17='4j. List options'!$B$2,($D41+($T41-$D41)/($T$28-$D$28)*(Q$28-$D$28))*(1+$D$17)/(1+$D$6),IF(Q$28>='2c. Secondary Cost Dashb'!$E$17,$T41/((1+$D$17)/(1+$D$6))^($T$28-Q$28),$D41*((1+$D$17)/(1+$D$6))^(Q$28-$D$28))) -> 2988.985496 | R41: =IF('2c. Secondary Cost Dashb'!$D$17='4j. List options'!$B$2,($D41+($T41-$D41)/($T$28-$D$28)*(R$28-$D$28))*(1+$D$17)/(1+$D$6),IF(R$28>='2c. Secondary Cost Dashb'!$E$17,$T41/((1+$D$17)/(1+$D$6))^($T$28-R$28),$D41*((1+$D$17)/(1+$D$6))^(R$28-$D$28))) -> 3119.577781 | S41: =IF('2c. Secondary Cost Dashb'!$D$17='4j. List options'!$B$2,($D41+($T41-$D41)/($T$28-$D$28)*(S$28-$D$28))*(1+$D$17)/(1+$D$6),IF(S$28>='2c. Secondary Cost Dashb'!$E$17,$T41/((1+$D$17)/(1+$D$6))^($T$28-S$28),$D41*((1+$D$17)/(1+$D$6))^(S$28-$D$28))) -> 3250.170065 | T41: =$F$16*(1+$D$5)^(T$28-$D$28)/(1+$D$6)^(T$28-$D$28) -> 3183.392043
B42: N4-6 Bus | C42: Direct Programme Costs | D42: =D41 -> 1215.9 | E42: =IF('2c. Secondary Cost Dashb'!$D$17='4j. List options'!$B$2,($D42+($T42-$D42)/($T$28-$D$28)*(E$28-$D$28))*(1+$D$17)/(1+$D$6),IF(E$28>='2c. Secondary Cost Dashb'!$E$17,$T42/((1+$D$17)/(1+$D$6))^($T$28-E$28),$D42*((1+$D$17)/(1+$D$6))^(E$28-$D$28))) -> 1421.878084 | F42: =IF('2c. Secondary Cost Dashb'!$D$17='4j. List options'!$B$2,($D42+($T42-$D42)/($T$28-$D$28)*(F$28-$D$28))*(1+$D$17)/(1+$D$6),IF(F$28>='2c. Secondary Cost Dashb'!$E$17,$T42/((1+$D$17)/(1+$D$6))^($T$28-F$28),$D42*((1+$D$17)/(1+$D$6))^(F$28-$D$28))) -> 1552.470369 | G42: =IF('2c. Secondary Cost Dashb'!$D$17='4j. List options'!$B$2,($D42+($T42-$D42)/($T$28-$D$28)*(G$28-$D$28))*(1+$D$17)/(1+$D$6),IF(G$28>='2c. Secondary Cost Dashb'!$E$17,$T42/((1+$D$17)/(1+$D$6))^($T$28-G$28),$D42*((1+$D$17)/(1+$D$6))^(G$28-$D$28))) -> 1683.062653 | H42: =IF('2c. Secondary Cost Dashb'!$D$17='4j. List options'!$B$2,($D42+($T42-$D42)/($T$28-$D$28)*(H$28-$D$28))*(1+$D$17)/(1+$D$6),IF(H$28>='2c. Secondary Cost Dashb'!$E$17,$T42/((1+$D$17)/(1+$D$6))^($T$28-H$28),$D42*((1+$D$17)/(1+$D$6))^(H$28-$D$28))) -> 1813.654937 | I42: =IF('2c. Secondary Cost Dashb'!$D$17='4j. List options'!$B$2,($D42+($T42-$D42)/($T$28-$D$28)*(I$28-$D$28))*(1+$D$17)/(1+$D$6),IF(I$28>='2c. Secondary Cost Dashb'!$E$17,$T42/((1+$D$17)/(1+$D$6))^($T$28-I$28),$D42*((1+$D$17)/(1+$D$6))^(I$28-$D$28))) -> 1944.247222 | J42: =IF('2c. Secondary Cost Dashb'!$D$17='4j. List options'!$B$2,($D42+($T42-$D42)/($T$28-$D$28)*(J$28-$D$28))*(1+$D$17)/(1+$D$6),IF(J$28>='2c. Secondary Cost Dashb'!$E$17,$T42/((1+$D$17)/(1+$D$6))^($T$28-J$28),$D42*((1+$D$17)/(1+$D$6))^(J$28-$D$28))) -> 2074.839506 | K42: =IF('2c. Secondary Cost Dashb'!$D$17='4j. List options'!$B$2,($D42+($T42-$D42)/($T$28-$D$28)*(K$28-$D$28))*(1+$D$17)/(1+$D$6),IF(K$28>='2c. Secondary Cost Dashb'!$E$17,$T42/((1+$D$17)/(1+$D$6))^($T$28-K$28),$D42*((1+$D$17)/(1+$D$6))^(K$28-$D$28))) -> 2205.43179 | L42: =IF('2c. Secondary Cost Dashb'!$D$17='4j. List options'!$B$2,($D42+($T42-$D42)/($T$28-$D$28)*(L$28-$D$28))*(1+$D$17)/(1+$D$6),IF(L$28>='2c. Secondary Cost Dashb'!$E$17,$T42/((1+$D$17)/(1+$D$6))^($T$28-L$28),$D42*((1+$D$17)/(1+$D$6))^(L$28-$D$28))) -> 2336.024075 | M42: =IF('2c. Secondary Cost Dashb'!$D$17='4j. List options'!$B$2,($D42+($T42-$D42)/($T$28-$D$28)*(M$28-$D$28))*(1+$D$17)/(1+$D$6),IF(M$28>='2c. Secondary Cost Dashb'!$E$17,$T42/((1+$D$17)/(1+$D$6))^($T$28-M$28),$D42*((1+$D$17)/(1+$D$6))^(M$28-$D$28))) -> 2466.616359 | N42: =IF('2c. Secondary Cost Dashb'!$D$17='4j. List options'!$B$2,($D42+($T42-$D42)/($T$28-$D$28)*(N$28-$D$28))*(1+$D$17)/(1+$D$6),IF(N$28>='2c. Secondary Cost Dashb'!$E$17,$T42/((1+$D$17)/(1+$D$6))^($T$28-N$28),$D42*((1+$D$17)/(1+$D$6))^(N$28-$D$28))) -> 2597.208643 | O42: =IF('2c. Secondary Cost Dashb'!$D$17='4j. List options'!$B$2,($D42+($T42-$D42)/($T$28-$D$28)*(O$28-$D$28))*(1+$D$17)/(1+$D$6),IF(O$28>='2c. Secondary Cost Dashb'!$E$17,$T42/((1+$D$17)/(1+$D$6))^($T$28-O$28),$D42*((1+$D$17)/(1+$D$6))^(O$28-$D$28))) -> 2727.800928 | P42: =IF('2c. Secondary Cost Dashb'!$D$17='4j. List options'!$B$2,($D42+($T42-$D42)/($T$28-$D$28)*(P$28-$D$28))*(1+$D$17)/(1+$D$6),IF(P$28>='2c. Secondary Cost Dashb'!$E$17,$T42/((1+$D$17)/(1+$D$6))^($T$28-P$28),$D42*((1+$D$17)/(1+$D$6))^(P$28-$D$28))) -> 2858.393212 | Q42: =IF('2c. Secondary Cost Dashb'!$D$17='4j. List options'!$B$2,($D42+($T42-$D42)/($T$28-$D$28)*(Q$28-$D$28))*(1+$D$17)/(1+$D$6),IF(Q$28>='2c. Secondary Cost Dashb'!$E$17,$T42/((1+$D$17)/(1+$D$6))^($T$28-Q$28),$D42*((1+$D$17)/(1+$D$6))^(Q$28-$D$28))) -> 2988.985496 | R42: =IF('2c. Secondary Cost Dashb'!$D$17='4j. List options'!$B$2,($D42+($T42-$D42)/($T$28-$D$28)*(R$28-$D$28))*(1+$D$17)/(1+$D$6),IF(R$28>='2c. Secondary Cost Dashb'!$E$17,$T42/((1+$D$17)/(1+$D$6))^($T$28-R$28),$D42*((1+$D$17)/(1+$D$6))^(R$28-$D$28))) -> 3119.577781 | S42: =IF('2c. Secondary Cost Dashb'!$D$17='4j. List options'!$B$2,($D42+($T42-$D42)/($T$28-$D$28)*(S$28-$D$28))*(1+$D$17)/(1+$D$6),IF(S$28>='2c. Secondary Cost Dashb'!$E$17,$T42/((1+$D$17)/(1+$D$6))^($T$28-S$28),$D42*((1+$D$17)/(1+$D$6))^(S$28-$D$28))) -> 3250.170065 | T42: =$F$16*(1+$D$5)^(T$28-$D$28)/(1+$D$6)^(T$28-$D$28) -> 3183.392043
B43: N4-6 Ser | C43: Direct Programme Costs | D43: =D42 -> 1215.9 | E43: =IF('2c. Secondary Cost Dashb'!$D$17='4j. List options'!$B$2,($D43+($T43-$D43)/($T$28-$D$28)*(E$28-$D$28))*(1+$D$17)/(1+$D$6),IF(E$28>='2c. Secondary Cost Dashb'!$E$17,$T43/((1+$D$17)/(1+$D$6))^($T$28-E$28),$D43*((1+$D$17)/(1+$D$6))^(E$28-$D$28))) -> 1421.878084 | F43: =IF('2c. Secondary Cost Dashb'!$D$17='4j. List options'!$B$2,($D43+($T43-$D43)/($T$28-$D$28)*(F$28-$D$28))*(1+$D$17)/(1+$D$6),IF(F$28>='2c. Secondary Cost Dashb'!$E$17,$T43/((1+$D$17)/(1+$D$6))^($T$28-F$28),$D43*((1+$D$17)/(1+$D$6))^(F$28-$D$28))) -> 1552.470369 | G43: =IF('2c. Secondary Cost Dashb'!$D$17='4j. List options'!$B$2,($D43+($T43-$D43)/($T$28-$D$28)*(G$28-$D$28))*(1+$D$17)/(1+$D$6),IF(G$28>='2c. Secondary Cost Dashb'!$E$17,$T43/((1+$D$17)/(1+$D$6))^($T$28-G$28),$D43*((1+$D$17)/(1+$D$6))^(G$28-$D$28))) -> 1683.062653 | H43: =IF('2c. Secondary Cost Dashb'!$D$17='4j. List options'!$B$2,($D43+($T43-$D43)/($T$28-$D$28)*(H$28-$D$28))*(1+$D$17)/(1+$D$6),IF(H$28>='2c. Secondary Cost Dashb'!$E$17,$T43/((1+$D$17)/(1+$D$6))^($T$28-H$28),$D43*((1+$D$17)/(1+$D$6))^(H$28-$D$28))) -> 1813.654937 | I43: =IF('2c. Secondary Cost Dashb'!$D$17='4j. List options'!$B$2,($D43+($T43-$D43)/($T$28-$D$28)*(I$28-$D$28))*(1+$D$17)/(1+$D$6),IF(I$28>='2c. Secondary Cost Dashb'!$E$17,$T43/((1+$D$17)/(1+$D$6))^($T$28-I$28),$D43*((1+$D$17)/(1+$D$6))^(I$28-$D$28))) -> 1944.247222 | J43: =IF('2c. Secondary Cost Dashb'!$D$17='4j. List options'!$B$2,($D43+($T43-$D43)/($T$28-$D$28)*(J$28-$D$28))*(1+$D$17)/(1+$D$6),IF(J$28>='2c. Secondary Cost Dashb'!$E$17,$T43/((1+$D$17)/(1+$D$6))^($T$28-J$28),$D43*((1+$D$17)/(1+$D$6))^(J$28-$D$28))) -> 2074.839506 | K43: =IF('2c. Secondary Cost Dashb'!$D$17='4j. List options'!$B$2,($D43+($T43-$D43)/($T$28-$D$28)*(K$28-$D$28))*(1+$D$17)/(1+$D$6),IF(K$28>='2c. Secondary Cost Dashb'!$E$17,$T43/((1+$D$17)/(1+$D$6))^($T$28-K$28),$D43*((1+$D$17)/(1+$D$6))^(K$28-$D$28))) -> 2205.43179 | L43: =IF('2c. Secondary Cost Dashb'!$D$17='4j. List options'!$B$2,($D43+($T43-$D43)/($T$28-$D$28)*(L$28-$D$28))*(1+$D$17)/(1+$D$6),IF(L$28>='2c. Secondary Cost Dashb'!$E$17,$T43/((1+$D$17)/(1+$D$6))^($T$28-L$28),$D43*((1+$D$17)/(1+$D$6))^(L$28-$D$28))) -> 2336.024075 | M43: =IF('2c. Secondary Cost Dashb'!$D$17='4j. List options'!$B$2,($D43+($T43-$D43)/($T$28-$D$28)*(M$28-$D$28))*(1+$D$17)/(1+$D$6),IF(M$28>='2c. Secondary Cost Dashb'!$E$17,$T43/((1+$D$17)/(1+$D$6))^($T$28-M$28),$D43*((1+$D$17)/(1+$D$6))^(M$28-$D$28))) -> 2466.616359 | N43: =IF('2c. Secondary Cost Dashb'!$D$17='4j. List options'!$B$2,($D43+($T43-$D43)/($T$28-$D$28)*(N$28-$D$28))*(1+$D$17)/(1+$D$6),IF(N$28>='2c. Secondary Cost Dashb'!$E$17,$T43/((1+$D$17)/(1+$D$6))^($T$28-N$28),$D43*((1+$D$17)/(1+$D$6))^(N$28-$D$28))) -> 2597.208643 | O43: =IF('2c. Secondary Cost Dashb'!$D$17='4j. List options'!$B$2,($D43+($T43-$D43)/($T$28-$D$28)*(O$28-$D$28))*(1+$D$17)/(1+$D$6),IF(O$28>='2c. Secondary Cost Dashb'!$E$17,$T43/((1+$D$17)/(1+$D$6))^($T$28-O$28),$D43*((1+$D$17)/(1+$D$6))^(O$28-$D$28))) -> 2727.800928 | P43: =IF('2c. Secondary Cost Dashb'!$D$17='4j. List options'!$B$2,($D43+($T43-$D43)/($T$28-$D$28)*(P$28-$D$28))*(1+$D$17)/(1+$D$6),IF(P$28>='2c. Secondary Cost Dashb'!$E$17,$T43/((1+$D$17)/(1+$D$6))^($T$28-P$28),$D43*((1+$D$17)/(1+$D$6))^(P$28-$D$28))) -> 2858.393212 | Q43: =IF('2c. Secondary Cost Dashb'!$D$17='4j. List options'!$B$2,($D43+($T43-$D43)/($T$28-$D$28)*(Q$28-$D$28))*(1+$D$17)/(1+$D$6),IF(Q$28>='2c. Secondary Cost Dashb'!$E$17,$T43/((1+$D$17)/(1+$D$6))^($T$28-Q$28),$D43*((1+$D$17)/(1+$D$6))^(Q$28-$D$28))) -> 2988.985496 | R43: =IF('2c. Secondary Cost Dashb'!$D$17='4j. List options'!$B$2,($D43+($T43-$D43)/($T$28-$D$28)*(R$28-$D$28))*(1+$D$17)/(1+$D$6),IF(R$28>='2c. Secondary Cost Dashb'!$E$17,$T43/((1+$D$17)/(1+$D$6))^($T$28-R$28),$D43*((1+$D$17)/(1+$D$6))^(R$28-$D$28))) -> 3119.577781 | S43: =IF('2c. Secondary Cost Dashb'!$D$17='4j. List options'!$B$2,($D43+($T43-$D43)/($T$28-$D$28)*(S$28-$D$28))*(1+$D$17)/(1+$D$6),IF(S$28>='2c. Secondary Cost Dashb'!$E$17,$T43/((1+$D$17)/(1+$D$6))^($T$28-S$28),$D43*((1+$D$17)/(1+$D$6))^(S$28-$D$28))) -> 3250.170065 | T43: =$F$16*(1+$D$5)^(T$28-$D$28)/(1+$D$6)^(T$28-$D$28) -> 3183.392043
B44: NC(V) | C44: Total Fees | D44: =D79*$V44*'4g. Funding assumptions'!$D2*((1+$D$5)/(1+$D$6))^(D$28-$D$28) -> 1349714672 | E44: =E79*$V44*'4g. Funding assumptions'!$D2*((1+$D$5)/(1+$D$6))^(E$28-$D$28) -> 1467011381 | F44: =F79*$V44*'4g. Funding assumptions'!$D2*((1+$D$5)/(1+$D$6))^(F$28-$D$28) -> 1828709507 | G44: =G79*$V44*'4g. Funding assumptions'!$D2*((1+$D$5)/(1+$D$6))^(G$28-$D$28) -> 2200501357 | H44: =H79*$V44*'4g. Funding assumptions'!$D2*((1+$D$5)/(1+$D$6))^(H$28-$D$28) -> 2635244990 | I44: =I79*$V44*'4g. Funding assumptions'!$D2*((1+$D$5)/(1+$D$6))^(I$28-$D$28) -> 3096489865 | J44: =J79*$V44*'4g. Funding assumptions'!$D2*((1+$D$5)/(1+$D$6))^(J$28-$D$28) -> 3620366852 | K44: =K79*$V44*'4g. Funding assumptions'!$D2*((1+$D$5)/(1+$D$6))^(K$28-$D$28) -> 4184414905 | L44: =L79*$V44*'4g. Funding assumptions'!$D2*((1+$D$5)/(1+$D$6))^(L$28-$D$28) -> 4814819435 | M44: =M79*$V44*'4g. Funding assumptions'!$D2*((1+$D$5)/(1+$D$6))^(M$28-$D$28) -> 5499020529 | N44: =N79*$V44*'4g. Funding assumptions'!$D2*((1+$D$5)/(1+$D$6))^(N$28-$D$28) -> 6256324597 | O44: =O79*$V44*'4g. Funding assumptions'!$D2*((1+$D$5)/(1+$D$6))^(O$28-$D$28) -> 7080906122 | P44: =P79*$V44*'4g. Funding assumptions'!$D2*((1+$D$5)/(1+$D$6))^(P$28-$D$28) -> 7988101377 | Q44: =Q79*$V44*'4g. Funding assumptions'!$D2*((1+$D$5)/(1+$D$6))^(Q$28-$D$28) -> 8976990620 | R44: =R79*$V44*'4g. Funding assumptions'!$D2*((1+$D$5)/(1+$D$6))^(R$28-$D$28) -> 1.006070529e+10 | S44: =S79*$V44*'4g. Funding assumptions'!$D2*((1+$D$5)/(1+$D$6))^(S$28-$D$28) -> 1.124194241e+10 | T44: =T79*$V44*'4g. Funding assumptions'!$D2*((1+$D$5)/(1+$D$6))^(T$28-$D$28) -> 1.253287959e+10 | V44: 1
B45: N1-3 Eng | C45: Total Fees | D45: =D80*$V45*'4g. Funding assumptions'!$D3*((1+$D$5)/(1+$D$6))^(D$28-$D$28) -> 617570229.6 | E45: =E80*$V45*'4g. Funding assumptions'!$D3*((1+$D$5)/(1+$D$6))^(E$28-$D$28) -> 708230564.4 | F45: =F80*$V45*'4g. Funding assumptions'!$D3*((1+$D$5)/(1+$D$6))^(F$28-$D$28) -> 895073487.4 | G45: =G80*$V45*'4g. Funding assumptions'!$D3*((1+$D$5)/(1+$D$6))^(G$28-$D$28) -> 1077502954 | H45: =H80*$V45*'4g. Funding assumptions'!$D3*((1+$D$5)/(1+$D$6))^(H$28-$D$28) -> 1282345085 | I45: =I80*$V45*'4g. Funding assumptions'!$D3*((1+$D$5)/(1+$D$6))^(I$28-$D$28) -> 1508314251 | J45: =J80*$V45*'4g. Funding assumptions'!$D3*((1+$D$5)/(1+$D$6))^(J$28-$D$28) -> 1757256944 | K45: =K80*$V45*'4g. Funding assumptions'!$D3*((1+$D$5)/(1+$D$6))^(K$28-$D$28) -> 2031270973 | L45: =L80*$V45*'4g. Funding assumptions'!$D3*((1+$D$5)/(1+$D$6))^(L$28-$D$28) -> 2332533509 | M45: =M80*$V45*'4g. Funding assumptions'!$D3*((1+$D$5)/(1+$D$6))^(M$28-$D$28) -> 2663338833 | N45: =N80*$V45*'4g. Funding assumptions'!$D3*((1+$D$5)/(1+$D$6))^(N$28-$D$28) -> 3026194469 | O45: =O80*$V45*'4g. Funding assumptions'!$D3*((1+$D$5)/(1+$D$6))^(O$28-$D$28) -> 3423807894 | P45: =P80*$V45*'4g. Funding assumptions'!$D3*((1+$D$5)/(1+$D$6))^(P$28-$D$28) -> 3859092965 | Q45: =Q80*$V45*'4g. Funding assumptions'!$D3*((1+$D$5)/(1+$D$6))^(Q$28-$D$28) -> 4335191946 | R45: =R80*$V45*'4g. Funding assumptions'!$D3*((1+$D$5)/(1+$D$6))^(R$28-$D$28) -> 4855492861 | S45: =S80*$V45*'4g. Funding assumptions'!$D3*((1+$D$5)/(1+$D$6))^(S$28-$D$28) -> 5423646665 | T45: =T80*$V45*'4g. Funding assumptions'!$D3*((1+$D$5)/(1+$D$6))^(T$28-$D$28) -> 6043587013 | V45: 3
B46: N4-6 Eng | C46: Total Fees | D46: =D81*$V46*'4g. Funding assumptions'!$D4*((1+$D$5)/(1+$D$6))^(D$28-$D$28) -> 267067872.7 | E46: =E81*$V46*'4g. Funding assumptions'!$D4*((1+$D$5)/(1+$D$6))^(E$28-$D$28) -> 309276324.2 | F46: =F81*$V46*'4g. Funding assumptions'!$D4*((1+$D$5)/(1+$D$6))^(F$28-$D$28) -> 390623175 | G46: =G81*$V46*'4g. Funding assumptions'!$D4*((1+$D$5)/(1+$D$6))^(G$28-$D$28) -> 470379583.2 | H46: =H81*$V46*'4g. Funding assumptions'!$D4*((1+$D$5)/(1+$D$6))^(H$28-$D$28) -> 559815827.1 | I46: =I81*$V46*'4g. Funding assumptions'!$D4*((1+$D$5)/(1+$D$6))^(I$28-$D$28) -> 658607093 | J46: =J81*$V46*'4g. Funding assumptions'!$D4*((1+$D$5)/(1+$D$6))^(J$28-$D$28) -> 767409859.1 | K46: =K81*$V46*'4g. Funding assumptions'!$D4*((1+$D$5)/(1+$D$6))^(K$28-$D$28) -> 887157197.8 | L46: =L81*$V46*'4g. Funding assumptions'!$D4*((1+$D$5)/(1+$D$6))^(L$28-$D$28) -> 1018823397 | M46: =M81*$V46*'4g. Funding assumptions'!$D4*((1+$D$5)/(1+$D$6))^(M$28-$D$28) -> 1163405956 | N46: =N81*$V46*'4g. Funding assumptions'!$D4*((1+$D$5)/(1+$D$6))^(N$28-$D$28) -> 1321996539 | O46: =O81*$V46*'4g. Funding assumptions'!$D4*((1+$D$5)/(1+$D$6))^(O$28-$D$28) -> 1495780764 | P46: =P81*$V46*'4g. Funding assumptions'!$D4*((1+$D$5)/(1+$D$6))^(P$28-$D$28) -> 1686033145 | Q46: =Q81*$V46*'4g. Funding assumptions'!$D4*((1+$D$5)/(1+$D$6))^(Q$28-$D$28) -> 1894126842 | R46: =R81*$V46*'4g. Funding assumptions'!$D4*((1+$D$5)/(1+$D$6))^(R$28-$D$28) -> 2121542945 | S46: =S81*$V46*'4g. Funding assumptions'!$D4*((1+$D$5)/(1+$D$6))^(S$28-$D$28) -> 2369877674 | T46: =T81*$V46*'4g. Funding assumptions'!$D4*((1+$D$5)/(1+$D$6))^(T$28-$D$28) -> 2640850710 | V46: 3
B47: N4-6 Bus | C47: Total Fees | D47: =D82*$V47*'4g. Funding assumptions'!$D5*((1+$D$5)/(1+$D$6))^(D$28-$D$28) -> 861871176.6 | E47: =E82*$V47*'4g. Funding assumptions'!$D5*((1+$D$5)/(1+$D$6))^(E$28-$D$28) -> 937119988.4 | F47: =F82*$V47*'4g. Funding assumptions'!$D5*((1+$D$5)/(1+$D$6))^(F$28-$D$28) -> 1168424860 | G47: =G82*$V47*'4g. Funding assumptions'!$D5*((1+$D$5)/(1+$D$6))^(G$28-$D$28) -> 1418473221 | H47: =H82*$V47*'4g. Funding assumptions'!$D5*((1+$D$5)/(1+$D$6))^(H$28-$D$28) -> 1692267932 | I47: =I82*$V47*'4g. Funding assumptions'!$D5*((1+$D$5)/(1+$D$6))^(I$28-$D$28) -> 1993528690 | J47: =J82*$V47*'4g. Funding assumptions'!$D5*((1+$D$5)/(1+$D$6))^(J$28-$D$28) -> 2325122522 | K47: =K82*$V47*'4g. Funding assumptions'!$D5*((1+$D$5)/(1+$D$6))^(K$28-$D$28) -> 2690012658 | L47: =L82*$V47*'4g. Funding assumptions'!$D5*((1+$D$5)/(1+$D$6))^(L$28-$D$28) -> 3091110535 | M47: =M82*$V47*'4g. Funding assumptions'!$D5*((1+$D$5)/(1+$D$6))^(M$28-$D$28) -> 3531577865 | N47: =N82*$V47*'4g. Funding assumptions'!$D5*((1+$D$5)/(1+$D$6))^(N$28-$D$28) -> 4014763066 | O47: =O82*$V47*'4g. Funding assumptions'!$D5*((1+$D$5)/(1+$D$6))^(O$28-$D$28) -> 4544282676 | P47: =P82*$V47*'4g. Funding assumptions'!$D5*((1+$D$5)/(1+$D$6))^(P$28-$D$28) -> 5124027255 | Q47: =Q82*$V47*'4g. Funding assumptions'!$D5*((1+$D$5)/(1+$D$6))^(Q$28-$D$28) -> 5758190727 | R47: =R82*$V47*'4g. Funding assumptions'!$D5*((1+$D$5)/(1+$D$6))^(R$28-$D$28) -> 6451293385 | S47: =S82*$V47*'4g. Funding assumptions'!$D5*((1+$D$5)/(1+$D$6))^(S$28-$D$28) -> 7208205999 | T47: =T82*$V47*'4g. Funding assumptions'!$D5*((1+$D$5)/(1+$D$6))^(T$28-$D$28) -> 8034176977 | V47: 2
B48: N4-6 Ser | C48: Total Fees | D48: =D83*$V48*'4g. Funding assumptions'!$D6*((1+$D$5)/(1+$D$6))^(D$28-$D$28) -> 130165483.6 | E48: =E83*$V48*'4g. Funding assumptions'!$D6*((1+$D$5)/(1+$D$6))^(E$28-$D$28) -> 141496525 | F48: =F83*$V48*'4g. Funding assumptions'!$D6*((1+$D$5)/(1+$D$6))^(F$28-$D$28) -> 176414437.9 | G48: =G83*$V48*'4g. Funding assumptions'!$D6*((1+$D$5)/(1+$D$6))^(G$28-$D$28) -> 214172301.5 | H48: =H83*$V48*'4g. Funding assumptions'!$D6*((1+$D$5)/(1+$D$6))^(H$28-$D$28) -> 255513844 | I48: =I83*$V48*'4g. Funding assumptions'!$D6*((1+$D$5)/(1+$D$6))^(I$28-$D$28) -> 301010059.3 | J48: =J83*$V48*'4g. Funding assumptions'!$D6*((1+$D$5)/(1+$D$6))^(J$28-$D$28) -> 351082708.8 | K48: =K83*$V48*'4g. Funding assumptions'!$D6*((1+$D$5)/(1+$D$6))^(K$28-$D$28) -> 406186497.6 | L48: =L83*$V48*'4g. Funding assumptions'!$D6*((1+$D$5)/(1+$D$6))^(L$28-$D$28) -> 466756983.5 | M48: =M83*$V48*'4g. Funding assumptions'!$D6*((1+$D$5)/(1+$D$6))^(M$28-$D$28) -> 533273534.5 | N48: =N83*$V48*'4g. Funding assumptions'!$D6*((1+$D$5)/(1+$D$6))^(N$28-$D$28) -> 606241003.5 | O48: =O83*$V48*'4g. Funding assumptions'!$D6*((1+$D$5)/(1+$D$6))^(O$28-$D$28) -> 686205825.8 | P48: =P83*$V48*'4g. Funding assumptions'!$D6*((1+$D$5)/(1+$D$6))^(P$28-$D$28) -> 773755484.5 | Q48: =Q83*$V48*'4g. Funding assumptions'!$D6*((1+$D$5)/(1+$D$6))^(Q$28-$D$28) -> 869523331.8 | R48: =R83*$V48*'4g. Funding assumptions'!$D6*((1+$D$5)/(1+$D$6))^(R$28-$D$28) -> 974192039.4 | S48: =S83*$V48*'4g. Funding assumptions'!$D6*((1+$D$5)/(1+$D$6))^(S$28-$D$28) -> 1088497168 | T48: =T83*$V48*'4g. Funding assumptions'!$D6*((1+$D$5)/(1+$D$6))^(T$28-$D$28) -> 1213231338 | V48: 2
B49: NC(V) | C49: NSFAS Fee Reqt | D49: =D111*'4g. Funding assumptions'!$I2*'4g. Funding assumptions'!$D2*$V49*((1+$D$5)/(1+$D$6))^(D$28-$D$28) -> 834868109.7 | E49: =E111*'4g. Funding assumptions'!$I2*'4g. Funding assumptions'!$D2*$V49*((1+$D$5)/(1+$D$6))^(E$28-$D$28) -> 920244331.4 | F49: =F111*'4g. Funding assumptions'!$I2*'4g. Funding assumptions'!$D2*$V49*((1+$D$5)/(1+$D$6))^(F$28-$D$28) -> 1227510100 | G49: =G111*'4g. Funding assumptions'!$I2*'4g. Funding assumptions'!$D2*$V49*((1+$D$5)/(1+$D$6))^(G$28-$D$28) -> 1393663435 | H49: =H111*'4g. Funding assumptions'!$I2*'4g. Funding assumptions'!$D2*$V49*((1+$D$5)/(1+$D$6))^(H$28-$D$28) -> 1719771688 | I49: =I111*'4g. Funding assumptions'!$I2*'4g. Funding assumptions'!$D2*$V49*((1+$D$5)/(1+$D$6))^(I$28-$D$28) -> 1966639416 | J49: =J111*'4g. Funding assumptions'!$I2*'4g. Funding assumptions'!$D2*$V49*((1+$D$5)/(1+$D$6))^(J$28-$D$28) -> 2331432351 | K49: =K111*'4g. Funding assumptions'!$I2*'4g. Funding assumptions'!$D2*$V49*((1+$D$5)/(1+$D$6))^(K$28-$D$28) -> 2656149880 | L49: =L111*'4g. Funding assumptions'!$I2*'4g. Funding assumptions'!$D2*$V49*((1+$D$5)/(1+$D$6))^(L$28-$D$28) -> 3074501797 | M49: =M111*'4g. Funding assumptions'!$I2*'4g. Funding assumptions'!$D2*$V49*((1+$D$5)/(1+$D$6))^(M$28-$D$28) -> 3484510735 | N49: =N111*'4g. Funding assumptions'!$I2*'4g. Funding assumptions'!$D2*$V49*((1+$D$5)/(1+$D$6))^(N$28-$D$28) -> 3974389163 | O49: =O111*'4g. Funding assumptions'!$I2*'4g. Funding assumptions'!$D2*$V49*((1+$D$5)/(1+$D$6))^(O$28-$D$28) -> 4478495092 | P49: =P111*'4g. Funding assumptions'!$I2*'4g. Funding assumptions'!$D2*$V49*((1+$D$5)/(1+$D$6))^(P$28-$D$28) -> 5056469275 | Q49: =Q111*'4g. Funding assumptions'!$I2*'4g. Funding assumptions'!$D2*$V49*((1+$D$5)/(1+$D$6))^(Q$28-$D$28) -> 5667302363 | R49: =R111*'4g. Funding assumptions'!$I2*'4g. Funding assumptions'!$D2*$V49*((1+$D$5)/(1+$D$6))^(R$28-$D$28) -> 6351995168 | S49: =S111*'4g. Funding assumptions'!$I2*'4g. Funding assumptions'!$D2*$V49*((1+$D$5)/(1+$D$6))^(S$28-$D$28) -> 7085622714 | T49: =T111*'4g. Funding assumptions'!$I2*'4g. Funding assumptions'!$D2*$V49*((1+$D$5)/(1+$D$6))^(T$28-$D$28) -> 7897266340 | V49: 1
B50: N1-3 Eng | C50: NSFAS Fee Reqt | D50: =D112*'4g. Funding assumptions'!$I3*'4g. Funding assumptions'!$D3*$V50*((1+$D$5)/(1+$D$6))^(D$28-$D$28) -> 258876636.2 | E50: =E112*'4g. Funding assumptions'!$I3*'4g. Funding assumptions'!$D3*$V50*((1+$D$5)/(1+$D$6))^(E$28-$D$28) -> 289271468.1 | F50: =F112*'4g. Funding assumptions'!$I3*'4g. Funding assumptions'!$D3*$V50*((1+$D$5)/(1+$D$6))^(F$28-$D$28) -> 362134507.4 | G50: =G112*'4g. Funding assumptions'!$I3*'4g. Funding assumptions'!$D3*$V50*((1+$D$5)/(1+$D$6))^(G$28-$D$28) -> 437339461.1 | H50: =H112*'4g. Funding assumptions'!$I3*'4g. Funding assumptions'!$D3*$V50*((1+$D$5)/(1+$D$6))^(H$28-$D$28) -> 521016243 | I50: =I112*'4g. Funding assumptions'!$I3*'4g. Funding assumptions'!$D3*$V50*((1+$D$5)/(1+$D$6))^(I$28-$D$28) -> 613430461.3 | J50: =J112*'4g. Funding assumptions'!$I3*'4g. Funding assumptions'!$D3*$V50*((1+$D$5)/(1+$D$6))^(J$28-$D$28) -> 715291156.7 | K50: =K112*'4g. Funding assumptions'!$I3*'4g. Funding assumptions'!$D3*$V50*((1+$D$5)/(1+$D$6))^(K$28-$D$28) -> 827409474 | L50: =L112*'4g. Funding assumptions'!$I3*'4g. Funding assumptions'!$D3*$V50*((1+$D$5)/(1+$D$6))^(L$28-$D$28) -> 950686657 | M50: =M112*'4g. Funding assumptions'!$I3*'4g. Funding assumptions'!$D3*$V50*((1+$D$5)/(1+$D$6))^(M$28-$D$28) -> 1086071010 | N50: =N112*'4g. Funding assumptions'!$I3*'4g. Funding assumptions'!$D3*$V50*((1+$D$5)/(1+$D$6))^(N$28-$D$28) -> 1234587352 | O50: =O112*'4g. Funding assumptions'!$I3*'4g. Funding assumptions'!$D3*$V50*((1+$D$5)/(1+$D$6))^(O$28-$D$28) -> 1397344859 | P50: =P112*'4g. Funding assumptions'!$I3*'4g. Funding assumptions'!$D3*$V50*((1+$D$5)/(1+$D$6))^(P$28-$D$28) -> 1575538755 | Q50: =Q112*'4g. Funding assumptions'!$I3*'4g. Funding assumptions'!$D3*$V50*((1+$D$5)/(1+$D$6))^(Q$28-$D$28) -> 1770457262 | R50: =R112*'4g. Funding assumptions'!$I3*'4g. Funding assumptions'!$D3*$V50*((1+$D$5)/(1+$D$6))^(R$28-$D$28) -> 1983489263 | S50: =S112*'4g. Funding assumptions'!$I3*'4g. Funding assumptions'!$D3*$V50*((1+$D$5)/(1+$D$6))^(S$28-$D$28) -> 2216131608 | T50: =T112*'4g. Funding assumptions'!$I3*'4g. Funding assumptions'!$D3*$V50*((1+$D$5)/(1+$D$6))^(T$28-$D$28) -> 2469997072 | V50: 3
B51: N4-6 Eng | C51: NSFAS Fee Reqt | D51: =D113*'4g. Funding assumptions'!$I4*'4g. Funding assumptions'!$D4*$V51*((1+$D$5)/(1+$D$6))^(D$28-$D$28) -> 114131629.4 | E51: =E113*'4g. Funding assumptions'!$I4*'4g. Funding assumptions'!$D4*$V51*((1+$D$5)/(1+$D$6))^(E$28-$D$28) -> 128021895.3 | F51: =F113*'4g. Funding assumptions'!$I4*'4g. Funding assumptions'!$D4*$V51*((1+$D$5)/(1+$D$6))^(F$28-$D$28) -> 160191589.6 | G51: =G113*'4g. Funding assumptions'!$I4*'4g. Funding assumptions'!$D4*$V51*((1+$D$5)/(1+$D$6))^(G$28-$D$28) -> 193519478.4 | H51: =H113*'4g. Funding assumptions'!$I4*'4g. Funding assumptions'!$D4*$V51*((1+$D$5)/(1+$D$6))^(H$28-$D$28) -> 230525767.2 | I51: =I113*'4g. Funding assumptions'!$I4*'4g. Funding assumptions'!$D4*$V51*((1+$D$5)/(1+$D$6))^(I$28-$D$28) -> 271426496 | J51: =J113*'4g. Funding assumptions'!$I4*'4g. Funding assumptions'!$D4*$V51*((1+$D$5)/(1+$D$6))^(J$28-$D$28) -> 316512366.8 | K51: =K113*'4g. Funding assumptions'!$I4*'4g. Funding assumptions'!$D4*$V51*((1+$D$5)/(1+$D$6))^(K$28-$D$28) -> 366133092.5 | L51: =L113*'4g. Funding assumptions'!$I4*'4g. Funding assumptions'!$D4*$V51*((1+$D$5)/(1+$D$6))^(L$28-$D$28) -> 420692215.5 | M51: =M113*'4g. Funding assumptions'!$I4*'4g. Funding assumptions'!$D4*$V51*((1+$D$5)/(1+$D$6))^(M$28-$D$28) -> 480611321.8 | N51: =N113*'4g. Funding assumptions'!$I4*'4g. Funding assumptions'!$D4*$V51*((1+$D$5)/(1+$D$6))^(N$28-$D$28) -> 546342565 | O51: =O113*'4g. Funding assumptions'!$I4*'4g. Funding assumptions'!$D4*$V51*((1+$D$5)/(1+$D$6))^(O$28-$D$28) -> 618376711.2 | P51: =P113*'4g. Funding assumptions'!$I4*'4g. Funding assumptions'!$D4*$V51*((1+$D$5)/(1+$D$6))^(P$28-$D$28) -> 697243126 | Q51: =Q113*'4g. Funding assumptions'!$I4*'4g. Funding assumptions'!$D4*$V51*((1+$D$5)/(1+$D$6))^(Q$28-$D$28) -> 783511969.5 | R51: =R113*'4g. Funding assumptions'!$I4*'4g. Funding assumptions'!$D4*$V51*((1+$D$5)/(1+$D$6))^(R$28-$D$28) -> 877797908.7 | S51: =S113*'4g. Funding assumptions'!$I4*'4g. Funding assumptions'!$D4*$V51*((1+$D$5)/(1+$D$6))^(S$28-$D$28) -> 980763483.3 | T51: =T113*'4g. Funding assumptions'!$I4*'4g. Funding assumptions'!$D4*$V51*((1+$D$5)/(1+$D$6))^(T$28-$D$28) -> 1093122541 | V51: 3
B52: N4-6 Bus | C52: NSFAS Fee Reqt | D52: =D114*'4g. Funding assumptions'!$I5*'4g. Funding assumptions'!$D5*$V52*((1+$D$5)/(1+$D$6))^(D$28-$D$28) -> 277831292 | E52: =E114*'4g. Funding assumptions'!$I5*'4g. Funding assumptions'!$D5*$V52*((1+$D$5)/(1+$D$6))^(E$28-$D$28) -> 302616874 | F52: =F114*'4g. Funding assumptions'!$I5*'4g. Funding assumptions'!$D5*$V52*((1+$D$5)/(1+$D$6))^(F$28-$D$28) -> 380481585.5 | G52: =G114*'4g. Funding assumptions'!$I5*'4g. Funding assumptions'!$D5*$V52*((1+$D$5)/(1+$D$6))^(G$28-$D$28) -> 462357425.3 | H52: =H114*'4g. Funding assumptions'!$I5*'4g. Funding assumptions'!$D5*$V52*((1+$D$5)/(1+$D$6))^(H$28-$D$28) -> 551521694.2 | I52: =I114*'4g. Funding assumptions'!$I5*'4g. Funding assumptions'!$D5*$V52*((1+$D$5)/(1+$D$6))^(I$28-$D$28) -> 649265712.1 | J52: =J114*'4g. Funding assumptions'!$I5*'4g. Funding assumptions'!$D5*$V52*((1+$D$5)/(1+$D$6))^(J$28-$D$28) -> 756681609.4 | K52: =K114*'4g. Funding assumptions'!$I5*'4g. Funding assumptions'!$D5*$V52*((1+$D$5)/(1+$D$6))^(K$28-$D$28) -> 874856130.3 | L52: =L114*'4g. Funding assumptions'!$I5*'4g. Funding assumptions'!$D5*$V52*((1+$D$5)/(1+$D$6))^(L$28-$D$28) -> 1004692040 | M52: =M114*'4g. Funding assumptions'!$I5*'4g. Funding assumptions'!$D5*$V52*((1+$D$5)/(1+$D$6))^(M$28-$D$28) -> 1147262553 | N52: =N114*'4g. Funding assumptions'!$I5*'4g. Funding assumptions'!$D5*$V52*((1+$D$5)/(1+$D$6))^(N$28-$D$28) -> 1303631899 | O52: =O114*'4g. Funding assumptions'!$I5*'4g. Funding assumptions'!$D5*$V52*((1+$D$5)/(1+$D$6))^(O$28-$D$28) -> 1474981067 | P52: =P114*'4g. Funding assumptions'!$I5*'4g. Funding assumptions'!$D5*$V52*((1+$D$5)/(1+$D$6))^(P$28-$D$28) -> 1662563490 | Q52: =Q114*'4g. Funding assumptions'!$I5*'4g. Funding assumptions'!$D5*$V52*((1+$D$5)/(1+$D$6))^(Q$28-$D$28) -> 1867735952 | R52: =R114*'4g. Funding assumptions'!$I5*'4g. Funding assumptions'!$D5*$V52*((1+$D$5)/(1+$D$6))^(R$28-$D$28) -> 2091958661 | S52: =S114*'4g. Funding assumptions'!$I5*'4g. Funding assumptions'!$D5*$V52*((1+$D$5)/(1+$D$6))^(S$28-$D$28) -> 2336805190 | T52: =T114*'4g. Funding assumptions'!$I5*'4g. Funding assumptions'!$D5*$V52*((1+$D$5)/(1+$D$6))^(T$28-$D$28) -> 2603971235 | V52: 2
B53: N4-6 Ser | C53: NSFAS Fee Reqt | D53: =D115*'4g. Funding assumptions'!$I6*'4g. Funding assumptions'!$D6*$V53*((1+$D$5)/(1+$D$6))^(D$28-$D$28) -> 41988707.67 | E53: =E115*'4g. Funding assumptions'!$I6*'4g. Funding assumptions'!$D6*$V53*((1+$D$5)/(1+$D$6))^(E$28-$D$28) -> 45602274.18 | F53: =F115*'4g. Funding assumptions'!$I6*'4g. Funding assumptions'!$D6*$V53*((1+$D$5)/(1+$D$6))^(F$28-$D$28) -> 57399943.44 | G53: =G115*'4g. Funding assumptions'!$I6*'4g. Funding assumptions'!$D6*$V53*((1+$D$5)/(1+$D$6))^(G$28-$D$28) -> 69737775.45 | H53: =H115*'4g. Funding assumptions'!$I6*'4g. Funding assumptions'!$D6*$V53*((1+$D$5)/(1+$D$6))^(H$28-$D$28) -> 83191617.97 | I53: =I115*'4g. Funding assumptions'!$I6*'4g. Funding assumptions'!$D6*$V53*((1+$D$5)/(1+$D$6))^(I$28-$D$28) -> 97939134.47 | J53: =J115*'4g. Funding assumptions'!$I6*'4g. Funding assumptions'!$D6*$V53*((1+$D$5)/(1+$D$6))^(J$28-$D$28) -> 114140006.2 | K53: =K115*'4g. Funding assumptions'!$I6*'4g. Funding assumptions'!$D6*$V53*((1+$D$5)/(1+$D$6))^(K$28-$D$28) -> 131967880.8 | L53: =L115*'4g. Funding assumptions'!$I6*'4g. Funding assumptions'!$D6*$V53*((1+$D$5)/(1+$D$6))^(L$28-$D$28) -> 151552008.1 | M53: =M115*'4g. Funding assumptions'!$I6*'4g. Funding assumptions'!$D6*$V53*((1+$D$5)/(1+$D$6))^(M$28-$D$28) -> 173058506.9 | N53: =N115*'4g. Funding assumptions'!$I6*'4g. Funding assumptions'!$D6*$V53*((1+$D$5)/(1+$D$6))^(N$28-$D$28) -> 196645787.5 | O53: =O115*'4g. Funding assumptions'!$I6*'4g. Funding assumptions'!$D6*$V53*((1+$D$5)/(1+$D$6))^(O$28-$D$28) -> 222492963.7 | P53: =P115*'4g. Funding assumptions'!$I6*'4g. Funding assumptions'!$D6*$V53*((1+$D$5)/(1+$D$6))^(P$28-$D$28) -> 250788746.2 | Q53: =Q115*'4g. Funding assumptions'!$I6*'4g. Funding assumptions'!$D6*$V53*((1+$D$5)/(1+$D$6))^(Q$28-$D$28) -> 281737907 | R53: =R115*'4g. Funding assumptions'!$I6*'4g. Funding assumptions'!$D6*$V53*((1+$D$5)/(1+$D$6))^(R$28-$D$28) -> 315560700.5 | S53: =S115*'4g. Funding assumptions'!$I6*'4g. Funding assumptions'!$D6*$V53*((1+$D$5)/(1+$D$6))^(S$28-$D$28) -> 352494476.7 | T53: =T115*'4g. Funding assumptions'!$I6*'4g. Funding assumptions'!$D6*$V53*((1+$D$5)/(1+$D$6))^(T$28-$D$28) -> 392795038.5 | V53: 2
B54: NC(V) | C54: NSFAS Accommodation & Transport Reqt | D54: =D111*'4g. Funding assumptions'!$I2*'4g. Funding assumptions'!$J2*$V49*((1+$D$5)/(1+$D$6))^(D$28-$D$28) -> 226024923.8 | E54: =E111*'4g. Funding assumptions'!$I2*'4g. Funding assumptions'!$J2*$V49*((1+$D$5)/(1+$D$6))^(E$28-$D$28) -> 249138938.8 | F54: =F111*'4g. Funding assumptions'!$I2*'4g. Funding assumptions'!$J2*$V49*((1+$D$5)/(1+$D$6))^(F$28-$D$28) -> 332325398 | G54: =G111*'4g. Funding assumptions'!$I2*'4g. Funding assumptions'!$J2*$V49*((1+$D$5)/(1+$D$6))^(G$28-$D$28) -> 377308305.5 | H54: =H111*'4g. Funding assumptions'!$I2*'4g. Funding assumptions'!$J2*$V49*((1+$D$5)/(1+$D$6))^(H$28-$D$28) -> 465596014.8 | I54: =I111*'4g. Funding assumptions'!$I2*'4g. Funding assumptions'!$J2*$V49*((1+$D$5)/(1+$D$6))^(I$28-$D$28) -> 532430834.3 | J54: =J111*'4g. Funding assumptions'!$I2*'4g. Funding assumptions'!$J2*$V49*((1+$D$5)/(1+$D$6))^(J$28-$D$28) -> 631191697.8 | K54: =K111*'4g. Funding assumptions'!$I2*'4g. Funding assumptions'!$J2*$V49*((1+$D$5)/(1+$D$6))^(K$28-$D$28) -> 719102894.6 | L54: =L111*'4g. Funding assumptions'!$I2*'4g. Funding assumptions'!$J2*$V49*((1+$D$5)/(1+$D$6))^(L$28-$D$28) -> 832363850.4 | M54: =M111*'4g. Funding assumptions'!$I2*'4g. Funding assumptions'!$J2*$V49*((1+$D$5)/(1+$D$6))^(M$28-$D$28) -> 943366100.7 | N54: =N111*'4g. Funding assumptions'!$I2*'4g. Funding assumptions'!$J2*$V49*((1+$D$5)/(1+$D$6))^(N$28-$D$28) -> 1075991522 | O54: =O111*'4g. Funding assumptions'!$I2*'4g. Funding assumptions'!$J2*$V49*((1+$D$5)/(1+$D$6))^(O$28-$D$28) -> 1212468772 | P54: =P111*'4g. Funding assumptions'!$I2*'4g. Funding assumptions'!$J2*$V49*((1+$D$5)/(1+$D$6))^(P$28-$D$28) -> 1368944471 | Q54: =Q111*'4g. Funding assumptions'!$I2*'4g. Funding assumptions'!$J2*$V49*((1+$D$5)/(1+$D$6))^(Q$28-$D$28) -> 1534316103 | R54: =R111*'4g. Funding assumptions'!$I2*'4g. Funding assumptions'!$J2*$V49*((1+$D$5)/(1+$D$6))^(R$28-$D$28) -> 1719683872 | S54: =S111*'4g. Funding assumptions'!$I2*'4g. Funding assumptions'!$J2*$V49*((1+$D$5)/(1+$D$6))^(S$28-$D$28) -> 1918299807 | T54: =T111*'4g. Funding assumptions'!$I2*'4g. Funding assumptions'!$J2*$V49*((1+$D$5)/(1+$D$6))^(T$28-$D$28) -> 2138037136
B55: N1-3 Eng | C55: NSFAS Accommodation & Transport Reqt | D55: =D112*'4g. Funding assumptions'!$I3*'4g. Funding assumptions'!$J3*$V50*((1+$D$5)/(1+$D$6))^(D$28-$D$28) -> 49695018.18 | E55: =E112*'4g. Funding assumptions'!$I3*'4g. Funding assumptions'!$J3*$V50*((1+$D$5)/(1+$D$6))^(E$28-$D$28) -> 55529734.45 | F55: =F112*'4g. Funding assumptions'!$I3*'4g. Funding assumptions'!$J3*$V50*((1+$D$5)/(1+$D$6))^(F$28-$D$28) -> 69516821.57 | G55: =G112*'4g. Funding assumptions'!$I3*'4g. Funding assumptions'!$J3*$V50*((1+$D$5)/(1+$D$6))^(G$28-$D$28) -> 83953472.15 | H55: =H112*'4g. Funding assumptions'!$I3*'4g. Funding assumptions'!$J3*$V50*((1+$D$5)/(1+$D$6))^(H$28-$D$28) -> 100016409.5 | I55: =I112*'4g. Funding assumptions'!$I3*'4g. Funding assumptions'!$J3*$V50*((1+$D$5)/(1+$D$6))^(I$28-$D$28) -> 117756621 | J55: =J112*'4g. Funding assumptions'!$I3*'4g. Funding assumptions'!$J3*$V50*((1+$D$5)/(1+$D$6))^(J$28-$D$28) -> 137310216.8 | K55: =K112*'4g. Funding assumptions'!$I3*'4g. Funding assumptions'!$J3*$V50*((1+$D$5)/(1+$D$6))^(K$28-$D$28) -> 158832907.6 | L55: =L112*'4g. Funding assumptions'!$I3*'4g. Funding assumptions'!$J3*$V50*((1+$D$5)/(1+$D$6))^(L$28-$D$28) -> 182497700 | M55: =M112*'4g. Funding assumptions'!$I3*'4g. Funding assumptions'!$J3*$V50*((1+$D$5)/(1+$D$6))^(M$28-$D$28) -> 208486634.3 | N55: =N112*'4g. Funding assumptions'!$I3*'4g. Funding assumptions'!$J3*$V50*((1+$D$5)/(1+$D$6))^(N$28-$D$28) -> 236996438.9 | O55: =O112*'4g. Funding assumptions'!$I3*'4g. Funding assumptions'!$J3*$V50*((1+$D$5)/(1+$D$6))^(O$28-$D$28) -> 268240035.8 | P55: =P112*'4g. Funding assumptions'!$I3*'4g. Funding assumptions'!$J3*$V50*((1+$D$5)/(1+$D$6))^(P$28-$D$28) -> 302446865.1 | Q55: =Q112*'4g. Funding assumptions'!$I3*'4g. Funding assumptions'!$J3*$V50*((1+$D$5)/(1+$D$6))^(Q$28-$D$28) -> 339864219.1 | R55: =R112*'4g. Funding assumptions'!$I3*'4g. Funding assumptions'!$J3*$V50*((1+$D$5)/(1+$D$6))^(R$28-$D$28) -> 380758713.7 | S55: =S112*'4g. Funding assumptions'!$I3*'4g. Funding assumptions'!$J3*$V50*((1+$D$5)/(1+$D$6))^(S$28-$D$28) -> 425417689.8 | T55: =T112*'4g. Funding assumptions'!$I3*'4g. Funding assumptions'!$J3*$V50*((1+$D$5)/(1+$D$6))^(T$28-$D$28) -> 474150743.1
B56: N4-6 Eng | C56: NSFAS Accommodation & Transport Reqt | D56: =D113*'4g. Funding assumptions'!$I4*'4g. Funding assumptions'!$J4*$V51*((1+$D$5)/(1+$D$6))^(D$28-$D$28) -> 21909174.5 | E56: =E113*'4g. Funding assumptions'!$I4*'4g. Funding assumptions'!$J4*$V51*((1+$D$5)/(1+$D$6))^(E$28-$D$28) -> 24575606.77 | F56: =F113*'4g. Funding assumptions'!$I4*'4g. Funding assumptions'!$J4*$V51*((1+$D$5)/(1+$D$6))^(F$28-$D$28) -> 30751032.9 | G56: =G113*'4g. Funding assumptions'!$I4*'4g. Funding assumptions'!$J4*$V51*((1+$D$5)/(1+$D$6))^(G$28-$D$28) -> 37148790.79 | H56: =H113*'4g. Funding assumptions'!$I4*'4g. Funding assumptions'!$J4*$V51*((1+$D$5)/(1+$D$6))^(H$28-$D$28) -> 44252669.38 | I56: =I113*'4g. Funding assumptions'!$I4*'4g. Funding assumptions'!$J4*$V51*((1+$D$5)/(1+$D$6))^(I$28-$D$28) -> 52104140.61 | J56: =J113*'4g. Funding assumptions'!$I4*'4g. Funding assumptions'!$J4*$V51*((1+$D$5)/(1+$D$6))^(J$28-$D$28) -> 60759008.82 | K56: =K113*'4g. Funding assumptions'!$I4*'4g. Funding assumptions'!$J4*$V51*((1+$D$5)/(1+$D$6))^(K$28-$D$28) -> 70284406.32 | L56: =L113*'4g. Funding assumptions'!$I4*'4g. Funding assumptions'!$J4*$V51*((1+$D$5)/(1+$D$6))^(L$28-$D$28) -> 80757798.77 | M56: =M113*'4g. Funding assumptions'!$I4*'4g. Funding assumptions'!$J4*$V51*((1+$D$5)/(1+$D$6))^(M$28-$D$28) -> 92260115.57 | N56: =N113*'4g. Funding assumptions'!$I4*'4g. Funding assumptions'!$J4*$V51*((1+$D$5)/(1+$D$6))^(N$28-$D$28) -> 104878153.9 | O56: =O113*'4g. Funding assumptions'!$I4*'4g. Funding assumptions'!$J4*$V51*((1+$D$5)/(1+$D$6))^(O$28-$D$28) -> 118706123.3 | P56: =P113*'4g. Funding assumptions'!$I4*'4g. Funding assumptions'!$J4*$V51*((1+$D$5)/(1+$D$6))^(P$28-$D$28) -> 133845643 | Q56: =Q113*'4g. Funding assumptions'!$I4*'4g. Funding assumptions'!$J4*$V51*((1+$D$5)/(1+$D$6))^(Q$28-$D$28) -> 150406163.1 | R56: =R113*'4g. Funding assumptions'!$I4*'4g. Funding assumptions'!$J4*$V51*((1+$D$5)/(1+$D$6))^(R$28-$D$28) -> 168505677.7 | S56: =S113*'4g. Funding assumptions'!$I4*'4g. Funding assumptions'!$J4*$V51*((1+$D$5)/(1+$D$6))^(S$28-$D$28) -> 188271370.7 | T56: =T113*'4g. Funding assumptions'!$I4*'4g. Funding assumptions'!$J4*$V51*((1+$D$5)/(1+$D$6))^(T$28-$D$28) -> 209840275.1
B57: N4-6 Bus | C57: NSFAS Accommodation & Transport Reqt | D57: =D114*'4g. Funding assumptions'!$I5*'4g. Funding assumptions'!$J5*$V52*((1+$D$5)/(1+$D$6))^(D$28-$D$28) -> 77226247.47 | E57: =E114*'4g. Funding assumptions'!$I5*'4g. Funding assumptions'!$J5*$V52*((1+$D$5)/(1+$D$6))^(E$28-$D$28) -> 84115671.19 | F57: =F114*'4g. Funding assumptions'!$I5*'4g. Funding assumptions'!$J5*$V52*((1+$D$5)/(1+$D$6))^(F$28-$D$28) -> 105759019.7 | G57: =G114*'4g. Funding assumptions'!$I5*'4g. Funding assumptions'!$J5*$V52*((1+$D$5)/(1+$D$6))^(G$28-$D$28) -> 128517305.2 | H57: =H114*'4g. Funding assumptions'!$I5*'4g. Funding assumptions'!$J5*$V52*((1+$D$5)/(1+$D$6))^(H$28-$D$28) -> 153301489.3 | I57: =I114*'4g. Funding assumptions'!$I5*'4g. Funding assumptions'!$J5*$V52*((1+$D$5)/(1+$D$6))^(I$28-$D$28) -> 180470508.6 | J57: =J114*'4g. Funding assumptions'!$I5*'4g. Funding assumptions'!$J5*$V52*((1+$D$5)/(1+$D$6))^(J$28-$D$28) -> 210327932.5 | K57: =K114*'4g. Funding assumptions'!$I5*'4g. Funding assumptions'!$J5*$V52*((1+$D$5)/(1+$D$6))^(K$28-$D$28) -> 243175833.6 | L57: =L114*'4g. Funding assumptions'!$I5*'4g. Funding assumptions'!$J5*$V52*((1+$D$5)/(1+$D$6))^(L$28-$D$28) -> 279265145.2 | M57: =M114*'4g. Funding assumptions'!$I5*'4g. Funding assumptions'!$J5*$V52*((1+$D$5)/(1+$D$6))^(M$28-$D$28) -> 318894179.2 | N57: =N114*'4g. Funding assumptions'!$I5*'4g. Funding assumptions'!$J5*$V52*((1+$D$5)/(1+$D$6))^(N$28-$D$28) -> 362358749.8 | O57: =O114*'4g. Funding assumptions'!$I5*'4g. Funding assumptions'!$J5*$V52*((1+$D$5)/(1+$D$6))^(O$28-$D$28) -> 409987126.1 | P57: =P114*'4g. Funding assumptions'!$I5*'4g. Funding assumptions'!$J5*$V52*((1+$D$5)/(1+$D$6))^(P$28-$D$28) -> 462127713 | Q57: =Q114*'4g. Funding assumptions'!$I5*'4g. Funding assumptions'!$J5*$V52*((1+$D$5)/(1+$D$6))^(Q$28-$D$28) -> 519157643.4 | R57: =R114*'4g. Funding assumptions'!$I5*'4g. Funding assumptions'!$J5*$V52*((1+$D$5)/(1+$D$6))^(R$28-$D$28) -> 581482798.8 | S57: =S114*'4g. Funding assumptions'!$I5*'4g. Funding assumptions'!$J5*$V52*((1+$D$5)/(1+$D$6))^(S$28-$D$28) -> 649540570.5 | T57: =T114*'4g. Funding assumptions'!$I5*'4g. Funding assumptions'!$J5*$V52*((1+$D$5)/(1+$D$6))^(T$28-$D$28) -> 723802295.8
B58: N4-6 Ser | C58: NSFAS Accommodation & Transport Reqt | D58: =D115*'4g. Funding assumptions'!$I6*'4g. Funding assumptions'!$J6*$V53*((1+$D$5)/(1+$D$6))^(D$28-$D$28) -> 7211265.496 | E58: =E115*'4g. Funding assumptions'!$I6*'4g. Funding assumptions'!$J6*$V53*((1+$D$5)/(1+$D$6))^(E$28-$D$28) -> 7831870.152 | F58: =F115*'4g. Funding assumptions'!$I6*'4g. Funding assumptions'!$J6*$V53*((1+$D$5)/(1+$D$6))^(F$28-$D$28) -> 9858036.947 | G58: =G115*'4g. Funding assumptions'!$I6*'4g. Funding assumptions'!$J6*$V53*((1+$D$5)/(1+$D$6))^(G$28-$D$28) -> 11976972.9 | H58: =H115*'4g. Funding assumptions'!$I6*'4g. Funding assumptions'!$J6*$V53*((1+$D$5)/(1+$D$6))^(H$28-$D$28) -> 14287575.81 | I58: =I115*'4g. Funding assumptions'!$I6*'4g. Funding assumptions'!$J6*$V53*((1+$D$5)/(1+$D$6))^(I$28-$D$28) -> 16820358.15 | J58: =J115*'4g. Funding assumptions'!$I6*'4g. Funding assumptions'!$J6*$V53*((1+$D$5)/(1+$D$6))^(J$28-$D$28) -> 19602744.02 | K58: =K115*'4g. Funding assumptions'!$I6*'4g. Funding assumptions'!$J6*$V53*((1+$D$5)/(1+$D$6))^(K$28-$D$28) -> 22664556.22 | L58: =L115*'4g. Funding assumptions'!$I6*'4g. Funding assumptions'!$J6*$V53*((1+$D$5)/(1+$D$6))^(L$28-$D$28) -> 26027992.47 | M58: =M115*'4g. Funding assumptions'!$I6*'4g. Funding assumptions'!$J6*$V53*((1+$D$5)/(1+$D$6))^(M$28-$D$28) -> 29721582.51 | N58: =N115*'4g. Funding assumptions'!$I6*'4g. Funding assumptions'!$J6*$V53*((1+$D$5)/(1+$D$6))^(N$28-$D$28) -> 33772532.21 | O58: =O115*'4g. Funding assumptions'!$I6*'4g. Funding assumptions'!$J6*$V53*((1+$D$5)/(1+$D$6))^(O$28-$D$28) -> 38211603.11 | P58: =P115*'4g. Funding assumptions'!$I6*'4g. Funding assumptions'!$J6*$V53*((1+$D$5)/(1+$D$6))^(P$28-$D$28) -> 43071204.92 | Q58: =Q115*'4g. Funding assumptions'!$I6*'4g. Funding assumptions'!$J6*$V53*((1+$D$5)/(1+$D$6))^(Q$28-$D$28) -> 48386505.8 | R58: =R115*'4g. Funding assumptions'!$I6*'4g. Funding assumptions'!$J6*$V53*((1+$D$5)/(1+$D$6))^(R$28-$D$28) -> 54195332.92 | S58: =S115*'4g. Funding assumptions'!$I6*'4g. Funding assumptions'!$J6*$V53*((1+$D$5)/(1+$D$6))^(S$28-$D$28) -> 60538449.45 | T58: =T115*'4g. Funding assumptions'!$I6*'4g. Funding assumptions'!$J6*$V53*((1+$D$5)/(1+$D$6))^(T$28-$D$28) -> 67459787.77
B59: Total | C59: Direct Programme Costs | D59: =SUM('4e. Enrolment Model'!D$195:D$209) -> 458352302.8 | E59: =SUM('4e. Enrolment Model'!E$195:E$209) -> 554378172.2 | F59: =SUM('4e. Enrolment Model'!F$195:F$209) -> 712355518.2 | G59: =SUM('4e. Enrolment Model'!G$195:G$209) -> 877257186.7 | H59: =SUM('4e. Enrolment Model'!H$195:H$209) -> 1063617917 | I59: =SUM('4e. Enrolment Model'!I$195:I$209) -> 1262700484 | J59: =SUM('4e. Enrolment Model'!J$195:J$209) -> 1481532078 | K59: =SUM('4e. Enrolment Model'!K$195:K$209) -> 1714381789 | L59: =SUM('4e. Enrolment Model'!L$195:L$209) -> 1966008675 | M59: =SUM('4e. Enrolment Model'!M$195:M$209) -> 2232613353 | N59: =SUM('4e. Enrolment Model'!N$195:N$209) -> 2517264731 | O59: =SUM('4e. Enrolment Model'!O$195:O$209) -> 2817484637 | P59: =SUM('4e. Enrolment Model'!P$195:P$209) -> 3135258692 | Q59: =SUM('4e. Enrolment Model'!Q$195:Q$209) -> 3469003108 | R59: =SUM('4e. Enrolment Model'!R$195:R$209) -> 3819985780 | S59: =SUM('4e. Enrolment Model'!S$195:S$209) -> 4187195532 | T59: =SUM('4e. Enrolment Model'!T$195:T$209) -> 4304552754
B60: Total | C60: Lecturing Costs (incl academic support) | D60: =SUM('4e. Enrolment Model'!D$180:D$194)+D78 -> 3429258279 | E60: =SUM('4e. Enrolment Model'!E$180:E$194)+E78 -> 3762628433 | F60: =SUM('4e. Enrolment Model'!F$180:F$194)+F78 -> 4701402668 | G60: =SUM('4e. Enrolment Model'!G$180:G$194)+G78 -> 5670112269 | H60: =SUM('4e. Enrolment Model'!H$180:H$194)+H78 -> 6776735703 | I60: =SUM('4e. Enrolment Model'!I$180:I$194)+I78 -> 7969339562 | J60: =SUM('4e. Enrolment Model'!J$180:J$194)+J78 -> 9306458560 | K60: =SUM('4e. Enrolment Model'!K$180:K$194)+K78 -> 1.07592733e+10 | L60: =SUM('4e. Enrolment Model'!L$180:L$194)+L78 -> 1.237187057e+10 | M60: =SUM('4e. Enrolment Model'!M$180:M$194)+M78 -> 1.413062291e+10 | N60: =SUM('4e. Enrolment Model'!N$180:N$194)+N78 -> 1.607002479e+10 | O60: =SUM('4e. Enrolment Model'!O$180:O$194)+O78 -> 1.818736478e+10 | P60: =SUM('4e. Enrolment Model'!P$180:P$194)+P78 -> 2.051209468e+10 | Q60: =SUM('4e. Enrolment Model'!Q$180:Q$194)+Q78 -> 2.304981447e+10 | R60: =SUM('4e. Enrolment Model'!R$180:R$194)+R78 -> 2.582772193e+10 | S60: =SUM('4e. Enrolment Model'!S$180:S$194)+S78 -> 2.88579642e+10 | T60: =SUM('4e. Enrolment Model'!T$180:T$194)+T78 -> 3.216752156e+10
B61: Total | C61: Support Staff & Management Costs | D61: =($D$19+$D$20*SUM(D79:D83)/$D$4*((1+$D$5)/(1+$D$6))^(D$28-$D$28))*$D$4*(1-'4c. Enrolment Assumptions'!E$75*(1-'2c. Secondary Cost Dashb'!$D$33)) -> 1477691853 | E61: =($D$19+$D$20*SUM(E79:E83)/$D$4*((1+$D$5)/(1+$D$6))^(E$28-$D$28))*$D$4*(1-'4c. Enrolment Assumptions'!F$75*(1-'2c. Secondary Cost Dashb'!$D$33)) -> 1566495339 | F61: =($D$19+$D$20*SUM(F79:F83)/$D$4*((1+$D$5)/(1+$D$6))^(F$28-$D$28))*$D$4*(1-'4c. Enrolment Assumptions'!G$75*(1-'2c. Secondary Cost Dashb'!$D$33)) -> 1809989981 | G61: =($D$19+$D$20*SUM(G79:G83)/$D$4*((1+$D$5)/(1+$D$6))^(G$28-$D$28))*$D$4*(1-'4c. Enrolment Assumptions'!H$75*(1-'2c. Secondary Cost Dashb'!$D$33)) -> 2061550837 | H61: =($D$19+$D$20*SUM(H79:H83)/$D$4*((1+$D$5)/(1+$D$6))^(H$28-$D$28))*$D$4*(1-'4c. Enrolment Assumptions'!I$75*(1-'2c. Secondary Cost Dashb'!$D$33)) -> 2346826499 | I61: =($D$19+$D$20*SUM(I79:I83)/$D$4*((1+$D$5)/(1+$D$6))^(I$28-$D$28))*$D$4*(1-'4c. Enrolment Assumptions'!J$75*(1-'2c. Secondary Cost Dashb'!$D$33)) -> 2655791683 | J61: =($D$19+$D$20*SUM(J79:J83)/$D$4*((1+$D$5)/(1+$D$6))^(J$28-$D$28))*$D$4*(1-'4c. Enrolment Assumptions'!K$75*(1-'2c. Secondary Cost Dashb'!$D$33)) -> 3000783790 | K61: =($D$19+$D$20*SUM(K79:K83)/$D$4*((1+$D$5)/(1+$D$6))^(K$28-$D$28))*$D$4*(1-'4c. Enrolment Assumptions'!L$75*(1-'2c. Secondary Cost Dashb'!$D$33)) -> 3376707489 | L61: =($D$19+$D$20*SUM(L79:L83)/$D$4*((1+$D$5)/(1+$D$6))^(L$28-$D$28))*$D$4*(1-'4c. Enrolment Assumptions'!M$75*(1-'2c. Secondary Cost Dashb'!$D$33)) -> 3793070252 | M61: =($D$19+$D$20*SUM(M79:M83)/$D$4*((1+$D$5)/(1+$D$6))^(M$28-$D$28))*$D$4*(1-'4c. Enrolment Assumptions'!N$75*(1-'2c. Secondary Cost Dashb'!$D$33)) -> 4247869006 | N61: =($D$19+$D$20*SUM(N79:N83)/$D$4*((1+$D$5)/(1+$D$6))^(N$28-$D$28))*$D$4*(1-'4c. Enrolment Assumptions'!O$75*(1-'2c. Secondary Cost Dashb'!$D$33)) -> 4748790195 | O61: =($D$19+$D$20*SUM(O79:O83)/$D$4*((1+$D$5)/(1+$D$6))^(O$28-$D$28))*$D$4*(1-'4c. Enrolment Assumptions'!P$75*(1-'2c. Secondary Cost Dashb'!$D$33)) -> 5296132276 | P61: =($D$19+$D$20*SUM(P79:P83)/$D$4*((1+$D$5)/(1+$D$6))^(P$28-$D$28))*$D$4*(1-'4c. Enrolment Assumptions'!Q$75*(1-'2c. Secondary Cost Dashb'!$D$33)) -> 5896698518 | Q61: =($D$19+$D$20*SUM(Q79:Q83)/$D$4*((1+$D$5)/(1+$D$6))^(Q$28-$D$28))*$D$4*(1-'4c. Enrolment Assumptions'!R$75*(1-'2c. Secondary Cost Dashb'!$D$33)) -> 6552586222 | R61: =($D$19+$D$20*SUM(R79:R83)/$D$4*((1+$D$5)/(1+$D$6))^(R$28-$D$28))*$D$4*(1-'4c. Enrolment Assumptions'!S$75*(1-'2c. Secondary Cost Dashb'!$D$33)) -> 7270294036 | S61: =($D$19+$D$20*SUM(S79:S83)/$D$4*((1+$D$5)/(1+$D$6))^(S$28-$D$28))*$D$4*(1-'4c. Enrolment Assumptions'!T$75*(1-'2c. Secondary Cost Dashb'!$D$33)) -> 8053388150 | T61: =($D$19+$D$20*SUM(T79:T83)/$D$4*((1+$D$5)/(1+$D$6))^(T$28-$D$28))*$D$4*(1-'4c. Enrolment Assumptions'!U$75*(1-'2c. Secondary Cost Dashb'!$D$33)) -> 8908493101
B62: Total | C62: Membership costs | D62: =SUM('4e. Enrolment Model'!D$165:D$179)*$D$22*((1+$D$5)/(1+$D$6))^(D$28-$D$28) -> 9760391.619 | E62: =SUM('4e. Enrolment Model'!E$165:E$179)*$D$22*((1+$D$5)/(1+$D$6))^(E$28-$D$28) -> 10708483.71 | F62: =SUM('4e. Enrolment Model'!F$165:F$179)*$D$22*((1+$D$5)/(1+$D$6))^(F$28-$D$28) -> 13380013.19 | G62: =SUM('4e. Enrolment Model'!G$165:G$179)*$D$22*((1+$D$5)/(1+$D$6))^(G$28-$D$28) -> 16136654.06 | H62: =SUM('4e. Enrolment Model'!H$165:H$179)*$D$22*((1+$D$5)/(1+$D$6))^(H$28-$D$28) -> 19286293.88 | I62: =SUM('4e. Enrolment Model'!I$165:I$179)*$D$22*((1+$D$5)/(1+$D$6))^(I$28-$D$28) -> 22680256.69 | J62: =SUM('4e. Enrolment Model'!J$165:J$179)*$D$22*((1+$D$5)/(1+$D$6))^(J$28-$D$28) -> 26485849.95 | K62: =SUM('4e. Enrolment Model'!K$165:K$179)*$D$22*((1+$D$5)/(1+$D$6))^(K$28-$D$28) -> 30620448.63 | L62: =SUM('4e. Enrolment Model'!L$165:L$179)*$D$22*((1+$D$5)/(1+$D$6))^(L$28-$D$28) -> 35210008.88 | M62: =SUM('4e. Enrolment Model'!M$165:M$179)*$D$22*((1+$D$5)/(1+$D$6))^(M$28-$D$28) -> 40215356.4 | N62: =SUM('4e. Enrolment Model'!N$165:N$179)*$D$22*((1+$D$5)/(1+$D$6))^(N$28-$D$28) -> 45734978.39 | O62: =SUM('4e. Enrolment Model'!O$165:O$179)*$D$22*((1+$D$5)/(1+$D$6))^(O$28-$D$28) -> 51760901.23 | P62: =SUM('4e. Enrolment Model'!P$165:P$179)*$D$22*((1+$D$5)/(1+$D$6))^(P$28-$D$28) -> 58377152.62 | Q62: =SUM('4e. Enrolment Model'!Q$165:Q$179)*$D$22*((1+$D$5)/(1+$D$6))^(Q$28-$D$28) -> 65599503.06 | R62: =SUM('4e. Enrolment Model'!R$165:R$179)*$D$22*((1+$D$5)/(1+$D$6))^(R$28-$D$28) -> 73505493.87 | S62: =SUM('4e. Enrolment Model'!S$165:S$179)*$D$22*((1+$D$5)/(1+$D$6))^(S$28-$D$28) -> 82129586.07 | T62: =SUM('4e. Enrolment Model'!T$165:T$179)*$D$22*((1+$D$5)/(1+$D$6))^(T$28-$D$28) -> 91548655.2
B63: Total | C63: Staff Development costs | D63: =(D60+D61)*$D$23 -> 56668559.35 | E63: =(E60+E61)*$D$23 -> 61544087.19 | F63: 75197674.9 | G63: 89290128.86 | H63: 105364658.7 | I63: 122705726.4 | J63: 142131807.9 | K63: 163251234.5 | L63: 186682946.4 | M63: 212246432.5 | N63: 240428824.6 | O63: 271202256.2 | P63: 304985423.6 | Q63: 341867220 | R63: 382236793.1 | S63: 426275610.1 | T63: 474371760.8
B64: Total | C64: Indirect G&S costs | D64: =($D$24+$D$25*SUM('4e. Enrolment Model'!D$150:D$164)/$D$4*((1+$D$5)/(1+$D$6))^(D$28-$D$28))*$D$4*(1-'4c. Enrolment Assumptions'!E$75*(1-'2c. Secondary Cost Dashb'!$D$33)) -> 2027922376 | E64: =($D$24+$D$25*SUM('4e. Enrolment Model'!E$150:E$164)/$D$4*((1+$D$5)/(1+$D$6))^(E$28-$D$28))*$D$4*(1-'4c. Enrolment Assumptions'!F$75*(1-'2c. Secondary Cost Dashb'!$D$33)) -> 2154118733 | F64: =($D$24+$D$25*SUM('4e. Enrolment Model'!F$150:F$164)/$D$4*((1+$D$5)/(1+$D$6))^(F$28-$D$28))*$D$4*(1-'4c. Enrolment Assumptions'!G$75*(1-'2c. Secondary Cost Dashb'!$D$33)) -> 2500142723 | G64: =($D$24+$D$25*SUM('4e. Enrolment Model'!G$150:G$164)/$D$4*((1+$D$5)/(1+$D$6))^(G$28-$D$28))*$D$4*(1-'4c. Enrolment Assumptions'!H$75*(1-'2c. Secondary Cost Dashb'!$D$33)) -> 2857629403 | H64: =($D$24+$D$25*SUM('4e. Enrolment Model'!H$150:H$164)/$D$4*((1+$D$5)/(1+$D$6))^(H$28-$D$28))*$D$4*(1-'4c. Enrolment Assumptions'!I$75*(1-'2c. Secondary Cost Dashb'!$D$33)) -> 3263027331 | I64: =($D$24+$D$25*SUM('4e. Enrolment Model'!I$150:I$164)/$D$4*((1+$D$5)/(1+$D$6))^(I$28-$D$28))*$D$4*(1-'4c. Enrolment Assumptions'!J$75*(1-'2c. Secondary Cost Dashb'!$D$33)) -> 3702089829 | J64: =($D$24+$D$25*SUM('4e. Enrolment Model'!J$150:J$164)/$D$4*((1+$D$5)/(1+$D$6))^(J$28-$D$28))*$D$4*(1-'4c. Enrolment Assumptions'!K$75*(1-'2c. Secondary Cost Dashb'!$D$33)) -> 4192349264 | K64: =($D$24+$D$25*SUM('4e. Enrolment Model'!K$150:K$164)/$D$4*((1+$D$5)/(1+$D$6))^(K$28-$D$28))*$D$4*(1-'4c. Enrolment Assumptions'!L$75*(1-'2c. Secondary Cost Dashb'!$D$33)) -> 4726564791 | L64: =($D$24+$D$25*SUM('4e. Enrolment Model'!L$150:L$164)/$D$4*((1+$D$5)/(1+$D$6))^(L$28-$D$28))*$D$4*(1-'4c. Enrolment Assumptions'!M$75*(1-'2c. Secondary Cost Dashb'!$D$33)) -> 5318247234 | M64: =($D$24+$D$25*SUM('4e. Enrolment Model'!M$150:M$164)/$D$4*((1+$D$5)/(1+$D$6))^(M$28-$D$28))*$D$4*(1-'4c. Enrolment Assumptions'!N$75*(1-'2c. Secondary Cost Dashb'!$D$33)) -> 5964550080 | N64: =($D$24+$D$25*SUM('4e. Enrolment Model'!N$150:N$164)/$D$4*((1+$D$5)/(1+$D$6))^(N$28-$D$28))*$D$4*(1-'4c. Enrolment Assumptions'!O$75*(1-'2c. Secondary Cost Dashb'!$D$33)) -> 6676396334 | O64: =($D$24+$D$25*SUM('4e. Enrolment Model'!O$150:O$164)/$D$4*((1+$D$5)/(1+$D$6))^(O$28-$D$28))*$D$4*(1-'4c. Enrolment Assumptions'!P$75*(1-'2c. Secondary Cost Dashb'!$D$33)) -> 7454210127 | P64: =($D$24+$D$25*SUM('4e. Enrolment Model'!P$150:P$164)/$D$4*((1+$D$5)/(1+$D$6))^(P$28-$D$28))*$D$4*(1-'4c. Enrolment Assumptions'!Q$75*(1-'2c. Secondary Cost Dashb'!$D$33)) -> 8307659410 | Q64: =($D$24+$D$25*SUM('4e. Enrolment Model'!Q$150:Q$164)/$D$4*((1+$D$5)/(1+$D$6))^(Q$28-$D$28))*$D$4*(1-'4c. Enrolment Assumptions'!R$75*(1-'2c. Secondary Cost Dashb'!$D$33)) -> 9239724604 | R64: =($D$24+$D$25*SUM('4e. Enrolment Model'!R$150:R$164)/$D$4*((1+$D$5)/(1+$D$6))^(R$28-$D$28))*$D$4*(1-'4c. Enrolment Assumptions'!S$75*(1-'2c. Secondary Cost Dashb'!$D$33)) -> 1.025964077e+10 | S64: =($D$24+$D$25*SUM('4e. Enrolment Model'!S$150:S$164)/$D$4*((1+$D$5)/(1+$D$6))^(S$28-$D$28))*$D$4*(1-'4c. Enrolment Assumptions'!T$75*(1-'2c. Secondary Cost Dashb'!$D$33)) -> 1.137247573e+10 | T64: =($D$24+$D$25*SUM('4e. Enrolment Model'!T$150:T$164)/$D$4*((1+$D$5)/(1+$D$6))^(T$28-$D$28))*$D$4*(1-'4c. Enrolment Assumptions'!U$75*(1-'2c. Secondary Cost Dashb'!$D$33)) -> 1.258764345e+10
B65: Other | C65: Total Cost other programmes | D65: =D156 -> 1025729500 | E65: =E156 -> 1113070750 | F65: 1376222582 | G65: 1667726598 | H65: 1990086911 | I65: 2346009163 | J65: 2738415879 | K65: 3170462970 | L65: 3645557428 | M65: 4167376341 | N65: 4739887275 | O65: 5367370171 | P65: 6054440819 | Q65: 6806076056 | R65: 7627640792 | S65: 8524916999 | T65: 9504134805
B66: Total | C66: Total Costs | D66: =SUM(D59:D65) -> 8485383262 | E66: =SUM(E59:E65) -> 9222943998 | F66: 1.118869116e+10 | G66: 1.323970308e+10 | H66: 1.556494531e+10 | I66: 1.80813167e+10 | J66: 2.088815723e+10 | K66: 2.394126203e+10 | L66: 2.731664711e+10 | M66: 3.099549348e+10 | N66: 3.503852713e+10 | O66: 3.944552515e+10 | P66: 4.426951469e+10 | Q66: 4.952467118e+10 | R66: 5.52610256e+10 | S66: 6.150434581e+10 | T66: 6.803826608e+10
B67: Total | C67: Total NSFAS | D67: =SUM(D49:D58) -> 1909763004 | E67: =SUM(E49:E58) -> 2106948664 | F67: 2735928035 | G67: 3195522422 | H67: 3883481170 | I67: 4498283682 | J67: 5293249090 | K67: 6070577056 | L67: 7003037204 | M67: 7964242739 | N67: 9069594163 | O67: 1.023930435e+10 | P67: 1.155303929e+10 | Q67: 1.296287609e+10 | R67: 1.45254281e+10 | S67: 1.621388536e+10 | T67: 1.807044247e+10
B68: NC(V) | C68: Academic Support Costs per student | D68: 0 | E68: =IF('2c. Secondary Cost Dashb'!$D$17='4j. List options'!$B$2,($D68+($T68-$D68)/($T$28-$D$28)*(E$28-$D$28))*(1+$D$17)/(1+$D$6),IF(E$28>='2c. Secondary Cost Dashb'!$E$17,$T68/((1+$D$17)/(1+$D$6))^($T$28-E$28),$D68*((1+$D$17)/(1+$D$6))^(E$28-$D$28))) -> 0 | F68: =IF('2c. Secondary Cost Dashb'!$D$17='4j. List options'!$B$2,($D68+($T68-$D68)/($T$28-$D$28)*(F$28-$D$28))*(1+$D$17)/(1+$D$6),IF(F$28>='2c. Secondary Cost Dashb'!$E$17,$T68/((1+$D$17)/(1+$D$6))^($T$28-F$28),$D68*((1+$D$17)/(1+$D$6))^(F$28-$D$28))) -> 0 | G68: =IF('2c. Secondary Cost Dashb'!$D$17='4j. List options'!$B$2,($D68+($T68-$D68)/($T$28-$D$28)*(G$28-$D$28))*(1+$D$17)/(1+$D$6),IF(G$28>='2c. Secondary Cost Dashb'!$E$17,$T68/((1+$D$17)/(1+$D$6))^($T$28-G$28),$D68*((1+$D$17)/(1+$D$6))^(G$28-$D$28))) -> 0 | H68: =IF('2c. Secondary Cost Dashb'!$D$17='4j. List options'!$B$2,($D68+($T68-$D68)/($T$28-$D$28)*(H$28-$D$28))*(1+$D$17)/(1+$D$6),IF(H$28>='2c. Secondary Cost Dashb'!$E$17,$T68/((1+$D$17)/(1+$D$6))^($T$28-H$28),$D68*((1+$D$17)/(1+$D$6))^(H$28-$D$28))) -> 0 | I68: =IF('2c. Secondary Cost Dashb'!$D$17='4j. List options'!$B$2,($D68+($T68-$D68)/($T$28-$D$28)*(I$28-$D$28))*(1+$D$17)/(1+$D$6),IF(I$28>='2c. Secondary Cost Dashb'!$E$17,$T68/((1+$D$17)/(1+$D$6))^($T$28-I$28),$D68*((1+$D$17)/(1+$D$6))^(I$28-$D$28))) -> 0 | J68: =IF('2c. Secondary Cost Dashb'!$D$17='4j. List options'!$B$2,($D68+($T68-$D68)/($T$28-$D$28)*(J$28-$D$28))*(1+$D$17)/(1+$D$6),IF(J$28>='2c. Secondary Cost Dashb'!$E$17,$T68/((1+$D$17)/(1+$D$6))^($T$28-J$28),$D68*((1+$D$17)/(1+$D$6))^(J$28-$D$28))) -> 0 | K68: =IF('2c. Secondary Cost Dashb'!$D$17='4j. List options'!$B$2,($D68+($T68-$D68)/($T$28-$D$28)*(K$28-$D$28))*(1+$D$17)/(1+$D$6),IF(K$28>='2c. Secondary Cost Dashb'!$E$17,$T68/((1+$D$17)/(1+$D$6))^($T$28-K$28),$D68*((1+$D$17)/(1+$D$6))^(K$28-$D$28))) -> 0 | L68: =IF('2c. Secondary Cost Dashb'!$D$17='4j. List options'!$B$2,($D68+($T68-$D68)/($T$28-$D$28)*(L$28-$D$28))*(1+$D$17)/(1+$D$6),IF(L$28>='2c. Secondary Cost Dashb'!$E$17,$T68/((1+$D$17)/(1+$D$6))^($T$28-L$28),$D68*((1+$D$17)/(1+$D$6))^(L$28-$D$28))) -> 0 | M68: =IF('2c. Secondary Cost Dashb'!$D$17='4j. List options'!$B$2,($D68+($T68-$D68)/($T$28-$D$28)*(M$28-$D$28))*(1+$D$17)/(1+$D$6),IF(M$28>='2c. Secondary Cost Dashb'!$E$17,$T68/((1+$D$17)/(1+$D$6))^($T$28-M$28),$D68*((1+$D$17)/(1+$D$6))^(M$28-$D$28))) -> 0 | N68: =IF('2c. Secondary Cost Dashb'!$D$17='4j. List options'!$B$2,($D68+($T68-$D68)/($T$28-$D$28)*(N$28-$D$28))*(1+$D$17)/(1+$D$6),IF(N$28>='2c. Secondary Cost Dashb'!$E$17,$T68/((1+$D$17)/(1+$D$6))^($T$28-N$28),$D68*((1+$D$17)/(1+$D$6))^(N$28-$D$28))) -> 0 | O68: =IF('2c. Secondary Cost Dashb'!$D$17='4j. List options'!$B$2,($D68+($T68-$D68)/($T$28-$D$28)*(O$28-$D$28))*(1+$D$17)/(1+$D$6),IF(O$28>='2c. Secondary Cost Dashb'!$E$17,$T68/((1+$D$17)/(1+$D$6))^($T$28-O$28),$D68*((1+$D$17)/(1+$D$6))^(O$28-$D$28))) -> 0 | P68: =IF('2c. Secondary Cost Dashb'!$D$17='4j. List options'!$B$2,($D68+($T68-$D68)/($T$28-$D$28)*(P$28-$D$28))*(1+$D$17)/(1+$D$6),IF(P$28>='2c. Secondary Cost Dashb'!$E$17,$T68/((1+$D$17)/(1+$D$6))^($T$28-P$28),$D68*((1+$D$17)/(1+$D$6))^(P$28-$D$28))) -> 0 | Q68: =IF('2c. Secondary Cost Dashb'!$D$17='4j. List options'!$B$2,($D68+($T68-$D68)/($T$28-$D$28)*(Q$28-$D$28))*(1+$D$17)/(1+$D$6),IF(Q$28>='2c. Secondary Cost Dashb'!$E$17,$T68/((1+$D$17)/(1+$D$6))^($T$28-Q$28),$D68*((1+$D$17)/(1+$D$6))^(Q$28-$D$28))) -> 0 | R68: =IF('2c. Secondary Cost Dashb'!$D$17='4j. List options'!$B$2,($D68+($T68-$D68)/($T$28-$D$28)*(R$28-$D$28))*(1+$D$17)/(1+$D$6),IF(R$28>='2c. Secondary Cost Dashb'!$E$17,$T68/((1+$D$17)/(1+$D$6))^($T$28-R$28),$D68*((1+$D$17)/(1+$D$6))^(R$28-$D$28))) -> 0 | S68: =IF('2c. Secondary Cost Dashb'!$D$17='4j. List options'!$B$2,($D68+($T68-$D68)/($T$28-$D$28)*(S$28-$D$28))*(1+$D$17)/(1+$D$6),IF(S$28>='2c. Secondary Cost Dashb'!$E$17,$T68/((1+$D$17)/(1+$D$6))^($T$28-S$28),$D68*((1+$D$17)/(1+$D$6))^(S$28-$D$28))) -> 0 | T68: ='2c. Secondary Cost Dashb'!$D$34*'2c. Secondary Cost Dashb'!$D$35*(1+$D$5)^(T$28-$D$28)/(1+$D$6)^(T$28-$D$28) -> 0
B69: N1-3 Eng | C69: Academic Support Costs per student | D69: 0 | E69: =IF('2c. Secondary Cost Dashb'!$D$17='4j. List options'!$B$2,($D69+($T69-$D69)/($T$28-$D$28)*(E$28-$D$28))*(1+$D$17)/(1+$D$6),IF(E$28>='2c. Secondary Cost Dashb'!$E$17,$T69/((1+$D$17)/(1+$D$6))^($T$28-E$28),$D69*((1+$D$17)/(1+$D$6))^(E$28-$D$28))) -> 0 | F69: =IF('2c. Secondary Cost Dashb'!$D$17='4j. List options'!$B$2,($D69+($T69-$D69)/($T$28-$D$28)*(F$28-$D$28))*(1+$D$17)/(1+$D$6),IF(F$28>='2c. Secondary Cost Dashb'!$E$17,$T69/((1+$D$17)/(1+$D$6))^($T$28-F$28),$D69*((1+$D$17)/(1+$D$6))^(F$28-$D$28))) -> 0 | G69: =IF('2c. Secondary Cost Dashb'!$D$17='4j. List options'!$B$2,($D69+($T69-$D69)/($T$28-$D$28)*(G$28-$D$28))*(1+$D$17)/(1+$D$6),IF(G$28>='2c. Secondary Cost Dashb'!$E$17,$T69/((1+$D$17)/(1+$D$6))^($T$28-G$28),$D69*((1+$D$17)/(1+$D$6))^(G$28-$D$28))) -> 0 | H69: =IF('2c. Secondary Cost Dashb'!$D$17='4j. List options'!$B$2,($D69+($T69-$D69)/($T$28-$D$28)*(H$28-$D$28))*(1+$D$17)/(1+$D$6),IF(H$28>='2c. Secondary Cost Dashb'!$E$17,$T69/((1+$D$17)/(1+$D$6))^($T$28-H$28),$D69*((1+$D$17)/(1+$D$6))^(H$28-$D$28))) -> 0 | I69: =IF('2c. Secondary Cost Dashb'!$D$17='4j. List options'!$B$2,($D69+($T69-$D69)/($T$28-$D$28)*(I$28-$D$28))*(1+$D$17)/(1+$D$6),IF(I$28>='2c. Secondary Cost Dashb'!$E$17,$T69/((1+$D$17)/(1+$D$6))^($T$28-I$28),$D69*((1+$D$17)/(1+$D$6))^(I$28-$D$28))) -> 0 | J69: =IF('2c. Secondary Cost Dashb'!$D$17='4j. List options'!$B$2,($D69+($T69-$D69)/($T$28-$D$28)*(J$28-$D$28))*(1+$D$17)/(1+$D$6),IF(J$28>='2c. Secondary Cost Dashb'!$E$17,$T69/((1+$D$17)/(1+$D$6))^($T$28-J$28),$D69*((1+$D$17)/(1+$D$6))^(J$28-$D$28))) -> 0 | K69: =IF('2c. Secondary Cost Dashb'!$D$17='4j. List options'!$B$2,($D69+($T69-$D69)/($T$28-$D$28)*(K$28-$D$28))*(1+$D$17)/(1+$D$6),IF(K$28>='2c. Secondary Cost Dashb'!$E$17,$T69/((1+$D$17)/(1+$D$6))^($T$28-K$28),$D69*((1+$D$17)/(1+$D$6))^(K$28-$D$28))) -> 0 | L69: =IF('2c. Secondary Cost Dashb'!$D$17='4j. List options'!$B$2,($D69+($T69-$D69)/($T$28-$D$28)*(L$28-$D$28))*(1+$D$17)/(1+$D$6),IF(L$28>='2c. Secondary Cost Dashb'!$E$17,$T69/((1+$D$17)/(1+$D$6))^($T$28-L$28),$D69*((1+$D$17)/(1+$D$6))^(L$28-$D$28))) -> 0 | M69: =IF('2c. Secondary Cost Dashb'!$D$17='4j. List options'!$B$2,($D69+($T69-$D69)/($T$28-$D$28)*(M$28-$D$28))*(1+$D$17)/(1+$D$6),IF(M$28>='2c. Secondary Cost Dashb'!$E$17,$T69/((1+$D$17)/(1+$D$6))^($T$28-M$28),$D69*((1+$D$17)/(1+$D$6))^(M$28-$D$28))) -> 0 | N69: =IF('2c. Secondary Cost Dashb'!$D$17='4j. List options'!$B$2,($D69+($T69-$D69)/($T$28-$D$28)*(N$28-$D$28))*(1+$D$17)/(1+$D$6),IF(N$28>='2c. Secondary Cost Dashb'!$E$17,$T69/((1+$D$17)/(1+$D$6))^($T$28-N$28),$D69*((1+$D$17)/(1+$D$6))^(N$28-$D$28))) -> 0 | O69: =IF('2c. Secondary Cost Dashb'!$D$17='4j. List options'!$B$2,($D69+($T69-$D69)/($T$28-$D$28)*(O$28-$D$28))*(1+$D$17)/(1+$D$6),IF(O$28>='2c. Secondary Cost Dashb'!$E$17,$T69/((1+$D$17)/(1+$D$6))^($T$28-O$28),$D69*((1+$D$17)/(1+$D$6))^(O$28-$D$28))) -> 0 | P69: =IF('2c. Secondary Cost Dashb'!$D$17='4j. List options'!$B$2,($D69+($T69-$D69)/($T$28-$D$28)*(P$28-$D$28))*(1+$D$17)/(1+$D$6),IF(P$28>='2c. Secondary Cost Dashb'!$E$17,$T69/((1+$D$17)/(1+$D$6))^($T$28-P$28),$D69*((1+$D$17)/(1+$D$6))^(P$28-$D$28))) -> 0 | Q69: =IF('2c. Secondary Cost Dashb'!$D$17='4j. List options'!$B$2,($D69+($T69-$D69)/($T$28-$D$28)*(Q$28-$D$28))*(1+$D$17)/(1+$D$6),IF(Q$28>='2c. Secondary Cost Dashb'!$E$17,$T69/((1+$D$17)/(1+$D$6))^($T$28-Q$28),$D69*((1+$D$17)/(1+$D$6))^(Q$28-$D$28))) -> 0 | R69: =IF('2c. Secondary Cost Dashb'!$D$17='4j. List options'!$B$2,($D69+($T69-$D69)/($T$28-$D$28)*(R$28-$D$28))*(1+$D$17)/(1+$D$6),IF(R$28>='2c. Secondary Cost Dashb'!$E$17,$T69/((1+$D$17)/(1+$D$6))^($T$28-R$28),$D69*((1+$D$17)/(1+$D$6))^(R$28-$D$28))) -> 0 | S69: =IF('2c. Secondary Cost Dashb'!$D$17='4j. List options'!$B$2,($D69+($T69-$D69)/($T$28-$D$28)*(S$28-$D$28))*(1+$D$17)/(1+$D$6),IF(S$28>='2c. Secondary Cost Dashb'!$E$17,$T69/((1+$D$17)/(1+$D$6))^($T$28-S$28),$D69*((1+$D$17)/(1+$D$6))^(S$28-$D$28))) -> 0 | T69: ='2c. Secondary Cost Dashb'!$D$34*'2c. Secondary Cost Dashb'!$D$35*(1+$D$5)^(T$28-$D$28)/(1+$D$6)^(T$28-$D$28) -> 0
B70: N4-6 Eng | C70: Academic Support Costs per student | D70: 0 | E70: =IF('2c. Secondary Cost Dashb'!$D$17='4j. List options'!$B$2,($D70+($T70-$D70)/($T$28-$D$28)*(E$28-$D$28))*(1+$D$17)/(1+$D$6),IF(E$28>='2c. Secondary Cost Dashb'!$E$17,$T70/((1+$D$17)/(1+$D$6))^($T$28-E$28),$D70*((1+$D$17)/(1+$D$6))^(E$28-$D$28))) -> 0 | F70: =IF('2c. Secondary Cost Dashb'!$D$17='4j. List options'!$B$2,($D70+($T70-$D70)/($T$28-$D$28)*(F$28-$D$28))*(1+$D$17)/(1+$D$6),IF(F$28>='2c. Secondary Cost Dashb'!$E$17,$T70/((1+$D$17)/(1+$D$6))^($T$28-F$28),$D70*((1+$D$17)/(1+$D$6))^(F$28-$D$28))) -> 0 | G70: =IF('2c. Secondary Cost Dashb'!$D$17='4j. List options'!$B$2,($D70+($T70-$D70)/($T$28-$D$28)*(G$28-$D$28))*(1+$D$17)/(1+$D$6),IF(G$28>='2c. Secondary Cost Dashb'!$E$17,$T70/((1+$D$17)/(1+$D$6))^($T$28-G$28),$D70*((1+$D$17)/(1+$D$6))^(G$28-$D$28))) -> 0 | H70: =IF('2c. Secondary Cost Dashb'!$D$17='4j. List options'!$B$2,($D70+($T70-$D70)/($T$28-$D$28)*(H$28-$D$28))*(1+$D$17)/(1+$D$6),IF(H$28>='2c. Secondary Cost Dashb'!$E$17,$T70/((1+$D$17)/(1+$D$6))^($T$28-H$28),$D70*((1+$D$17)/(1+$D$6))^(H$28-$D$28))) -> 0 | I70: =IF('2c. Secondary Cost Dashb'!$D$17='4j. List options'!$B$2,($D70+($T70-$D70)/($T$28-$D$28)*(I$28-$D$28))*(1+$D$17)/(1+$D$6),IF(I$28>='2c. Secondary Cost Dashb'!$E$17,$T70/((1+$D$17)/(1+$D$6))^($T$28-I$28),$D70*((1+$D$17)/(1+$D$6))^(I$28-$D$28))) -> 0 | J70: =IF('2c. Secondary Cost Dashb'!$D$17='4j. List options'!$B$2,($D70+($T70-$D70)/($T$28-$D$28)*(J$28-$D$28))*(1+$D$17)/(1+$D$6),IF(J$28>='2c. Secondary Cost Dashb'!$E$17,$T70/((1+$D$17)/(1+$D$6))^($T$28-J$28),$D70*((1+$D$17)/(1+$D$6))^(J$28-$D$28))) -> 0 | K70: =IF('2c. Secondary Cost Dashb'!$D$17='4j. List options'!$B$2,($D70+($T70-$D70)/($T$28-$D$28)*(K$28-$D$28))*(1+$D$17)/(1+$D$6),IF(K$28>='2c. Secondary Cost Dashb'!$E$17,$T70/((1+$D$17)/(1+$D$6))^($T$28-K$28),$D70*((1+$D$17)/(1+$D$6))^(K$28-$D$28))) -> 0 | L70: =IF('2c. Secondary Cost Dashb'!$D$17='4j. List options'!$B$2,($D70+($T70-$D70)/($T$28-$D$28)*(L$28-$D$28))*(1+$D$17)/(1+$D$6),IF(L$28>='2c. Secondary Cost Dashb'!$E$17,$T70/((1+$D$17)/(1+$D$6))^($T$28-L$28),$D70*((1+$D$17)/(1+$D$6))^(L$28-$D$28))) -> 0 | M70: =IF('2c. Secondary Cost Dashb'!$D$17='4j. List options'!$B$2,($D70+($T70-$D70)/($T$28-$D$28)*(M$28-$D$28))*(1+$D$17)/(1+$D$6),IF(M$28>='2c. Secondary Cost Dashb'!$E$17,$T70/((1+$D$17)/(1+$D$6))^($T$28-M$28),$D70*((1+$D$17)/(1+$D$6))^(M$28-$D$28))) -> 0 | N70: =IF('2c. Secondary Cost Dashb'!$D$17='4j. List options'!$B$2,($D70+($T70-$D70)/($T$28-$D$28)*(N$28-$D$28))*(1+$D$17)/(1+$D$6),IF(N$28>='2c. Secondary Cost Dashb'!$E$17,$T70/((1+$D$17)/(1+$D$6))^($T$28-N$28),$D70*((1+$D$17)/(1+$D$6))^(N$28-$D$28))) -> 0 | O70: =IF('2c. Secondary Cost Dashb'!$D$17='4j. List options'!$B$2,($D70+($T70-$D70)/($T$28-$D$28)*(O$28-$D$28))*(1+$D$17)/(1+$D$6),IF(O$28>='2c. Secondary Cost Dashb'!$E$17,$T70/((1+$D$17)/(1+$D$6))^($T$28-O$28),$D70*((1+$D$17)/(1+$D$6))^(O$28-$D$28))) -> 0 | P70: =IF('2c. Secondary Cost Dashb'!$D$17='4j. List options'!$B$2,($D70+($T70-$D70)/($T$28-$D$28)*(P$28-$D$28))*(1+$D$17)/(1+$D$6),IF(P$28>='2c. Secondary Cost Dashb'!$E$17,$T70/((1+$D$17)/(1+$D$6))^($T$28-P$28),$D70*((1+$D$17)/(1+$D$6))^(P$28-$D$28))) -> 0 | Q70: =IF('2c. Secondary Cost Dashb'!$D$17='4j. List options'!$B$2,($D70+($T70-$D70)/($T$28-$D$28)*(Q$28-$D$28))*(1+$D$17)/(1+$D$6),IF(Q$28>='2c. Secondary Cost Dashb'!$E$17,$T70/((1+$D$17)/(1+$D$6))^($T$28-Q$28),$D70*((1+$D$17)/(1+$D$6))^(Q$28-$D$28))) -> 0 | R70: =IF('2c. Secondary Cost Dashb'!$D$17='4j. List options'!$B$2,($D70+($T70-$D70)/($T$28-$D$28)*(R$28-$D$28))*(1+$D$17)/(1+$D$6),IF(R$28>='2c. Secondary Cost Dashb'!$E$17,$T70/((1+$D$17)/(1+$D$6))^($T$28-R$28),$D70*((1+$D$17)/(1+$D$6))^(R$28-$D$28))) -> 0 | S70: =IF('2c. Secondary Cost Dashb'!$D$17='4j. List options'!$B$2,($D70+($T70-$D70)/($T$28-$D$28)*(S$28-$D$28))*(1+$D$17)/(1+$D$6),IF(S$28>='2c. Secondary Cost Dashb'!$E$17,$T70/((1+$D$17)/(1+$D$6))^($T$28-S$28),$D70*((1+$D$17)/(1+$D$6))^(S$28-$D$28))) -> 0 | T70: ='2c. Secondary Cost Dashb'!$D$34*'2c. Secondary Cost Dashb'!$D$35*(1+$D$5)^(T$28-$D$28)/(1+$D$6)^(T$28-$D$28) -> 0
B71: N4-6 Bus | C71: Academic Support Costs per student | D71: 0 | E71: =IF('2c. Secondary Cost Dashb'!$D$17='4j. List options'!$B$2,($D71+($T71-$D71)/($T$28-$D$28)*(E$28-$D$28))*(1+$D$17)/(1+$D$6),IF(E$28>='2c. Secondary Cost Dashb'!$E$17,$T71/((1+$D$17)/(1+$D$6))^($T$28-E$28),$D71*((1+$D$17)/(1+$D$6))^(E$28-$D$28))) -> 0 | F71: =IF('2c. Secondary Cost Dashb'!$D$17='4j. List options'!$B$2,($D71+($T71-$D71)/($T$28-$D$28)*(F$28-$D$28))*(1+$D$17)/(1+$D$6),IF(F$28>='2c. Secondary Cost Dashb'!$E$17,$T71/((1+$D$17)/(1+$D$6))^($T$28-F$28),$D71*((1+$D$17)/(1+$D$6))^(F$28-$D$28))) -> 0 | G71: =IF('2c. Secondary Cost Dashb'!$D$17='4j. List options'!$B$2,($D71+($T71-$D71)/($T$28-$D$28)*(G$28-$D$28))*(1+$D$17)/(1+$D$6),IF(G$28>='2c. Secondary Cost Dashb'!$E$17,$T71/((1+$D$17)/(1+$D$6))^($T$28-G$28),$D71*((1+$D$17)/(1+$D$6))^(G$28-$D$28))) -> 0 | H71: =IF('2c. Secondary Cost Dashb'!$D$17='4j. List options'!$B$2,($D71+($T71-$D71)/($T$28-$D$28)*(H$28-$D$28))*(1+$D$17)/(1+$D$6),IF(H$28>='2c. Secondary Cost Dashb'!$E$17,$T71/((1+$D$17)/(1+$D$6))^($T$28-H$28),$D71*((1+$D$17)/(1+$D$6))^(H$28-$D$28))) -> 0 | I71: =IF('2c. Secondary Cost Dashb'!$D$17='4j. List options'!$B$2,($D71+($T71-$D71)/($T$28-$D$28)*(I$28-$D$28))*(1+$D$17)/(1+$D$6),IF(I$28>='2c. Secondary Cost Dashb'!$E$17,$T71/((1+$D$17)/(1+$D$6))^($T$28-I$28),$D71*((1+$D$17)/(1+$D$6))^(I$28-$D$28))) -> 0 | J71: =IF('2c. Secondary Cost Dashb'!$D$17='4j. List options'!$B$2,($D71+($T71-$D71)/($T$28-$D$28)*(J$28-$D$28))*(1+$D$17)/(1+$D$6),IF(J$28>='2c. Secondary Cost Dashb'!$E$17,$T71/((1+$D$17)/(1+$D$6))^($T$28-J$28),$D71*((1+$D$17)/(1+$D$6))^(J$28-$D$28))) -> 0 | K71: =IF('2c. Secondary Cost Dashb'!$D$17='4j. List options'!$B$2,($D71+($T71-$D71)/($T$28-$D$28)*(K$28-$D$28))*(1+$D$17)/(1+$D$6),IF(K$28>='2c. Secondary Cost Dashb'!$E$17,$T71/((1+$D$17)/(1+$D$6))^($T$28-K$28),$D71*((1+$D$17)/(1+$D$6))^(K$28-$D$28))) -> 0 | L71: =IF('2c. Secondary Cost Dashb'!$D$17='4j. List options'!$B$2,($D71+($T71-$D71)/($T$28-$D$28)*(L$28-$D$28))*(1+$D$17)/(1+$D$6),IF(L$28>='2c. Secondary Cost Dashb'!$E$17,$T71/((1+$D$17)/(1+$D$6))^($T$28-L$28),$D71*((1+$D$17)/(1+$D$6))^(L$28-$D$28))) -> 0 | M71: =IF('2c. Secondary Cost Dashb'!$D$17='4j. List options'!$B$2,($D71+($T71-$D71)/($T$28-$D$28)*(M$28-$D$28))*(1+$D$17)/(1+$D$6),IF(M$28>='2c. Secondary Cost Dashb'!$E$17,$T71/((1+$D$17)/(1+$D$6))^($T$28-M$28),$D71*((1+$D$17)/(1+$D$6))^(M$28-$D$28))) -> 0 | N71: =IF('2c. Secondary Cost Dashb'!$D$17='4j. List options'!$B$2,($D71+($T71-$D71)/($T$28-$D$28)*(N$28-$D$28))*(1+$D$17)/(1+$D$6),IF(N$28>='2c. Secondary Cost Dashb'!$E$17,$T71/((1+$D$17)/(1+$D$6))^($T$28-N$28),$D71*((1+$D$17)/(1+$D$6))^(N$28-$D$28))) -> 0 | O71: =IF('2c. Secondary Cost Dashb'!$D$17='4j. List options'!$B$2,($D71+($T71-$D71)/($T$28-$D$28)*(O$28-$D$28))*(1+$D$17)/(1+$D$6),IF(O$28>='2c. Secondary Cost Dashb'!$E$17,$T71/((1+$D$17)/(1+$D$6))^($T$28-O$28),$D71*((1+$D$17)/(1+$D$6))^(O$28-$D$28))) -> 0 | P71: =IF('2c. Secondary Cost Dashb'!$D$17='4j. List options'!$B$2,($D71+($T71-$D71)/($T$28-$D$28)*(P$28-$D$28))*(1+$D$17)/(1+$D$6),IF(P$28>='2c. Secondary Cost Dashb'!$E$17,$T71/((1+$D$17)/(1+$D$6))^($T$28-P$28),$D71*((1+$D$17)/(1+$D$6))^(P$28-$D$28))) -> 0 | Q71: =IF('2c. Secondary Cost Dashb'!$D$17='4j. List options'!$B$2,($D71+($T71-$D71)/($T$28-$D$28)*(Q$28-$D$28))*(1+$D$17)/(1+$D$6),IF(Q$28>='2c. Secondary Cost Dashb'!$E$17,$T71/((1+$D$17)/(1+$D$6))^($T$28-Q$28),$D71*((1+$D$17)/(1+$D$6))^(Q$28-$D$28))) -> 0 | R71: =IF('2c. Secondary Cost Dashb'!$D$17='4j. List options'!$B$2,($D71+($T71-$D71)/($T$28-$D$28)*(R$28-$D$28))*(1+$D$17)/(1+$D$6),IF(R$28>='2c. Secondary Cost Dashb'!$E$17,$T71/((1+$D$17)/(1+$D$6))^($T$28-R$28),$D71*((1+$D$17)/(1+$D$6))^(R$28-$D$28))) -> 0 | S71: =IF('2c. Secondary Cost Dashb'!$D$17='4j. List options'!$B$2,($D71+($T71-$D71)/($T$28-$D$28)*(S$28-$D$28))*(1+$D$17)/(1+$D$6),IF(S$28>='2c. Secondary Cost Dashb'!$E$17,$T71/((1+$D$17)/(1+$D$6))^($T$28-S$28),$D71*((1+$D$17)/(1+$D$6))^(S$28-$D$28))) -> 0 | T71: ='2c. Secondary Cost Dashb'!$D$34*'2c. Secondary Cost Dashb'!$D$35*(1+$D$5)^(T$28-$D$28)/(1+$D$6)^(T$28-$D$28) -> 0
B72: N4-6 Ser | C72: Academic Support Costs per student | D72: 0 | E72: =IF('2c. Secondary Cost Dashb'!$D$17='4j. List options'!$B$2,($D72+($T72-$D72)/($T$28-$D$28)*(E$28-$D$28))*(1+$D$17)/(1+$D$6),IF(E$28>='2c. Secondary Cost Dashb'!$E$17,$T72/((1+$D$17)/(1+$D$6))^($T$28-E$28),$D72*((1+$D$17)/(1+$D$6))^(E$28-$D$28))) -> 0 | F72: =IF('2c. Secondary Cost Dashb'!$D$17='4j. List options'!$B$2,($D72+($T72-$D72)/($T$28-$D$28)*(F$28-$D$28))*(1+$D$17)/(1+$D$6),IF(F$28>='2c. Secondary Cost Dashb'!$E$17,$T72/((1+$D$17)/(1+$D$6))^($T$28-F$28),$D72*((1+$D$17)/(1+$D$6))^(F$28-$D$28))) -> 0 | G72: =IF('2c. Secondary Cost Dashb'!$D$17='4j. List options'!$B$2,($D72+($T72-$D72)/($T$28-$D$28)*(G$28-$D$28))*(1+$D$17)/(1+$D$6),IF(G$28>='2c. Secondary Cost Dashb'!$E$17,$T72/((1+$D$17)/(1+$D$6))^($T$28-G$28),$D72*((1+$D$17)/(1+$D$6))^(G$28-$D$28))) -> 0 | H72: =IF('2c. Secondary Cost Dashb'!$D$17='4j. List options'!$B$2,($D72+($T72-$D72)/($T$28-$D$28)*(H$28-$D$28))*(1+$D$17)/(1+$D$6),IF(H$28>='2c. Secondary Cost Dashb'!$E$17,$T72/((1+$D$17)/(1+$D$6))^($T$28-H$28),$D72*((1+$D$17)/(1+$D$6))^(H$28-$D$28))) -> 0 | I72: =IF('2c. Secondary Cost Dashb'!$D$17='4j. List options'!$B$2,($D72+($T72-$D72)/($T$28-$D$28)*(I$28-$D$28))*(1+$D$17)/(1+$D$6),IF(I$28>='2c. Secondary Cost Dashb'!$E$17,$T72/((1+$D$17)/(1+$D$6))^($T$28-I$28),$D72*((1+$D$17)/(1+$D$6))^(I$28-$D$28))) -> 0 | J72: =IF('2c. Secondary Cost Dashb'!$D$17='4j. List options'!$B$2,($D72+($T72-$D72)/($T$28-$D$28)*(J$28-$D$28))*(1+$D$17)/(1+$D$6),IF(J$28>='2c. Secondary Cost Dashb'!$E$17,$T72/((1+$D$17)/(1+$D$6))^($T$28-J$28),$D72*((1+$D$17)/(1+$D$6))^(J$28-$D$28))) -> 0 | K72: =IF('2c. Secondary Cost Dashb'!$D$17='4j. List options'!$B$2,($D72+($T72-$D72)/($T$28-$D$28)*(K$28-$D$28))*(1+$D$17)/(1+$D$6),IF(K$28>='2c. Secondary Cost Dashb'!$E$17,$T72/((1+$D$17)/(1+$D$6))^($T$28-K$28),$D72*((1+$D$17)/(1+$D$6))^(K$28-$D$28))) -> 0 | L72: =IF('2c. Secondary Cost Dashb'!$D$17='4j. List options'!$B$2,($D72+($T72-$D72)/($T$28-$D$28)*(L$28-$D$28))*(1+$D$17)/(1+$D$6),IF(L$28>='2c. Secondary Cost Dashb'!$E$17,$T72/((1+$D$17)/(1+$D$6))^($T$28-L$28),$D72*((1+$D$17)/(1+$D$6))^(L$28-$D$28))) -> 0 | M72: =IF('2c. Secondary Cost Dashb'!$D$17='4j. List options'!$B$2,($D72+($T72-$D72)/($T$28-$D$28)*(M$28-$D$28))*(1+$D$17)/(1+$D$6),IF(M$28>='2c. Secondary Cost Dashb'!$E$17,$T72/((1+$D$17)/(1+$D$6))^($T$28-M$28),$D72*((1+$D$17)/(1+$D$6))^(M$28-$D$28))) -> 0 | N72: =IF('2c. Secondary Cost Dashb'!$D$17='4j. List options'!$B$2,($D72+($T72-$D72)/($T$28-$D$28)*(N$28-$D$28))*(1+$D$17)/(1+$D$6),IF(N$28>='2c. Secondary Cost Dashb'!$E$17,$T72/((1+$D$17)/(1+$D$6))^($T$28-N$28),$D72*((1+$D$17)/(1+$D$6))^(N$28-$D$28))) -> 0 | O72: =IF('2c. Secondary Cost Dashb'!$D$17='4j. List options'!$B$2,($D72+($T72-$D72)/($T$28-$D$28)*(O$28-$D$28))*(1+$D$17)/(1+$D$6),IF(O$28>='2c. Secondary Cost Dashb'!$E$17,$T72/((1+$D$17)/(1+$D$6))^($T$28-O$28),$D72*((1+$D$17)/(1+$D$6))^(O$28-$D$28))) -> 0 | P72: =IF('2c. Secondary Cost Dashb'!$D$17='4j. List options'!$B$2,($D72+($T72-$D72)/($T$28-$D$28)*(P$28-$D$28))*(1+$D$17)/(1+$D$6),IF(P$28>='2c. Secondary Cost Dashb'!$E$17,$T72/((1+$D$17)/(1+$D$6))^($T$28-P$28),$D72*((1+$D$17)/(1+$D$6))^(P$28-$D$28))) -> 0 | Q72: =IF('2c. Secondary Cost Dashb'!$D$17='4j. List options'!$B$2,($D72+($T72-$D72)/($T$28-$D$28)*(Q$28-$D$28))*(1+$D$17)/(1+$D$6),IF(Q$28>='2c. Secondary Cost Dashb'!$E$17,$T72/((1+$D$17)/(1+$D$6))^($T$28-Q$28),$D72*((1+$D$17)/(1+$D$6))^(Q$28-$D$28))) -> 0 | R72: =IF('2c. Secondary Cost Dashb'!$D$17='4j. List options'!$B$2,($D72+($T72-$D72)/($T$28-$D$28)*(R$28-$D$28))*(1+$D$17)/(1+$D$6),IF(R$28>='2c. Secondary Cost Dashb'!$E$17,$T72/((1+$D$17)/(1+$D$6))^($T$28-R$28),$D72*((1+$D$17)/(1+$D$6))^(R$28-$D$28))) -> 0 | S72: =IF('2c. Secondary Cost Dashb'!$D$17='4j. List options'!$B$2,($D72+($T72-$D72)/($T$28-$D$28)*(S$28-$D$28))*(1+$D$17)/(1+$D$6),IF(S$28>='2c. Secondary Cost Dashb'!$E$17,$T72/((1+$D$17)/(1+$D$6))^($T$28-S$28),$D72*((1+$D$17)/(1+$D$6))^(S$28-$D$28))) -> 0 | T72: ='2c. Secondary Cost Dashb'!$D$34*'2c. Secondary Cost Dashb'!$D$35*(1+$D$5)^(T$28-$D$28)/(1+$D$6)^(T$28-$D$28) -> 0
B73: NC(V) | C73: Academic Support Costs | D73: ='4e. Enrolment Model'!D120*D68 -> 0 | E73: ='4e. Enrolment Model'!E120*E68 -> 0 | F73: ='4e. Enrolment Model'!F120*F68 -> 0 | G73: ='4e. Enrolment Model'!G120*G68 -> 0 | H73: ='4e. Enrolment Model'!H120*H68 -> 0 | I73: ='4e. Enrolment Model'!I120*I68 -> 0 | J73: ='4e. Enrolment Model'!J120*J68 -> 0 | K73: ='4e. Enrolment Model'!K120*K68 -> 0 | L73: ='4e. Enrolment Model'!L120*L68 -> 0 | M73: ='4e. Enrolment Model'!M120*M68 -> 0 | N73: ='4e. Enrolment Model'!N120*N68 -> 0 | O73: ='4e. Enrolment Model'!O120*O68 -> 0 | P73: ='4e. Enrolment Model'!P120*P68 -> 0 | Q73: ='4e. Enrolment Model'!Q120*Q68 -> 0 | R73: ='4e. Enrolment Model'!R120*R68 -> 0 | S73: ='4e. Enrolment Model'!S120*S68 -> 0 | T73: ='4e. Enrolment Model'!T120*T68 -> 0
B74: N1-3 Eng | C74: Academic Support Costs | D74: =D69*D80 -> 0 | E74: =E69*E80 -> 0 | F74: 0 | G74: 0 | H74: 0 | I74: 0 | J74: 0 | K74: 0 | L74: 0 | M74: 0 | N74: 0 | O74: 0 | P74: 0 | Q74: 0 | R74: 0 | S74: 0 | T74: 0
B75: N4-6 Eng | C75: Academic Support Costs | D75: =D70*D81 -> 0 | E75: =E70*E81 -> 0 | F75: 0 | G75: 0 | H75: 0 | I75: 0 | J75: 0 | K75: 0 | L75: 0 | M75: 0 | N75: 0 | O75: 0 | P75: 0 | Q75: 0 | R75: 0 | S75: 0 | T75: 0
B76: N4-6 Bus | C76: Academic Support Costs | D76: =D71*D82 -> 0 | E76: =E71*E82 -> 0 | F76: 0 | G76: 0 | H76: 0 | I76: 0 | J76: 0 | K76: 0 | L76: 0 | M76: 0 | N76: 0 | O76: 0 | P76: 0 | Q76: 0 | R76: 0 | S76: 0 | T76: 0
B77: N4-6 Ser | C77: Academic Support Costs | D77: =D72*D83 -> 0 | E77: =E72*E83 -> 0 | F77: 0 | G77: 0 | H77: 0 | I77: 0 | J77: 0 | K77: 0 | L77: 0 | M77: 0 | N77: 0 | O77: 0 | P77: 0 | Q77: 0 | R77: 0 | S77: 0 | T77: 0
B78: Total | C78: Academic Support Costs | D78: =SUM(D73:D77) -> 0 | E78: =SUM(E73:E77) -> 0 | F78: 0 | G78: 0 | H78: 0 | I78: 0 | J78: 0 | K78: 0 | L78: 0 | M78: 0 | N78: 0 | O78: 0 | P78: 0 | Q78: 0 | R78: 0 | S78: 0 | T78: 0
B79: NC(V) | C79: FTEs | D79: =SUMIF('4e. Enrolment Model'!$A$150:$A$164,'4b. Costing Calc'!$B79,'4e. Enrolment Model'!D$150:D$164) -> 146164 | E79: =SUMIF('4e. Enrolment Model'!$A$150:$A$164,'4b. Costing Calc'!$B79,'4e. Enrolment Model'!E$150:E$164) -> 149591.6722 | F79: =SUMIF('4e. Enrolment Model'!$A$150:$A$164,'4b. Costing Calc'!$B79,'4e. Enrolment Model'!F$150:F$164) -> 175587.7201 | G79: =SUMIF('4e. Enrolment Model'!$A$150:$A$164,'4b. Costing Calc'!$B79,'4e. Enrolment Model'!G$150:G$164) -> 198951.19 | H79: =SUMIF('4e. Enrolment Model'!$A$150:$A$164,'4b. Costing Calc'!$B79,'4e. Enrolment Model'!H$150:H$164) -> 224347.5752 | I79: =SUMIF('4e. Enrolment Model'!$A$150:$A$164,'4b. Costing Calc'!$B79,'4e. Enrolment Model'!I$150:I$164) -> 248225.0059 | J79: =SUMIF('4e. Enrolment Model'!$A$150:$A$164,'4b. Costing Calc'!$B79,'4e. Enrolment Model'!J$150:J$164) -> 273277.534 | K79: =SUMIF('4e. Enrolment Model'!$A$150:$A$164,'4b. Costing Calc'!$B79,'4e. Enrolment Model'!K$150:K$164) -> 297414.1135 | L79: =SUMIF('4e. Enrolment Model'!$A$150:$A$164,'4b. Costing Calc'!$B79,'4e. Enrolment Model'!L$150:L$164) -> 322242.1315 | M79: =SUMIF('4e. Enrolment Model'!$A$150:$A$164,'4b. Costing Calc'!$B79,'4e. Enrolment Model'!M$150:M$164) -> 346547.7958 | N79: =SUMIF('4e. Enrolment Model'!$A$150:$A$164,'4b. Costing Calc'!$B79,'4e. Enrolment Model'!N$150:N$164) -> 371255.2094 | O79: =SUMIF('4e. Enrolment Model'!$A$150:$A$164,'4b. Costing Calc'!$B79,'4e. Enrolment Model'!O$150:O$164) -> 395655.8606 | P79: =SUMIF('4e. Enrolment Model'!$A$150:$A$164,'4b. Costing Calc'!$B79,'4e. Enrolment Model'!P$150:P$164) -> 420288.8006 | Q79: =SUMIF('4e. Enrolment Model'!$A$150:$A$164,'4b. Costing Calc'!$B79,'4e. Enrolment Model'!Q$150:Q$164) -> 444744.4164 | R79: =SUMIF('4e. Enrolment Model'!$A$150:$A$164,'4b. Costing Calc'!$B79,'4e. Enrolment Model'!R$150:R$164) -> 469335.758 | S79: =SUMIF('4e. Enrolment Model'!$A$150:$A$164,'4b. Costing Calc'!$B79,'4e. Enrolment Model'!S$150:S$164) -> 493823.8439 | T79: =SUMIF('4e. Enrolment Model'!$A$150:$A$164,'4b. Costing Calc'!$B79,'4e. Enrolment Model'!T$150:T$164) -> 518390.5187
B80: N1-3 Eng | C80: FTEs | D80: =SUMIF('4e. Enrolment Model'!$A$150:$A$164,'4b. Costing Calc'!$B80,'4e. Enrolment Model'!D$150:D$164) -> 47420.52313 | E80: =SUMIF('4e. Enrolment Model'!$A$150:$A$164,'4b. Costing Calc'!$B80,'4e. Enrolment Model'!E$150:E$164) -> 51207.09476 | F80: =SUMIF('4e. Enrolment Model'!$A$150:$A$164,'4b. Costing Calc'!$B80,'4e. Enrolment Model'!F$150:F$164) -> 60938.20368 | G80: =SUMIF('4e. Enrolment Model'!$A$150:$A$164,'4b. Costing Calc'!$B80,'4e. Enrolment Model'!G$150:G$164) -> 69075.63841 | H80: =SUMIF('4e. Enrolment Model'!$A$150:$A$164,'4b. Costing Calc'!$B80,'4e. Enrolment Model'!H$150:H$164) -> 77408.17576 | I80: =SUMIF('4e. Enrolment Model'!$A$150:$A$164,'4b. Costing Calc'!$B80,'4e. Enrolment Model'!I$150:I$164) -> 85733.24043 | J80: =SUMIF('4e. Enrolment Model'!$A$150:$A$164,'4b. Costing Calc'!$B80,'4e. Enrolment Model'!J$150:J$164) -> 94052.02618 | K80: =SUMIF('4e. Enrolment Model'!$A$150:$A$164,'4b. Costing Calc'!$B80,'4e. Enrolment Model'!K$150:K$164) -> 102370.8321 | L80: =SUMIF('4e. Enrolment Model'!$A$150:$A$164,'4b. Costing Calc'!$B80,'4e. Enrolment Model'!L$150:L$164) -> 110690.856 | M80: =SUMIF('4e. Enrolment Model'!$A$150:$A$164,'4b. Costing Calc'!$B80,'4e. Enrolment Model'!M$150:M$164) -> 119010.6313 | N80: =SUMIF('4e. Enrolment Model'!$A$150:$A$164,'4b. Costing Calc'!$B80,'4e. Enrolment Model'!N$150:N$164) -> 127330.2683 | O80: =SUMIF('4e. Enrolment Model'!$A$150:$A$164,'4b. Costing Calc'!$B80,'4e. Enrolment Model'!O$150:O$164) -> 135649.9672 | P80: =SUMIF('4e. Enrolment Model'!$A$150:$A$164,'4b. Costing Calc'!$B80,'4e. Enrolment Model'!P$150:P$164) -> 143969.6763 | Q80: =SUMIF('4e. Enrolment Model'!$A$150:$A$164,'4b. Costing Calc'!$B80,'4e. Enrolment Model'!Q$150:Q$164) -> 152289.3741 | R80: =SUMIF('4e. Enrolment Model'!$A$150:$A$164,'4b. Costing Calc'!$B80,'4e. Enrolment Model'!R$150:R$164) -> 160609.0724 | S80: =SUMIF('4e. Enrolment Model'!$A$150:$A$164,'4b. Costing Calc'!$B80,'4e. Enrolment Model'!S$150:S$164) -> 168928.7723 | T80: =SUMIF('4e. Enrolment Model'!$A$150:$A$164,'4b. Costing Calc'!$B80,'4e. Enrolment Model'!T$150:T$164) -> 177248.4719
B81: N4-6 Eng | C81: FTEs | D81: =SUMIF('4e. Enrolment Model'!$A$150:$A$164,'4b. Costing Calc'!$B81,'4e. Enrolment Model'!D$150:D$164) -> 20506.97658 | E81: =SUMIF('4e. Enrolment Model'!$A$150:$A$164,'4b. Costing Calc'!$B81,'4e. Enrolment Model'!E$150:E$164) -> 22361.56251 | F81: =SUMIF('4e. Enrolment Model'!$A$150:$A$164,'4b. Costing Calc'!$B81,'4e. Enrolment Model'!F$150:F$164) -> 26594.3243 | G81: =SUMIF('4e. Enrolment Model'!$A$150:$A$164,'4b. Costing Calc'!$B81,'4e. Enrolment Model'!G$150:G$164) -> 30154.69228 | H81: =SUMIF('4e. Enrolment Model'!$A$150:$A$164,'4b. Costing Calc'!$B81,'4e. Enrolment Model'!H$150:H$164) -> 33793.0269 | I81: =SUMIF('4e. Enrolment Model'!$A$150:$A$164,'4b. Costing Calc'!$B81,'4e. Enrolment Model'!I$150:I$164) -> 37435.51466 | J81: =SUMIF('4e. Enrolment Model'!$A$150:$A$164,'4b. Costing Calc'!$B81,'4e. Enrolment Model'!J$150:J$164) -> 41073.36289 | K81: =SUMIF('4e. Enrolment Model'!$A$150:$A$164,'4b. Costing Calc'!$B81,'4e. Enrolment Model'!K$150:K$164) -> 44710.44079 | L81: =SUMIF('4e. Enrolment Model'!$A$150:$A$164,'4b. Costing Calc'!$B81,'4e. Enrolment Model'!L$150:L$164) -> 48348.47324 | M81: =SUMIF('4e. Enrolment Model'!$A$150:$A$164,'4b. Costing Calc'!$B81,'4e. Enrolment Model'!M$150:M$164) -> 51986.50491 | N81: =SUMIF('4e. Enrolment Model'!$A$150:$A$164,'4b. Costing Calc'!$B81,'4e. Enrolment Model'!N$150:N$164) -> 55624.37432 | O81: =SUMIF('4e. Enrolment Model'!$A$150:$A$164,'4b. Costing Calc'!$B81,'4e. Enrolment Model'!O$150:O$164) -> 59262.26524 | P81: =SUMIF('4e. Enrolment Model'!$A$150:$A$164,'4b. Costing Calc'!$B81,'4e. Enrolment Model'!P$150:P$164) -> 62900.18102 | Q81: =SUMIF('4e. Enrolment Model'!$A$150:$A$164,'4b. Costing Calc'!$B81,'4e. Enrolment Model'!Q$150:Q$164) -> 66538.08985 | R81: =SUMIF('4e. Enrolment Model'!$A$150:$A$164,'4b. Costing Calc'!$B81,'4e. Enrolment Model'!R$150:R$164) -> 70175.99535 | S81: =SUMIF('4e. Enrolment Model'!$A$150:$A$164,'4b. Costing Calc'!$B81,'4e. Enrolment Model'!S$150:S$164) -> 73813.90248 | T81: =SUMIF('4e. Enrolment Model'!$A$150:$A$164,'4b. Costing Calc'!$B81,'4e. Enrolment Model'!T$150:T$164) -> 77451.80996
